Workbook

Sheet data
A3: 2020-01-27 | E3: 1 | F3: 06:00:00 | G3: 07:10:00 | H3: =IF((G3-F3)<=0,"",(G3-F3)) -> 0.04861111111 | I3: 06:00:00 | J3: 07:10:00 | K3: =IF((J3-I3)<=0,"",(J3-I3)) -> 0.04861111111 | L3: 0.04166666667 | M3: =IFERROR(IF((K3-L3)<=0,"0",(K3-L3)),"") -> 0.006944444444 | N3: 0.03819444444 | O3: 0 | P3: 0.6305 | Q3: 0.54 | R3: =IF(P3="","",IFERROR(P3-Q3,"")) -> 0.0905 | S3: =IF( N3 <> "", IF(AND(E3<"100%", M3>0, O3>N3), "Miss", "Hit"), "") -> Hit
A4: 2020-01-27 | E4: 1 | F4: 06:00:00 | G4: 06:49:00 | H4: =IF((G4-F4)<=0,"",(G4-F4)) -> 0.03402777778 | I4: 06:00:00 | J4: 06:53:00 | K4: =IF((J4-I4)<=0,"",(J4-I4)) -> 0.03680555556 | L4: 0.03819444444 | M4: 0 | N4: 0.01736111111 | O4: 0.003043981481 | P4: 0.5498 | Q4: 0.6374 | R4: =IF(P4="","",IFERROR(P4-Q4,"")) -> -0.0876 | S4: =IF( N4 <> "", IF(AND(E4<"100%", M4>0, O4>N4), "Miss", "Hit"), "") -> Hit
A5: 2020-02-03 | E5: 1 | F5: 06:00:00 | G5: 07:20:00 | H5: =IF((G5-F5)<=0,"",(G5-F5)) -> 0.05555555556 | I5: 06:00:00 | J5: 07:30:00 | K5: 0.0625 | L5: 0.0625 | M5: 0 | N5: 0.03819444444 | O5: 0.01033564815 | P5: 0.5645 | Q5: 0.3268 | R5: 0.2377 | S5: Hit
A6: 2020-02-10 | E6: 1 | F6: 06:00:00 | G6: 06:20:00 | H6: 0.01388888889 | I6: 06:00:00 | J6: 06:40:00 | K6: 0.02777777778 | L6: 0.04513888889 | M6: 0 | P6: 0.5346 | Q6: 0.4795 | R6: 0.0551
A7: 2020-02-10 | E7: 1 | F7: 06:00:00 | G7: 06:35:00 | H7: 0.02430555556 | I7: 06:00:00 | J7: 06:25:00 | K7: 0.01736111111 | L7: 0.03125 | M7: 0 | N7: 0.01388888889 | O7: 0 | P7: 0.5601 | Q7: 0.6023 | R7: -0.0422 | S7: Hit
A8: 2020-02-18 | E8: 1 | F8: 06:00:00 | G8: 07:00:00 | H8: 0.04166666667 | I8: 06:00:00 | J8: 09:00:00 | K8: 0.125 | L8: 0.04861111111 | M8: 0.07638888889 | N8: 0.01736111111 | O8: 0.01546296296 | P8: 0.5411 | Q8: 0.4688 | R8: 0.0723 | S8: Hit
A9: 2020-02-18 | E9: 1 | F9: 06:00:00 | G9: 06:25:00 | H9: 0.01736111111 | I9: 06:00:00 | J9: 07:00:00 | K9: 0.04166666667 | L9: 0.03819444444 | M9: 0.003472222222 | N9: 0.01736111111 | O9: 0 | P9: 0.6361 | Q9: 0.4392 | R9: 0.1969 | S9: Hit
A10: 2020-02-24 | E10: 1 | F10: 06:00:00 | G10: 06:30:00 | H10: 0.02083333333 | I10: 06:00:00 | J10: 06:40:00 | K10: 0.02777777778 | L10: 0.04166666667 | M10: 0 | N10: 0.01736111111 | O10: 0.006273148148 | P10: 0.4758 | Q10: 0.5732 | R10: -0.0974 | S10: Hit
A11: 2020-02-25 | E11: 1 | F11: 06:00:00 | G11: 06:27:00 | H11: 0.01875 | I11: 06:00:00 | J11: 06:50:00 | K11: 0.03472222222 | L11: 0.05208333333 | M11: 0 | N11: 0.01388888889 | O11: 0.004837962963 | P11: 0.6043 | Q11: 0.579 | R11: 0.0253 | S11: Hit
A12: 2020-03-02 | E12: 1 | F12: 06:00:00 | G12: 07:00:00 | H12: 0.04166666667 | I12: 06:00:00 | J12: 06:50:00 | K12: 0.03472222222 | L12: 0.03819444444 | M12: 0 | N12: 0.01736111111 | O12: 0.05972222222 | P12: 0.4798 | Q12: 0.4437 | R12: 0.0361 | S12: Miss
A13: 2020-03-02 | E13: 1 | F13: 06:00:00 | G13: 06:30:00 | H13: 0.02083333333 | I13: 06:00:00 | J13: 07:05:00 | K13: 0.04513888889 | L13: 0.04166666667 | M13: 0.003472222222 | N13: 0.01388888889 | O13: 0.00130787037 | P13: 0.579 | Q13: 0.5181 | R13: 0.0609 | S13: Hit
A14: 2020-03-09 | E14: 1 | F14: 06:00:00 | G14: 07:00:00 | H14: 0.04166666667 | I14: 06:00:00 | J14: 07:00:00 | K14: 0.04166666667 | L14: 0.04513888889 | M14: 0 | N14: 0.01736111111 | O14: 0.008472222222 | P14: 0.5773 | Q14: 0.5025 | R14: 0.0748 | S14: Hit
A15: 2020-03-09 | E15: 1 | F15: 06:00:00 | G15: 06:35:00 | H15: 0.02430555556 | I15: 06:30:00 | J15: 07:40:00 | K15: 0.04861111111 | L15: 0.04513888889 | M15: 0.003472222222 | N15: 0.03819444444 | O15: 0.009270833333 | P15: 0.5223 | Q15: 0.3947 | R15: 0.1276 | S15: Hit
A16: 2020-03-09 | E16: 1 | F16: 06:00:00 | G16: 06:20:00 | H16: 0.01388888889 | I16: 06:00:00 | J16: 06:30:00 | K16: 0.02083333333 | L16: 0.02777777778 | M16: 0 | N16: 0.01388888889 | O16: 0.01861111111 | P16: 0.6048 | Q16: 0.67 | R16: -0.0652 | S16: Miss
A17: 2020-03-09 | E17: 1 | F17: 06:00:00 | G17: 06:30:00 | H17: 0.02083333333 | I17: 06:00:00 | J17: 06:40:00 | K17: 0.02777777778 | L17: 0.04513888889 | M17: 0 | N17: 0.01736111111 | O17: 0 | P17: 0.54 | Q17: 0.5932 | R17: -0.0532 | S17: Hit
A18: 2020-03-18 | E18: 1 | F18: 04:00:00 | G18: 04:30:00 | H18: =IF((G18-F18)<=0,"",(G18-F18)) -> 0.02083333333 | I18: 04:50:00 | J18: 05:52:00 | K18: =IF((J18-I18)<=0,"",(J18-I18)) -> 0.04305555556 | L18: 0.04513888889 | M18: 0 | N18: 0.03819444444 | O18: 0 | P18: 0.4634 | Q18: 0.5921 | R18: =IF(P18="","",IFERROR(P18-Q18,"")) -> -0.1287 | S18: Hit
A19: 2020-03-30 | E19: 1 | F19: 06:00:00 | G19: 06:15:00 | H19: 0.01041666667 | I19: 06:00:00 | J19: 06:50:00 | K19: 0.03472222222 | L19: 0.04513888889 | M19: 0 | N19: 0.01736111111 | O19: 0.003657407407 | P19: 0.6087 | Q19: 0.351 | R19: =IF(P19="","",IFERROR(P19-Q19,"")) -> 0.2577 | S19: Hit
A20: 2020-04-21 | E20: 1 | F20: 06:00:00 | G20: 06:20:00 | H20: 0.01388888889 | I20: 06:00:00 | J20: 06:45:00 | K20: 0.03125 | L20: 0.04166666667 | M20: 0 | N20: 0.01736111111 | O20: 0.003356481481 | P20: 0.5792 | Q20: 0.65 | R20: -0.0708 | S20: Hit
A21: 2020-04-21 | E21: 1 | F21: 06:00:00 | G21: 06:30:00 | H21: =IF((G21-F21)<=0,"",(G21-F21)) -> 0.02083333333 | I21: 06:00:00 | J21: 06:45:00 | K21: =IF((J21-I21)<=0,"",(J21-I21)) -> 0.03125 | L21: 0.03819444444 | M21: 0 | N21: 0.01388888889 | O21: 0.005914351852 | P21: 0.5554 | Q21: 0.459 | R21: 0.0964 | S21: Hit
A22: 2020-04-21 | E22: 1 | F22: 06:00:00 | G22: 06:30:00 | H22: 0.02083333333 | I22: 06:00:00 | J22: 07:00:00 | K22: 0.04166666667 | L22: 0.04861111111 | M22: 0 | N22: 0.03819444444 | O22: 0.1263078704 | P22: 0.6305 | Q22: 0.5263 | R22: 0.1042 | S22: Miss
A23: 2020-04-27 | E23: 1 | F23: 06:00:00 | G23: 06:30:00 | H23: 0.02083333333 | I23: 06:00:00 | J23: 07:00:00 | K23: 0.04166666667 | L23: 0.05208333333 | M23: 0 | N23: 0.03819444444 | O23: 0.08597222222 | P23: 0.6153 | Q23: 0.6396 | R23: -0.0243 | S23: Miss
A24: 2020-04-27 | E24: 1 | F24: 06:00:00 | G24: 06:30:00 | H24: 0.02083333333 | I24: 06:00:00 | J24: 07:00:00 | K24: 0.04166666667 | L24: 0.05555555556 | M24: 0 | N24: 0.01736111111 | O24: 0.2303703704 | P24: 0.5408 | Q24: 0.6169 | R24: -0.0761 | S24: Miss
A25: 2020-04-27 | E25: 1 | F25: 06:00:00 | G25: 06:30:00 | H25: 0.02083333333 | I25: 06:00:00 | J25: 06:45:00 | K25: 0.03125 | L25: 0.05208333333 | M25: 0 | N25: 0.01736111111 | O25: 0.03984953704 | P25: 0.6277 | Q25: 0.5691 | R25: 0.0586 | S25: Miss
A26: 2020-04-27 | E26: 1 | F26: 06:00:00 | G26: 06:30:00 | H26: 0.02083333333 | I26: 06:00:00 | J26: 07:15:00 | K26: 0.05208333333 | L26: 0.04861111111 | M26: 0.003472222222 | N26: 0.01388888889 | O26: 0.05171296296 | P26: 0.5501 | Q26: 0.584 | R26: -0.0339 | S26: Miss
A27: 2020-05-04 | E27: 1 | F27: 06:00:00 | G27: 06:20:00 | H27: 0.01388888889 | I27: 06:00:00 | J27: 06:50:00 | K27: 0.03472222222 | L27: 0.04166666667 | M27: 0 | N27: 0.01736111111 | O27: 0 | P27: 0.6164 | Q27: 0.5734 | R27: 0.043 | S27: Hit
A28: 2020-05-04 | E28: 1 | F28: 06:00:00 | G28: 06:30:00 | H28: 0.02083333333 | I28: 06:00:00 | J28: 06:45:00 | K28: 0.03125 | L28: 0.04861111111 | M28: 0 | N28: 0.01388888889 | O28: 0.01086805556 | P28: 0.5205 | Q28: 0.5847 | R28: -0.0642 | S28: Hit
A29: 2020-05-04 | E29: 1 | F29: 06:00:00 | G29: 06:40:00 | H29: 0.02777777778 | I29: 06:00:00 | J29: 06:55:00 | K29: 0.03819444444 | L29: 0.04861111111 | M29: 0 | N29: 0.03819444444 | O29: 0.01145833333 | P29: 0.5663 | Q29: 0.4624 | R29: 0.1039 | S29: Hit
A30: 2020-05-11 | E30: 1 | F30: 06:00:00 | G30: 06:25:00 | H30: 0.01736111111 | I30: 06:00:00 | J30: 06:45:00 | K30: 0.03125 | L30: 0.04861111111 | M30: 0 | N30: 0.01736111111 | O30: 0.01471064815 | P30: 0.6222 | Q30: 0.5855 | R30: 0.0367 | S30: Hit
A31: 2020-05-11 | E31: 1 | F31: 06:00:00 | G31: 07:40:00 | H31: 0.06944444444 | I31: 07:30:00 | J31: 08:35:00 | K31: 0.04513888889 | L31: 0.05208333333 | M31: 0 | N31: 0.01736111111 | O31: 0 | P31: 0.4967 | Q31: 0.5797 | R31: -0.083 | S31: Hit
A32: 2020-05-21 | E32: 1 | F32: 06:00:00 | G32: 06:30:00 | H32: 0.02083333333 | I32: 06:00:00 | J32: 06:45:00 | K32: 0.03125 | L32: 0.03819444444 | M32: 0 | P32: 0.4698 | Q32: 0.4708 | R32: -0.001
A33: 2020-05-25 | E33: 1 | F33: 06:00:00 | G33: 06:45:00 | H33: 0.03125 | I33: 06:00:00 | J33: 07:15:00 | K33: 0.05208333333 | L33: 0.05208333333 | M33: 0 | N33: 0.01736111111 | O33: 0.01644675926 | P33: 0.6234 | Q33: 0.5264 | R33: 0.097 | S33: Hit
A34: 2020-05-26 | E34: 1 | F34: 02:00:00 | G34: 02:30:00 | H34: 0.02083333333 | I34: 06:00:00 | J34: 07:00:00 | K34: 0.04166666667 | L34: 0.05208333333 | M34: 0 | P34: 0.4078 | Q34: 0.5489 | R34: -0.1411
A35: 2020-05-27 | E35: 1 | F35: 06:00:00 | G35: 06:30:00 | H35: 0.02083333333 | I35: 06:00:00 | J35: 07:31:00 | K35: 0.06319444444 | L35: 0.05208333333 | M35: 0.01111111111 | N35: 0.01736111111 | O35: 0.003819444444 | P35: 0.5717 | Q35: 0.3576 | R35: 0.2141 | S35: Hit
A36: 2020-06-03 | E36: 1 | F36: 06:00:00 | G36: 06:10:00 | H36: 0.006944444444 | I36: 05:30:00 | J36: 06:10:00 | K36: 0.02777777778 | L36: 0.05208333333 | M36: 0 | N36: 0.03819444444 | O36: 0.01642361111 | P36: 0.6304 | Q36: 0.6707 | R36: -0.0403 | S36: Hit
A37: 2020-06-16 | E37: 1 | F37: 10:00:00 | G37: 12:00:00 | H37: 0.08333333333 | I37: 11:00:00 | J37: 12:00:00 | K37: 0.04166666667 | L37: 0.05208333333 | M37: 0 | P37: 0.5385 | Q37: 0.5327 | R37: 0.0058
A38: 2020-06-22 | E38: 1 | F38: 06:00:00 | G38: 06:30:00 | H38: 0.02083333333 | I38: 06:00:00 | J38: 06:45:00 | K38: 0.03125 | L38: 0.03125 | M38: 0 | N38: 0.01736111111 | O38: 0 | P38: 0.4734 | Q38: 0.397 | R38: 0.0764 | S38: Hit
A39: 2020-07-27 | E39: 1 | F39: 06:00:00 | G39: 08:30:00 | H39: =IF((G39-F39)<=0,"",(G39-F39)) -> 0.1041666667 | I39: 06:00:00 | J39: 08:25:00 | K39: =IF((J39-I39)<=0,"",(J39-I39)) -> 0.1006944444 | L39: 0.1041666667 | M39: 0 | N39: 0.01736111111 | O39: 0 | P39: 0.4838 | Q39: 0.5277 | R39: =IF(P39="","",IFERROR(P39-Q39,"")) -> -0.0439 | S39: Hit
A40: 2020-07-27 | E40: 1 | F40: 06:00:00 | G40: 08:00:00 | H40: 0.08333333333 | I40: 06:00:00 | J40: 08:00:00 | K40: 0.08333333333 | L40: 0.08333333333 | M40: 0 | N40: 0.01736111111 | O40: 0.01923611111 | P40: 0.5719 | Q40: 0.5049 | R40: 0.067 | S40: Miss
A41: 2020-07-27 | E41: 0.8387 | F41: 06:00:00 | G41: 07:00:00 | H41: 0.04166666667 | I41: 06:00:00 | J41: 08:00:00 | K41: 0.08333333333 | L41: 0.1180555556 | M41: 0 | N41: 0.01388888889 | O41: 0 | P41: 0.5644 | Q41: 0.5589 | R41: 0.0055 | S41: Hit
A42: 2020-07-29 | E42: 1 | F42: 22:00:00 | G42: 23:45:00 | H42: =IF((G42-F42)<=0,"",(G42-F42)) -> 0.07291666667 | I42: 22:00:00 | J42: 23:43:00 | K42: =IF((J42-I42)<=0,"",(J42-I42)) -> 0.07152777778 | L42: 0.07291666667 | M42: 0 | P42: 0.5427 | Q42: 0.5504 | R42: =IF(P42="","",IFERROR(P42-Q42,"")) -> -0.0077
A43: 2020-08-03 | E43: 1 | F43: 06:00:00 | G43: 06:30:00 | H43: 0.02083333333 | I43: 06:00:00 | J43: 06:30:00 | K43: 0.02083333333 | L43: 0.04166666667 | M43: 0 | N43: 0.01736111111 | O43: 0.002604166667 | P43: 0.5924 | Q43: 0.6481 | R43: -0.0557 | S43: Hit
A44: 2020-08-10 | E44: 1 | F44: 06:00:00 | G44: 06:30:00 | H44: 0.02083333333 | I44: 06:00:00 | J44: 07:15:00 | K44: 0.05208333333 | L44: 0.05208333333 | M44: 0 | P44: 0.5134 | Q44: 0.3811 | R44: 0.1323 | T44: No
A45: 2020-08-10 | E45: 1 | F45: 06:00:00 | G45: 06:30:00 | H45: 0.02083333333 | I45: 06:00:00 | J45: 07:00:00 | K45: 0.04166666667 | L45: 0.04861111111 | M45: 0 | N45: 0.03819444444 | O45: 0.05450231481 | P45: 0.6826 | Q45: 0.4715 | R45: 0.2111 | S45: Miss | T45: No
A46: 2020-08-17 | E46: 1 | F46: 06:00:00 | G46: 06:50:00 | H46: 0.03472222222 | I46: 06:00:00 | J46: 06:50:00 | K46: 0.03472222222 | L46: 0.04166666667 | M46: =IFERROR(IF((K46-L46)<=0,"0",(K46-L46)),"") -> 0 | N46: 0.03819444444 | O46: 0 | P46: 0.5693 | Q46: 0.6433 | R46: -0.074 | S46: Hit
C47: =IFERROR(VLOOKUP(B47,#REF!,2,FALSE),"") ->  | D47: =IFERROR(VLOOKUP(B47,#REF!,3,FALSE),"") ->  | M47: =IFERROR(IF((K47-L47)<=0,"0",(K47-L47)),"") ->  | N47: =IFERROR(VLOOKUP(B47,#REF!,9,FALSE),"") -> 
C48: =IFERROR(VLOOKUP(B48,#REF!,2,FALSE),"") ->  | D48: =IFERROR(VLOOKUP(B48,#REF!,3,FALSE),"") ->  | N48: =IFERROR(VLOOKUP(B48,#REF!,9,FALSE),"") -> 
C49: =IFERROR(VLOOKUP(B49,#REF!,2,FALSE),"") ->  | D49: =IFERROR(VLOOKUP(B49,#REF!,3,FALSE),"") ->  | N49: =IFERROR(VLOOKUP(B49,#REF!,9,FALSE),"") -> 
C50: =IFERROR(VLOOKUP(B50,#REF!,2,FALSE),"") ->  | D50: =IFERROR(VLOOKUP(B50,#REF!,3,FALSE),"") ->  | N50: =IFERROR(VLOOKUP(B50,#REF!,9,FALSE),"") -> 
C51: =IFERROR(VLOOKUP(B51,#REF!,2,FALSE),"") ->  | D51: =IFERROR(VLOOKUP(B51,#REF!,3,FALSE),"") ->  | N51: =IFERROR(VLOOKUP(B51,#REF!,9,FALSE),"") -> 
C52: =IFERROR(VLOOKUP(B52,#REF!,2,FALSE),"") ->  | D52: =IFERROR(VLOOKUP(B52,#REF!,3,FALSE),"") ->  | N52: =IFERROR(VLOOKUP(B52,#REF!,9,FALSE),"") -> 
C53: =IFERROR(VLOOKUP(B53,#REF!,2,FALSE),"") ->  | D53: =IFERROR(VLOOKUP(B53,#REF!,3,FALSE),"") ->  | N53: =IFERROR(VLOOKUP(B53,#REF!,9,FALSE),"") -> 
C54: =IFERROR(VLOOKUP(B54,#REF!,2,FALSE),"") ->  | D54: =IFERROR(VLOOKUP(B54,#REF!,3,FALSE),"") ->  | N54: =IFERROR(VLOOKUP(B54,#REF!,9,FALSE),"") -> 
C55: =IFERROR(VLOOKUP(B55,#REF!,2,FALSE),"") ->  | D55: =IFERROR(VLOOKUP(B55,#REF!,3,FALSE),"") ->  | N55: =IFERROR(VLOOKUP(B55,#REF!,9,FALSE),"") -> 
C56: =IFERROR(VLOOKUP(B56,#REF!,2,FALSE),"") ->  | D56: =IFERROR(VLOOKUP(B56,#REF!,3,FALSE),"") ->  | N56: =IFERROR(VLOOKUP(B56,#REF!,9,FALSE),"") -> 
C57: =IFERROR(VLOOKUP(B57,#REF!,2,FALSE),"") ->  | D57: =IFERROR(VLOOKUP(B57,#REF!,3,FALSE),"") ->  | N57: =IFERROR(VLOOKUP(B57,#REF!,9,FALSE),"") -> 
C58: =IFERROR(VLOOKUP(B58,#REF!,2,FALSE),"") ->  | D58: =IFERROR(VLOOKUP(B58,#REF!,3,FALSE),"") ->  | N58: =IFERROR(VLOOKUP(B58,#REF!,9,FALSE),"") -> 
C59: =IFERROR(VLOOKUP(B59,#REF!,2,FALSE),"") ->  | D59: =IFERROR(VLOOKUP(B59,#REF!,3,FALSE),"") ->  | N59: =IFERROR(VLOOKUP(B59,#REF!,9,FALSE),"") -> 
C60: =IFERROR(VLOOKUP(B60,#REF!,2,FALSE),"") ->  | D60: =IFERROR(VLOOKUP(B60,#REF!,3,FALSE),"") ->  | N60: =IFERROR(VLOOKUP(B60,#REF!,9,FALSE),"") -> 
C61: =IFERROR(VLOOKUP(B61,#REF!,2,FALSE),"") ->  | D61: =IFERROR(VLOOKUP(B61,#REF!,3,FALSE),"") ->  | N61: =IFERROR(VLOOKUP(B61,#REF!,9,FALSE),"") -> 
C62: =IFERROR(VLOOKUP(B62,#REF!,2,FALSE),"") ->  | D62: =IFERROR(VLOOKUP(B62,#REF!,3,FALSE),"") ->  | N62: =IFERROR(VLOOKUP(B62,#REF!,9,FALSE),"") -> 
C63: =IFERROR(VLOOKUP(B63,#REF!,2,FALSE),"") ->  | D63: =IFERROR(VLOOKUP(B63,#REF!,3,FALSE),"") ->  | N63: =IFERROR(VLOOKUP(B63,#REF!,9,FALSE),"") -> 
C64: =IFERROR(VLOOKUP(B64,#REF!,2,FALSE),"") ->  | D64: =IFERROR(VLOOKUP(B64,#REF!,3,FALSE),"") ->  | N64: =IFERROR(VLOOKUP(B64,#REF!,9,FALSE),"") -> 
C65: =IFERROR(VLOOKUP(B65,#REF!,2,FALSE),"") ->  | D65: =IFERROR(VLOOKUP(B65,#REF!,3,FALSE),"") ->  | N65: =IFERROR(VLOOKUP(B65,#REF!,9,FALSE),"") -> 
C66: =IFERROR(VLOOKUP(B66,#REF!,2,FALSE),"") ->  | D66: =IFERROR(VLOOKUP(B66,#REF!,3,FALSE),"") ->  | N66: =IFERROR(VLOOKUP(B66,#REF!,9,FALSE),"") -> 
C67: =IFERROR(VLOOKUP(B67,#REF!,2,FALSE),"") ->  | D67: =IFERROR(VLOOKUP(B67,#REF!,3,FALSE),"") ->  | N67: =IFERROR(VLOOKUP(B67,#REF!,9,FALSE),"") -> 
C68: =IFERROR(VLOOKUP(B68,#REF!,2,FALSE),"") ->  | D68: =IFERROR(VLOOKUP(B68,#REF!,3,FALSE),"") ->  | N68: =IFERROR(VLOOKUP(B68,#REF!,9,FALSE),"") ->  | S68: =IF( N68 <> "", IF(AND(E68<"100%", M68>0, O68>N68), "Miss", "Hit"), "") -> 
C69: =IFERROR(VLOOKUP(B69,#REF!,2,FALSE),"") ->  | D69: =IFERROR(VLOOKUP(B69,#REF!,3,FALSE),"") ->  | N69: =IFERROR(VLOOKUP(B69,#REF!,9,FALSE),"") -> 
C70: =IFERROR(VLOOKUP(B70,#REF!,2,FALSE),"") ->  | D70: =IFERROR(VLOOKUP(B70,#REF!,3,FALSE),"") ->  | N70: =IFERROR(VLOOKUP(B70,#REF!,9,FALSE),"") -> 
C71: =IFERROR(VLOOKUP(B71,#REF!,2,FALSE),"") ->  | D71: =IFERROR(VLOOKUP(B71,#REF!,3,FALSE),"") ->  | N71: =IFERROR(VLOOKUP(B71,#REF!,9,FALSE),"") -> 
C72: =IFERROR(VLOOKUP(B72,#REF!,2,FALSE),"") ->  | D72: =IFERROR(VLOOKUP(B72,#REF!,3,FALSE),"") ->  | N72: =IFERROR(VLOOKUP(B72,#REF!,9,FALSE),"") -> 
C73: =IFERROR(VLOOKUP(B73,#REF!,2,FALSE),"") ->  | D73: =IFERROR(VLOOKUP(B73,#REF!,3,FALSE),"") ->  | N73: =IFERROR(VLOOKUP(B73,#REF!,9,FALSE),"") -> 
C74: =IFERROR(VLOOKUP(B74,#REF!,2,FALSE),"") ->  | D74: =IFERROR(VLOOKUP(B74,#REF!,3,FALSE),"") ->  | N74: =IFERROR(VLOOKUP(B74,#REF!,9,FALSE),"") -> 
C75: =IFERROR(VLOOKUP(B75,#REF!,2,FALSE),"") ->  | D75: =IFERROR(VLOOKUP(B75,#REF!,3,FALSE),"") ->  | N75: =IFERROR(VLOOKUP(B75,#REF!,9,FALSE),"") -> 
C76: =IFERROR(VLOOKUP(B76,#REF!,2,FALSE),"") ->  | D76: =IFERROR(VLOOKUP(B76,#REF!,3,FALSE),"") ->  | N76: =IFERROR(VLOOKUP(B76,#REF!,9,FALSE),"") -> 
C77: =IFERROR(VLOOKUP(B77,#REF!,2,FALSE),"") ->  | D77: =IFERROR(VLOOKUP(B77,#REF!,3,FALSE),"") ->  | N77: =IFERROR(VLOOKUP(B77,#REF!,9,FALSE),"") -> 
C78: =IFERROR(VLOOKUP(B78,#REF!,2,FALSE),"") ->  | D78: =IFERROR(VLOOKUP(B78,#REF!,3,FALSE),"") ->  | N78: =IFERROR(VLOOKUP(B78,#REF!,9,FALSE),"") -> 
C79: =IFERROR(VLOOKUP(B79,#REF!,2,FALSE),"") ->  | D79: =IFERROR(VLOOKUP(B79,#REF!,3,FALSE),"") ->  | N79: =IFERROR(VLOOKUP(B79,#REF!,9,FALSE),"") -> 
C80: =IFERROR(VLOOKUP(B80,#REF!,2,FALSE),"") ->  | D80: =IFERROR(VLOOKUP(B80,#REF!,3,FALSE),"") ->  | N80: =IFERROR(VLOOKUP(B80,#REF!,9,FALSE),"") -> 
C81: =IFERROR(VLOOKUP(B81,#REF!,2,FALSE),"") ->  | D81: =IFERROR(VLOOKUP(B81,#REF!,3,FALSE),"") ->  | N81: =IFERROR(VLOOKUP(B81,#REF!,9,FALSE),"") -> 
C82: =IFERROR(VLOOKUP(B82,#REF!,2,FALSE),"") ->  | D82: =IFERROR(VLOOKUP(B82,#REF!,3,FALSE),"") ->  | N82: =IFERROR(VLOOKUP(B82,#REF!,9,FALSE),"") -> 
C83: =IFERROR(VLOOKUP(B83,#REF!,2,FALSE),"") ->  | D83: =IFERROR(VLOOKUP(B83,#REF!,3,FALSE),"") ->  | N83: =IFERROR(VLOOKUP(B83,#REF!,9,FALSE),"") ->  | R83: =IF(P83="","",IFERROR(P83-Q83,"")) -> 
C84: =IFERROR(VLOOKUP(B84,#REF!,2,FALSE),"") ->  | D84: =IFERROR(VLOOKUP(B84,#REF!,3,FALSE),"") ->  | N84: =IFERROR(VLOOKUP(B84,#REF!,9,FALSE),"") -> 
C85: =IFERROR(VLOOKUP(B85,#REF!,2,FALSE),"") ->  | D85: =IFERROR(VLOOKUP(B85,#REF!,3,FALSE),"") ->  | H85: =IF((G85-F85)<=0,"",(G85-F85)) ->  | K85: =IF((J85-I85)<=0,"",(J85-I85)) ->  | N85: =IFERROR(VLOOKUP(B85,#REF!,9,FALSE),"") -> 
C86: =IFERROR(VLOOKUP(B86,#REF!,2,FALSE),"") ->  | D86: =IFERROR(VLOOKUP(B86,#REF!,3,FALSE),"") ->  | N86: =IFERROR(VLOOKUP(B86,#REF!,9,FALSE),"") -> 
C87: =IFERROR(VLOOKUP(B87,#REF!,2,FALSE),"") ->  | D87: =IFERROR(VLOOKUP(B87,#REF!,3,FALSE),"") ->  | N87: =IFERROR(VLOOKUP(B87,#REF!,9,FALSE),"") -> 
C88: =IFERROR(VLOOKUP(B88,#REF!,2,FALSE),"") ->  | D88: =IFERROR(VLOOKUP(B88,#REF!,3,FALSE),"") ->  | N88: =IFERROR(VLOOKUP(B88,#REF!,9,FALSE),"") -> 
C89: =IFERROR(VLOOKUP(B89,#REF!,2,FALSE),"") ->  | D89: =IFERROR(VLOOKUP(B89,#REF!,3,FALSE),"") ->  | N89: =IFERROR(VLOOKUP(B89,#REF!,9,FALSE),"") -> 
C90: =IFERROR(VLOOKUP(B90,#REF!,2,FALSE),"") ->  | D90: =IFERROR(VLOOKUP(B90,#REF!,3,FALSE),"") ->  | N90: =IFERROR(VLOOKUP(B90,#REF!,9,FALSE),"") -> 
C91: =IFERROR(VLOOKUP(B91,#REF!,2,FALSE),"") ->  | D91: =IFERROR(VLOOKUP(B91,#REF!,3,FALSE),"") ->  | N91: =IFERROR(VLOOKUP(B91,#REF!,9,FALSE),"") -> 
C92: =IFERROR(VLOOKUP(B92,#REF!,2,FALSE),"") ->  | D92: =IFERROR(VLOOKUP(B92,#REF!,3,FALSE),"") ->  | N92: =IFERROR(VLOOKUP(B92,#REF!,9,FALSE),"") -> 
C93: =IFERROR(VLOOKUP(B93,#REF!,2,FALSE),"") ->  | D93: =IFERROR(VLOOKUP(B93,#REF!,3,FALSE),"") ->  | N93: =IFERROR(VLOOKUP(B93,#REF!,9,FALSE),"") -> 
C94: =IFERROR(VLOOKUP(B94,#REF!,2,FALSE),"") ->  | D94: =IFERROR(VLOOKUP(B94,#REF!,3,FALSE),"") ->  | N94: =IFERROR(VLOOKUP(B94,#REF!,9,FALSE),"") -> 
C95: =IFERROR(VLOOKUP(B95,#REF!,2,FALSE),"") ->  | D95: =IFERROR(VLOOKUP(B95,#REF!,3,FALSE),"") ->  | N95: =IFERROR(VLOOKUP(B95,#REF!,9,FALSE),"") -> 
C96: =IFERROR(VLOOKUP(B96,#REF!,2,FALSE),"") ->  | D96: =IFERROR(VLOOKUP(B96,#REF!,3,FALSE),"") ->  | N96: =IFERROR(VLOOKUP(B96,#REF!,9,FALSE),"") -> 
C97: =IFERROR(VLOOKUP(B97,#REF!,2,FALSE),"") ->  | D97: =IFERROR(VLOOKUP(B97,#REF!,3,FALSE),"") ->  | N97: =IFERROR(VLOOKUP(B97,#REF!,9,FALSE),"") -> 
C98: =IFERROR(VLOOKUP(B98,#REF!,2,FALSE),"") ->  | D98: =IFERROR(VLOOKUP(B98,#REF!,3,FALSE),"") ->  | N98: =IFERROR(VLOOKUP(B98,#REF!,9,FALSE),"") -> 
C99: =IFERROR(VLOOKUP(B99,#REF!,2,FALSE),"") ->  | D99: =IFERROR(VLOOKUP(B99,#REF!,3,FALSE),"") ->  | N99: =IFERROR(VLOOKUP(B99,#REF!,9,FALSE),"") -> 
C100: =IFERROR(VLOOKUP(B100,#REF!,2,FALSE),"") ->  | D100: =IFERROR(VLOOKUP(B100,#REF!,3,FALSE),"") ->  | N100: =IFERROR(VLOOKUP(B100,#REF!,9,FALSE),"") -> 
C101: =IFERROR(VLOOKUP(B101,#REF!,2,FALSE),"") ->  | D101: =IFERROR(VLOOKUP(B101,#REF!,3,FALSE),"") ->  | N101: =IFERROR(VLOOKUP(B101,#REF!,9,FALSE),"") -> 
C102: =IFERROR(VLOOKUP(B102,#REF!,2,FALSE),"") ->  | D102: =IFERROR(VLOOKUP(B102,#REF!,3,FALSE),"") ->  | N102: =IFERROR(VLOOKUP(B102,#REF!,9,FALSE),"") -> 
C103: =IFERROR(VLOOKUP(B103,#REF!,2,FALSE),"") ->  | D103: =IFERROR(VLOOKUP(B103,#REF!,3,FALSE),"") ->  | N103: =IFERROR(VLOOKUP(B103,#REF!,9,FALSE),"") -> 
C104: =IFERROR(VLOOKUP(B104,#REF!,2,FALSE),"") ->  | D104: =IFERROR(VLOOKUP(B104,#REF!,3,FALSE),"") ->  | N104: =IFERROR(VLOOKUP(B104,#REF!,9,FALSE),"") -> 
C105: =IFERROR(VLOOKUP(B105,#REF!,2,FALSE),"") ->  | D105: =IFERROR(VLOOKUP(B105,#REF!,3,FALSE),"") ->  | N105: =IFERROR(VLOOKUP(B105,#REF!,9,FALSE),"") -> 
C106: =IFERROR(VLOOKUP(B106,#REF!,2,FALSE),"") ->  | D106: =IFERROR(VLOOKUP(B106,#REF!,3,FALSE),"") ->  | N106: =IFERROR(VLOOKUP(B106,#REF!,9,FALSE),"") -> 
C107: =IFERROR(VLOOKUP(B107,#REF!,2,FALSE),"") ->  | D107: =IFERROR(VLOOKUP(B107,#REF!,3,FALSE),"") ->  | N107: =IFERROR(VLOOKUP(B107,#REF!,9,FALSE),"") -> 
C108: =IFERROR(VLOOKUP(B108,#REF!,2,FALSE),"") ->  | D108: =IFERROR(VLOOKUP(B108,#REF!,3,FALSE),"") ->  | N108: =IFERROR(VLOOKUP(B108,#REF!,9,FALSE),"") -> 
C109: =IFERROR(VLOOKUP(B109,#REF!,2,FALSE),"") ->  | D109: =IFERROR(VLOOKUP(B109,#REF!,3,FALSE),"") ->  | N109: =IFERROR(VLOOKUP(B109,#REF!,9,FALSE),"") -> 
C110: =IFERROR(VLOOKUP(B110,#REF!,2,FALSE),"") ->  | D110: =IFERROR(VLOOKUP(B110,#REF!,3,FALSE),"") ->  | N110: =IFERROR(VLOOKUP(B110,#REF!,9,FALSE),"") -> 
C111: =IFERROR(VLOOKUP(B111,#REF!,2,FALSE),"") ->  | D111: =IFERROR(VLOOKUP(B111,#REF!,3,FALSE),"") ->  | M111: =IFERROR(IF((K111-L111)<=0,"0",(K111-L111)),"") ->  | N111: =IFERROR(VLOOKUP(B111,#REF!,9,FALSE),"") -> 
C112: =IFERROR(VLOOKUP(B112,#REF!,2,FALSE),"") ->  | D112: =IFERROR(VLOOKUP(B112,#REF!,3,FALSE),"") ->  | N112: =IFERROR(VLOOKUP(B112,#REF!,9,FALSE),"") -> 
C113: =IFERROR(VLOOKUP(B113,#REF!,2,FALSE),"") ->  | D113: =IFERROR(VLOOKUP(B113,#REF!,3,FALSE),"") ->  | N113: =IFERROR(VLOOKUP(B113,#REF!,9,FALSE),"") -> 
C114: =IFERROR(VLOOKUP(B114,#REF!,2,FALSE),"") ->  | D114: =IFERROR(VLOOKUP(B114,#REF!,3,FALSE),"") ->  | N114: =IFERROR(VLOOKUP(B114,#REF!,9,FALSE),"") -> 
C115: =IFERROR(VLOOKUP(B115,#REF!,2,FALSE),"") ->  | D115: =IFERROR(VLOOKUP(B115,#REF!,3,FALSE),"") ->  | N115: =IFERROR(VLOOKUP(B115,#REF!,9,FALSE),"") -> 
C116: =IFERROR(VLOOKUP(B116,#REF!,2,FALSE),"") ->  | D116: =IFERROR(VLOOKUP(B116,#REF!,3,FALSE),"") ->  | N116: =IFERROR(VLOOKUP(B116,#REF!,9,FALSE),"") -> 
C117: =IFERROR(VLOOKUP(B117,#REF!,2,FALSE),"") ->  | D117: =IFERROR(VLOOKUP(B117,#REF!,3,FALSE),"") ->  | N117: =IFERROR(VLOOKUP(B117,#REF!,9,FALSE),"") -> 
C118: =IFERROR(VLOOKUP(B118,#REF!,2,FALSE),"") ->  | D118: =IFERROR(VLOOKUP(B118,#REF!,3,FALSE),"") ->  | N118: =IFERROR(VLOOKUP(B118,#REF!,9,FALSE),"") -> 
C119: =IFERROR(VLOOKUP(B119,#REF!,2,FALSE),"") ->  | D119: =IFERROR(VLOOKUP(B119,#REF!,3,FALSE),"") ->  | N119: =IFERROR(VLOOKUP(B119,#REF!,9,FALSE),"") -> 
C120: =IFERROR(VLOOKUP(B120,#REF!,2,FALSE),"") ->  | D120: =IFERROR(VLOOKUP(B120,#REF!,3,FALSE),"") ->  | N120: =IFERROR(VLOOKUP(B120,#REF!,9,FALSE),"") -> 
C121: =IFERROR(VLOOKUP(B121,#REF!,2,FALSE),"") ->  | D121: =IFERROR(VLOOKUP(B121,#REF!,3,FALSE),"") ->  | N121: =IFERROR(VLOOKUP(B121,#REF!,9,FALSE),"") -> 
C122: =IFERROR(VLOOKUP(B122,#REF!,2,FALSE),"") ->  | D122: =IFERROR(VLOOKUP(B122,#REF!,3,FALSE),"") ->  | N122: =IFERROR(VLOOKUP(B122,#REF!,9,FALSE),"") -> 
C123: =IFERROR(VLOOKUP(B123,#REF!,2,FALSE),"") ->  | D123: =IFERROR(VLOOKUP(B123,#REF!,3,FALSE),"") ->  | N123: =IFERROR(VLOOKUP(B123,#REF!,9,FALSE),"") -> 
C124: =IFERROR(VLOOKUP(B124,#REF!,2,FALSE),"") ->  | D124: =IFERROR(VLOOKUP(B124,#REF!,3,FALSE),"") ->  | N124: =IFERROR(VLOOKUP(B124,#REF!,9,FALSE),"") -> 
C125: =IFERROR(VLOOKUP(B125,#REF!,2,FALSE),"") ->  | D125: =IFERROR(VLOOKUP(B125,#REF!,3,FALSE),"") ->  | N125: =IFERROR(VLOOKUP(B125,#REF!,9,FALSE),"") -> 
C126: =IFERROR(VLOOKUP(B126,#REF!,2,FALSE),"") ->  | D126: =IFERROR(VLOOKUP(B126,#REF!,3,FALSE),"") ->  | N126: =IFERROR(VLOOKUP(B126,#REF!,9,FALSE),"") -> 
C127: =IFERROR(VLOOKUP(B127,#REF!,2,FALSE),"") ->  | D127: =IFERROR(VLOOKUP(B127,#REF!,3,FALSE),"") ->  | N127: =IFERROR(VLOOKUP(B127,#REF!,9,FALSE),"") -> 
C128: =IFERROR(VLOOKUP(B128,#REF!,2,FALSE),"") ->  | D128: =IFERROR(VLOOKUP(B128,#REF!,3,FALSE),"") ->  | N128: =IFERROR(VLOOKUP(B128,#REF!,9,FALSE),"") -> 
C129: =IFERROR(VLOOKUP(B129,#REF!,2,FALSE),"") ->  | D129: =IFERROR(VLOOKUP(B129,#REF!,3,FALSE),"") ->  | N129: =IFERROR(VLOOKUP(B129,#REF!,9,FALSE),"") -> 
C130: =IFERROR(VLOOKUP(B130,#REF!,2,FALSE),"") ->  | D130: =IFERROR(VLOOKUP(B130,#REF!,3,FALSE),"") ->  | N130: =IFERROR(VLOOKUP(B130,#REF!,9,FALSE),"") -> 
C131: =IFERROR(VLOOKUP(B131,#REF!,2,FALSE),"") ->  | D131: =IFERROR(VLOOKUP(B131,#REF!,3,FALSE),"") ->  | N131: =IFERROR(VLOOKUP(B131,#REF!,9,FALSE),"") -> 
C132: =IFERROR(VLOOKUP(B132,#REF!,2,FALSE),"") ->  | D132: =IFERROR(VLOOKUP(B132,#REF!,3,FALSE),"") ->  | N132: =IFERROR(VLOOKUP(B132,#REF!,9,FALSE),"") ->  | S132: =IF( N132 <> "", IF(AND(E132<"100%", M132>0, O132>N132), "Miss", "Hit"), "") -> 
C133: =IFERROR(VLOOKUP(B133,#REF!,2,FALSE),"") ->  | D133: =IFERROR(VLOOKUP(B133,#REF!,3,FALSE),"") ->  | N133: =IFERROR(VLOOKUP(B133,#REF!,9,FALSE),"") -> 
C134: =IFERROR(VLOOKUP(B134,#REF!,2,FALSE),"") ->  | D134: =IFERROR(VLOOKUP(B134,#REF!,3,FALSE),"") ->  | N134: =IFERROR(VLOOKUP(B134,#REF!,9,FALSE),"") -> 
C135: =IFERROR(VLOOKUP(B135,#REF!,2,FALSE),"") ->  | D135: =IFERROR(VLOOKUP(B135,#REF!,3,FALSE),"") ->  | N135: =IFERROR(VLOOKUP(B135,#REF!,9,FALSE),"") -> 
C136: =IFERROR(VLOOKUP(B136,#REF!,2,FALSE),"") ->  | D136: =IFERROR(VLOOKUP(B136,#REF!,3,FALSE),"") ->  | N136: =IFERROR(VLOOKUP(B136,#REF!,9,FALSE),"") -> 
C137: =IFERROR(VLOOKUP(B137,#REF!,2,FALSE),"") ->  | D137: =IFERROR(VLOOKUP(B137,#REF!,3,FALSE),"") ->  | N137: =IFERROR(VLOOKUP(B137,#REF!,9,FALSE),"") -> 
C138: =IFERROR(VLOOKUP(B138,#REF!,2,FALSE),"") ->  | D138: =IFERROR(VLOOKUP(B138,#REF!,3,FALSE),"") ->  | N138: =IFERROR(VLOOKUP(B138,#REF!,9,FALSE),"") -> 
C139: =IFERROR(VLOOKUP(B139,#REF!,2,FALSE),"") ->  | D139: =IFERROR(VLOOKUP(B139,#REF!,3,FALSE),"") ->  | N139: =IFERROR(VLOOKUP(B139,#REF!,9,FALSE),"") -> 
C140: =IFERROR(VLOOKUP(B140,#REF!,2,FALSE),"") ->  | D140: =IFERROR(VLOOKUP(B140,#REF!,3,FALSE),"") ->  | N140: =IFERROR(VLOOKUP(B140,#REF!,9,FALSE),"") -> 
C141: =IFERROR(VLOOKUP(B141,#REF!,2,FALSE),"") ->  | D141: =IFERROR(VLOOKUP(B141,#REF!,3,FALSE),"") ->  | N141: =IFERROR(VLOOKUP(B141,#REF!,9,FALSE),"") -> 
C142: =IFERROR(VLOOKUP(B142,#REF!,2,FALSE),"") ->  | D142: =IFERROR(VLOOKUP(B142,#REF!,3,FALSE),"") ->  | N142: =IFERROR(VLOOKUP(B142,#REF!,9,FALSE),"") -> 
C143: =IFERROR(VLOOKUP(B143,#REF!,2,FALSE),"") ->  | D143: =IFERROR(VLOOKUP(B143,#REF!,3,FALSE),"") ->  | N143: =IFERROR(VLOOKUP(B143,#REF!,9,FALSE),"") -> 
C144: =IFERROR(VLOOKUP(B144,#REF!,2,FALSE),"") ->  | D144: =IFERROR(VLOOKUP(B144,#REF!,3,FALSE),"") ->  | N144: =IFERROR(VLOOKUP(B144,#REF!,9,FALSE),"") -> 
C145: =IFERROR(VLOOKUP(B145,#REF!,2,FALSE),"") ->  | D145: =IFERROR(VLOOKUP(B145,#REF!,3,FALSE),"") ->  | N145: =IFERROR(VLOOKUP(B145,#REF!,9,FALSE),"") -> 
C146: =IFERROR(VLOOKUP(B146,#REF!,2,FALSE),"") ->  | D146: =IFERROR(VLOOKUP(B146,#REF!,3,FALSE),"") ->  | N146: =IFERROR(VLOOKUP(B146,#REF!,9,FALSE),"") -> 
C147: =IFERROR(VLOOKUP(B147,#REF!,2,FALSE),"") ->  | D147: =IFERROR(VLOOKUP(B147,#REF!,3,FALSE),"") ->  | N147: =IFERROR(VLOOKUP(B147,#REF!,9,FALSE),"") ->  | R147: =IF(P147="","",IFERROR(P147-Q147,"")) -> 
C148: =IFERROR(VLOOKUP(B148,#REF!,2,FALSE),"") ->  | D148: =IFERROR(VLOOKUP(B148,#REF!,3,FALSE),"") ->  | N148: =IFERROR(VLOOKUP(B148,#REF!,9,FALSE),"") -> 
C149: =IFERROR(VLOOKUP(B149,#REF!,2,FALSE),"") ->  | D149: =IFERROR(VLOOKUP(B149,#REF!,3,FALSE),"") ->  | H149: =IF((G149-F149)<=0,"",(G149-F149)) ->  | K149: =IF((J149-I149)<=0,"",(J149-I149)) ->  | N149: =IFERROR(VLOOKUP(B149,#REF!,9,FALSE),"") -> 
C150: =IFERROR(VLOOKUP(B150,#REF!,2,FALSE),"") ->  | D150: =IFERROR(VLOOKUP(B150,#REF!,3,FALSE),"") ->  | N150: =IFERROR(VLOOKUP(B150,#REF!,9,FALSE),"") -> 
C151: =IFERROR(VLOOKUP(B151,#REF!,2,FALSE),"") ->  | D151: =IFERROR(VLOOKUP(B151,#REF!,3,FALSE),"") ->  | N151: =IFERROR(VLOOKUP(B151,#REF!,9,FALSE),"") -> 
C152: =IFERROR(VLOOKUP(B152,#REF!,2,FALSE),"") ->  | D152: =IFERROR(VLOOKUP(B152,#REF!,3,FALSE),"") ->  | N152: =IFERROR(VLOOKUP(B152,#REF!,9,FALSE),"") -> 
C153: =IFERROR(VLOOKUP(B153,#REF!,2,FALSE),"") ->  | D153: =IFERROR(VLOOKUP(B153,#REF!,3,FALSE),"") ->  | N153: =IFERROR(VLOOKUP(B153,#REF!,9,FALSE),"") -> 
C154: =IFERROR(VLOOKUP(B154,#REF!,2,FALSE),"") ->  | D154: =IFERROR(VLOOKUP(B154,#REF!,3,FALSE),"") ->  | N154: =IFERROR(VLOOKUP(B154,#REF!,9,FALSE),"") -> 
C155: =IFERROR(VLOOKUP(B155,#REF!,2,FALSE),"") ->  | D155: =IFERROR(VLOOKUP(B155,#REF!,3,FALSE),"") ->  | N155: =IFERROR(VLOOKUP(B155,#REF!,9,FALSE),"") -> 
C156: =IFERROR(VLOOKUP(B156,#REF!,2,FALSE),"") ->  | D156: =IFERROR(VLOOKUP(B156,#REF!,3,FALSE),"") ->  | N156: =IFERROR(VLOOKUP(B156,#REF!,9,FALSE),"") -> 
C157: =IFERROR(VLOOKUP(B157,#REF!,2,FALSE),"") ->  | D157: =IFERROR(VLOOKUP(B157,#REF!,3,FALSE),"") ->  | N157: =IFERROR(VLOOKUP(B157,#REF!,9,FALSE),"") -> 
C158: =IFERROR(VLOOKUP(B158,#REF!,2,FALSE),"") ->  | D158: =IFERROR(VLOOKUP(B158,#REF!,3,FALSE),"") ->  | N158: =IFERROR(VLOOKUP(B158,#REF!,9,FALSE),"") -> 
C159: =IFERROR(VLOOKUP(B159,#REF!,2,FALSE),"") ->  | D159: =IFERROR(VLOOKUP(B159,#REF!,3,FALSE),"") ->  | N159: =IFERROR(VLOOKUP(B159,#REF!,9,FALSE),"") -> 
C160: =IFERROR(VLOOKUP(B160,#REF!,2,FALSE),"") ->  | D160: =IFERROR(VLOOKUP(B160,#REF!,3,FALSE),"") ->  | N160: =IFERROR(VLOOKUP(B160,#REF!,9,FALSE),"") -> 
C161: =IFERROR(VLOOKUP(B161,#REF!,2,FALSE),"") ->  | D161: =IFERROR(VLOOKUP(B161,#REF!,3,FALSE),"") ->  | N161: =IFERROR(VLOOKUP(B161,#REF!,9,FALSE),"") -> 
C162: =IFERROR(VLOOKUP(B162,#REF!,2,FALSE),"") ->  | D162: =IFERROR(VLOOKUP(B162,#REF!,3,FALSE),"") ->  | N162: =IFERROR(VLOOKUP(B162,#REF!,9,FALSE),"") -> 
C163: =IFERROR(VLOOKUP(B163,#REF!,2,FALSE),"") ->  | D163: =IFERROR(VLOOKUP(B163,#REF!,3,FALSE),"") ->  | N163: =IFERROR(VLOOKUP(B163,#REF!,9,FALSE),"") -> 
C164: =IFERROR(VLOOKUP(B164,#REF!,2,FALSE),"") ->  | D164: =IFERROR(VLOOKUP(B164,#REF!,3,FALSE),"") ->  | N164: =IFERROR(VLOOKUP(B164,#REF!,9,FALSE),"") -> 
C165: =IFERROR(VLOOKUP(B165,#REF!,2,FALSE),"") ->  | D165: =IFERROR(VLOOKUP(B165,#REF!,3,FALSE),"") ->  | N165: =IFERROR(VLOOKUP(B165,#REF!,9,FALSE),"") -> 
C166: =IFERROR(VLOOKUP(B166,#REF!,2,FALSE),"") ->  | D166: =IFERROR(VLOOKUP(B166,#REF!,3,FALSE),"") ->  | N166: =IFERROR(VLOOKUP(B166,#REF!,9,FALSE),"") -> 
C167: =IFERROR(VLOOKUP(B167,#REF!,2,FALSE),"") ->  | D167: =IFERROR(VLOOKUP(B167,#REF!,3,FALSE),"") ->  | N167: =IFERROR(VLOOKUP(B167,#REF!,9,FALSE),"") -> 
C168: =IFERROR(VLOOKUP(B168,#REF!,2,FALSE),"") ->  | D168: =IFERROR(VLOOKUP(B168,#REF!,3,FALSE),"") ->  | N168: =IFERROR(VLOOKUP(B168,#REF!,9,FALSE),"") -> 
C169: =IFERROR(VLOOKUP(B169,#REF!,2,FALSE),"") ->  | D169: =IFERROR(VLOOKUP(B169,#REF!,3,FALSE),"") ->  | N169: =IFERROR(VLOOKUP(B169,#REF!,9,FALSE),"") -> 
C170: =IFERROR(VLOOKUP(B170,#REF!,2,FALSE),"") ->  | D170: =IFERROR(VLOOKUP(B170,#REF!,3,FALSE),"") ->  | N170: =IFERROR(VLOOKUP(B170,#REF!,9,FALSE),"") -> 
C171: =IFERROR(VLOOKUP(B171,#REF!,2,FALSE),"") ->  | D171: =IFERROR(VLOOKUP(B171,#REF!,3,FALSE),"") ->  | N171: =IFERROR(VLOOKUP(B171,#REF!,9,FALSE),"") -> 
C172: =IFERROR(VLOOKUP(B172,#REF!,2,FALSE),"") ->  | D172: =IFERROR(VLOOKUP(B172,#REF!,3,FALSE),"") ->  | N172: =IFERROR(VLOOKUP(B172,#REF!,9,FALSE),"") -> 
C173: =IFERROR(VLOOKUP(B173,#REF!,2,FALSE),"") ->  | D173: =IFERROR(VLOOKUP(B173,#REF!,3,FALSE),"") ->  | N173: =IFERROR(VLOOKUP(B173,#REF!,9,FALSE),"") -> 
C174: =IFERROR(VLOOKUP(B174,#REF!,2,FALSE),"") ->  | D174: =IFERROR(VLOOKUP(B174,#REF!,3,FALSE),"") ->  | N174: =IFERROR(VLOOKUP(B174,#REF!,9,FALSE),"") -> 
C175: =IFERROR(VLOOKUP(B175,#REF!,2,FALSE),"") ->  | D175: =IFERROR(VLOOKUP(B175,#REF!,3,FALSE),"") ->  | M175: =IFERROR(IF((K175-L175)<=0,"0",(K175-L175)),"") ->  | N175: =IFERROR(VLOOKUP(B175,#REF!,9,FALSE),"") -> 
C176: =IFERROR(VLOOKUP(B176,#REF!,2,FALSE),"") ->  | D176: =IFERROR(VLOOKUP(B176,#REF!,3,FALSE),"") ->  | N176: =IFERROR(VLOOKUP(B176,#REF!,9,FALSE),"") -> 
C177: =IFERROR(VLOOKUP(B177,#REF!,2,FALSE),"") ->  | D177: =IFERROR(VLOOKUP(B177,#REF!,3,FALSE),"") ->  | N177: =IFERROR(VLOOKUP(B177,#REF!,9,FALSE),"") -> 
C178: =IFERROR(VLOOKUP(B178,#REF!,2,FALSE),"") ->  | D178: =IFERROR(VLOOKUP(B178,#REF!,3,FALSE),"") ->  | N178: =IFERROR(VLOOKUP(B178,#REF!,9,FALSE),"") -> 
C179: =IFERROR(VLOOKUP(B179,#REF!,2,FALSE),"") ->  | D179: =IFERROR(VLOOKUP(B179,#REF!,3,FALSE),"") ->  | N179: =IFERROR(VLOOKUP(B179,#REF!,9,FALSE),"") -> 
C180: =IFERROR(VLOOKUP(B180,#REF!,2,FALSE),"") ->  | D180: =IFERROR(VLOOKUP(B180,#REF!,3,FALSE),"") ->  | N180: =IFERROR(VLOOKUP(B180,#REF!,9,FALSE),"") -> 
C181: =IFERROR(VLOOKUP(B181,#REF!,2,FALSE),"") ->  | D181: =IFERROR(VLOOKUP(B181,#REF!,3,FALSE),"") ->  | N181: =IFERROR(VLOOKUP(B181,#REF!,9,FALSE),"") -> 
C182: =IFERROR(VLOOKUP(B182,#REF!,2,FALSE),"") ->  | D182: =IFERROR(VLOOKUP(B182,#REF!,3,FALSE),"") ->  | N182: =IFERROR(VLOOKUP(B182,#REF!,9,FALSE),"") -> 
C183: =IFERROR(VLOOKUP(B183,#REF!,2,FALSE),"") ->  | D183: =IFERROR(VLOOKUP(B183,#REF!,3,FALSE),"") ->  | N183: =IFERROR(VLOOKUP(B183,#REF!,9,FALSE),"") -> 
C184: =IFERROR(VLOOKUP(B184,#REF!,2,FALSE),"") ->  | D184: =IFERROR(VLOOKUP(B184,#REF!,3,FALSE),"") ->  | N184: =IFERROR(VLOOKUP(B184,#REF!,9,FALSE),"") -> 
C185: =IFERROR(VLOOKUP(B185,#REF!,2,FALSE),"") ->  | D185: =IFERROR(VLOOKUP(B185,#REF!,3,FALSE),"") ->  | N185: =IFERROR(VLOOKUP(B185,#REF!,9,FALSE),"") -> 
C186: =IFERROR(VLOOKUP(B186,#REF!,2,FALSE),"") ->  | D186: =IFERROR(VLOOKUP(B186,#REF!,3,FALSE),"") ->  | N186: =IFERROR(VLOOKUP(B186,#REF!,9,FALSE),"") -> 
C187: =IFERROR(VLOOKUP(B187,#REF!,2,FALSE),"") ->  | D187: =IFERROR(VLOOKUP(B187,#REF!,3,FALSE),"") ->  | N187: =IFERROR(VLOOKUP(B187,#REF!,9,FALSE),"") -> 
C188: =IFERROR(VLOOKUP(B188,#REF!,2,FALSE),"") ->  | D188: =IFERROR(VLOOKUP(B188,#REF!,3,FALSE),"") ->  | N188: =IFERROR(VLOOKUP(B188,#REF!,9,FALSE),"") -> 
C189: =IFERROR(VLOOKUP(B189,#REF!,2,FALSE),"") ->  | D189: =IFERROR(VLOOKUP(B189,#REF!,3,FALSE),"") ->  | N189: =IFERROR(VLOOKUP(B189,#REF!,9,FALSE),"") -> 
C190: =IFERROR(VLOOKUP(B190,#REF!,2,FALSE),"") ->  | D190: =IFERROR(VLOOKUP(B190,#REF!,3,FALSE),"") ->  | N190: =IFERROR(VLOOKUP(B190,#REF!,9,FALSE),"") -> 
C191: =IFERROR(VLOOKUP(B191,#REF!,2,FALSE),"") ->  | D191: =IFERROR(VLOOKUP(B191,#REF!,3,FALSE),"") ->  | N191: =IFERROR(VLOOKUP(B191,#REF!,9,FALSE),"") -> 
C192: =IFERROR(VLOOKUP(B192,#REF!,2,FALSE),"") ->  | D192: =IFERROR(VLOOKUP(B192,#REF!,3,FALSE),"") ->  | N192: =IFERROR(VLOOKUP(B192,#REF!,9,FALSE),"") -> 
C193: =IFERROR(VLOOKUP(B193,#REF!,2,FALSE),"") ->  | D193: =IFERROR(VLOOKUP(B193,#REF!,3,FALSE),"") ->  | N193: =IFERROR(VLOOKUP(B193,#REF!,9,FALSE),"") -> 
C194: =IFERROR(VLOOKUP(B194,#REF!,2,FALSE),"") ->  | D194: =IFERROR(VLOOKUP(B194,#REF!,3,FALSE),"") ->  | N194: =IFERROR(VLOOKUP(B194,#REF!,9,FALSE),"") -> 
C195: =IFERROR(VLOOKUP(B195,#REF!,2,FALSE),"") ->  | D195: =IFERROR(VLOOKUP(B195,#REF!,3,FALSE),"") ->  | N195: =IFERROR(VLOOKUP(B195,#REF!,9,FALSE),"") -> 
C196: =IFERROR(VLOOKUP(B196,#REF!,2,FALSE),"") ->  | D196: =IFERROR(VLOOKUP(B196,#REF!,3,FALSE),"") ->  | N196: =IFERROR(VLOOKUP(B196,#REF!,9,FALSE),"") ->  | S196: =IF( N196 <> "", IF(AND(E196<"100%", M196>0, O196>N196), "Miss", "Hit"), "") -> 
C197: =IFERROR(VLOOKUP(B197,#REF!,2,FALSE),"") ->  | D197: =IFERROR(VLOOKUP(B197,#REF!,3,FALSE),"") ->  | N197: =IFERROR(VLOOKUP(B197,#REF!,9,FALSE),"") -> 
C198: =IFERROR(VLOOKUP(B198,#REF!,2,FALSE),"") ->  | D198: =IFERROR(VLOOKUP(B198,#REF!,3,FALSE),"") ->  | N198: =IFERROR(VLOOKUP(B198,#REF!,9,FALSE),"") -> 
C199: =IFERROR(VLOOKUP(B199,#REF!,2,FALSE),"") ->  | D199: =IFERROR(VLOOKUP(B199,#REF!,3,FALSE),"") ->  | N199: =IFERROR(VLOOKUP(B199,#REF!,9,FALSE),"") -> 
C200: =IFERROR(VLOOKUP(B200,#REF!,2,FALSE),"") ->  | D200: =IFERROR(VLOOKUP(B200,#REF!,3,FALSE),"") ->  | N200: =IFERROR(VLOOKUP(B200,#REF!,9,FALSE),"") -> 
C201: =IFERROR(VLOOKUP(B201,#REF!,2,FALSE),"") ->  | D201: =IFERROR(VLOOKUP(B201,#REF!,3,FALSE),"") ->  | N201: =IFERROR(VLOOKUP(B201,#REF!,9,FALSE),"") -> 
C202: =IFERROR(VLOOKUP(B202,#REF!,2,FALSE),"") ->  | D202: =IFERROR(VLOOKUP(B202,#REF!,3,FALSE),"") ->  | N202: =IFERROR(VLOOKUP(B202,#REF!,9,FALSE),"") -> 
... 975 more rows

Sheet score (hidden)
B1: 2020 | C1: W1 | D1: W2 | E1: W3 | F1: W4 | G1: W5 | H1: W6 | I1: W7 | J1: W8 | K1: W9 | L1: W10 | M1: W11 | N1: W12 | O1: W13 | P1: W14 | Q1: W15 | R1: W16 | S1: W17 | T1: W18 | U1: W19 | V1: W20 | W1: W21 | X1: W22 | Y1: W23 | Z1: W24 | AA1: W25 | AB1: W26 | AC1: W27 | AD1: W28 | AE1: W29 | AF1: W30 | AG1: W31 | AH1: W32 | AI1: W33 | AJ1: W34 | AK1: W35 | AL1: W36 | AM1: W37 | AN1: W38 | AO1: W39 | AP1: W40 | AQ1: W41 | AR1: W42 | AS1: W43 | AT1: W44 | AU1: W45 | AV1: W46 | AW1: W47 | AX1: W48 | AY1: W49 | AZ1: W50 | BA1: W51 | BB1: W52
B2: 2019-12-22 | C2: =B2+7 -> 2019-12-29 | D2: =C2+7 -> 2020-01-05 | E2: 2020-01-12 | F2: 2020-01-19 | G2: 2020-01-26 | H2: 2020-02-02 | I2: 2020-02-09 | J2: 2020-02-16 | K2: 2020-02-23 | L2: 2020-03-01 | M2: 2020-03-08 | N2: 2020-03-15 | O2: 2020-03-22 | P2: 2020-03-29 | Q2: 2020-04-05 | R2: 2020-04-12 | S2: 2020-04-19 | T2: 2020-04-26 | U2: 2020-05-03 | V2: 2020-05-10 | W2: 2020-05-17 | X2: 2020-05-24 | Y2: 2020-05-31 | Z2: 2020-06-07 | AA2: 2020-06-14 | AB2: 2020-06-21 | AC2: 2020-06-28 | AD2: 2020-07-05 | AE2: 2020-07-12 | AF2: 2020-07-19 | AG2: 2020-07-26 | AH2: 2020-08-02 | AI2: 2020-08-09 | AJ2: 2020-08-16 | AK2: 2020-08-23 | AL2: 2020-08-30 | AM2: 2020-09-06 | AN2: 2020-09-13 | AO2: 2020-09-20 | AP2: 2020-09-27 | AQ2: 2020-10-04 | AR2: 2020-10-11 | AS2: 2020-10-18 | AT2: 2020-10-25 | AU2: 2020-11-01 | AV2: 2020-11-08 | AW2: 2020-11-15 | AX2: 2020-11-22 | AY2: 2020-11-29 | AZ2: 2020-12-06 | BA2: 2020-12-13 | BB2: 2020-12-20
B3: Mesec | C3: =MONTH(C2) -> 12 | D3: =MONTH(D2) -> 1 | E3: =MONTH(E2) -> 1 | F3: 1 | G3: 1 | H3: 2 | I3: 2 | J3: 2 | K3: 2 | L3: 3 | M3: 3 | N3: 3 | O3: 3 | P3: 3 | Q3: 4 | R3: 4 | S3: 4 | T3: 4 | U3: 5 | V3: 5 | W3: 5 | X3: 5 | Y3: 5 | Z3: 6 | AA3: 6 | AB3: 6 | AC3: 6 | AD3: 7 | AE3: 7 | AF3: 7 | AG3: 7 | AH3: 8 | AI3: 8 | AJ3: 8 | AK3: 8 | AL3: 8 | AM3: 9 | AN3: 9 | AO3: 9 | AP3: 9 | AQ3: 10 | AR3: 10 | AS3: 10 | AT3: 10 | AU3: 11 | AV3: 11 | AW3: 11 | AX3: 11 | AY3: 11 | AZ3: 12 | BA3: 12 | BB3: 12
B4: Dan | C4: =DAY(C2) -> 29 | D4: =DAY(D2) -> 5 | E4: =DAY(E2) -> 12 | F4: 19 | G4: 26 | H4: 2 | I4: 9 | J4: 16 | K4: 23 | L4: 1 | M4: 8 | N4: 15 | O4: 22 | P4: 29 | Q4: 5 | R4: 12 | S4: 19 | T4: 26 | U4: 3 | V4: 10 | W4: 17 | X4: 24 | Y4: 31 | Z4: 7 | AA4: 14 | AB4: 21 | AC4: 28 | AD4: 5 | AE4: 12 | AF4: 19 | AG4: 26 | AH4: 2 | AI4: 9 | AJ4: 16 | AK4: 23 | AL4: 30 | AM4: 6 | AN4: 13 | AO4: 20 | AP4: 27 | AQ4: 4 | AR4: 11 | AS4: 18 | AT4: 25 | AU4: 1 | AV4: 8 | AW4: 15 | AX4: 22 | AY4: 29 | AZ4: 6 | BA4: 13 | BB4: 20
C7: January | H7: February | L7: March | P7: April | U7: May | Y7: June | AC7: July | AH7: August | AL7: September | AQ7: October | AU7: November | AY7: December
C8: W1 | D8: W2 | E8: W3 | F8: W4 | G8: W5 | H8: W6 | I8: W7 | J8: W8 | K8: W9 | L8: W10 | M8: W11 | N8: W12 | O8: W13 | P8: W14 | Q8: W15 | R8: W16 | S8: W17 | T8: W18 | U8: W19 | V8: W20 | W8: W21 | X8: W22 | Y8: W23 | Z8: W24 | AA8: W25 | AB8: W26 | AC8: W27 | AD8: W28 | AE8: W29 | AF8: W30 | AG8: W31 | AH8: W32 | AI8: W33 | AJ8: W34 | AK8: W35 | AL8: W36 | AM8: W37 | AN8: W38 | AO8: W39 | AP8: W40 | AQ8: W41 | AR8: W42 | AS8: W43 | AT8: W44 | AU8: W45 | AV8: W46 | AW8: W47 | AX8: W48 | AY8: W49 | AZ8: W50 | BA8: W51 | BB8: W52
C9: =IFERROR(AVERAGEIFS(data!$E$3:$E$501,data!$B$3:$B$501,score!$B$9,data!$A$3:$A$501,">="&DATE(score!$B$1,C3,C4),data!$A$3:$A$501,"<="&DATE(score!$B$1,D3,D4)),"") ->  | D9: =IFERROR(AVERAGEIFS(data!$E$3:$E$501,data!$B$3:$B$501,score!$B$9,data!$A$3:$A$501,">="&DATE(score!$B$1,D3,D4),data!$A$3:$A$501,"<="&DATE(score!$B$1,E3,E4)),"") ->  | E9: =IFERROR(AVERAGEIFS(data!$E$3:$E$501,data!$B$3:$B$501,score!$B$9,data!$A$3:$A$501,">="&DATE(score!$B$1,E3,E4),data!$A$3:$A$501,"<="&DATE(score!$B$1,F3,F4)),"") ->  | F9: =IFERROR(AVERAGEIFS(data!$E$3:$E$501,data!$B$3:$B$501,score!$B$9,data!$A$3:$A$501,">="&DATE(score!$B$1,F3,F4),data!$A$3:$A$501,"<="&DATE(score!$B$1,G3,G4)),"") ->  | G9: =IFERROR(AVERAGEIFS(data!$E$3:$E$501,data!$B$3:$B$501,score!$B$9,data!$A$3:$A$501,">="&DATE(score!$B$1,G3,G4),data!$A$3:$A$501,"<="&DATE(score!$B$1,H3,H4)),"") ->  | H9: =IFERROR(AVERAGEIFS(data!$E$3:$E$501,data!$B$3:$B$501,score!$B$9,data!$A$3:$A$501,">="&DATE(score!$B$1,H3,H4),data!$A$3:$A$501,"<="&DATE(score!$B$1,I3,I4)),"") ->  | I9: =IFERROR(AVERAGEIFS(data!$E$3:$E$501,data!$B$3:$B$501,score!$B$9,data!$A$3:$A$501,">="&DATE(score!$B$1,I3,I4),data!$A$3:$A$501,"<="&DATE(score!$B$1,J3,J4)),"") ->  | J9: =IFERROR(AVERAGEIFS(data!$E$3:$E$501,data!$B$3:$B$501,score!$B$9,data!$A$3:$A$501,">="&DATE(score!$B$1,J3,J4),data!$A$3:$A$501,"<="&DATE(score!$B$1,K3,K4)),"") ->  | K9: =IFERROR(AVERAGEIFS(data!$E$3:$E$501,data!$B$3:$B$501,score!$B$9,data!$A$3:$A$501,">="&DATE(score!$B$1,K3,K4),data!$A$3:$A$501,"<="&DATE(score!$B$1,L3,L4)),"") ->  | L9: =IFERROR(AVERAGEIFS(data!$E$3:$E$501,data!$B$3:$B$501,score!$B$9,data!$A$3:$A$501,">="&DATE(score!$B$1,L3,L4),data!$A$3:$A$501,"<="&DATE(score!$B$1,M3,M4)),"") ->  | M9: =IFERROR(AVERAGEIFS(data!$E$3:$E$501,data!$B$3:$B$501,score!$B$9,data!$A$3:$A$501,">="&DATE(score!$B$1,M3,M4),data!$A$3:$A$501,"<="&DATE(score!$B$1,N3,N4)),"") ->  | N9: =IFERROR(AVERAGEIFS(data!$E$3:$E$501,data!$B$3:$B$501,score!$B$9,data!$A$3:$A$501,">="&DATE(score!$B$1,N3,N4),data!$A$3:$A$501,"<="&DATE(score!$B$1,O3,O4)),"") ->  | O9: =IFERROR(AVERAGEIFS(data!$E$3:$E$501,data!$B$3:$B$501,score!$B$9,data!$A$3:$A$501,">="&DATE(score!$B$1,O3,O4),data!$A$3:$A$501,"<="&DATE(score!$B$1,P3,P4)),"") ->  | P9: =IFERROR(AVERAGEIFS(data!$E$3:$E$501,data!$B$3:$B$501,score!$B$9,data!$A$3:$A$501,">="&DATE(score!$B$1,P3,P4),data!$A$3:$A$501,"<="&DATE(score!$B$1,Q3,Q4)),"") ->  | Q9: =IFERROR(AVERAGEIFS(data!$E$3:$E$501,data!$B$3:$B$501,score!$B$9,data!$A$3:$A$501,">="&DATE(score!$B$1,Q3,Q4),data!$A$3:$A$501,"<="&DATE(score!$B$1,R3,R4)),"") ->  | R9: =IFERROR(AVERAGEIFS(data!$E$3:$E$501,data!$B$3:$B$501,score!$B$9,data!$A$3:$A$501,">="&DATE(score!$B$1,R3,R4),data!$A$3:$A$501,"<="&DATE(score!$B$1,S3,S4)),"") ->  | S9: =IFERROR(AVERAGEIFS(data!$E$3:$E$501,data!$B$3:$B$501,score!$B$9,data!$A$3:$A$501,">="&DATE(score!$B$1,S3,S4),data!$A$3:$A$501,"<="&DATE(score!$B$1,T3,T4)),"") ->  | T9: =IFERROR(AVERAGEIFS(data!$E$3:$E$501,data!$B$3:$B$501,score!$B$9,data!$A$3:$A$501,">="&DATE(score!$B$1,T3,T4),data!$A$3:$A$501,"<="&DATE(score!$B$1,U3,U4)),"") ->  | U9: =IFERROR(AVERAGEIFS(data!$E$3:$E$501,data!$B$3:$B$501,score!$B$9,data!$A$3:$A$501,">="&DATE(score!$B$1,U3,U4),data!$A$3:$A$501,"<="&DATE(score!$B$1,V3,V4)),"") ->  | V9: =IFERROR(AVERAGEIFS(data!$E$3:$E$501,data!$B$3:$B$501,score!$B$9,data!$A$3:$A$501,">="&DATE(score!$B$1,V3,V4),data!$A$3:$A$501,"<="&DATE(score!$B$1,W3,W4)),"") ->  | W9: =IFERROR(AVERAGEIFS(data!$E$3:$E$501,data!$B$3:$B$501,score!$B$9,data!$A$3:$A$501,">="&DATE(score!$B$1,W3,W4),data!$A$3:$A$501,"<="&DATE(score!$B$1,X3,X4)),"") ->  | X9: =IFERROR(AVERAGEIFS(data!$E$3:$E$501,data!$B$3:$B$501,score!$B$9,data!$A$3:$A$501,">="&DATE(score!$B$1,X3,X4),data!$A$3:$A$501,"<="&DATE(score!$B$1,Y3,Y4)),"") ->  | Y9: =IFERROR(AVERAGEIFS(data!$E$3:$E$501,data!$B$3:$B$501,score!$B$9,data!$A$3:$A$501,">="&DATE(score!$B$1,Y3,Y4),data!$A$3:$A$501,"<="&DATE(score!$B$1,Z3,Z4)),"") ->  | Z9: =IFERROR(AVERAGEIFS(data!$E$3:$E$501,data!$B$3:$B$501,score!$B$9,data!$A$3:$A$501,">="&DATE(score!$B$1,Z3,Z4),data!$A$3:$A$501,"<="&DATE(score!$B$1,AA3,AA4)),"") ->  | AA9: =IFERROR(AVERAGEIFS(data!$E$3:$E$501,data!$B$3:$B$501,score!$B$9,data!$A$3:$A$501,">="&DATE(score!$B$1,AA3,AA4),data!$A$3:$A$501,"<="&DATE(score!$B$1,AB3,AB4)),"") ->  | AB9: =IFERROR(AVERAGEIFS(data!$E$3:$E$501,data!$B$3:$B$501,score!$B$9,data!$A$3:$A$501,">="&DATE(score!$B$1,AB3,AB4),data!$A$3:$A$501,"<="&DATE(score!$B$1,AC3,AC4)),"") ->  | AC9: =IFERROR(AVERAGEIFS(data!$E$3:$E$501,data!$B$3:$B$501,score!$B$9,data!$A$3:$A$501,">="&DATE(score!$B$1,AC3,AC4),data!$A$3:$A$501,"<="&DATE(score!$B$1,AD3,AD4)),"") ->  | AD9: =IFERROR(AVERAGEIFS(data!$E$3:$E$501,data!$B$3:$B$501,score!$B$9,data!$A$3:$A$501,">="&DATE(score!$B$1,AD3,AD4),data!$A$3:$A$501,"<="&DATE(score!$B$1,AE3,AE4)),"") ->  | AE9: =IFERROR(AVERAGEIFS(data!$E$3:$E$501,data!$B$3:$B$501,score!$B$9,data!$A$3:$A$501,">="&DATE(score!$B$1,AE3,AE4),data!$A$3:$A$501,"<="&DATE(score!$B$1,AF3,AF4)),"") ->  | AF9: =IFERROR(AVERAGEIFS(data!$E$3:$E$501,data!$B$3:$B$501,score!$B$9,data!$A$3:$A$501,">="&DATE(score!$B$1,AF3,AF4),data!$A$3:$A$501,"<="&DATE(score!$B$1,AG3,AG4)),"") ->  | AG9: =IFERROR(AVERAGEIFS(data!$E$3:$E$501,data!$B$3:$B$501,score!$B$9,data!$A$3:$A$501,">="&DATE(score!$B$1,AG3,AG4),data!$A$3:$A$501,"<="&DATE(score!$B$1,AH3,AH4)),"") ->  | AH9: =IFERROR(AVERAGEIFS(data!$E$3:$E$501,data!$B$3:$B$501,score!$B$9,data!$A$3:$A$501,">="&DATE(score!$B$1,AH3,AH4),data!$A$3:$A$501,"<="&DATE(score!$B$1,AI3,AI4)),"") ->  | AI9: =IFERROR(AVERAGEIFS(data!$E$3:$E$501,data!$B$3:$B$501,score!$B$9,data!$A$3:$A$501,">="&DATE(score!$B$1,AI3,AI4),data!$A$3:$A$501,"<="&DATE(score!$B$1,AJ3,AJ4)),"") ->  | AJ9: =IFERROR(AVERAGEIFS(data!$E$3:$E$501,data!$B$3:$B$501,score!$B$9,data!$A$3:$A$501,">="&DATE(score!$B$1,AJ3,AJ4),data!$A$3:$A$501,"<="&DATE(score!$B$1,AK3,AK4)),"") ->  | AK9: =IFERROR(AVERAGEIFS(data!$E$3:$E$501,data!$B$3:$B$501,score!$B$9,data!$A$3:$A$501,">="&DATE(score!$B$1,AK3,AK4),data!$A$3:$A$501,"<="&DATE(score!$B$1,AL3,AL4)),"") ->  | AL9: =IFERROR(AVERAGEIFS(data!$E$3:$E$501,data!$B$3:$B$501,score!$B$9,data!$A$3:$A$501,">="&DATE(score!$B$1,AL3,AL4),data!$A$3:$A$501,"<="&DATE(score!$B$1,AM3,AM4)),"") ->  | AM9: =IFERROR(AVERAGEIFS(data!$E$3:$E$501,data!$B$3:$B$501,score!$B$9,data!$A$3:$A$501,">="&DATE(score!$B$1,AM3,AM4),data!$A$3:$A$501,"<="&DATE(score!$B$1,AN3,AN4)),"") ->  | AN9: =IFERROR(AVERAGEIFS(data!$E$3:$E$501,data!$B$3:$B$501,score!$B$9,data!$A$3:$A$501,">="&DATE(score!$B$1,AN3,AN4),data!$A$3:$A$501,"<="&DATE(score!$B$1,AO3,AO4)),"") ->  | AO9: =IFERROR(AVERAGEIFS(data!$E$3:$E$501,data!$B$3:$B$501,score!$B$9,data!$A$3:$A$501,">="&DATE(score!$B$1,AO3,AO4),data!$A$3:$A$501,"<="&DATE(score!$B$1,AP3,AP4)),"") ->  | AP9: =IFERROR(AVERAGEIFS(data!$E$3:$E$501,data!$B$3:$B$501,score!$B$9,data!$A$3:$A$501,">="&DATE(score!$B$1,AP3,AP4),data!$A$3:$A$501,"<="&DATE(score!$B$1,AQ3,AQ4)),"") ->  | AQ9: =IFERROR(AVERAGEIFS(data!$E$3:$E$501,data!$B$3:$B$501,score!$B$9,data!$A$3:$A$501,">="&DATE(score!$B$1,AQ3,AQ4),data!$A$3:$A$501,"<="&DATE(score!$B$1,AR3,AR4)),"") ->  | AR9: =IFERROR(AVERAGEIFS(data!$E$3:$E$501,data!$B$3:$B$501,score!$B$9,data!$A$3:$A$501,">="&DATE(score!$B$1,AR3,AR4),data!$A$3:$A$501,"<="&DATE(score!$B$1,AS3,AS4)),"") ->  | AS9: =IFERROR(AVERAGEIFS(data!$E$3:$E$501,data!$B$3:$B$501,score!$B$9,data!$A$3:$A$501,">="&DATE(score!$B$1,AS3,AS4),data!$A$3:$A$501,"<="&DATE(score!$B$1,AT3,AT4)),"") ->  | AT9: =IFERROR(AVERAGEIFS(data!$E$3:$E$501,data!$B$3:$B$501,score!$B$9,data!$A$3:$A$501,">="&DATE(score!$B$1,AT3,AT4),data!$A$3:$A$501,"<="&DATE(score!$B$1,AU3,AU4)),"") ->  | AU9: =IFERROR(AVERAGEIFS(data!$E$3:$E$501,data!$B$3:$B$501,score!$B$9,data!$A$3:$A$501,">="&DATE(score!$B$1,AU3,AU4),data!$A$3:$A$501,"<="&DATE(score!$B$1,AV3,AV4)),"") ->  | AV9: =IFERROR(AVERAGEIFS(data!$E$3:$E$501,data!$B$3:$B$501,score!$B$9,data!$A$3:$A$501,">="&DATE(score!$B$1,AV3,AV4),data!$A$3:$A$501,"<="&DATE(score!$B$1,AW3,AW4)),"") ->  | AW9: =IFERROR(AVERAGEIFS(data!$E$3:$E$501,data!$B$3:$B$501,score!$B$9,data!$A$3:$A$501,">="&DATE(score!$B$1,AW3,AW4),data!$A$3:$A$501,"<="&DATE(score!$B$1,AX3,AX4)),"") ->  | AX9: =IFERROR(AVERAGEIFS(data!$E$3:$E$501,data!$B$3:$B$501,score!$B$9,data!$A$3:$A$501,">="&DATE(score!$B$1,AX3,AX4),data!$A$3:$A$501,"<="&DATE(score!$B$1,AY3,AY4)),"") ->  | AY9: =IFERROR(AVERAGEIFS(data!$E$3:$E$501,data!$B$3:$B$501,score!$B$9,data!$A$3:$A$501,">="&DATE(score!$B$1,AY3,AY4),data!$A$3:$A$501,"<="&DATE(score!$B$1,AZ3,AZ4)),"") ->  | AZ9: =IFERROR(AVERAGEIFS(data!$E$3:$E$501,data!$B$3:$B$501,score!$B$9,data!$A$3:$A$501,">="&DATE(score!$B$1,AZ3,AZ4),data!$A$3:$A$501,"<="&DATE(score!$B$1,BA3,BA4)),"") ->  | BA9: =IFERROR(AVERAGEIFS(data!$E$3:$E$501,data!$B$3:$B$501,score!$B$9,data!$A$3:$A$501,">="&DATE(score!$B$1,BA3,BA4),data!$A$3:$A$501,"<="&DATE(score!$B$1,BB3,BB4)),"") ->  | BB9: =IFERROR(AVERAGEIFS(data!$E$3:$E$501,data!$B$3:$B$501,score!$B$9,data!$A$3:$A$501,">="&DATE(score!$B$1,BB3,BB4),data!$A$3:$A$501,"<="&DATE(score!$B$1,BC3,BC4)),"") -> 
C10: =IFERROR(AVERAGEIFS(data!$E$3:$E$501,data!$B$3:$B$501,score!$B$10,data!$A$3:$A$501,">="&DATE(score!$B$1,C3,C4),data!$A$3:$A$501,"<="&DATE(score!$B$1,D3,D4)),"") ->  | D10: =IFERROR(AVERAGEIFS(data!$E$3:$E$501,data!$B$3:$B$501,score!$B$10,data!$A$3:$A$501,">="&DATE(score!$B$1,D3,D4),data!$A$3:$A$501,"<="&DATE(score!$B$1,E3,E4)),"") ->  | E10: =IFERROR(AVERAGEIFS(data!$E$3:$E$501,data!$B$3:$B$501,score!$B$10,data!$A$3:$A$501,">="&DATE(score!$B$1,E3,E4),data!$A$3:$A$501,"<="&DATE(score!$B$1,F3,F4)),"") ->  | F10: =IFERROR(AVERAGEIFS(data!$E$3:$E$501,data!$B$3:$B$501,score!$B$10,data!$A$3:$A$501,">="&DATE(score!$B$1,F3,F4),data!$A$3:$A$501,"<="&DATE(score!$B$1,G3,G4)),"") ->  | G10: =IFERROR(AVERAGEIFS(data!$E$3:$E$501,data!$B$3:$B$501,score!$B$10,data!$A$3:$A$501,">="&DATE(score!$B$1,G3,G4),data!$A$3:$A$501,"<="&DATE(score!$B$1,H3,H4)),"") ->  | H10: =IFERROR(AVERAGEIFS(data!$E$3:$E$501,data!$B$3:$B$501,score!$B$10,data!$A$3:$A$501,">="&DATE(score!$B$1,H3,H4),data!$A$3:$A$501,"<="&DATE(score!$B$1,I3,I4)),"") ->  | I10: =IFERROR(AVERAGEIFS(data!$E$3:$E$501,data!$B$3:$B$501,score!$B$10,data!$A$3:$A$501,">="&DATE(score!$B$1,I3,I4),data!$A$3:$A$501,"<="&DATE(score!$B$1,J3,J4)),"") ->  | J10: =IFERROR(AVERAGEIFS(data!$E$3:$E$501,data!$B$3:$B$501,score!$B$10,data!$A$3:$A$501,">="&DATE(score!$B$1,J3,J4),data!$A$3:$A$501,"<="&DATE(score!$B$1,K3,K4)),"") ->  | K10: =IFERROR(AVERAGEIFS(data!$E$3:$E$501,data!$B$3:$B$501,score!$B$10,data!$A$3:$A$501,">="&DATE(score!$B$1,K3,K4),data!$A$3:$A$501,"<="&DATE(score!$B$1,L3,L4)),"") ->  | L10: =IFERROR(AVERAGEIFS(data!$E$3:$E$501,data!$B$3:$B$501,score!$B$10,data!$A$3:$A$501,">="&DATE(score!$B$1,L3,L4),data!$A$3:$A$501,"<="&DATE(score!$B$1,M3,M4)),"") ->  | M10: =IFERROR(AVERAGEIFS(data!$E$3:$E$501,data!$B$3:$B$501,score!$B$10,data!$A$3:$A$501,">="&DATE(score!$B$1,M3,M4),data!$A$3:$A$501,"<="&DATE(score!$B$1,N3,N4)),"") ->  | N10: =IFERROR(AVERAGEIFS(data!$E$3:$E$501,data!$B$3:$B$501,score!$B$10,data!$A$3:$A$501,">="&DATE(score!$B$1,N3,N4),data!$A$3:$A$501,"<="&DATE(score!$B$1,O3,O4)),"") ->  | O10: =IFERROR(AVERAGEIFS(data!$E$3:$E$501,data!$B$3:$B$501,score!$B$10,data!$A$3:$A$501,">="&DATE(score!$B$1,O3,O4),data!$A$3:$A$501,"<="&DATE(score!$B$1,P3,P4)),"") ->  | P10: =IFERROR(AVERAGEIFS(data!$E$3:$E$501,data!$B$3:$B$501,score!$B$10,data!$A$3:$A$501,">="&DATE(score!$B$1,P3,P4),data!$A$3:$A$501,"<="&DATE(score!$B$1,Q3,Q4)),"") ->  | Q10: =IFERROR(AVERAGEIFS(data!$E$3:$E$501,data!$B$3:$B$501,score!$B$10,data!$A$3:$A$501,">="&DATE(score!$B$1,Q3,Q4),data!$A$3:$A$501,"<="&DATE(score!$B$1,R3,R4)),"") ->  | R10: =IFERROR(AVERAGEIFS(data!$E$3:$E$501,data!$B$3:$B$501,score!$B$10,data!$A$3:$A$501,">="&DATE(score!$B$1,R3,R4),data!$A$3:$A$501,"<="&DATE(score!$B$1,S3,S4)),"") ->  | S10: =IFERROR(AVERAGEIFS(data!$E$3:$E$501,data!$B$3:$B$501,score!$B$10,data!$A$3:$A$501,">="&DATE(score!$B$1,S3,S4),data!$A$3:$A$501,"<="&DATE(score!$B$1,T3,T4)),"") ->  | T10: =IFERROR(AVERAGEIFS(data!$E$3:$E$501,data!$B$3:$B$501,score!$B$10,data!$A$3:$A$501,">="&DATE(score!$B$1,T3,T4),data!$A$3:$A$501,"<="&DATE(score!$B$1,U3,U4)),"") ->  | U10: =IFERROR(AVERAGEIFS(data!$E$3:$E$501,data!$B$3:$B$501,score!$B$10,data!$A$3:$A$501,">="&DATE(score!$B$1,U3,U4),data!$A$3:$A$501,"<="&DATE(score!$B$1,V3,V4)),"") ->  | V10: =IFERROR(AVERAGEIFS(data!$E$3:$E$501,data!$B$3:$B$501,score!$B$10,data!$A$3:$A$501,">="&DATE(score!$B$1,V3,V4),data!$A$3:$A$501,"<="&DATE(score!$B$1,W3,W4)),"") ->  | W10: =IFERROR(AVERAGEIFS(data!$E$3:$E$501,data!$B$3:$B$501,score!$B$10,data!$A$3:$A$501,">="&DATE(score!$B$1,W3,W4),data!$A$3:$A$501,"<="&DATE(score!$B$1,X3,X4)),"") ->  | X10: =IFERROR(AVERAGEIFS(data!$E$3:$E$501,data!$B$3:$B$501,score!$B$10,data!$A$3:$A$501,">="&DATE(score!$B$1,X3,X4),data!$A$3:$A$501,"<="&DATE(score!$B$1,Y3,Y4)),"") ->  | Y10: =IFERROR(AVERAGEIFS(data!$E$3:$E$501,data!$B$3:$B$501,score!$B$10,data!$A$3:$A$501,">="&DATE(score!$B$1,Y3,Y4),data!$A$3:$A$501,"<="&DATE(score!$B$1,Z3,Z4)),"") ->  | Z10: =IFERROR(AVERAGEIFS(data!$E$3:$E$501,data!$B$3:$B$501,score!$B$10,data!$A$3:$A$501,">="&DATE(score!$B$1,Z3,Z4),data!$A$3:$A$501,"<="&DATE(score!$B$1,AA3,AA4)),"") ->  | AA10: =IFERROR(AVERAGEIFS(data!$E$3:$E$501,data!$B$3:$B$501,score!$B$10,data!$A$3:$A$501,">="&DATE(score!$B$1,AA3,AA4),data!$A$3:$A$501,"<="&DATE(score!$B$1,AB3,AB4)),"") ->  | AB10: =IFERROR(AVERAGEIFS(data!$E$3:$E$501,data!$B$3:$B$501,score!$B$10,data!$A$3:$A$501,">="&DATE(score!$B$1,AB3,AB4),data!$A$3:$A$501,"<="&DATE(score!$B$1,AC3,AC4)),"") ->  | AC10: =IFERROR(AVERAGEIFS(data!$E$3:$E$501,data!$B$3:$B$501,score!$B$10,data!$A$3:$A$501,">="&DATE(score!$B$1,AC3,AC4),data!$A$3:$A$501,"<="&DATE(score!$B$1,AD3,AD4)),"") ->  | AD10: =IFERROR(AVERAGEIFS(data!$E$3:$E$501,data!$B$3:$B$501,score!$B$10,data!$A$3:$A$501,">="&DATE(score!$B$1,AD3,AD4),data!$A$3:$A$501,"<="&DATE(score!$B$1,AE3,AE4)),"") ->  | AE10: =IFERROR(AVERAGEIFS(data!$E$3:$E$501,data!$B$3:$B$501,score!$B$10,data!$A$3:$A$501,">="&DATE(score!$B$1,AE3,AE4),data!$A$3:$A$501,"<="&DATE(score!$B$1,AF3,AF4)),"") ->  | AF10: =IFERROR(AVERAGEIFS(data!$E$3:$E$501,data!$B$3:$B$501,score!$B$10,data!$A$3:$A$501,">="&DATE(score!$B$1,AF3,AF4),data!$A$3:$A$501,"<="&DATE(score!$B$1,AG3,AG4)),"") ->  | AG10: =IFERROR(AVERAGEIFS(data!$E$3:$E$501,data!$B$3:$B$501,score!$B$10,data!$A$3:$A$501,">="&DATE(score!$B$1,AG3,AG4),data!$A$3:$A$501,"<="&DATE(score!$B$1,AH3,AH4)),"") ->  | AH10: =IFERROR(AVERAGEIFS(data!$E$3:$E$501,data!$B$3:$B$501,score!$B$10,data!$A$3:$A$501,">="&DATE(score!$B$1,AH3,AH4),data!$A$3:$A$501,"<="&DATE(score!$B$1,AI3,AI4)),"") ->  | AI10: =IFERROR(AVERAGEIFS(data!$E$3:$E$501,data!$B$3:$B$501,score!$B$10,data!$A$3:$A$501,">="&DATE(score!$B$1,AI3,AI4),data!$A$3:$A$501,"<="&DATE(score!$B$1,AJ3,AJ4)),"") ->  | AJ10: =IFERROR(AVERAGEIFS(data!$E$3:$E$501,data!$B$3:$B$501,score!$B$10,data!$A$3:$A$501,">="&DATE(score!$B$1,AJ3,AJ4),data!$A$3:$A$501,"<="&DATE(score!$B$1,AK3,AK4)),"") ->  | AK10: =IFERROR(AVERAGEIFS(data!$E$3:$E$501,data!$B$3:$B$501,score!$B$10,data!$A$3:$A$501,">="&DATE(score!$B$1,AK3,AK4),data!$A$3:$A$501,"<="&DATE(score!$B$1,AL3,AL4)),"") ->  | AL10: =IFERROR(AVERAGEIFS(data!$E$3:$E$501,data!$B$3:$B$501,score!$B$10,data!$A$3:$A$501,">="&DATE(score!$B$1,AL3,AL4),data!$A$3:$A$501,"<="&DATE(score!$B$1,AM3,AM4)),"") ->  | AM10: =IFERROR(AVERAGEIFS(data!$E$3:$E$501,data!$B$3:$B$501,score!$B$10,data!$A$3:$A$501,">="&DATE(score!$B$1,AM3,AM4),data!$A$3:$A$501,"<="&DATE(score!$B$1,AN3,AN4)),"") ->  | AN10: =IFERROR(AVERAGEIFS(data!$E$3:$E$501,data!$B$3:$B$501,score!$B$10,data!$A$3:$A$501,">="&DATE(score!$B$1,AN3,AN4),data!$A$3:$A$501,"<="&DATE(score!$B$1,AO3,AO4)),"") ->  | AO10: =IFERROR(AVERAGEIFS(data!$E$3:$E$501,data!$B$3:$B$501,score!$B$10,data!$A$3:$A$501,">="&DATE(score!$B$1,AO3,AO4),data!$A$3:$A$501,"<="&DATE(score!$B$1,AP3,AP4)),"") ->  | AP10: =IFERROR(AVERAGEIFS(data!$E$3:$E$501,data!$B$3:$B$501,score!$B$10,data!$A$3:$A$501,">="&DATE(score!$B$1,AP3,AP4),data!$A$3:$A$501,"<="&DATE(score!$B$1,AQ3,AQ4)),"") ->  | AQ10: =IFERROR(AVERAGEIFS(data!$E$3:$E$501,data!$B$3:$B$501,score!$B$10,data!$A$3:$A$501,">="&DATE(score!$B$1,AQ3,AQ4),data!$A$3:$A$501,"<="&DATE(score!$B$1,AR3,AR4)),"") ->  | AR10: =IFERROR(AVERAGEIFS(data!$E$3:$E$501,data!$B$3:$B$501,score!$B$10,data!$A$3:$A$501,">="&DATE(score!$B$1,AR3,AR4),data!$A$3:$A$501,"<="&DATE(score!$B$1,AS3,AS4)),"") ->  | AS10: =IFERROR(AVERAGEIFS(data!$E$3:$E$501,data!$B$3:$B$501,score!$B$10,data!$A$3:$A$501,">="&DATE(score!$B$1,AS3,AS4),data!$A$3:$A$501,"<="&DATE(score!$B$1,AT3,AT4)),"") ->  | AT10: =IFERROR(AVERAGEIFS(data!$E$3:$E$501,data!$B$3:$B$501,score!$B$10,data!$A$3:$A$501,">="&DATE(score!$B$1,AT3,AT4),data!$A$3:$A$501,"<="&DATE(score!$B$1,AU3,AU4)),"") ->  | AU10: =IFERROR(AVERAGEIFS(data!$E$3:$E$501,data!$B$3:$B$501,score!$B$10,data!$A$3:$A$501,">="&DATE(score!$B$1,AU3,AU4),data!$A$3:$A$501,"<="&DATE(score!$B$1,AV3,AV4)),"") ->  | AV10: =IFERROR(AVERAGEIFS(data!$E$3:$E$501,data!$B$3:$B$501,score!$B$10,data!$A$3:$A$501,">="&DATE(score!$B$1,AV3,AV4),data!$A$3:$A$501,"<="&DATE(score!$B$1,AW3,AW4)),"") ->  | AW10: =IFERROR(AVERAGEIFS(data!$E$3:$E$501,data!$B$3:$B$501,score!$B$10,data!$A$3:$A$501,">="&DATE(score!$B$1,AW3,AW4),data!$A$3:$A$501,"<="&DATE(score!$B$1,AX3,AX4)),"") ->  | AX10: =IFERROR(AVERAGEIFS(data!$E$3:$E$501,data!$B$3:$B$501,score!$B$10,data!$A$3:$A$501,">="&DATE(score!$B$1,AX3,AX4),data!$A$3:$A$501,"<="&DATE(score!$B$1,AY3,AY4)),"") ->  | AY10: =IFERROR(AVERAGEIFS(data!$E$3:$E$501,data!$B$3:$B$501,score!$B$10,data!$A$3:$A$501,">="&DATE(score!$B$1,AY3,AY4),data!$A$3:$A$501,"<="&DATE(score!$B$1,AZ3,AZ4)),"") ->  | AZ10: =IFERROR(AVERAGEIFS(data!$E$3:$E$501,data!$B$3:$B$501,score!$B$10,data!$A$3:$A$501,">="&DATE(score!$B$1,AZ3,AZ4),data!$A$3:$A$501,"<="&DATE(score!$B$1,BA3,BA4)),"") ->  | BA10: =IFERROR(AVERAGEIFS(data!$E$3:$E$501,data!$B$3:$B$501,score!$B$10,data!$A$3:$A$501,">="&DATE(score!$B$1,BA3,BA4),data!$A$3:$A$501,"<="&DATE(score!$B$1,BB3,BB4)),"") ->  | BB10: =IFERROR(AVERAGEIFS(data!$E$3:$E$501,data!$B$3:$B$501,score!$B$10,data!$A$3:$A$501,">="&DATE(score!$B$1,BB3,BB4),data!$A$3:$A$501,"<="&DATE(score!$B$1,BC3,BC4)),"") -> 
C11: =IFERROR(AVERAGEIFS(data!$E$3:$E$501,data!$B$3:$B$501,score!$B$11,data!$A$3:$A$501,">="&DATE(score!$B$1,C3,C4),data!$A$3:$A$501,"<="&DATE(score!$B$1,D3,D4)),"") ->  | D11: =IFERROR(AVERAGEIFS(data!$E$3:$E$501,data!$B$3:$B$501,score!$B$11,data!$A$3:$A$501,">="&DATE(score!$B$1,D3,D4),data!$A$3:$A$501,"<="&DATE(score!$B$1,E3,E4)),"") ->  | E11: =IFERROR(AVERAGEIFS(data!$E$3:$E$501,data!$B$3:$B$501,score!$B$11,data!$A$3:$A$501,">="&DATE(score!$B$1,E3,E4),data!$A$3:$A$501,"<="&DATE(score!$B$1,F3,F4)),"") ->  | F11: =IFERROR(AVERAGEIFS(data!$E$3:$E$501,data!$B$3:$B$501,score!$B$11,data!$A$3:$A$501,">="&DATE(score!$B$1,F3,F4),data!$A$3:$A$501,"<="&DATE(score!$B$1,G3,G4)),"") ->  | G11: =IFERROR(AVERAGEIFS(data!$E$3:$E$501,data!$B$3:$B$501,score!$B$11,data!$A$3:$A$501,">="&DATE(score!$B$1,G3,G4),data!$A$3:$A$501,"<="&DATE(score!$B$1,H3,H4)),"") ->  | H11: =IFERROR(AVERAGEIFS(data!$E$3:$E$501,data!$B$3:$B$501,score!$B$11,data!$A$3:$A$501,">="&DATE(score!$B$1,H3,H4),data!$A$3:$A$501,"<="&DATE(score!$B$1,I3,I4)),"") ->  | I11: =IFERROR(AVERAGEIFS(data!$E$3:$E$501,data!$B$3:$B$501,score!$B$11,data!$A$3:$A$501,">="&DATE(score!$B$1,I3,I4),data!$A$3:$A$501,"<="&DATE(score!$B$1,J3,J4)),"") ->  | J11: =IFERROR(AVERAGEIFS(data!$E$3:$E$501,data!$B$3:$B$501,score!$B$11,data!$A$3:$A$501,">="&DATE(score!$B$1,J3,J4),data!$A$3:$A$501,"<="&DATE(score!$B$1,K3,K4)),"") ->  | K11: =IFERROR(AVERAGEIFS(data!$E$3:$E$501,data!$B$3:$B$501,score!$B$11,data!$A$3:$A$501,">="&DATE(score!$B$1,K3,K4),data!$A$3:$A$501,"<="&DATE(score!$B$1,L3,L4)),"") ->  | L11: =IFERROR(AVERAGEIFS(data!$E$3:$E$501,data!$B$3:$B$501,score!$B$11,data!$A$3:$A$501,">="&DATE(score!$B$1,L3,L4),data!$A$3:$A$501,"<="&DATE(score!$B$1,M3,M4)),"") ->  | M11: =IFERROR(AVERAGEIFS(data!$E$3:$E$501,data!$B$3:$B$501,score!$B$11,data!$A$3:$A$501,">="&DATE(score!$B$1,M3,M4),data!$A$3:$A$501,"<="&DATE(score!$B$1,N3,N4)),"") ->  | N11: =IFERROR(AVERAGEIFS(data!$E$3:$E$501,data!$B$3:$B$501,score!$B$11,data!$A$3:$A$501,">="&DATE(score!$B$1,N3,N4),data!$A$3:$A$501,"<="&DATE(score!$B$1,O3,O4)),"") ->  | O11: =IFERROR(AVERAGEIFS(data!$E$3:$E$501,data!$B$3:$B$501,score!$B$11,data!$A$3:$A$501,">="&DATE(score!$B$1,O3,O4),data!$A$3:$A$501,"<="&DATE(score!$B$1,P3,P4)),"") ->  | P11: =IFERROR(AVERAGEIFS(data!$E$3:$E$501,data!$B$3:$B$501,score!$B$11,data!$A$3:$A$501,">="&DATE(score!$B$1,P3,P4),data!$A$3:$A$501,"<="&DATE(score!$B$1,Q3,Q4)),"") ->  | Q11: =IFERROR(AVERAGEIFS(data!$E$3:$E$501,data!$B$3:$B$501,score!$B$11,data!$A$3:$A$501,">="&DATE(score!$B$1,Q3,Q4),data!$A$3:$A$501,"<="&DATE(score!$B$1,R3,R4)),"") ->  | R11: =IFERROR(AVERAGEIFS(data!$E$3:$E$501,data!$B$3:$B$501,score!$B$11,data!$A$3:$A$501,">="&DATE(score!$B$1,R3,R4),data!$A$3:$A$501,"<="&DATE(score!$B$1,S3,S4)),"") ->  | S11: =IFERROR(AVERAGEIFS(data!$E$3:$E$501,data!$B$3:$B$501,score!$B$11,data!$A$3:$A$501,">="&DATE(score!$B$1,S3,S4),data!$A$3:$A$501,"<="&DATE(score!$B$1,T3,T4)),"") ->  | T11: =IFERROR(AVERAGEIFS(data!$E$3:$E$501,data!$B$3:$B$501,score!$B$11,data!$A$3:$A$501,">="&DATE(score!$B$1,T3,T4),data!$A$3:$A$501,"<="&DATE(score!$B$1,U3,U4)),"") ->  | U11: =IFERROR(AVERAGEIFS(data!$E$3:$E$501,data!$B$3:$B$501,score!$B$11,data!$A$3:$A$501,">="&DATE(score!$B$1,U3,U4),data!$A$3:$A$501,"<="&DATE(score!$B$1,V3,V4)),"") ->  | V11: =IFERROR(AVERAGEIFS(data!$E$3:$E$501,data!$B$3:$B$501,score!$B$11,data!$A$3:$A$501,">="&DATE(score!$B$1,V3,V4),data!$A$3:$A$501,"<="&DATE(score!$B$1,W3,W4)),"") ->  | W11: =IFERROR(AVERAGEIFS(data!$E$3:$E$501,data!$B$3:$B$501,score!$B$11,data!$A$3:$A$501,">="&DATE(score!$B$1,W3,W4),data!$A$3:$A$501,"<="&DATE(score!$B$1,X3,X4)),"") ->  | X11: =IFERROR(AVERAGEIFS(data!$E$3:$E$501,data!$B$3:$B$501,score!$B$11,data!$A$3:$A$501,">="&DATE(score!$B$1,X3,X4),data!$A$3:$A$501,"<="&DATE(score!$B$1,Y3,Y4)),"") ->  | Y11: =IFERROR(AVERAGEIFS(data!$E$3:$E$501,data!$B$3:$B$501,score!$B$11,data!$A$3:$A$501,">="&DATE(score!$B$1,Y3,Y4),data!$A$3:$A$501,"<="&DATE(score!$B$1,Z3,Z4)),"") ->  | Z11: =IFERROR(AVERAGEIFS(data!$E$3:$E$501,data!$B$3:$B$501,score!$B$11,data!$A$3:$A$501,">="&DATE(score!$B$1,Z3,Z4),data!$A$3:$A$501,"<="&DATE(score!$B$1,AA3,AA4)),"") ->  | AA11: =IFERROR(AVERAGEIFS(data!$E$3:$E$501,data!$B$3:$B$501,score!$B$11,data!$A$3:$A$501,">="&DATE(score!$B$1,AA3,AA4),data!$A$3:$A$501,"<="&DATE(score!$B$1,AB3,AB4)),"") ->  | AB11: =IFERROR(AVERAGEIFS(data!$E$3:$E$501,data!$B$3:$B$501,score!$B$11,data!$A$3:$A$501,">="&DATE(score!$B$1,AB3,AB4),data!$A$3:$A$501,"<="&DATE(score!$B$1,AC3,AC4)),"") ->  | AC11: =IFERROR(AVERAGEIFS(data!$E$3:$E$501,data!$B$3:$B$501,score!$B$11,data!$A$3:$A$501,">="&DATE(score!$B$1,AC3,AC4),data!$A$3:$A$501,"<="&DATE(score!$B$1,AD3,AD4)),"") ->  | AD11: =IFERROR(AVERAGEIFS(data!$E$3:$E$501,data!$B$3:$B$501,score!$B$11,data!$A$3:$A$501,">="&DATE(score!$B$1,AD3,AD4),data!$A$3:$A$501,"<="&DATE(score!$B$1,AE3,AE4)),"") ->  | AE11: =IFERROR(AVERAGEIFS(data!$E$3:$E$501,data!$B$3:$B$501,score!$B$11,data!$A$3:$A$501,">="&DATE(score!$B$1,AE3,AE4),data!$A$3:$A$501,"<="&DATE(score!$B$1,AF3,AF4)),"") ->  | AF11: =IFERROR(AVERAGEIFS(data!$E$3:$E$501,data!$B$3:$B$501,score!$B$11,data!$A$3:$A$501,">="&DATE(score!$B$1,AF3,AF4),data!$A$3:$A$501,"<="&DATE(score!$B$1,AG3,AG4)),"") ->  | AG11: =IFERROR(AVERAGEIFS(data!$E$3:$E$501,data!$B$3:$B$501,score!$B$11,data!$A$3:$A$501,">="&DATE(score!$B$1,AG3,AG4),data!$A$3:$A$501,"<="&DATE(score!$B$1,AH3,AH4)),"") ->  | AH11: =IFERROR(AVERAGEIFS(data!$E$3:$E$501,data!$B$3:$B$501,score!$B$11,data!$A$3:$A$501,">="&DATE(score!$B$1,AH3,AH4),data!$A$3:$A$501,"<="&DATE(score!$B$1,AI3,AI4)),"") ->  | AI11: =IFERROR(AVERAGEIFS(data!$E$3:$E$501,data!$B$3:$B$501,score!$B$11,data!$A$3:$A$501,">="&DATE(score!$B$1,AI3,AI4),data!$A$3:$A$501,"<="&DATE(score!$B$1,AJ3,AJ4)),"") ->  | AJ11: =IFERROR(AVERAGEIFS(data!$E$3:$E$501,data!$B$3:$B$501,score!$B$11,data!$A$3:$A$501,">="&DATE(score!$B$1,AJ3,AJ4),data!$A$3:$A$501,"<="&DATE(score!$B$1,AK3,AK4)),"") ->  | AK11: =IFERROR(AVERAGEIFS(data!$E$3:$E$501,data!$B$3:$B$501,score!$B$11,data!$A$3:$A$501,">="&DATE(score!$B$1,AK3,AK4),data!$A$3:$A$501,"<="&DATE(score!$B$1,AL3,AL4)),"") ->  | AL11: =IFERROR(AVERAGEIFS(data!$E$3:$E$501,data!$B$3:$B$501,score!$B$11,data!$A$3:$A$501,">="&DATE(score!$B$1,AL3,AL4),data!$A$3:$A$501,"<="&DATE(score!$B$1,AM3,AM4)),"") ->  | AM11: =IFERROR(AVERAGEIFS(data!$E$3:$E$501,data!$B$3:$B$501,score!$B$11,data!$A$3:$A$501,">="&DATE(score!$B$1,AM3,AM4),data!$A$3:$A$501,"<="&DATE(score!$B$1,AN3,AN4)),"") ->  | AN11: =IFERROR(AVERAGEIFS(data!$E$3:$E$501,data!$B$3:$B$501,score!$B$11,data!$A$3:$A$501,">="&DATE(score!$B$1,AN3,AN4),data!$A$3:$A$501,"<="&DATE(score!$B$1,AO3,AO4)),"") ->  | AO11: =IFERROR(AVERAGEIFS(data!$E$3:$E$501,data!$B$3:$B$501,score!$B$11,data!$A$3:$A$501,">="&DATE(score!$B$1,AO3,AO4),data!$A$3:$A$501,"<="&DATE(score!$B$1,AP3,AP4)),"") ->  | AP11: =IFERROR(AVERAGEIFS(data!$E$3:$E$501,data!$B$3:$B$501,score!$B$11,data!$A$3:$A$501,">="&DATE(score!$B$1,AP3,AP4),data!$A$3:$A$501,"<="&DATE(score!$B$1,AQ3,AQ4)),"") ->  | AQ11: =IFERROR(AVERAGEIFS(data!$E$3:$E$501,data!$B$3:$B$501,score!$B$11,data!$A$3:$A$501,">="&DATE(score!$B$1,AQ3,AQ4),data!$A$3:$A$501,"<="&DATE(score!$B$1,AR3,AR4)),"") ->  | AR11: =IFERROR(AVERAGEIFS(data!$E$3:$E$501,data!$B$3:$B$501,score!$B$11,data!$A$3:$A$501,">="&DATE(score!$B$1,AR3,AR4),data!$A$3:$A$501,"<="&DATE(score!$B$1,AS3,AS4)),"") ->  | AS11: =IFERROR(AVERAGEIFS(data!$E$3:$E$501,data!$B$3:$B$501,score!$B$11,data!$A$3:$A$501,">="&DATE(score!$B$1,AS3,AS4),data!$A$3:$A$501,"<="&DATE(score!$B$1,AT3,AT4)),"") ->  | AT11: =IFERROR(AVERAGEIFS(data!$E$3:$E$501,data!$B$3:$B$501,score!$B$11,data!$A$3:$A$501,">="&DATE(score!$B$1,AT3,AT4),data!$A$3:$A$501,"<="&DATE(score!$B$1,AU3,AU4)),"") ->  | AU11: =IFERROR(AVERAGEIFS(data!$E$3:$E$501,data!$B$3:$B$501,score!$B$11,data!$A$3:$A$501,">="&DATE(score!$B$1,AU3,AU4),data!$A$3:$A$501,"<="&DATE(score!$B$1,AV3,AV4)),"") ->  | AV11: =IFERROR(AVERAGEIFS(data!$E$3:$E$501,data!$B$3:$B$501,score!$B$11,data!$A$3:$A$501,">="&DATE(score!$B$1,AV3,AV4),data!$A$3:$A$501,"<="&DATE(score!$B$1,AW3,AW4)),"") ->  | AW11: =IFERROR(AVERAGEIFS(data!$E$3:$E$501,data!$B$3:$B$501,score!$B$11,data!$A$3:$A$501,">="&DATE(score!$B$1,AW3,AW4),data!$A$3:$A$501,"<="&DATE(score!$B$1,AX3,AX4)),"") ->  | AX11: =IFERROR(AVERAGEIFS(data!$E$3:$E$501,data!$B$3:$B$501,score!$B$11,data!$A$3:$A$501,">="&DATE(score!$B$1,AX3,AX4),data!$A$3:$A$501,"<="&DATE(score!$B$1,AY3,AY4)),"") ->  | AY11: =IFERROR(AVERAGEIFS(data!$E$3:$E$501,data!$B$3:$B$501,score!$B$11,data!$A$3:$A$501,">="&DATE(score!$B$1,AY3,AY4),data!$A$3:$A$501,"<="&DATE(score!$B$1,AZ3,AZ4)),"") ->  | AZ11: =IFERROR(AVERAGEIFS(data!$E$3:$E$501,data!$B$3:$B$501,score!$B$11,data!$A$3:$A$501,">="&DATE(score!$B$1,AZ3,AZ4),data!$A$3:$A$501,"<="&DATE(score!$B$1,BA3,BA4)),"") ->  | BA11: =IFERROR(AVERAGEIFS(data!$E$3:$E$501,data!$B$3:$B$501,score!$B$11,data!$A$3:$A$501,">="&DATE(score!$B$1,BA3,BA4),data!$A$3:$A$501,"<="&DATE(score!$B$1,BB3,BB4)),"") ->  | BB11: =IFERROR(AVERAGEIFS(data!$E$3:$E$501,data!$B$3:$B$501,score!$B$11,data!$A$3:$A$501,">="&DATE(score!$B$1,BB3,BB4),data!$A$3:$A$501,"<="&DATE(score!$B$1,BC3,BC4)),"") -> 
C12: =IFERROR(AVERAGEIFS(data!$E$3:$E$501,data!$B$3:$B$501,score!$B$12,data!$A$3:$A$501,">="&DATE(score!$B$1,C3,C4),data!$A$3:$A$501,"<="&DATE(score!$B$1,D3,D4)),"") ->  | D12: =IFERROR(AVERAGEIFS(data!$E$3:$E$501,data!$B$3:$B$501,score!$B$12,data!$A$3:$A$501,">="&DATE(score!$B$1,D3,D4),data!$A$3:$A$501,"<="&DATE(score!$B$1,E3,E4)),"") ->  | E12: =IFERROR(AVERAGEIFS(data!$E$3:$E$501,data!$B$3:$B$501,score!$B$12,data!$A$3:$A$501,">="&DATE(score!$B$1,E3,E4),data!$A$3:$A$501,"<="&DATE(score!$B$1,F3,F4)),"") ->  | F12: =IFERROR(AVERAGEIFS(data!$E$3:$E$501,data!$B$3:$B$501,score!$B$12,data!$A$3:$A$501,">="&DATE(score!$B$1,F3,F4),data!$A$3:$A$501,"<="&DATE(score!$B$1,G3,G4)),"") ->  | G12: =IFERROR(AVERAGEIFS(data!$E$3:$E$501,data!$B$3:$B$501,score!$B$12,data!$A$3:$A$501,">="&DATE(score!$B$1,G3,G4),data!$A$3:$A$501,"<="&DATE(score!$B$1,H3,H4)),"") ->  | H12: =IFERROR(AVERAGEIFS(data!$E$3:$E$501,data!$B$3:$B$501,score!$B$12,data!$A$3:$A$501,">="&DATE(score!$B$1,H3,H4),data!$A$3:$A$501,"<="&DATE(score!$B$1,I3,I4)),"") ->  | I12: =IFERROR(AVERAGEIFS(data!$E$3:$E$501,data!$B$3:$B$501,score!$B$12,data!$A$3:$A$501,">="&DATE(score!$B$1,I3,I4),data!$A$3:$A$501,"<="&DATE(score!$B$1,J3,J4)),"") ->  | J12: =IFERROR(AVERAGEIFS(data!$E$3:$E$501,data!$B$3:$B$501,score!$B$12,data!$A$3:$A$501,">="&DATE(score!$B$1,J3,J4),data!$A$3:$A$501,"<="&DATE(score!$B$1,K3,K4)),"") ->  | K12: =IFERROR(AVERAGEIFS(data!$E$3:$E$501,data!$B$3:$B$501,score!$B$12,data!$A$3:$A$501,">="&DATE(score!$B$1,K3,K4),data!$A$3:$A$501,"<="&DATE(score!$B$1,L3,L4)),"") ->  | L12: =IFERROR(AVERAGEIFS(data!$E$3:$E$501,data!$B$3:$B$501,score!$B$12,data!$A$3:$A$501,">="&DATE(score!$B$1,L3,L4),data!$A$3:$A$501,"<="&DATE(score!$B$1,M3,M4)),"") ->  | M12: =IFERROR(AVERAGEIFS(data!$E$3:$E$501,data!$B$3:$B$501,score!$B$12,data!$A$3:$A$501,">="&DATE(score!$B$1,M3,M4),data!$A$3:$A$501,"<="&DATE(score!$B$1,N3,N4)),"") ->  | N12: =IFERROR(AVERAGEIFS(data!$E$3:$E$501,data!$B$3:$B$501,score!$B$12,data!$A$3:$A$501,">="&DATE(score!$B$1,N3,N4),data!$A$3:$A$501,"<="&DATE(score!$B$1,O3,O4)),"") ->  | O12: =IFERROR(AVERAGEIFS(data!$E$3:$E$501,data!$B$3:$B$501,score!$B$12,data!$A$3:$A$501,">="&DATE(score!$B$1,O3,O4),data!$A$3:$A$501,"<="&DATE(score!$B$1,P3,P4)),"") ->  | P12: =IFERROR(AVERAGEIFS(data!$E$3:$E$501,data!$B$3:$B$501,score!$B$12,data!$A$3:$A$501,">="&DATE(score!$B$1,P3,P4),data!$A$3:$A$501,"<="&DATE(score!$B$1,Q3,Q4)),"") ->  | Q12: =IFERROR(AVERAGEIFS(data!$E$3:$E$501,data!$B$3:$B$501,score!$B$12,data!$A$3:$A$501,">="&DATE(score!$B$1,Q3,Q4),data!$A$3:$A$501,"<="&DATE(score!$B$1,R3,R4)),"") ->  | R12: =IFERROR(AVERAGEIFS(data!$E$3:$E$501,data!$B$3:$B$501,score!$B$12,data!$A$3:$A$501,">="&DATE(score!$B$1,R3,R4),data!$A$3:$A$501,"<="&DATE(score!$B$1,S3,S4)),"") ->  | S12: =IFERROR(AVERAGEIFS(data!$E$3:$E$501,data!$B$3:$B$501,score!$B$12,data!$A$3:$A$501,">="&DATE(score!$B$1,S3,S4),data!$A$3:$A$501,"<="&DATE(score!$B$1,T3,T4)),"") ->  | T12: =IFERROR(AVERAGEIFS(data!$E$3:$E$501,data!$B$3:$B$501,score!$B$12,data!$A$3:$A$501,">="&DATE(score!$B$1,T3,T4),data!$A$3:$A$501,"<="&DATE(score!$B$1,U3,U4)),"") ->  | U12: =IFERROR(AVERAGEIFS(data!$E$3:$E$501,data!$B$3:$B$501,score!$B$12,data!$A$3:$A$501,">="&DATE(score!$B$1,U3,U4),data!$A$3:$A$501,"<="&DATE(score!$B$1,V3,V4)),"") ->  | V12: =IFERROR(AVERAGEIFS(data!$E$3:$E$501,data!$B$3:$B$501,score!$B$12,data!$A$3:$A$501,">="&DATE(score!$B$1,V3,V4),data!$A$3:$A$501,"<="&DATE(score!$B$1,W3,W4)),"") ->  | W12: =IFERROR(AVERAGEIFS(data!$E$3:$E$501,data!$B$3:$B$501,score!$B$12,data!$A$3:$A$501,">="&DATE(score!$B$1,W3,W4),data!$A$3:$A$501,"<="&DATE(score!$B$1,X3,X4)),"") ->  | X12: =IFERROR(AVERAGEIFS(data!$E$3:$E$501,data!$B$3:$B$501,score!$B$12,data!$A$3:$A$501,">="&DATE(score!$B$1,X3,X4),data!$A$3:$A$501,"<="&DATE(score!$B$1,Y3,Y4)),"") ->  | Y12: =IFERROR(AVERAGEIFS(data!$E$3:$E$501,data!$B$3:$B$501,score!$B$12,data!$A$3:$A$501,">="&DATE(score!$B$1,Y3,Y4),data!$A$3:$A$501,"<="&DATE(score!$B$1,Z3,Z4)),"") ->  | Z12: =IFERROR(AVERAGEIFS(data!$E$3:$E$501,data!$B$3:$B$501,score!$B$12,data!$A$3:$A$501,">="&DATE(score!$B$1,Z3,Z4),data!$A$3:$A$501,"<="&DATE(score!$B$1,AA3,AA4)),"") ->  | AA12: =IFERROR(AVERAGEIFS(data!$E$3:$E$501,data!$B$3:$B$501,score!$B$12,data!$A$3:$A$501,">="&DATE(score!$B$1,AA3,AA4),data!$A$3:$A$501,"<="&DATE(score!$B$1,AB3,AB4)),"") ->  | AB12: =IFERROR(AVERAGEIFS(data!$E$3:$E$501,data!$B$3:$B$501,score!$B$12,data!$A$3:$A$501,">="&DATE(score!$B$1,AB3,AB4),data!$A$3:$A$501,"<="&DATE(score!$B$1,AC3,AC4)),"") ->  | AC12: =IFERROR(AVERAGEIFS(data!$E$3:$E$501,data!$B$3:$B$501,score!$B$12,data!$A$3:$A$501,">="&DATE(score!$B$1,AC3,AC4),data!$A$3:$A$501,"<="&DATE(score!$B$1,AD3,AD4)),"") ->  | AD12: =IFERROR(AVERAGEIFS(data!$E$3:$E$501,data!$B$3:$B$501,score!$B$12,data!$A$3:$A$501,">="&DATE(score!$B$1,AD3,AD4),data!$A$3:$A$501,"<="&DATE(score!$B$1,AE3,AE4)),"") ->  | AE12: =IFERROR(AVERAGEIFS(data!$E$3:$E$501,data!$B$3:$B$501,score!$B$12,data!$A$3:$A$501,">="&DATE(score!$B$1,AE3,AE4),data!$A$3:$A$501,"<="&DATE(score!$B$1,AF3,AF4)),"") ->  | AF12: =IFERROR(AVERAGEIFS(data!$E$3:$E$501,data!$B$3:$B$501,score!$B$12,data!$A$3:$A$501,">="&DATE(score!$B$1,AF3,AF4),data!$A$3:$A$501,"<="&DATE(score!$B$1,AG3,AG4)),"") ->  | AG12: =IFERROR(AVERAGEIFS(data!$E$3:$E$501,data!$B$3:$B$501,score!$B$12,data!$A$3:$A$501,">="&DATE(score!$B$1,AG3,AG4),data!$A$3:$A$501,"<="&DATE(score!$B$1,AH3,AH4)),"") ->  | AH12: =IFERROR(AVERAGEIFS(data!$E$3:$E$501,data!$B$3:$B$501,score!$B$12,data!$A$3:$A$501,">="&DATE(score!$B$1,AH3,AH4),data!$A$3:$A$501,"<="&DATE(score!$B$1,AI3,AI4)),"") ->  | AI12: =IFERROR(AVERAGEIFS(data!$E$3:$E$501,data!$B$3:$B$501,score!$B$12,data!$A$3:$A$501,">="&DATE(score!$B$1,AI3,AI4),data!$A$3:$A$501,"<="&DATE(score!$B$1,AJ3,AJ4)),"") ->  | AJ12: =IFERROR(AVERAGEIFS(data!$E$3:$E$501,data!$B$3:$B$501,score!$B$12,data!$A$3:$A$501,">="&DATE(score!$B$1,AJ3,AJ4),data!$A$3:$A$501,"<="&DATE(score!$B$1,AK3,AK4)),"") ->  | AK12: =IFERROR(AVERAGEIFS(data!$E$3:$E$501,data!$B$3:$B$501,score!$B$12,data!$A$3:$A$501,">="&DATE(score!$B$1,AK3,AK4),data!$A$3:$A$501,"<="&DATE(score!$B$1,AL3,AL4)),"") ->  | AL12: =IFERROR(AVERAGEIFS(data!$E$3:$E$501,data!$B$3:$B$501,score!$B$12,data!$A$3:$A$501,">="&DATE(score!$B$1,AL3,AL4),data!$A$3:$A$501,"<="&DATE(score!$B$1,AM3,AM4)),"") ->  | AM12: =IFERROR(AVERAGEIFS(data!$E$3:$E$501,data!$B$3:$B$501,score!$B$12,data!$A$3:$A$501,">="&DATE(score!$B$1,AM3,AM4),data!$A$3:$A$501,"<="&DATE(score!$B$1,AN3,AN4)),"") ->  | AN12: =IFERROR(AVERAGEIFS(data!$E$3:$E$501,data!$B$3:$B$501,score!$B$12,data!$A$3:$A$501,">="&DATE(score!$B$1,AN3,AN4),data!$A$3:$A$501,"<="&DATE(score!$B$1,AO3,AO4)),"") ->  | AO12: =IFERROR(AVERAGEIFS(data!$E$3:$E$501,data!$B$3:$B$501,score!$B$12,data!$A$3:$A$501,">="&DATE(score!$B$1,AO3,AO4),data!$A$3:$A$501,"<="&DATE(score!$B$1,AP3,AP4)),"") ->  | AP12: =IFERROR(AVERAGEIFS(data!$E$3:$E$501,data!$B$3:$B$501,score!$B$12,data!$A$3:$A$501,">="&DATE(score!$B$1,AP3,AP4),data!$A$3:$A$501,"<="&DATE(score!$B$1,AQ3,AQ4)),"") ->  | AQ12: =IFERROR(AVERAGEIFS(data!$E$3:$E$501,data!$B$3:$B$501,score!$B$12,data!$A$3:$A$501,">="&DATE(score!$B$1,AQ3,AQ4),data!$A$3:$A$501,"<="&DATE(score!$B$1,AR3,AR4)),"") ->  | AR12: =IFERROR(AVERAGEIFS(data!$E$3:$E$501,data!$B$3:$B$501,score!$B$12,data!$A$3:$A$501,">="&DATE(score!$B$1,AR3,AR4),data!$A$3:$A$501,"<="&DATE(score!$B$1,AS3,AS4)),"") ->  | AS12: =IFERROR(AVERAGEIFS(data!$E$3:$E$501,data!$B$3:$B$501,score!$B$12,data!$A$3:$A$501,">="&DATE(score!$B$1,AS3,AS4),data!$A$3:$A$501,"<="&DATE(score!$B$1,AT3,AT4)),"") ->  | AT12: =IFERROR(AVERAGEIFS(data!$E$3:$E$501,data!$B$3:$B$501,score!$B$12,data!$A$3:$A$501,">="&DATE(score!$B$1,AT3,AT4),data!$A$3:$A$501,"<="&DATE(score!$B$1,AU3,AU4)),"") ->  | AU12: =IFERROR(AVERAGEIFS(data!$E$3:$E$501,data!$B$3:$B$501,score!$B$12,data!$A$3:$A$501,">="&DATE(score!$B$1,AU3,AU4),data!$A$3:$A$501,"<="&DATE(score!$B$1,AV3,AV4)),"") ->  | AV12: =IFERROR(AVERAGEIFS(data!$E$3:$E$501,data!$B$3:$B$501,score!$B$12,data!$A$3:$A$501,">="&DATE(score!$B$1,AV3,AV4),data!$A$3:$A$501,"<="&DATE(score!$B$1,AW3,AW4)),"") ->  | AW12: =IFERROR(AVERAGEIFS(data!$E$3:$E$501,data!$B$3:$B$501,score!$B$12,data!$A$3:$A$501,">="&DATE(score!$B$1,AW3,AW4),data!$A$3:$A$501,"<="&DATE(score!$B$1,AX3,AX4)),"") ->  | AX12: =IFERROR(AVERAGEIFS(data!$E$3:$E$501,data!$B$3:$B$501,score!$B$12,data!$A$3:$A$501,">="&DATE(score!$B$1,AX3,AX4),data!$A$3:$A$501,"<="&DATE(score!$B$1,AY3,AY4)),"") ->  | AY12: =IFERROR(AVERAGEIFS(data!$E$3:$E$501,data!$B$3:$B$501,score!$B$12,data!$A$3:$A$501,">="&DATE(score!$B$1,AY3,AY4),data!$A$3:$A$501,"<="&DATE(score!$B$1,AZ3,AZ4)),"") ->  | AZ12: =IFERROR(AVERAGEIFS(data!$E$3:$E$501,data!$B$3:$B$501,score!$B$12,data!$A$3:$A$501,">="&DATE(score!$B$1,AZ3,AZ4),data!$A$3:$A$501,"<="&DATE(score!$B$1,BA3,BA4)),"") ->  | BA12: =IFERROR(AVERAGEIFS(data!$E$3:$E$501,data!$B$3:$B$501,score!$B$12,data!$A$3:$A$501,">="&DATE(score!$B$1,BA3,BA4),data!$A$3:$A$501,"<="&DATE(score!$B$1,BB3,BB4)),"") ->  | BB12: =IFERROR(AVERAGEIFS(data!$E$3:$E$501,data!$B$3:$B$501,score!$B$12,data!$A$3:$A$501,">="&DATE(score!$B$1,BB3,BB4),data!$A$3:$A$501,"<="&DATE(score!$B$1,BC3,BC4)),"") -> 
C13: =IFERROR(AVERAGEIFS(data!$E$3:$E$501,data!$B$3:$B$501,score!$B$13,data!$A$3:$A$501,">="&DATE(score!$B$1,C3,C4),data!$A$3:$A$501,"<="&DATE(score!$B$1,D3,D4)),"") ->  | D13: =IFERROR(AVERAGEIFS(data!$E$3:$E$501,data!$B$3:$B$501,score!$B$13,data!$A$3:$A$501,">="&DATE(score!$B$1,D3,D4),data!$A$3:$A$501,"<="&DATE(score!$B$1,E3,E4)),"") ->  | E13: =IFERROR(AVERAGEIFS(data!$E$3:$E$501,data!$B$3:$B$501,score!$B$13,data!$A$3:$A$501,">="&DATE(score!$B$1,E3,E4),data!$A$3:$A$501,"<="&DATE(score!$B$1,F3,F4)),"") ->  | F13: =IFERROR(AVERAGEIFS(data!$E$3:$E$501,data!$B$3:$B$501,score!$B$13,data!$A$3:$A$501,">="&DATE(score!$B$1,F3,F4),data!$A$3:$A$501,"<="&DATE(score!$B$1,G3,G4)),"") ->  | G13: =IFERROR(AVERAGEIFS(data!$E$3:$E$501,data!$B$3:$B$501,score!$B$13,data!$A$3:$A$501,">="&DATE(score!$B$1,G3,G4),data!$A$3:$A$501,"<="&DATE(score!$B$1,H3,H4)),"") ->  | H13: =IFERROR(AVERAGEIFS(data!$E$3:$E$501,data!$B$3:$B$501,score!$B$13,data!$A$3:$A$501,">="&DATE(score!$B$1,H3,H4),data!$A$3:$A$501,"<="&DATE(score!$B$1,I3,I4)),"") ->  | I13: =IFERROR(AVERAGEIFS(data!$E$3:$E$501,data!$B$3:$B$501,score!$B$13,data!$A$3:$A$501,">="&DATE(score!$B$1,I3,I4),data!$A$3:$A$501,"<="&DATE(score!$B$1,J3,J4)),"") ->  | J13: =IFERROR(AVERAGEIFS(data!$E$3:$E$501,data!$B$3:$B$501,score!$B$13,data!$A$3:$A$501,">="&DATE(score!$B$1,J3,J4),data!$A$3:$A$501,"<="&DATE(score!$B$1,K3,K4)),"") ->  | K13: =IFERROR(AVERAGEIFS(data!$E$3:$E$501,data!$B$3:$B$501,score!$B$13,data!$A$3:$A$501,">="&DATE(score!$B$1,K3,K4),data!$A$3:$A$501,"<="&DATE(score!$B$1,L3,L4)),"") ->  | L13: =IFERROR(AVERAGEIFS(data!$E$3:$E$501,data!$B$3:$B$501,score!$B$13,data!$A$3:$A$501,">="&DATE(score!$B$1,L3,L4),data!$A$3:$A$501,"<="&DATE(score!$B$1,M3,M4)),"") ->  | M13: =IFERROR(AVERAGEIFS(data!$E$3:$E$501,data!$B$3:$B$501,score!$B$13,data!$A$3:$A$501,">="&DATE(score!$B$1,M3,M4),data!$A$3:$A$501,"<="&DATE(score!$B$1,N3,N4)),"") ->  | N13: =IFERROR(AVERAGEIFS(data!$E$3:$E$501,data!$B$3:$B$501,score!$B$13,data!$A$3:$A$501,">="&DATE(score!$B$1,N3,N4),data!$A$3:$A$501,"<="&DATE(score!$B$1,O3,O4)),"") ->  | O13: =IFERROR(AVERAGEIFS(data!$E$3:$E$501,data!$B$3:$B$501,score!$B$13,data!$A$3:$A$501,">="&DATE(score!$B$1,O3,O4),data!$A$3:$A$501,"<="&DATE(score!$B$1,P3,P4)),"") ->  | P13: =IFERROR(AVERAGEIFS(data!$E$3:$E$501,data!$B$3:$B$501,score!$B$13,data!$A$3:$A$501,">="&DATE(score!$B$1,P3,P4),data!$A$3:$A$501,"<="&DATE(score!$B$1,Q3,Q4)),"") ->  | Q13: =IFERROR(AVERAGEIFS(data!$E$3:$E$501,data!$B$3:$B$501,score!$B$13,data!$A$3:$A$501,">="&DATE(score!$B$1,Q3,Q4),data!$A$3:$A$501,"<="&DATE(score!$B$1,R3,R4)),"") ->  | R13: =IFERROR(AVERAGEIFS(data!$E$3:$E$501,data!$B$3:$B$501,score!$B$13,data!$A$3:$A$501,">="&DATE(score!$B$1,R3,R4),data!$A$3:$A$501,"<="&DATE(score!$B$1,S3,S4)),"") ->  | S13: =IFERROR(AVERAGEIFS(data!$E$3:$E$501,data!$B$3:$B$501,score!$B$13,data!$A$3:$A$501,">="&DATE(score!$B$1,S3,S4),data!$A$3:$A$501,"<="&DATE(score!$B$1,T3,T4)),"") ->  | T13: =IFERROR(AVERAGEIFS(data!$E$3:$E$501,data!$B$3:$B$501,score!$B$13,data!$A$3:$A$501,">="&DATE(score!$B$1,T3,T4),data!$A$3:$A$501,"<="&DATE(score!$B$1,U3,U4)),"") ->  | U13: =IFERROR(AVERAGEIFS(data!$E$3:$E$501,data!$B$3:$B$501,score!$B$13,data!$A$3:$A$501,">="&DATE(score!$B$1,U3,U4),data!$A$3:$A$501,"<="&DATE(score!$B$1,V3,V4)),"") ->  | V13: =IFERROR(AVERAGEIFS(data!$E$3:$E$501,data!$B$3:$B$501,score!$B$13,data!$A$3:$A$501,">="&DATE(score!$B$1,V3,V4),data!$A$3:$A$501,"<="&DATE(score!$B$1,W3,W4)),"") ->  | W13: =IFERROR(AVERAGEIFS(data!$E$3:$E$501,data!$B$3:$B$501,score!$B$13,data!$A$3:$A$501,">="&DATE(score!$B$1,W3,W4),data!$A$3:$A$501,"<="&DATE(score!$B$1,X3,X4)),"") ->  | X13: =IFERROR(AVERAGEIFS(data!$E$3:$E$501,data!$B$3:$B$501,score!$B$13,data!$A$3:$A$501,">="&DATE(score!$B$1,X3,X4),data!$A$3:$A$501,"<="&DATE(score!$B$1,Y3,Y4)),"") ->  | Y13: =IFERROR(AVERAGEIFS(data!$E$3:$E$501,data!$B$3:$B$501,score!$B$13,data!$A$3:$A$501,">="&DATE(score!$B$1,Y3,Y4),data!$A$3:$A$501,"<="&DATE(score!$B$1,Z3,Z4)),"") ->  | Z13: =IFERROR(AVERAGEIFS(data!$E$3:$E$501,data!$B$3:$B$501,score!$B$13,data!$A$3:$A$501,">="&DATE(score!$B$1,Z3,Z4),data!$A$3:$A$501,"<="&DATE(score!$B$1,AA3,AA4)),"") ->  | AA13: =IFERROR(AVERAGEIFS(data!$E$3:$E$501,data!$B$3:$B$501,score!$B$13,data!$A$3:$A$501,">="&DATE(score!$B$1,AA3,AA4),data!$A$3:$A$501,"<="&DATE(score!$B$1,AB3,AB4)),"") ->  | AB13: =IFERROR(AVERAGEIFS(data!$E$3:$E$501,data!$B$3:$B$501,score!$B$13,data!$A$3:$A$501,">="&DATE(score!$B$1,AB3,AB4),data!$A$3:$A$501,"<="&DATE(score!$B$1,AC3,AC4)),"") ->  | AC13: =IFERROR(AVERAGEIFS(data!$E$3:$E$501,data!$B$3:$B$501,score!$B$13,data!$A$3:$A$501,">="&DATE(score!$B$1,AC3,AC4),data!$A$3:$A$501,"<="&DATE(score!$B$1,AD3,AD4)),"") ->  | AD13: =IFERROR(AVERAGEIFS(data!$E$3:$E$501,data!$B$3:$B$501,score!$B$13,data!$A$3:$A$501,">="&DATE(score!$B$1,AD3,AD4),data!$A$3:$A$501,"<="&DATE(score!$B$1,AE3,AE4)),"") ->  | AE13: =IFERROR(AVERAGEIFS(data!$E$3:$E$501,data!$B$3:$B$501,score!$B$13,data!$A$3:$A$501,">="&DATE(score!$B$1,AE3,AE4),data!$A$3:$A$501,"<="&DATE(score!$B$1,AF3,AF4)),"") ->  | AF13: =IFERROR(AVERAGEIFS(data!$E$3:$E$501,data!$B$3:$B$501,score!$B$13,data!$A$3:$A$501,">="&DATE(score!$B$1,AF3,AF4),data!$A$3:$A$501,"<="&DATE(score!$B$1,AG3,AG4)),"") ->  | AG13: =IFERROR(AVERAGEIFS(data!$E$3:$E$501,data!$B$3:$B$501,score!$B$13,data!$A$3:$A$501,">="&DATE(score!$B$1,AG3,AG4),data!$A$3:$A$501,"<="&DATE(score!$B$1,AH3,AH4)),"") ->  | AH13: =IFERROR(AVERAGEIFS(data!$E$3:$E$501,data!$B$3:$B$501,score!$B$13,data!$A$3:$A$501,">="&DATE(score!$B$1,AH3,AH4),data!$A$3:$A$501,"<="&DATE(score!$B$1,AI3,AI4)),"") ->  | AI13: =IFERROR(AVERAGEIFS(data!$E$3:$E$501,data!$B$3:$B$501,score!$B$13,data!$A$3:$A$501,">="&DATE(score!$B$1,AI3,AI4),data!$A$3:$A$501,"<="&DATE(score!$B$1,AJ3,AJ4)),"") ->  | AJ13: =IFERROR(AVERAGEIFS(data!$E$3:$E$501,data!$B$3:$B$501,score!$B$13,data!$A$3:$A$501,">="&DATE(score!$B$1,AJ3,AJ4),data!$A$3:$A$501,"<="&DATE(score!$B$1,AK3,AK4)),"") ->  | AK13: =IFERROR(AVERAGEIFS(data!$E$3:$E$501,data!$B$3:$B$501,score!$B$13,data!$A$3:$A$501,">="&DATE(score!$B$1,AK3,AK4),data!$A$3:$A$501,"<="&DATE(score!$B$1,AL3,AL4)),"") ->  | AL13: =IFERROR(AVERAGEIFS(data!$E$3:$E$501,data!$B$3:$B$501,score!$B$13,data!$A$3:$A$501,">="&DATE(score!$B$1,AL3,AL4),data!$A$3:$A$501,"<="&DATE(score!$B$1,AM3,AM4)),"") ->  | AM13: =IFERROR(AVERAGEIFS(data!$E$3:$E$501,data!$B$3:$B$501,score!$B$13,data!$A$3:$A$501,">="&DATE(score!$B$1,AM3,AM4),data!$A$3:$A$501,"<="&DATE(score!$B$1,AN3,AN4)),"") ->  | AN13: =IFERROR(AVERAGEIFS(data!$E$3:$E$501,data!$B$3:$B$501,score!$B$13,data!$A$3:$A$501,">="&DATE(score!$B$1,AN3,AN4),data!$A$3:$A$501,"<="&DATE(score!$B$1,AO3,AO4)),"") ->  | AO13: =IFERROR(AVERAGEIFS(data!$E$3:$E$501,data!$B$3:$B$501,score!$B$13,data!$A$3:$A$501,">="&DATE(score!$B$1,AO3,AO4),data!$A$3:$A$501,"<="&DATE(score!$B$1,AP3,AP4)),"") ->  | AP13: =IFERROR(AVERAGEIFS(data!$E$3:$E$501,data!$B$3:$B$501,score!$B$13,data!$A$3:$A$501,">="&DATE(score!$B$1,AP3,AP4),data!$A$3:$A$501,"<="&DATE(score!$B$1,AQ3,AQ4)),"") ->  | AQ13: =IFERROR(AVERAGEIFS(data!$E$3:$E$501,data!$B$3:$B$501,score!$B$13,data!$A$3:$A$501,">="&DATE(score!$B$1,AQ3,AQ4),data!$A$3:$A$501,"<="&DATE(score!$B$1,AR3,AR4)),"") ->  | AR13: =IFERROR(AVERAGEIFS(data!$E$3:$E$501,data!$B$3:$B$501,score!$B$13,data!$A$3:$A$501,">="&DATE(score!$B$1,AR3,AR4),data!$A$3:$A$501,"<="&DATE(score!$B$1,AS3,AS4)),"") ->  | AS13: =IFERROR(AVERAGEIFS(data!$E$3:$E$501,data!$B$3:$B$501,score!$B$13,data!$A$3:$A$501,">="&DATE(score!$B$1,AS3,AS4),data!$A$3:$A$501,"<="&DATE(score!$B$1,AT3,AT4)),"") ->  | AT13: =IFERROR(AVERAGEIFS(data!$E$3:$E$501,data!$B$3:$B$501,score!$B$13,data!$A$3:$A$501,">="&DATE(score!$B$1,AT3,AT4),data!$A$3:$A$501,"<="&DATE(score!$B$1,AU3,AU4)),"") ->  | AU13: =IFERROR(AVERAGEIFS(data!$E$3:$E$501,data!$B$3:$B$501,score!$B$13,data!$A$3:$A$501,">="&DATE(score!$B$1,AU3,AU4),data!$A$3:$A$501,"<="&DATE(score!$B$1,AV3,AV4)),"") ->  | AV13: =IFERROR(AVERAGEIFS(data!$E$3:$E$501,data!$B$3:$B$501,score!$B$13,data!$A$3:$A$501,">="&DATE(score!$B$1,AV3,AV4),data!$A$3:$A$501,"<="&DATE(score!$B$1,AW3,AW4)),"") ->  | AW13: =IFERROR(AVERAGEIFS(data!$E$3:$E$501,data!$B$3:$B$501,score!$B$13,data!$A$3:$A$501,">="&DATE(score!$B$1,AW3,AW4),data!$A$3:$A$501,"<="&DATE(score!$B$1,AX3,AX4)),"") ->  | AX13: =IFERROR(AVERAGEIFS(data!$E$3:$E$501,data!$B$3:$B$501,score!$B$13,data!$A$3:$A$501,">="&DATE(score!$B$1,AX3,AX4),data!$A$3:$A$501,"<="&DATE(score!$B$1,AY3,AY4)),"") ->  | AY13: =IFERROR(AVERAGEIFS(data!$E$3:$E$501,data!$B$3:$B$501,score!$B$13,data!$A$3:$A$501,">="&DATE(score!$B$1,AY3,AY4),data!$A$3:$A$501,"<="&DATE(score!$B$1,AZ3,AZ4)),"") ->  | AZ13: =IFERROR(AVERAGEIFS(data!$E$3:$E$501,data!$B$3:$B$501,score!$B$13,data!$A$3:$A$501,">="&DATE(score!$B$1,AZ3,AZ4),data!$A$3:$A$501,"<="&DATE(score!$B$1,BA3,BA4)),"") ->  | BA13: =IFERROR(AVERAGEIFS(data!$E$3:$E$501,data!$B$3:$B$501,score!$B$13,data!$A$3:$A$501,">="&DATE(score!$B$1,BA3,BA4),data!$A$3:$A$501,"<="&DATE(score!$B$1,BB3,BB4)),"") ->  | BB13: =IFERROR(AVERAGEIFS(data!$E$3:$E$501,data!$B$3:$B$501,score!$B$13,data!$A$3:$A$501,">="&DATE(score!$B$1,BB3,BB4),data!$A$3:$A$501,"<="&DATE(score!$B$1,BC3,BC4)),"") -> 
C14: =IFERROR(AVERAGEIFS(data!$E$3:$E$501,data!$B$3:$B$501,score!$B$14,data!$A$3:$A$501,">="&DATE(score!$B$1,C3,C4),data!$A$3:$A$501,"<="&DATE(score!$B$1,D3,D4)),"") ->  | D14: =IFERROR(AVERAGEIFS(data!$E$3:$E$501,data!$B$3:$B$501,score!$B$14,data!$A$3:$A$501,">="&DATE(score!$B$1,D3,D4),data!$A$3:$A$501,"<="&DATE(score!$B$1,E3,E4)),"") ->  | E14: =IFERROR(AVERAGEIFS(data!$E$3:$E$501,data!$B$3:$B$501,score!$B$14,data!$A$3:$A$501,">="&DATE(score!$B$1,E3,E4),data!$A$3:$A$501,"<="&DATE(score!$B$1,F3,F4)),"") ->  | F14: =IFERROR(AVERAGEIFS(data!$E$3:$E$501,data!$B$3:$B$501,score!$B$14,data!$A$3:$A$501,">="&DATE(score!$B$1,F3,F4),data!$A$3:$A$501,"<="&DATE(score!$B$1,G3,G4)),"") ->  | G14: =IFERROR(AVERAGEIFS(data!$E$3:$E$501,data!$B$3:$B$501,score!$B$14,data!$A$3:$A$501,">="&DATE(score!$B$1,G3,G4),data!$A$3:$A$501,"<="&DATE(score!$B$1,H3,H4)),"") ->  | H14: =IFERROR(AVERAGEIFS(data!$E$3:$E$501,data!$B$3:$B$501,score!$B$14,data!$A$3:$A$501,">="&DATE(score!$B$1,H3,H4),data!$A$3:$A$501,"<="&DATE(score!$B$1,I3,I4)),"") ->  | I14: =IFERROR(AVERAGEIFS(data!$E$3:$E$501,data!$B$3:$B$501,score!$B$14,data!$A$3:$A$501,">="&DATE(score!$B$1,I3,I4),data!$A$3:$A$501,"<="&DATE(score!$B$1,J3,J4)),"") ->  | J14: =IFERROR(AVERAGEIFS(data!$E$3:$E$501,data!$B$3:$B$501,score!$B$14,data!$A$3:$A$501,">="&DATE(score!$B$1,J3,J4),data!$A$3:$A$501,"<="&DATE(score!$B$1,K3,K4)),"") ->  | K14: =IFERROR(AVERAGEIFS(data!$E$3:$E$501,data!$B$3:$B$501,score!$B$14,data!$A$3:$A$501,">="&DATE(score!$B$1,K3,K4),data!$A$3:$A$501,"<="&DATE(score!$B$1,L3,L4)),"") ->  | L14: =IFERROR(AVERAGEIFS(data!$E$3:$E$501,data!$B$3:$B$501,score!$B$14,data!$A$3:$A$501,">="&DATE(score!$B$1,L3,L4),data!$A$3:$A$501,"<="&DATE(score!$B$1,M3,M4)),"") ->  | M14: =IFERROR(AVERAGEIFS(data!$E$3:$E$501,data!$B$3:$B$501,score!$B$14,data!$A$3:$A$501,">="&DATE(score!$B$1,M3,M4),data!$A$3:$A$501,"<="&DATE(score!$B$1,N3,N4)),"") ->  | N14: =IFERROR(AVERAGEIFS(data!$E$3:$E$501,data!$B$3:$B$501,score!$B$14,data!$A$3:$A$501,">="&DATE(score!$B$1,N3,N4),data!$A$3:$A$501,"<="&DATE(score!$B$1,O3,O4)),"") ->  | O14: =IFERROR(AVERAGEIFS(data!$E$3:$E$501,data!$B$3:$B$501,score!$B$14,data!$A$3:$A$501,">="&DATE(score!$B$1,O3,O4),data!$A$3:$A$501,"<="&DATE(score!$B$1,P3,P4)),"") ->  | P14: =IFERROR(AVERAGEIFS(data!$E$3:$E$501,data!$B$3:$B$501,score!$B$14,data!$A$3:$A$501,">="&DATE(score!$B$1,P3,P4),data!$A$3:$A$501,"<="&DATE(score!$B$1,Q3,Q4)),"") ->  | Q14: =IFERROR(AVERAGEIFS(data!$E$3:$E$501,data!$B$3:$B$501,score!$B$14,data!$A$3:$A$501,">="&DATE(score!$B$1,Q3,Q4),data!$A$3:$A$501,"<="&DATE(score!$B$1,R3,R4)),"") ->  | R14: =IFERROR(AVERAGEIFS(data!$E$3:$E$501,data!$B$3:$B$501,score!$B$14,data!$A$3:$A$501,">="&DATE(score!$B$1,R3,R4),data!$A$3:$A$501,"<="&DATE(score!$B$1,S3,S4)),"") ->  | S14: =IFERROR(AVERAGEIFS(data!$E$3:$E$501,data!$B$3:$B$501,score!$B$14,data!$A$3:$A$501,">="&DATE(score!$B$1,S3,S4),data!$A$3:$A$501,"<="&DATE(score!$B$1,T3,T4)),"") ->  | T14: =IFERROR(AVERAGEIFS(data!$E$3:$E$501,data!$B$3:$B$501,score!$B$14,data!$A$3:$A$501,">="&DATE(score!$B$1,T3,T4),data!$A$3:$A$501,"<="&DATE(score!$B$1,U3,U4)),"") ->  | U14: =IFERROR(AVERAGEIFS(data!$E$3:$E$501,data!$B$3:$B$501,score!$B$14,data!$A$3:$A$501,">="&DATE(score!$B$1,U3,U4),data!$A$3:$A$501,"<="&DATE(score!$B$1,V3,V4)),"") ->  | V14: =IFERROR(AVERAGEIFS(data!$E$3:$E$501,data!$B$3:$B$501,score!$B$14,data!$A$3:$A$501,">="&DATE(score!$B$1,V3,V4),data!$A$3:$A$501,"<="&DATE(score!$B$1,W3,W4)),"") ->  | W14: =IFERROR(AVERAGEIFS(data!$E$3:$E$501,data!$B$3:$B$501,score!$B$14,data!$A$3:$A$501,">="&DATE(score!$B$1,W3,W4),data!$A$3:$A$501,"<="&DATE(score!$B$1,X3,X4)),"") ->  | X14: =IFERROR(AVERAGEIFS(data!$E$3:$E$501,data!$B$3:$B$501,score!$B$14,data!$A$3:$A$501,">="&DATE(score!$B$1,X3,X4),data!$A$3:$A$501,"<="&DATE(score!$B$1,Y3,Y4)),"") ->  | Y14: =IFERROR(AVERAGEIFS(data!$E$3:$E$501,data!$B$3:$B$501,score!$B$14,data!$A$3:$A$501,">="&DATE(score!$B$1,Y3,Y4),data!$A$3:$A$501,"<="&DATE(score!$B$1,Z3,Z4)),"") ->  | Z14: =IFERROR(AVERAGEIFS(data!$E$3:$E$501,data!$B$3:$B$501,score!$B$14,data!$A$3:$A$501,">="&DATE(score!$B$1,Z3,Z4),data!$A$3:$A$501,"<="&DATE(score!$B$1,AA3,AA4)),"") ->  | AA14: =IFERROR(AVERAGEIFS(data!$E$3:$E$501,data!$B$3:$B$501,score!$B$14,data!$A$3:$A$501,">="&DATE(score!$B$1,AA3,AA4),data!$A$3:$A$501,"<="&DATE(score!$B$1,AB3,AB4)),"") ->  | AB14: =IFERROR(AVERAGEIFS(data!$E$3:$E$501,data!$B$3:$B$501,score!$B$14,data!$A$3:$A$501,">="&DATE(score!$B$1,AB3,AB4),data!$A$3:$A$501,"<="&DATE(score!$B$1,AC3,AC4)),"") ->  | AC14: =IFERROR(AVERAGEIFS(data!$E$3:$E$501,data!$B$3:$B$501,score!$B$14,data!$A$3:$A$501,">="&DATE(score!$B$1,AC3,AC4),data!$A$3:$A$501,"<="&DATE(score!$B$1,AD3,AD4)),"") ->  | AD14: =IFERROR(AVERAGEIFS(data!$E$3:$E$501,data!$B$3:$B$501,score!$B$14,data!$A$3:$A$501,">="&DATE(score!$B$1,AD3,AD4),data!$A$3:$A$501,"<="&DATE(score!$B$1,AE3,AE4)),"") ->  | AE14: =IFERROR(AVERAGEIFS(data!$E$3:$E$501,data!$B$3:$B$501,score!$B$14,data!$A$3:$A$501,">="&DATE(score!$B$1,AE3,AE4),data!$A$3:$A$501,"<="&DATE(score!$B$1,AF3,AF4)),"") ->  | AF14: =IFERROR(AVERAGEIFS(data!$E$3:$E$501,data!$B$3:$B$501,score!$B$14,data!$A$3:$A$501,">="&DATE(score!$B$1,AF3,AF4),data!$A$3:$A$501,"<="&DATE(score!$B$1,AG3,AG4)),"") ->  | AG14: =IFERROR(AVERAGEIFS(data!$E$3:$E$501,data!$B$3:$B$501,score!$B$14,data!$A$3:$A$501,">="&DATE(score!$B$1,AG3,AG4),data!$A$3:$A$501,"<="&DATE(score!$B$1,AH3,AH4)),"") ->  | AH14: =IFERROR(AVERAGEIFS(data!$E$3:$E$501,data!$B$3:$B$501,score!$B$14,data!$A$3:$A$501,">="&DATE(score!$B$1,AH3,AH4),data!$A$3:$A$501,"<="&DATE(score!$B$1,AI3,AI4)),"") ->  | AI14: =IFERROR(AVERAGEIFS(data!$E$3:$E$501,data!$B$3:$B$501,score!$B$14,data!$A$3:$A$501,">="&DATE(score!$B$1,AI3,AI4),data!$A$3:$A$501,"<="&DATE(score!$B$1,AJ3,AJ4)),"") ->  | AJ14: =IFERROR(AVERAGEIFS(data!$E$3:$E$501,data!$B$3:$B$501,score!$B$14,data!$A$3:$A$501,">="&DATE(score!$B$1,AJ3,AJ4),data!$A$3:$A$501,"<="&DATE(score!$B$1,AK3,AK4)),"") ->  | AK14: =IFERROR(AVERAGEIFS(data!$E$3:$E$501,data!$B$3:$B$501,score!$B$14,data!$A$3:$A$501,">="&DATE(score!$B$1,AK3,AK4),data!$A$3:$A$501,"<="&DATE(score!$B$1,AL3,AL4)),"") ->  | AL14: =IFERROR(AVERAGEIFS(data!$E$3:$E$501,data!$B$3:$B$501,score!$B$14,data!$A$3:$A$501,">="&DATE(score!$B$1,AL3,AL4),data!$A$3:$A$501,"<="&DATE(score!$B$1,AM3,AM4)),"") ->  | AM14: =IFERROR(AVERAGEIFS(data!$E$3:$E$501,data!$B$3:$B$501,score!$B$14,data!$A$3:$A$501,">="&DATE(score!$B$1,AM3,AM4),data!$A$3:$A$501,"<="&DATE(score!$B$1,AN3,AN4)),"") ->  | AN14: =IFERROR(AVERAGEIFS(data!$E$3:$E$501,data!$B$3:$B$501,score!$B$14,data!$A$3:$A$501,">="&DATE(score!$B$1,AN3,AN4),data!$A$3:$A$501,"<="&DATE(score!$B$1,AO3,AO4)),"") ->  | AO14: =IFERROR(AVERAGEIFS(data!$E$3:$E$501,data!$B$3:$B$501,score!$B$14,data!$A$3:$A$501,">="&DATE(score!$B$1,AO3,AO4),data!$A$3:$A$501,"<="&DATE(score!$B$1,AP3,AP4)),"") ->  | AP14: =IFERROR(AVERAGEIFS(data!$E$3:$E$501,data!$B$3:$B$501,score!$B$14,data!$A$3:$A$501,">="&DATE(score!$B$1,AP3,AP4),data!$A$3:$A$501,"<="&DATE(score!$B$1,AQ3,AQ4)),"") ->  | AQ14: =IFERROR(AVERAGEIFS(data!$E$3:$E$501,data!$B$3:$B$501,score!$B$14,data!$A$3:$A$501,">="&DATE(score!$B$1,AQ3,AQ4),data!$A$3:$A$501,"<="&DATE(score!$B$1,AR3,AR4)),"") ->  | AR14: =IFERROR(AVERAGEIFS(data!$E$3:$E$501,data!$B$3:$B$501,score!$B$14,data!$A$3:$A$501,">="&DATE(score!$B$1,AR3,AR4),data!$A$3:$A$501,"<="&DATE(score!$B$1,AS3,AS4)),"") ->  | AS14: =IFERROR(AVERAGEIFS(data!$E$3:$E$501,data!$B$3:$B$501,score!$B$14,data!$A$3:$A$501,">="&DATE(score!$B$1,AS3,AS4),data!$A$3:$A$501,"<="&DATE(score!$B$1,AT3,AT4)),"") ->  | AT14: =IFERROR(AVERAGEIFS(data!$E$3:$E$501,data!$B$3:$B$501,score!$B$14,data!$A$3:$A$501,">="&DATE(score!$B$1,AT3,AT4),data!$A$3:$A$501,"<="&DATE(score!$B$1,AU3,AU4)),"") ->  | AU14: =IFERROR(AVERAGEIFS(data!$E$3:$E$501,data!$B$3:$B$501,score!$B$14,data!$A$3:$A$501,">="&DATE(score!$B$1,AU3,AU4),data!$A$3:$A$501,"<="&DATE(score!$B$1,AV3,AV4)),"") ->  | AV14: =IFERROR(AVERAGEIFS(data!$E$3:$E$501,data!$B$3:$B$501,score!$B$14,data!$A$3:$A$501,">="&DATE(score!$B$1,AV3,AV4),data!$A$3:$A$501,"<="&DATE(score!$B$1,AW3,AW4)),"") ->  | AW14: =IFERROR(AVERAGEIFS(data!$E$3:$E$501,data!$B$3:$B$501,score!$B$14,data!$A$3:$A$501,">="&DATE(score!$B$1,AW3,AW4),data!$A$3:$A$501,"<="&DATE(score!$B$1,AX3,AX4)),"") ->  | AX14: =IFERROR(AVERAGEIFS(data!$E$3:$E$501,data!$B$3:$B$501,score!$B$14,data!$A$3:$A$501,">="&DATE(score!$B$1,AX3,AX4),data!$A$3:$A$501,"<="&DATE(score!$B$1,AY3,AY4)),"") ->  | AY14: =IFERROR(AVERAGEIFS(data!$E$3:$E$501,data!$B$3:$B$501,score!$B$14,data!$A$3:$A$501,">="&DATE(score!$B$1,AY3,AY4),data!$A$3:$A$501,"<="&DATE(score!$B$1,AZ3,AZ4)),"") ->  | AZ14: =IFERROR(AVERAGEIFS(data!$E$3:$E$501,data!$B$3:$B$501,score!$B$14,data!$A$3:$A$501,">="&DATE(score!$B$1,AZ3,AZ4),data!$A$3:$A$501,"<="&DATE(score!$B$1,BA3,BA4)),"") ->  | BA14: =IFERROR(AVERAGEIFS(data!$E$3:$E$501,data!$B$3:$B$501,score!$B$14,data!$A$3:$A$501,">="&DATE(score!$B$1,BA3,BA4),data!$A$3:$A$501,"<="&DATE(score!$B$1,BB3,BB4)),"") ->  | BB14: =IFERROR(AVERAGEIFS(data!$E$3:$E$501,data!$B$3:$B$501,score!$B$14,data!$A$3:$A$501,">="&DATE(score!$B$1,BB3,BB4),data!$A$3:$A$501,"<="&DATE(score!$B$1,BC3,BC4)),"") -> 
C15: =IFERROR(AVERAGEIFS(data!$E$3:$E$501,data!$B$3:$B$501,score!$B$15,data!$A$3:$A$501,">="&DATE(score!$B$1,C3,C4),data!$A$3:$A$501,"<="&DATE(score!$B$1,D3,D4)),"") ->  | D15: =IFERROR(AVERAGEIFS(data!$E$3:$E$501,data!$B$3:$B$501,score!$B$15,data!$A$3:$A$501,">="&DATE(score!$B$1,D3,D4),data!$A$3:$A$501,"<="&DATE(score!$B$1,E3,E4)),"") ->  | E15: =IFERROR(AVERAGEIFS(data!$E$3:$E$501,data!$B$3:$B$501,score!$B$15,data!$A$3:$A$501,">="&DATE(score!$B$1,E3,E4),data!$A$3:$A$501,"<="&DATE(score!$B$1,F3,F4)),"") ->  | F15: =IFERROR(AVERAGEIFS(data!$E$3:$E$501,data!$B$3:$B$501,score!$B$15,data!$A$3:$A$501,">="&DATE(score!$B$1,F3,F4),data!$A$3:$A$501,"<="&DATE(score!$B$1,G3,G4)),"") ->  | G15: =IFERROR(AVERAGEIFS(data!$E$3:$E$501,data!$B$3:$B$501,score!$B$15,data!$A$3:$A$501,">="&DATE(score!$B$1,G3,G4),data!$A$3:$A$501,"<="&DATE(score!$B$1,H3,H4)),"") ->  | H15: =IFERROR(AVERAGEIFS(data!$E$3:$E$501,data!$B$3:$B$501,score!$B$15,data!$A$3:$A$501,">="&DATE(score!$B$1,H3,H4),data!$A$3:$A$501,"<="&DATE(score!$B$1,I3,I4)),"") ->  | I15: =IFERROR(AVERAGEIFS(data!$E$3:$E$501,data!$B$3:$B$501,score!$B$15,data!$A$3:$A$501,">="&DATE(score!$B$1,I3,I4),data!$A$3:$A$501,"<="&DATE(score!$B$1,J3,J4)),"") ->  | J15: =IFERROR(AVERAGEIFS(data!$E$3:$E$501,data!$B$3:$B$501,score!$B$15,data!$A$3:$A$501,">="&DATE(score!$B$1,J3,J4),data!$A$3:$A$501,"<="&DATE(score!$B$1,K3,K4)),"") ->  | K15: =IFERROR(AVERAGEIFS(data!$E$3:$E$501,data!$B$3:$B$501,score!$B$15,data!$A$3:$A$501,">="&DATE(score!$B$1,K3,K4),data!$A$3:$A$501,"<="&DATE(score!$B$1,L3,L4)),"") ->  | L15: =IFERROR(AVERAGEIFS(data!$E$3:$E$501,data!$B$3:$B$501,score!$B$15,data!$A$3:$A$501,">="&DATE(score!$B$1,L3,L4),data!$A$3:$A$501,"<="&DATE(score!$B$1,M3,M4)),"") ->  | M15: =IFERROR(AVERAGEIFS(data!$E$3:$E$501,data!$B$3:$B$501,score!$B$15,data!$A$3:$A$501,">="&DATE(score!$B$1,M3,M4),data!$A$3:$A$501,"<="&DATE(score!$B$1,N3,N4)),"") ->  | N15: =IFERROR(AVERAGEIFS(data!$E$3:$E$501,data!$B$3:$B$501,score!$B$15,data!$A$3:$A$501,">="&DATE(score!$B$1,N3,N4),data!$A$3:$A$501,"<="&DATE(score!$B$1,O3,O4)),"") ->  | O15: =IFERROR(AVERAGEIFS(data!$E$3:$E$501,data!$B$3:$B$501,score!$B$15,data!$A$3:$A$501,">="&DATE(score!$B$1,O3,O4),data!$A$3:$A$501,"<="&DATE(score!$B$1,P3,P4)),"") ->  | P15: =IFERROR(AVERAGEIFS(data!$E$3:$E$501,data!$B$3:$B$501,score!$B$15,data!$A$3:$A$501,">="&DATE(score!$B$1,P3,P4),data!$A$3:$A$501,"<="&DATE(score!$B$1,Q3,Q4)),"") ->  | Q15: =IFERROR(AVERAGEIFS(data!$E$3:$E$501,data!$B$3:$B$501,score!$B$15,data!$A$3:$A$501,">="&DATE(score!$B$1,Q3,Q4),data!$A$3:$A$501,"<="&DATE(score!$B$1,R3,R4)),"") ->  | R15: =IFERROR(AVERAGEIFS(data!$E$3:$E$501,data!$B$3:$B$501,score!$B$15,data!$A$3:$A$501,">="&DATE(score!$B$1,R3,R4),data!$A$3:$A$501,"<="&DATE(score!$B$1,S3,S4)),"") ->  | S15: =IFERROR(AVERAGEIFS(data!$E$3:$E$501,data!$B$3:$B$501,score!$B$15,data!$A$3:$A$501,">="&DATE(score!$B$1,S3,S4),data!$A$3:$A$501,"<="&DATE(score!$B$1,T3,T4)),"") ->  | T15: =IFERROR(AVERAGEIFS(data!$E$3:$E$501,data!$B$3:$B$501,score!$B$15,data!$A$3:$A$501,">="&DATE(score!$B$1,T3,T4),data!$A$3:$A$501,"<="&DATE(score!$B$1,U3,U4)),"") ->  | U15: =IFERROR(AVERAGEIFS(data!$E$3:$E$501,data!$B$3:$B$501,score!$B$15,data!$A$3:$A$501,">="&DATE(score!$B$1,U3,U4),data!$A$3:$A$501,"<="&DATE(score!$B$1,V3,V4)),"") ->  | V15: =IFERROR(AVERAGEIFS(data!$E$3:$E$501,data!$B$3:$B$501,score!$B$15,data!$A$3:$A$501,">="&DATE(score!$B$1,V3,V4),data!$A$3:$A$501,"<="&DATE(score!$B$1,W3,W4)),"") ->  | W15: =IFERROR(AVERAGEIFS(data!$E$3:$E$501,data!$B$3:$B$501,score!$B$15,data!$A$3:$A$501,">="&DATE(score!$B$1,W3,W4),data!$A$3:$A$501,"<="&DATE(score!$B$1,X3,X4)),"") ->  | X15: =IFERROR(AVERAGEIFS(data!$E$3:$E$501,data!$B$3:$B$501,score!$B$15,data!$A$3:$A$501,">="&DATE(score!$B$1,X3,X4),data!$A$3:$A$501,"<="&DATE(score!$B$1,Y3,Y4)),"") ->  | Y15: =IFERROR(AVERAGEIFS(data!$E$3:$E$501,data!$B$3:$B$501,score!$B$15,data!$A$3:$A$501,">="&DATE(score!$B$1,Y3,Y4),data!$A$3:$A$501,"<="&DATE(score!$B$1,Z3,Z4)),"") ->  | Z15: =IFERROR(AVERAGEIFS(data!$E$3:$E$501,data!$B$3:$B$501,score!$B$15,data!$A$3:$A$501,">="&DATE(score!$B$1,Z3,Z4),data!$A$3:$A$501,"<="&DATE(score!$B$1,AA3,AA4)),"") ->  | AA15: =IFERROR(AVERAGEIFS(data!$E$3:$E$501,data!$B$3:$B$501,score!$B$15,data!$A$3:$A$501,">="&DATE(score!$B$1,AA3,AA4),data!$A$3:$A$501,"<="&DATE(score!$B$1,AB3,AB4)),"") ->  | AB15: =IFERROR(AVERAGEIFS(data!$E$3:$E$501,data!$B$3:$B$501,score!$B$15,data!$A$3:$A$501,">="&DATE(score!$B$1,AB3,AB4),data!$A$3:$A$501,"<="&DATE(score!$B$1,AC3,AC4)),"") ->  | AC15: =IFERROR(AVERAGEIFS(data!$E$3:$E$501,data!$B$3:$B$501,score!$B$15,data!$A$3:$A$501,">="&DATE(score!$B$1,AC3,AC4),data!$A$3:$A$501,"<="&DATE(score!$B$1,AD3,AD4)),"") ->  | AD15: =IFERROR(AVERAGEIFS(data!$E$3:$E$501,data!$B$3:$B$501,score!$B$15,data!$A$3:$A$501,">="&DATE(score!$B$1,AD3,AD4),data!$A$3:$A$501,"<="&DATE(score!$B$1,AE3,AE4)),"") ->  | AE15: =IFERROR(AVERAGEIFS(data!$E$3:$E$501,data!$B$3:$B$501,score!$B$15,data!$A$3:$A$501,">="&DATE(score!$B$1,AE3,AE4),data!$A$3:$A$501,"<="&DATE(score!$B$1,AF3,AF4)),"") ->  | AF15: =IFERROR(AVERAGEIFS(data!$E$3:$E$501,data!$B$3:$B$501,score!$B$15,data!$A$3:$A$501,">="&DATE(score!$B$1,AF3,AF4),data!$A$3:$A$501,"<="&DATE(score!$B$1,AG3,AG4)),"") ->  | AG15: =IFERROR(AVERAGEIFS(data!$E$3:$E$501,data!$B$3:$B$501,score!$B$15,data!$A$3:$A$501,">="&DATE(score!$B$1,AG3,AG4),data!$A$3:$A$501,"<="&DATE(score!$B$1,AH3,AH4)),"") ->  | AH15: =IFERROR(AVERAGEIFS(data!$E$3:$E$501,data!$B$3:$B$501,score!$B$15,data!$A$3:$A$501,">="&DATE(score!$B$1,AH3,AH4),data!$A$3:$A$501,"<="&DATE(score!$B$1,AI3,AI4)),"") ->  | AI15: =IFERROR(AVERAGEIFS(data!$E$3:$E$501,data!$B$3:$B$501,score!$B$15,data!$A$3:$A$501,">="&DATE(score!$B$1,AI3,AI4),data!$A$3:$A$501,"<="&DATE(score!$B$1,AJ3,AJ4)),"") ->  | AJ15: =IFERROR(AVERAGEIFS(data!$E$3:$E$501,data!$B$3:$B$501,score!$B$15,data!$A$3:$A$501,">="&DATE(score!$B$1,AJ3,AJ4),data!$A$3:$A$501,"<="&DATE(score!$B$1,AK3,AK4)),"") ->  | AK15: =IFERROR(AVERAGEIFS(data!$E$3:$E$501,data!$B$3:$B$501,score!$B$15,data!$A$3:$A$501,">="&DATE(score!$B$1,AK3,AK4),data!$A$3:$A$501,"<="&DATE(score!$B$1,AL3,AL4)),"") ->  | AL15: =IFERROR(AVERAGEIFS(data!$E$3:$E$501,data!$B$3:$B$501,score!$B$15,data!$A$3:$A$501,">="&DATE(score!$B$1,AL3,AL4),data!$A$3:$A$501,"<="&DATE(score!$B$1,AM3,AM4)),"") ->  | AM15: =IFERROR(AVERAGEIFS(data!$E$3:$E$501,data!$B$3:$B$501,score!$B$15,data!$A$3:$A$501,">="&DATE(score!$B$1,AM3,AM4),data!$A$3:$A$501,"<="&DATE(score!$B$1,AN3,AN4)),"") ->  | AN15: =IFERROR(AVERAGEIFS(data!$E$3:$E$501,data!$B$3:$B$501,score!$B$15,data!$A$3:$A$501,">="&DATE(score!$B$1,AN3,AN4),data!$A$3:$A$501,"<="&DATE(score!$B$1,AO3,AO4)),"") ->  | AO15: =IFERROR(AVERAGEIFS(data!$E$3:$E$501,data!$B$3:$B$501,score!$B$15,data!$A$3:$A$501,">="&DATE(score!$B$1,AO3,AO4),data!$A$3:$A$501,"<="&DATE(score!$B$1,AP3,AP4)),"") ->  | AP15: =IFERROR(AVERAGEIFS(data!$E$3:$E$501,data!$B$3:$B$501,score!$B$15,data!$A$3:$A$501,">="&DATE(score!$B$1,AP3,AP4),data!$A$3:$A$501,"<="&DATE(score!$B$1,AQ3,AQ4)),"") ->  | AQ15: =IFERROR(AVERAGEIFS(data!$E$3:$E$501,data!$B$3:$B$501,score!$B$15,data!$A$3:$A$501,">="&DATE(score!$B$1,AQ3,AQ4),data!$A$3:$A$501,"<="&DATE(score!$B$1,AR3,AR4)),"") ->  | AR15: =IFERROR(AVERAGEIFS(data!$E$3:$E$501,data!$B$3:$B$501,score!$B$15,data!$A$3:$A$501,">="&DATE(score!$B$1,AR3,AR4),data!$A$3:$A$501,"<="&DATE(score!$B$1,AS3,AS4)),"") ->  | AS15: =IFERROR(AVERAGEIFS(data!$E$3:$E$501,data!$B$3:$B$501,score!$B$15,data!$A$3:$A$501,">="&DATE(score!$B$1,AS3,AS4),data!$A$3:$A$501,"<="&DATE(score!$B$1,AT3,AT4)),"") ->  | AT15: =IFERROR(AVERAGEIFS(data!$E$3:$E$501,data!$B$3:$B$501,score!$B$15,data!$A$3:$A$501,">="&DATE(score!$B$1,AT3,AT4),data!$A$3:$A$501,"<="&DATE(score!$B$1,AU3,AU4)),"") ->  | AU15: =IFERROR(AVERAGEIFS(data!$E$3:$E$501,data!$B$3:$B$501,score!$B$15,data!$A$3:$A$501,">="&DATE(score!$B$1,AU3,AU4),data!$A$3:$A$501,"<="&DATE(score!$B$1,AV3,AV4)),"") ->  | AV15: =IFERROR(AVERAGEIFS(data!$E$3:$E$501,data!$B$3:$B$501,score!$B$15,data!$A$3:$A$501,">="&DATE(score!$B$1,AV3,AV4),data!$A$3:$A$501,"<="&DATE(score!$B$1,AW3,AW4)),"") ->  | AW15: =IFERROR(AVERAGEIFS(data!$E$3:$E$501,data!$B$3:$B$501,score!$B$15,data!$A$3:$A$501,">="&DATE(score!$B$1,AW3,AW4),data!$A$3:$A$501,"<="&DATE(score!$B$1,AX3,AX4)),"") ->  | AX15: =IFERROR(AVERAGEIFS(data!$E$3:$E$501,data!$B$3:$B$501,score!$B$15,data!$A$3:$A$501,">="&DATE(score!$B$1,AX3,AX4),data!$A$3:$A$501,"<="&DATE(score!$B$1,AY3,AY4)),"") ->  | AY15: =IFERROR(AVERAGEIFS(data!$E$3:$E$501,data!$B$3:$B$501,score!$B$15,data!$A$3:$A$501,">="&DATE(score!$B$1,AY3,AY4),data!$A$3:$A$501,"<="&DATE(score!$B$1,AZ3,AZ4)),"") ->  | AZ15: =IFERROR(AVERAGEIFS(data!$E$3:$E$501,data!$B$3:$B$501,score!$B$15,data!$A$3:$A$501,">="&DATE(score!$B$1,AZ3,AZ4),data!$A$3:$A$501,"<="&DATE(score!$B$1,BA3,BA4)),"") ->  | BA15: =IFERROR(AVERAGEIFS(data!$E$3:$E$501,data!$B$3:$B$501,score!$B$15,data!$A$3:$A$501,">="&DATE(score!$B$1,BA3,BA4),data!$A$3:$A$501,"<="&DATE(score!$B$1,BB3,BB4)),"") ->  | BB15: =IFERROR(AVERAGEIFS(data!$E$3:$E$501,data!$B$3:$B$501,score!$B$15,data!$A$3:$A$501,">="&DATE(score!$B$1,BB3,BB4),data!$A$3:$A$501,"<="&DATE(score!$B$1,BC3,BC4)),"") -> 
C16: =IFERROR(AVERAGEIF(C9:G15,"<>0"),"") ->  | H16: =IFERROR(AVERAGEIF(H9:K15,"<>0"),"") ->  | L16: =IFERROR(AVERAGEIF(L9:O15,"<>0"),"") ->  | P16: =IFERROR(AVERAGEIF(P9:T15,"<>0"),"") ->  | U16: =IFERROR(AVERAGEIF(U9:X15,"<>0"),"") ->  | Y16: =IFERROR(AVERAGEIF(Y9:AB15,"<>0"),"") ->  | AC16: =IFERROR(AVERAGEIF(AC9:AG15,"<>0"),"") ->  | AH16: =IFERROR(AVERAGEIF(AH9:AK15,"<>0"),"") ->  | AL16: =IFERROR(AVERAGEIF(AL9:AP15,"<>0"),"") ->  | AQ16: =IFERROR(AVERAGEIF(AQ9:AT15,"<>0"),"") ->  | AU16: =IFERROR(AVERAGEIF(AU9:AX15,"<>0"),"") ->  | AY16: =IFERROR(AVERAGEIF(AY9:BB15,"<>0"),"") -> 
C19: January | H19: February | L19: March | P19: April | U19: May | Y19: June | AC19: July | AH19: August | AL19: September | AQ19: October | AU19: November | AY19: December
C20: W1 | D20: W2 | E20: W3 | F20: W4 | G20: W5 | H20: W6 | I20: W7 | J20: W8 | K20: W9 | L20: W10 | M20: W11 | N20: W12 | O20: W13 | P20: W14 | Q20: W15 | R20: W16 | S20: W17 | T20: W18 | U20: W19 | V20: W20 | W20: W21 | X20: W22 | Y20: W23 | Z20: W24 | AA20: W25 | AB20: W26 | AC20: W27 | AD20: W28 | AE20: W29 | AF20: W30 | AG20: W31 | AH20: W32 | AI20: W33 | AJ20: W34 | AK20: W35 | AL20: W36 | AM20: W37 | AN20: W38 | AO20: W39 | AP20: W40 | AQ20: W41 | AR20: W42 | AS20: W43 | AT20: W44 | AU20: W45 | AV20: W46 | AW20: W47 | AX20: W48 | AY20: W49 | AZ20: W50 | BA20: W51 | BB20: W52
C21: =IFERROR(SUMIFS(data!$L$3:$L$1000,data!$B$3:$B$1000,score!$B$21,data!$A$3:$A$1000,">="&DATE(score!$B$1,C3,C4),data!$A$3:$A$1000,"<="&DATE(score!$B$1,D3,D4)),"") -> 0 | D21: =IFERROR(SUMIFS(data!$L$3:$L$1000,data!$B$3:$B$1000,score!$B$21,data!$A$3:$A$1000,">="&DATE(score!$B$1,D3,D4),data!$A$3:$A$1000,"<="&DATE(score!$B$1,E3,E4)),"") -> 0 | E21: =IFERROR(SUMIFS(data!$L$3:$L$1000,data!$B$3:$B$1000,score!$B$21,data!$A$3:$A$1000,">="&DATE(score!$B$1,E3,E4),data!$A$3:$A$1000,"<="&DATE(score!$B$1,F3,F4)),"") -> 0 | F21: =IFERROR(SUMIFS(data!$L$3:$L$1000,data!$B$3:$B$1000,score!$B$21,data!$A$3:$A$1000,">="&DATE(score!$B$1,F3,F4),data!$A$3:$A$1000,"<="&DATE(score!$B$1,G3,G4)),"") -> 0 | G21: =IFERROR(SUMIFS(data!$L$3:$L$1000,data!$B$3:$B$1000,score!$B$21,data!$A$3:$A$1000,">="&DATE(score!$B$1,G3,G4),data!$A$3:$A$1000,"<="&DATE(score!$B$1,H3,H4)),"") -> 0 | H21: =IFERROR(SUMIFS(data!$L$3:$L$1000,data!$B$3:$B$1000,score!$B$21,data!$A$3:$A$1000,">="&DATE(score!$B$1,H3,H4),data!$A$3:$A$1000,"<="&DATE(score!$B$1,I3,I4)),"") -> 0 | I21: =IFERROR(SUMIFS(data!$L$3:$L$1000,data!$B$3:$B$1000,score!$B$21,data!$A$3:$A$1000,">="&DATE(score!$B$1,I3,I4),data!$A$3:$A$1000,"<="&DATE(score!$B$1,J3,J4)),"") -> 0 | J21: =IFERROR(SUMIFS(data!$L$3:$L$1000,data!$B$3:$B$1000,score!$B$21,data!$A$3:$A$1000,">="&DATE(score!$B$1,J3,J4),data!$A$3:$A$1000,"<="&DATE(score!$B$1,K3,K4)),"") -> 0 | K21: =IFERROR(SUMIFS(data!$L$3:$L$1000,data!$B$3:$B$1000,score!$B$21,data!$A$3:$A$1000,">="&DATE(score!$B$1,K3,K4),data!$A$3:$A$1000,"<="&DATE(score!$B$1,L3,L4)),"") -> 0 | L21: =IFERROR(SUMIFS(data!$L$3:$L$1000,data!$B$3:$B$1000,score!$B$21,data!$A$3:$A$1000,">="&DATE(score!$B$1,L3,L4),data!$A$3:$A$1000,"<="&DATE(score!$B$1,M3,M4)),"") -> 0 | M21: =IFERROR(SUMIFS(data!$L$3:$L$1000,data!$B$3:$B$1000,score!$B$21,data!$A$3:$A$1000,">="&DATE(score!$B$1,M3,M4),data!$A$3:$A$1000,"<="&DATE(score!$B$1,N3,N4)),"") -> 0 | N21: =IFERROR(SUMIFS(data!$L$3:$L$1000,data!$B$3:$B$1000,score!$B$21,data!$A$3:$A$1000,">="&DATE(score!$B$1,N3,N4),data!$A$3:$A$1000,"<="&DATE(score!$B$1,O3,O4)),"") -> 0 | O21: =IFERROR(SUMIFS(data!$L$3:$L$1000,data!$B$3:$B$1000,score!$B$21,data!$A$3:$A$1000,">="&DATE(score!$B$1,O3,O4),data!$A$3:$A$1000,"<="&DATE(score!$B$1,P3,P4)),"") -> 0 | P21: =IFERROR(SUMIFS(data!$L$3:$L$1000,data!$B$3:$B$1000,score!$B$21,data!$A$3:$A$1000,">="&DATE(score!$B$1,P3,P4),data!$A$3:$A$1000,"<="&DATE(score!$B$1,Q3,Q4)),"") -> 0 | Q21: =IFERROR(SUMIFS(data!$L$3:$L$1000,data!$B$3:$B$1000,score!$B$21,data!$A$3:$A$1000,">="&DATE(score!$B$1,Q3,Q4),data!$A$3:$A$1000,"<="&DATE(score!$B$1,R3,R4)),"") -> 0 | R21: =IFERROR(SUMIFS(data!$L$3:$L$1000,data!$B$3:$B$1000,score!$B$21,data!$A$3:$A$1000,">="&DATE(score!$B$1,R3,R4),data!$A$3:$A$1000,"<="&DATE(score!$B$1,S3,S4)),"") -> 0 | S21: =IFERROR(SUMIFS(data!$L$3:$L$1000,data!$B$3:$B$1000,score!$B$21,data!$A$3:$A$1000,">="&DATE(score!$B$1,S3,S4),data!$A$3:$A$1000,"<="&DATE(score!$B$1,T3,T4)),"") -> 0 | T21: =IFERROR(SUMIFS(data!$L$3:$L$1000,data!$B$3:$B$1000,score!$B$21,data!$A$3:$A$1000,">="&DATE(score!$B$1,T3,T4),data!$A$3:$A$1000,"<="&DATE(score!$B$1,U3,U4)),"") -> 0 | U21: =IFERROR(SUMIFS(data!$L$3:$L$1000,data!$B$3:$B$1000,score!$B$21,data!$A$3:$A$1000,">="&DATE(score!$B$1,U3,U4),data!$A$3:$A$1000,"<="&DATE(score!$B$1,V3,V4)),"") -> 0 | V21: =IFERROR(SUMIFS(data!$L$3:$L$1000,data!$B$3:$B$1000,score!$B$21,data!$A$3:$A$1000,">="&DATE(score!$B$1,V3,V4),data!$A$3:$A$1000,"<="&DATE(score!$B$1,W3,W4)),"") -> 0 | W21: =IFERROR(SUMIFS(data!$L$3:$L$1000,data!$B$3:$B$1000,score!$B$21,data!$A$3:$A$1000,">="&DATE(score!$B$1,W3,W4),data!$A$3:$A$1000,"<="&DATE(score!$B$1,X3,X4)),"") -> 0 | X21: =IFERROR(SUMIFS(data!$L$3:$L$1000,data!$B$3:$B$1000,score!$B$21,data!$A$3:$A$1000,">="&DATE(score!$B$1,X3,X4),data!$A$3:$A$1000,"<="&DATE(score!$B$1,Y3,Y4)),"") -> 0 | Y21: =IFERROR(SUMIFS(data!$L$3:$L$1000,data!$B$3:$B$1000,score!$B$21,data!$A$3:$A$1000,">="&DATE(score!$B$1,Y3,Y4),data!$A$3:$A$1000,"<="&DATE(score!$B$1,Z3,Z4)),"") -> 0 | Z21: =IFERROR(SUMIFS(data!$L$3:$L$1000,data!$B$3:$B$1000,score!$B$21,data!$A$3:$A$1000,">="&DATE(score!$B$1,Z3,Z4),data!$A$3:$A$1000,"<="&DATE(score!$B$1,AA3,AA4)),"") -> 0 | AA21: =IFERROR(SUMIFS(data!$L$3:$L$1000,data!$B$3:$B$1000,score!$B$21,data!$A$3:$A$1000,">="&DATE(score!$B$1,AA3,AA4),data!$A$3:$A$1000,"<="&DATE(score!$B$1,AB3,AB4)),"") -> 0 | AB21: =IFERROR(SUMIFS(data!$L$3:$L$1000,data!$B$3:$B$1000,score!$B$21,data!$A$3:$A$1000,">="&DATE(score!$B$1,AB3,AB4),data!$A$3:$A$1000,"<="&DATE(score!$B$1,AC3,AC4)),"") -> 0 | AC21: =IFERROR(SUMIFS(data!$L$3:$L$1000,data!$B$3:$B$1000,score!$B$21,data!$A$3:$A$1000,">="&DATE(score!$B$1,AC3,AC4),data!$A$3:$A$1000,"<="&DATE(score!$B$1,AD3,AD4)),"") -> 0 | AD21: =IFERROR(SUMIFS(data!$L$3:$L$1000,data!$B$3:$B$1000,score!$B$21,data!$A$3:$A$1000,">="&DATE(score!$B$1,AD3,AD4),data!$A$3:$A$1000,"<="&DATE(score!$B$1,AE3,AE4)),"") -> 0 | AE21: =IFERROR(SUMIFS(data!$L$3:$L$1000,data!$B$3:$B$1000,score!$B$21,data!$A$3:$A$1000,">="&DATE(score!$B$1,AE3,AE4),data!$A$3:$A$1000,"<="&DATE(score!$B$1,AF3,AF4)),"") -> 0 | AF21: =IFERROR(SUMIFS(data!$L$3:$L$1000,data!$B$3:$B$1000,score!$B$21,data!$A$3:$A$1000,">="&DATE(score!$B$1,AF3,AF4),data!$A$3:$A$1000,"<="&DATE(score!$B$1,AG3,AG4)),"") -> 0 | AG21: =IFERROR(SUMIFS(data!$L$3:$L$1000,data!$B$3:$B$1000,score!$B$21,data!$A$3:$A$1000,">="&DATE(score!$B$1,AG3,AG4),data!$A$3:$A$1000,"<="&DATE(score!$B$1,AH3,AH4)),"") -> 0 | AH21: =IFERROR(SUMIFS(data!$L$3:$L$1000,data!$B$3:$B$1000,score!$B$21,data!$A$3:$A$1000,">="&DATE(score!$B$1,AH3,AH4),data!$A$3:$A$1000,"<="&DATE(score!$B$1,AI3,AI4)),"") -> 0 | AI21: =IFERROR(SUMIFS(data!$L$3:$L$1000,data!$B$3:$B$1000,score!$B$21,data!$A$3:$A$1000,">="&DATE(score!$B$1,AI3,AI4),data!$A$3:$A$1000,"<="&DATE(score!$B$1,AJ3,AJ4)),"") -> 0 | AJ21: =IFERROR(SUMIFS(data!$L$3:$L$1000,data!$B$3:$B$1000,score!$B$21,data!$A$3:$A$1000,">="&DATE(score!$B$1,AJ3,AJ4),data!$A$3:$A$1000,"<="&DATE(score!$B$1,AK3,AK4)),"") -> 0 | AK21: =IFERROR(SUMIFS(data!$L$3:$L$1000,data!$B$3:$B$1000,score!$B$21,data!$A$3:$A$1000,">="&DATE(score!$B$1,AK3,AK4),data!$A$3:$A$1000,"<="&DATE(score!$B$1,AL3,AL4)),"") -> 0 | AL21: =IFERROR(SUMIFS(data!$L$3:$L$1000,data!$B$3:$B$1000,score!$B$21,data!$A$3:$A$1000,">="&DATE(score!$B$1,AL3,AL4),data!$A$3:$A$1000,"<="&DATE(score!$B$1,AM3,AM4)),"") -> 0 | AM21: =IFERROR(SUMIFS(data!$L$3:$L$1000,data!$B$3:$B$1000,score!$B$21,data!$A$3:$A$1000,">="&DATE(score!$B$1,AM3,AM4),data!$A$3:$A$1000,"<="&DATE(score!$B$1,AN3,AN4)),"") -> 0 | AN21: =IFERROR(SUMIFS(data!$L$3:$L$1000,data!$B$3:$B$1000,score!$B$21,data!$A$3:$A$1000,">="&DATE(score!$B$1,AN3,AN4),data!$A$3:$A$1000,"<="&DATE(score!$B$1,AO3,AO4)),"") -> 0 | AO21: =IFERROR(SUMIFS(data!$L$3:$L$1000,data!$B$3:$B$1000,score!$B$21,data!$A$3:$A$1000,">="&DATE(score!$B$1,AO3,AO4),data!$A$3:$A$1000,"<="&DATE(score!$B$1,AP3,AP4)),"") -> 0 | AP21: =IFERROR(SUMIFS(data!$L$3:$L$1000,data!$B$3:$B$1000,score!$B$21,data!$A$3:$A$1000,">="&DATE(score!$B$1,AP3,AP4),data!$A$3:$A$1000,"<="&DATE(score!$B$1,AQ3,AQ4)),"") -> 0 | AQ21: =IFERROR(SUMIFS(data!$L$3:$L$1000,data!$B$3:$B$1000,score!$B$21,data!$A$3:$A$1000,">="&DATE(score!$B$1,AQ3,AQ4),data!$A$3:$A$1000,"<="&DATE(score!$B$1,AR3,AR4)),"") -> 0 | AR21: =IFERROR(SUMIFS(data!$L$3:$L$1000,data!$B$3:$B$1000,score!$B$21,data!$A$3:$A$1000,">="&DATE(score!$B$1,AR3,AR4),data!$A$3:$A$1000,"<="&DATE(score!$B$1,AS3,AS4)),"") -> 0 | AS21: =IFERROR(SUMIFS(data!$L$3:$L$1000,data!$B$3:$B$1000,score!$B$21,data!$A$3:$A$1000,">="&DATE(score!$B$1,AS3,AS4),data!$A$3:$A$1000,"<="&DATE(score!$B$1,AT3,AT4)),"") -> 0 | AT21: =IFERROR(SUMIFS(data!$L$3:$L$1000,data!$B$3:$B$1000,score!$B$21,data!$A$3:$A$1000,">="&DATE(score!$B$1,AT3,AT4),data!$A$3:$A$1000,"<="&DATE(score!$B$1,AU3,AU4)),"") -> 0 | AU21: =IFERROR(SUMIFS(data!$L$3:$L$1000,data!$B$3:$B$1000,score!$B$21,data!$A$3:$A$1000,">="&DATE(score!$B$1,AU3,AU4),data!$A$3:$A$1000,"<="&DATE(score!$B$1,AV3,AV4)),"") -> 0 | AV21: =IFERROR(SUMIFS(data!$L$3:$L$1000,data!$B$3:$B$1000,score!$B$21,data!$A$3:$A$1000,">="&DATE(score!$B$1,AV3,AV4),data!$A$3:$A$1000,"<="&DATE(score!$B$1,AW3,AW4)),"") -> 0 | AW21: =IFERROR(SUMIFS(data!$L$3:$L$1000,data!$B$3:$B$1000,score!$B$21,data!$A$3:$A$1000,">="&DATE(score!$B$1,AW3,AW4),data!$A$3:$A$1000,"<="&DATE(score!$B$1,AX3,AX4)),"") -> 0 | AX21: =IFERROR(SUMIFS(data!$L$3:$L$1000,data!$B$3:$B$1000,score!$B$21,data!$A$3:$A$1000,">="&DATE(score!$B$1,AX3,AX4),data!$A$3:$A$1000,"<="&DATE(score!$B$1,AY3,AY4)),"") -> 0 | AY21: =IFERROR(SUMIFS(data!$L$3:$L$1000,data!$B$3:$B$1000,score!$B$21,data!$A$3:$A$1000,">="&DATE(score!$B$1,AY3,AY4),data!$A$3:$A$1000,"<="&DATE(score!$B$1,AZ3,AZ4)),"") -> 0 | AZ21: =IFERROR(SUMIFS(data!$L$3:$L$1000,data!$B$3:$B$1000,score!$B$21,data!$A$3:$A$1000,">="&DATE(score!$B$1,AZ3,AZ4),data!$A$3:$A$1000,"<="&DATE(score!$B$1,BA3,BA4)),"") -> 0 | BA21: =IFERROR(SUMIFS(data!$L$3:$L$1000,data!$B$3:$B$1000,score!$B$21,data!$A$3:$A$1000,">="&DATE(score!$B$1,BA3,BA4),data!$A$3:$A$1000,"<="&DATE(score!$B$1,BB3,BB4)),"") -> 0 | BB21: =IFERROR(SUMIFS(data!$L$3:$L$1000,data!$B$3:$B$1000,score!$B$21,data!$A$3:$A$1000,">="&DATE(score!$B$1,BB3,BB4),data!$A$3:$A$1000,"<="&DATE(score!$B$1,BC3,BC4)),"") -> 0
C22: =IFERROR(SUMIFS(data!$L$3:$L$1000,data!$B$3:$B$1000,score!$B$22,data!$A$3:$A$1000,">="&DATE(score!$B$1,C3,C4),data!$A$3:$A$1000,"<="&DATE(score!$B$1,D3,D4)),"") -> 0 | D22: =IFERROR(SUMIFS(data!$L$3:$L$1000,data!$B$3:$B$1000,score!$B$22,data!$A$3:$A$1000,">="&DATE(score!$B$1,D3,D4),data!$A$3:$A$1000,"<="&DATE(score!$B$1,E3,E4)),"") -> 0 | E22: =IFERROR(SUMIFS(data!$L$3:$L$1000,data!$B$3:$B$1000,score!$B$22,data!$A$3:$A$1000,">="&DATE(score!$B$1,E3,E4),data!$A$3:$A$1000,"<="&DATE(score!$B$1,F3,F4)),"") -> 0 | F22: =IFERROR(SUMIFS(data!$L$3:$L$1000,data!$B$3:$B$1000,score!$B$22,data!$A$3:$A$1000,">="&DATE(score!$B$1,F3,F4),data!$A$3:$A$1000,"<="&DATE(score!$B$1,G3,G4)),"") -> 0 | G22: =IFERROR(SUMIFS(data!$L$3:$L$1000,data!$B$3:$B$1000,score!$B$22,data!$A$3:$A$1000,">="&DATE(score!$B$1,G3,G4),data!$A$3:$A$1000,"<="&DATE(score!$B$1,H3,H4)),"") -> 0 | H22: =IFERROR(SUMIFS(data!$L$3:$L$1000,data!$B$3:$B$1000,score!$B$22,data!$A$3:$A$1000,">="&DATE(score!$B$1,H3,H4),data!$A$3:$A$1000,"<="&DATE(score!$B$1,I3,I4)),"") -> 0 | I22: =IFERROR(SUMIFS(data!$L$3:$L$1000,data!$B$3:$B$1000,score!$B$22,data!$A$3:$A$1000,">="&DATE(score!$B$1,I3,I4),data!$A$3:$A$1000,"<="&DATE(score!$B$1,J3,J4)),"") -> 0 | J22: =IFERROR(SUMIFS(data!$L$3:$L$1000,data!$B$3:$B$1000,score!$B$22,data!$A$3:$A$1000,">="&DATE(score!$B$1,J3,J4),data!$A$3:$A$1000,"<="&DATE(score!$B$1,K3,K4)),"") -> 0 | K22: =IFERROR(SUMIFS(data!$L$3:$L$1000,data!$B$3:$B$1000,score!$B$22,data!$A$3:$A$1000,">="&DATE(score!$B$1,K3,K4),data!$A$3:$A$1000,"<="&DATE(score!$B$1,L3,L4)),"") -> 0 | L22: =IFERROR(SUMIFS(data!$L$3:$L$1000,data!$B$3:$B$1000,score!$B$22,data!$A$3:$A$1000,">="&DATE(score!$B$1,L3,L4),data!$A$3:$A$1000,"<="&DATE(score!$B$1,M3,M4)),"") -> 0 | M22: =IFERROR(SUMIFS(data!$L$3:$L$1000,data!$B$3:$B$1000,score!$B$22,data!$A$3:$A$1000,">="&DATE(score!$B$1,M3,M4),data!$A$3:$A$1000,"<="&DATE(score!$B$1,N3,N4)),"") -> 0 | N22: =IFERROR(SUMIFS(data!$L$3:$L$1000,data!$B$3:$B$1000,score!$B$22,data!$A$3:$A$1000,">="&DATE(score!$B$1,N3,N4),data!$A$3:$A$1000,"<="&DATE(score!$B$1,O3,O4)),"") -> 0 | O22: =IFERROR(SUMIFS(data!$L$3:$L$1000,data!$B$3:$B$1000,score!$B$22,data!$A$3:$A$1000,">="&DATE(score!$B$1,O3,O4),data!$A$3:$A$1000,"<="&DATE(score!$B$1,P3,P4)),"") -> 0 | P22: =IFERROR(SUMIFS(data!$L$3:$L$1000,data!$B$3:$B$1000,score!$B$22,data!$A$3:$A$1000,">="&DATE(score!$B$1,P3,P4),data!$A$3:$A$1000,"<="&DATE(score!$B$1,Q3,Q4)),"") -> 0 | Q22: =IFERROR(SUMIFS(data!$L$3:$L$1000,data!$B$3:$B$1000,score!$B$22,data!$A$3:$A$1000,">="&DATE(score!$B$1,Q3,Q4),data!$A$3:$A$1000,"<="&DATE(score!$B$1,R3,R4)),"") -> 0 | R22: =IFERROR(SUMIFS(data!$L$3:$L$1000,data!$B$3:$B$1000,score!$B$22,data!$A$3:$A$1000,">="&DATE(score!$B$1,R3,R4),data!$A$3:$A$1000,"<="&DATE(score!$B$1,S3,S4)),"") -> 0 | S22: =IFERROR(SUMIFS(data!$L$3:$L$1000,data!$B$3:$B$1000,score!$B$22,data!$A$3:$A$1000,">="&DATE(score!$B$1,S3,S4),data!$A$3:$A$1000,"<="&DATE(score!$B$1,T3,T4)),"") -> 0 | T22: =IFERROR(SUMIFS(data!$L$3:$L$1000,data!$B$3:$B$1000,score!$B$22,data!$A$3:$A$1000,">="&DATE(score!$B$1,T3,T4),data!$A$3:$A$1000,"<="&DATE(score!$B$1,U3,U4)),"") -> 0 | U22: =IFERROR(SUMIFS(data!$L$3:$L$1000,data!$B$3:$B$1000,score!$B$22,data!$A$3:$A$1000,">="&DATE(score!$B$1,U3,U4),data!$A$3:$A$1000,"<="&DATE(score!$B$1,V3,V4)),"") -> 0 | V22: =IFERROR(SUMIFS(data!$L$3:$L$1000,data!$B$3:$B$1000,score!$B$22,data!$A$3:$A$1000,">="&DATE(score!$B$1,V3,V4),data!$A$3:$A$1000,"<="&DATE(score!$B$1,W3,W4)),"") -> 0 | W22: =IFERROR(SUMIFS(data!$L$3:$L$1000,data!$B$3:$B$1000,score!$B$22,data!$A$3:$A$1000,">="&DATE(score!$B$1,W3,W4),data!$A$3:$A$1000,"<="&DATE(score!$B$1,X3,X4)),"") -> 0 | X22: =IFERROR(SUMIFS(data!$L$3:$L$1000,data!$B$3:$B$1000,score!$B$22,data!$A$3:$A$1000,">="&DATE(score!$B$1,X3,X4),data!$A$3:$A$1000,"<="&DATE(score!$B$1,Y3,Y4)),"") -> 0 | Y22: =IFERROR(SUMIFS(data!$L$3:$L$1000,data!$B$3:$B$1000,score!$B$22,data!$A$3:$A$1000,">="&DATE(score!$B$1,Y3,Y4),data!$A$3:$A$1000,"<="&DATE(score!$B$1,Z3,Z4)),"") -> 0 | Z22: =IFERROR(SUMIFS(data!$L$3:$L$1000,data!$B$3:$B$1000,score!$B$22,data!$A$3:$A$1000,">="&DATE(score!$B$1,Z3,Z4),data!$A$3:$A$1000,"<="&DATE(score!$B$1,AA3,AA4)),"") -> 0 | AA22: =IFERROR(SUMIFS(data!$L$3:$L$1000,data!$B$3:$B$1000,score!$B$22,data!$A$3:$A$1000,">="&DATE(score!$B$1,AA3,AA4),data!$A$3:$A$1000,"<="&DATE(score!$B$1,AB3,AB4)),"") -> 0 | AB22: =IFERROR(SUMIFS(data!$L$3:$L$1000,data!$B$3:$B$1000,score!$B$22,data!$A$3:$A$1000,">="&DATE(score!$B$1,AB3,AB4),data!$A$3:$A$1000,"<="&DATE(score!$B$1,AC3,AC4)),"") -> 0 | AC22: =IFERROR(SUMIFS(data!$L$3:$L$1000,data!$B$3:$B$1000,score!$B$22,data!$A$3:$A$1000,">="&DATE(score!$B$1,AC3,AC4),data!$A$3:$A$1000,"<="&DATE(score!$B$1,AD3,AD4)),"") -> 0 | AD22: =IFERROR(SUMIFS(data!$L$3:$L$1000,data!$B$3:$B$1000,score!$B$22,data!$A$3:$A$1000,">="&DATE(score!$B$1,AD3,AD4),data!$A$3:$A$1000,"<="&DATE(score!$B$1,AE3,AE4)),"") -> 0 | AE22: =IFERROR(SUMIFS(data!$L$3:$L$1000,data!$B$3:$B$1000,score!$B$22,data!$A$3:$A$1000,">="&DATE(score!$B$1,AE3,AE4),data!$A$3:$A$1000,"<="&DATE(score!$B$1,AF3,AF4)),"") -> 0 | AF22: =IFERROR(SUMIFS(data!$L$3:$L$1000,data!$B$3:$B$1000,score!$B$22,data!$A$3:$A$1000,">="&DATE(score!$B$1,AF3,AF4),data!$A$3:$A$1000,"<="&DATE(score!$B$1,AG3,AG4)),"") -> 0 | AG22: =IFERROR(SUMIFS(data!$L$3:$L$1000,data!$B$3:$B$1000,score!$B$22,data!$A$3:$A$1000,">="&DATE(score!$B$1,AG3,AG4),data!$A$3:$A$1000,"<="&DATE(score!$B$1,AH3,AH4)),"") -> 0 | AH22: =IFERROR(SUMIFS(data!$L$3:$L$1000,data!$B$3:$B$1000,score!$B$22,data!$A$3:$A$1000,">="&DATE(score!$B$1,AH3,AH4),data!$A$3:$A$1000,"<="&DATE(score!$B$1,AI3,AI4)),"") -> 0 | AI22: =IFERROR(SUMIFS(data!$L$3:$L$1000,data!$B$3:$B$1000,score!$B$22,data!$A$3:$A$1000,">="&DATE(score!$B$1,AI3,AI4),data!$A$3:$A$1000,"<="&DATE(score!$B$1,AJ3,AJ4)),"") -> 0 | AJ22: =IFERROR(SUMIFS(data!$L$3:$L$1000,data!$B$3:$B$1000,score!$B$22,data!$A$3:$A$1000,">="&DATE(score!$B$1,AJ3,AJ4),data!$A$3:$A$1000,"<="&DATE(score!$B$1,AK3,AK4)),"") -> 0 | AK22: =IFERROR(SUMIFS(data!$L$3:$L$1000,data!$B$3:$B$1000,score!$B$22,data!$A$3:$A$1000,">="&DATE(score!$B$1,AK3,AK4),data!$A$3:$A$1000,"<="&DATE(score!$B$1,AL3,AL4)),"") -> 0 | AL22: =IFERROR(SUMIFS(data!$L$3:$L$1000,data!$B$3:$B$1000,score!$B$22,data!$A$3:$A$1000,">="&DATE(score!$B$1,AL3,AL4),data!$A$3:$A$1000,"<="&DATE(score!$B$1,AM3,AM4)),"") -> 0 | AM22: =IFERROR(SUMIFS(data!$L$3:$L$1000,data!$B$3:$B$1000,score!$B$22,data!$A$3:$A$1000,">="&DATE(score!$B$1,AM3,AM4),data!$A$3:$A$1000,"<="&DATE(score!$B$1,AN3,AN4)),"") -> 0 | AN22: =IFERROR(SUMIFS(data!$L$3:$L$1000,data!$B$3:$B$1000,score!$B$22,data!$A$3:$A$1000,">="&DATE(score!$B$1,AN3,AN4),data!$A$3:$A$1000,"<="&DATE(score!$B$1,AO3,AO4)),"") -> 0 | AO22: =IFERROR(SUMIFS(data!$L$3:$L$1000,data!$B$3:$B$1000,score!$B$22,data!$A$3:$A$1000,">="&DATE(score!$B$1,AO3,AO4),data!$A$3:$A$1000,"<="&DATE(score!$B$1,AP3,AP4)),"") -> 0 | AP22: =IFERROR(SUMIFS(data!$L$3:$L$1000,data!$B$3:$B$1000,score!$B$22,data!$A$3:$A$1000,">="&DATE(score!$B$1,AP3,AP4),data!$A$3:$A$1000,"<="&DATE(score!$B$1,AQ3,AQ4)),"") -> 0 | AQ22: =IFERROR(SUMIFS(data!$L$3:$L$1000,data!$B$3:$B$1000,score!$B$22,data!$A$3:$A$1000,">="&DATE(score!$B$1,AQ3,AQ4),data!$A$3:$A$1000,"<="&DATE(score!$B$1,AR3,AR4)),"") -> 0 | AR22: =IFERROR(SUMIFS(data!$L$3:$L$1000,data!$B$3:$B$1000,score!$B$22,data!$A$3:$A$1000,">="&DATE(score!$B$1,AR3,AR4),data!$A$3:$A$1000,"<="&DATE(score!$B$1,AS3,AS4)),"") -> 0 | AS22: =IFERROR(SUMIFS(data!$L$3:$L$1000,data!$B$3:$B$1000,score!$B$22,data!$A$3:$A$1000,">="&DATE(score!$B$1,AS3,AS4),data!$A$3:$A$1000,"<="&DATE(score!$B$1,AT3,AT4)),"") -> 0 | AT22: =IFERROR(SUMIFS(data!$L$3:$L$1000,data!$B$3:$B$1000,score!$B$22,data!$A$3:$A$1000,">="&DATE(score!$B$1,AT3,AT4),data!$A$3:$A$1000,"<="&DATE(score!$B$1,AU3,AU4)),"") -> 0 | AU22: =IFERROR(SUMIFS(data!$L$3:$L$1000,data!$B$3:$B$1000,score!$B$22,data!$A$3:$A$1000,">="&DATE(score!$B$1,AU3,AU4),data!$A$3:$A$1000,"<="&DATE(score!$B$1,AV3,AV4)),"") -> 0 | AV22: =IFERROR(SUMIFS(data!$L$3:$L$1000,data!$B$3:$B$1000,score!$B$22,data!$A$3:$A$1000,">="&DATE(score!$B$1,AV3,AV4),data!$A$3:$A$1000,"<="&DATE(score!$B$1,AW3,AW4)),"") -> 0 | AW22: =IFERROR(SUMIFS(data!$L$3:$L$1000,data!$B$3:$B$1000,score!$B$22,data!$A$3:$A$1000,">="&DATE(score!$B$1,AW3,AW4),data!$A$3:$A$1000,"<="&DATE(score!$B$1,AX3,AX4)),"") -> 0 | AX22: =IFERROR(SUMIFS(data!$L$3:$L$1000,data!$B$3:$B$1000,score!$B$22,data!$A$3:$A$1000,">="&DATE(score!$B$1,AX3,AX4),data!$A$3:$A$1000,"<="&DATE(score!$B$1,AY3,AY4)),"") -> 0 | AY22: =IFERROR(SUMIFS(data!$L$3:$L$1000,data!$B$3:$B$1000,score!$B$22,data!$A$3:$A$1000,">="&DATE(score!$B$1,AY3,AY4),data!$A$3:$A$1000,"<="&DATE(score!$B$1,AZ3,AZ4)),"") -> 0 | AZ22: =IFERROR(SUMIFS(data!$L$3:$L$1000,data!$B$3:$B$1000,score!$B$22,data!$A$3:$A$1000,">="&DATE(score!$B$1,AZ3,AZ4),data!$A$3:$A$1000,"<="&DATE(score!$B$1,BA3,BA4)),"") -> 0 | BA22: =IFERROR(SUMIFS(data!$L$3:$L$1000,data!$B$3:$B$1000,score!$B$22,data!$A$3:$A$1000,">="&DATE(score!$B$1,BA3,BA4),data!$A$3:$A$1000,"<="&DATE(score!$B$1,BB3,BB4)),"") -> 0 | BB22: =IFERROR(SUMIFS(data!$L$3:$L$1000,data!$B$3:$B$1000,score!$B$22,data!$A$3:$A$1000,">="&DATE(score!$B$1,BB3,BB4),data!$A$3:$A$1000,"<="&DATE(score!$B$1,BC3,BC4)),"") -> 0
C23: =IFERROR(SUMIFS(data!$L$3:$L$1000,data!$B$3:$B$1000,score!$B$23,data!$A$3:$A$1000,">="&DATE(score!$B$1,C3,C4),data!$A$3:$A$1000,"<="&DATE(score!$B$1,D3,D4)),"") -> 0 | D23: =IFERROR(SUMIFS(data!$L$3:$L$1000,data!$B$3:$B$1000,score!$B$23,data!$A$3:$A$1000,">="&DATE(score!$B$1,D3,D4),data!$A$3:$A$1000,"<="&DATE(score!$B$1,E3,E4)),"") -> 0 | E23: =IFERROR(SUMIFS(data!$L$3:$L$1000,data!$B$3:$B$1000,score!$B$23,data!$A$3:$A$1000,">="&DATE(score!$B$1,E3,E4),data!$A$3:$A$1000,"<="&DATE(score!$B$1,F3,F4)),"") -> 0 | F23: =IFERROR(SUMIFS(data!$L$3:$L$1000,data!$B$3:$B$1000,score!$B$23,data!$A$3:$A$1000,">="&DATE(score!$B$1,F3,F4),data!$A$3:$A$1000,"<="&DATE(score!$B$1,G3,G4)),"") -> 0 | G23: =IFERROR(SUMIFS(data!$L$3:$L$1000,data!$B$3:$B$1000,score!$B$23,data!$A$3:$A$1000,">="&DATE(score!$B$1,G3,G4),data!$A$3:$A$1000,"<="&DATE(score!$B$1,H3,H4)),"") -> 0 | H23: =IFERROR(SUMIFS(data!$L$3:$L$1000,data!$B$3:$B$1000,score!$B$23,data!$A$3:$A$1000,">="&DATE(score!$B$1,H3,H4),data!$A$3:$A$1000,"<="&DATE(score!$B$1,I3,I4)),"") -> 0 | I23: =IFERROR(SUMIFS(data!$L$3:$L$1000,data!$B$3:$B$1000,score!$B$23,data!$A$3:$A$1000,">="&DATE(score!$B$1,I3,I4),data!$A$3:$A$1000,"<="&DATE(score!$B$1,J3,J4)),"") -> 0 | J23: =IFERROR(SUMIFS(data!$L$3:$L$1000,data!$B$3:$B$1000,score!$B$23,data!$A$3:$A$1000,">="&DATE(score!$B$1,J3,J4),data!$A$3:$A$1000,"<="&DATE(score!$B$1,K3,K4)),"") -> 0 | K23: =IFERROR(SUMIFS(data!$L$3:$L$1000,data!$B$3:$B$1000,score!$B$23,data!$A$3:$A$1000,">="&DATE(score!$B$1,K3,K4),data!$A$3:$A$1000,"<="&DATE(score!$B$1,L3,L4)),"") -> 0 | L23: =IFERROR(SUMIFS(data!$L$3:$L$1000,data!$B$3:$B$1000,score!$B$23,data!$A$3:$A$1000,">="&DATE(score!$B$1,L3,L4),data!$A$3:$A$1000,"<="&DATE(score!$B$1,M3,M4)),"") -> 0 | M23: =IFERROR(SUMIFS(data!$L$3:$L$1000,data!$B$3:$B$1000,score!$B$23,data!$A$3:$A$1000,">="&DATE(score!$B$1,M3,M4),data!$A$3:$A$1000,"<="&DATE(score!$B$1,N3,N4)),"") -> 0 | N23: =IFERROR(SUMIFS(data!$L$3:$L$1000,data!$B$3:$B$1000,score!$B$23,data!$A$3:$A$1000,">="&DATE(score!$B$1,N3,N4),data!$A$3:$A$1000,"<="&DATE(score!$B$1,O3,O4)),"") -> 0 | O23: =IFERROR(SUMIFS(data!$L$3:$L$1000,data!$B$3:$B$1000,score!$B$23,data!$A$3:$A$1000,">="&DATE(score!$B$1,O3,O4),data!$A$3:$A$1000,"<="&DATE(score!$B$1,P3,P4)),"") -> 0 | P23: =IFERROR(SUMIFS(data!$L$3:$L$1000,data!$B$3:$B$1000,score!$B$23,data!$A$3:$A$1000,">="&DATE(score!$B$1,P3,P4),data!$A$3:$A$1000,"<="&DATE(score!$B$1,Q3,Q4)),"") -> 0 | Q23: =IFERROR(SUMIFS(data!$L$3:$L$1000,data!$B$3:$B$1000,score!$B$23,data!$A$3:$A$1000,">="&DATE(score!$B$1,Q3,Q4),data!$A$3:$A$1000,"<="&DATE(score!$B$1,R3,R4)),"") -> 0 | R23: =IFERROR(SUMIFS(data!$L$3:$L$1000,data!$B$3:$B$1000,score!$B$23,data!$A$3:$A$1000,">="&DATE(score!$B$1,R3,R4),data!$A$3:$A$1000,"<="&DATE(score!$B$1,S3,S4)),"") -> 0 | S23: =IFERROR(SUMIFS(data!$L$3:$L$1000,data!$B$3:$B$1000,score!$B$23,data!$A$3:$A$1000,">="&DATE(score!$B$1,S3,S4),data!$A$3:$A$1000,"<="&DATE(score!$B$1,T3,T4)),"") -> 0 | T23: =IFERROR(SUMIFS(data!$L$3:$L$1000,data!$B$3:$B$1000,score!$B$23,data!$A$3:$A$1000,">="&DATE(score!$B$1,T3,T4),data!$A$3:$A$1000,"<="&DATE(score!$B$1,U3,U4)),"") -> 0 | U23: =IFERROR(SUMIFS(data!$L$3:$L$1000,data!$B$3:$B$1000,score!$B$23,data!$A$3:$A$1000,">="&DATE(score!$B$1,U3,U4),data!$A$3:$A$1000,"<="&DATE(score!$B$1,V3,V4)),"") -> 0 | V23: =IFERROR(SUMIFS(data!$L$3:$L$1000,data!$B$3:$B$1000,score!$B$23,data!$A$3:$A$1000,">="&DATE(score!$B$1,V3,V4),data!$A$3:$A$1000,"<="&DATE(score!$B$1,W3,W4)),"") -> 0 | W23: =IFERROR(SUMIFS(data!$L$3:$L$1000,data!$B$3:$B$1000,score!$B$23,data!$A$3:$A$1000,">="&DATE(score!$B$1,W3,W4),data!$A$3:$A$1000,"<="&DATE(score!$B$1,X3,X4)),"") -> 0 | X23: =IFERROR(SUMIFS(data!$L$3:$L$1000,data!$B$3:$B$1000,score!$B$23,data!$A$3:$A$1000,">="&DATE(score!$B$1,X3,X4),data!$A$3:$A$1000,"<="&DATE(score!$B$1,Y3,Y4)),"") -> 0 | Y23: =IFERROR(SUMIFS(data!$L$3:$L$1000,data!$B$3:$B$1000,score!$B$23,data!$A$3:$A$1000,">="&DATE(score!$B$1,Y3,Y4),data!$A$3:$A$1000,"<="&DATE(score!$B$1,Z3,Z4)),"") -> 0 | Z23: =IFERROR(SUMIFS(data!$L$3:$L$1000,data!$B$3:$B$1000,score!$B$23,data!$A$3:$A$1000,">="&DATE(score!$B$1,Z3,Z4),data!$A$3:$A$1000,"<="&DATE(score!$B$1,AA3,AA4)),"") -> 0 | AA23: =IFERROR(SUMIFS(data!$L$3:$L$1000,data!$B$3:$B$1000,score!$B$23,data!$A$3:$A$1000,">="&DATE(score!$B$1,AA3,AA4),data!$A$3:$A$1000,"<="&DATE(score!$B$1,AB3,AB4)),"") -> 0 | AB23: =IFERROR(SUMIFS(data!$L$3:$L$1000,data!$B$3:$B$1000,score!$B$23,data!$A$3:$A$1000,">="&DATE(score!$B$1,AB3,AB4),data!$A$3:$A$1000,"<="&DATE(score!$B$1,AC3,AC4)),"") -> 0 | AC23: =IFERROR(SUMIFS(data!$L$3:$L$1000,data!$B$3:$B$1000,score!$B$23,data!$A$3:$A$1000,">="&DATE(score!$B$1,AC3,AC4),data!$A$3:$A$1000,"<="&DATE(score!$B$1,AD3,AD4)),"") -> 0 | AD23: =IFERROR(SUMIFS(data!$L$3:$L$1000,data!$B$3:$B$1000,score!$B$23,data!$A$3:$A$1000,">="&DATE(score!$B$1,AD3,AD4),data!$A$3:$A$1000,"<="&DATE(score!$B$1,AE3,AE4)),"") -> 0 | AE23: =IFERROR(SUMIFS(data!$L$3:$L$1000,data!$B$3:$B$1000,score!$B$23,data!$A$3:$A$1000,">="&DATE(score!$B$1,AE3,AE4),data!$A$3:$A$1000,"<="&DATE(score!$B$1,AF3,AF4)),"") -> 0 | AF23: =IFERROR(SUMIFS(data!$L$3:$L$1000,data!$B$3:$B$1000,score!$B$23,data!$A$3:$A$1000,">="&DATE(score!$B$1,AF3,AF4),data!$A$3:$A$1000,"<="&DATE(score!$B$1,AG3,AG4)),"") -> 0 | AG23: =IFERROR(SUMIFS(data!$L$3:$L$1000,data!$B$3:$B$1000,score!$B$23,data!$A$3:$A$1000,">="&DATE(score!$B$1,AG3,AG4),data!$A$3:$A$1000,"<="&DATE(score!$B$1,AH3,AH4)),"") -> 0 | AH23: =IFERROR(SUMIFS(data!$L$3:$L$1000,data!$B$3:$B$1000,score!$B$23,data!$A$3:$A$1000,">="&DATE(score!$B$1,AH3,AH4),data!$A$3:$A$1000,"<="&DATE(score!$B$1,AI3,AI4)),"") -> 0 | AI23: =IFERROR(SUMIFS(data!$L$3:$L$1000,data!$B$3:$B$1000,score!$B$23,data!$A$3:$A$1000,">="&DATE(score!$B$1,AI3,AI4),data!$A$3:$A$1000,"<="&DATE(score!$B$1,AJ3,AJ4)),"") -> 0 | AJ23: =IFERROR(SUMIFS(data!$L$3:$L$1000,data!$B$3:$B$1000,score!$B$23,data!$A$3:$A$1000,">="&DATE(score!$B$1,AJ3,AJ4),data!$A$3:$A$1000,"<="&DATE(score!$B$1,AK3,AK4)),"") -> 0 | AK23: =IFERROR(SUMIFS(data!$L$3:$L$1000,data!$B$3:$B$1000,score!$B$23,data!$A$3:$A$1000,">="&DATE(score!$B$1,AK3,AK4),data!$A$3:$A$1000,"<="&DATE(score!$B$1,AL3,AL4)),"") -> 0 | AL23: =IFERROR(SUMIFS(data!$L$3:$L$1000,data!$B$3:$B$1000,score!$B$23,data!$A$3:$A$1000,">="&DATE(score!$B$1,AL3,AL4),data!$A$3:$A$1000,"<="&DATE(score!$B$1,AM3,AM4)),"") -> 0 | AM23: =IFERROR(SUMIFS(data!$L$3:$L$1000,data!$B$3:$B$1000,score!$B$23,data!$A$3:$A$1000,">="&DATE(score!$B$1,AM3,AM4),data!$A$3:$A$1000,"<="&DATE(score!$B$1,AN3,AN4)),"") -> 0 | AN23: =IFERROR(SUMIFS(data!$L$3:$L$1000,data!$B$3:$B$1000,score!$B$23,data!$A$3:$A$1000,">="&DATE(score!$B$1,AN3,AN4),data!$A$3:$A$1000,"<="&DATE(score!$B$1,AO3,AO4)),"") -> 0 | AO23: =IFERROR(SUMIFS(data!$L$3:$L$1000,data!$B$3:$B$1000,score!$B$23,data!$A$3:$A$1000,">="&DATE(score!$B$1,AO3,AO4),data!$A$3:$A$1000,"<="&DATE(score!$B$1,AP3,AP4)),"") -> 0 | AP23: =IFERROR(SUMIFS(data!$L$3:$L$1000,data!$B$3:$B$1000,score!$B$23,data!$A$3:$A$1000,">="&DATE(score!$B$1,AP3,AP4),data!$A$3:$A$1000,"<="&DATE(score!$B$1,AQ3,AQ4)),"") -> 0 | AQ23: =IFERROR(SUMIFS(data!$L$3:$L$1000,data!$B$3:$B$1000,score!$B$23,data!$A$3:$A$1000,">="&DATE(score!$B$1,AQ3,AQ4),data!$A$3:$A$1000,"<="&DATE(score!$B$1,AR3,AR4)),"") -> 0 | AR23: =IFERROR(SUMIFS(data!$L$3:$L$1000,data!$B$3:$B$1000,score!$B$23,data!$A$3:$A$1000,">="&DATE(score!$B$1,AR3,AR4),data!$A$3:$A$1000,"<="&DATE(score!$B$1,AS3,AS4)),"") -> 0 | AS23: =IFERROR(SUMIFS(data!$L$3:$L$1000,data!$B$3:$B$1000,score!$B$23,data!$A$3:$A$1000,">="&DATE(score!$B$1,AS3,AS4),data!$A$3:$A$1000,"<="&DATE(score!$B$1,AT3,AT4)),"") -> 0 | AT23: =IFERROR(SUMIFS(data!$L$3:$L$1000,data!$B$3:$B$1000,score!$B$23,data!$A$3:$A$1000,">="&DATE(score!$B$1,AT3,AT4),data!$A$3:$A$1000,"<="&DATE(score!$B$1,AU3,AU4)),"") -> 0 | AU23: =IFERROR(SUMIFS(data!$L$3:$L$1000,data!$B$3:$B$1000,score!$B$23,data!$A$3:$A$1000,">="&DATE(score!$B$1,AU3,AU4),data!$A$3:$A$1000,"<="&DATE(score!$B$1,AV3,AV4)),"") -> 0 | AV23: =IFERROR(SUMIFS(data!$L$3:$L$1000,data!$B$3:$B$1000,score!$B$23,data!$A$3:$A$1000,">="&DATE(score!$B$1,AV3,AV4),data!$A$3:$A$1000,"<="&DATE(score!$B$1,AW3,AW4)),"") -> 0 | AW23: =IFERROR(SUMIFS(data!$L$3:$L$1000,data!$B$3:$B$1000,score!$B$23,data!$A$3:$A$1000,">="&DATE(score!$B$1,AW3,AW4),data!$A$3:$A$1000,"<="&DATE(score!$B$1,AX3,AX4)),"") -> 0 | AX23: =IFERROR(SUMIFS(data!$L$3:$L$1000,data!$B$3:$B$1000,score!$B$23,data!$A$3:$A$1000,">="&DATE(score!$B$1,AX3,AX4),data!$A$3:$A$1000,"<="&DATE(score!$B$1,AY3,AY4)),"") -> 0 | AY23: =IFERROR(SUMIFS(data!$L$3:$L$1000,data!$B$3:$B$1000,score!$B$23,data!$A$3:$A$1000,">="&DATE(score!$B$1,AY3,AY4),data!$A$3:$A$1000,"<="&DATE(score!$B$1,AZ3,AZ4)),"") -> 0 | AZ23: =IFERROR(SUMIFS(data!$L$3:$L$1000,data!$B$3:$B$1000,score!$B$23,data!$A$3:$A$1000,">="&DATE(score!$B$1,AZ3,AZ4),data!$A$3:$A$1000,"<="&DATE(score!$B$1,BA3,BA4)),"") -> 0 | BA23: =IFERROR(SUMIFS(data!$L$3:$L$1000,data!$B$3:$B$1000,score!$B$23,data!$A$3:$A$1000,">="&DATE(score!$B$1,BA3,BA4),data!$A$3:$A$1000,"<="&DATE(score!$B$1,BB3,BB4)),"") -> 0 | BB23: =IFERROR(SUMIFS(data!$L$3:$L$1000,data!$B$3:$B$1000,score!$B$23,data!$A$3:$A$1000,">="&DATE(score!$B$1,BB3,BB4),data!$A$3:$A$1000,"<="&DATE(score!$B$1,BC3,BC4)),"") -> 0
C24: =IFERROR(SUMIFS(data!$L$3:$L$1000,data!$B$3:$B$1000,score!$B$24,data!$A$3:$A$1000,">="&DATE(score!$B$1,C3,C4),data!$A$3:$A$1000,"<="&DATE(score!$B$1,D3,D4)),"") -> 0 | D24: =IFERROR(SUMIFS(data!$L$3:$L$1000,data!$B$3:$B$1000,score!$B$24,data!$A$3:$A$1000,">="&DATE(score!$B$1,D3,D4),data!$A$3:$A$1000,"<="&DATE(score!$B$1,E3,E4)),"") -> 0 | E24: =IFERROR(SUMIFS(data!$L$3:$L$1000,data!$B$3:$B$1000,score!$B$24,data!$A$3:$A$1000,">="&DATE(score!$B$1,E3,E4),data!$A$3:$A$1000,"<="&DATE(score!$B$1,F3,F4)),"") -> 0 | F24: =IFERROR(SUMIFS(data!$L$3:$L$1000,data!$B$3:$B$1000,score!$B$24,data!$A$3:$A$1000,">="&DATE(score!$B$1,F3,F4),data!$A$3:$A$1000,"<="&DATE(score!$B$1,G3,G4)),"") -> 0 | G24: =IFERROR(SUMIFS(data!$L$3:$L$1000,data!$B$3:$B$1000,score!$B$24,data!$A$3:$A$1000,">="&DATE(score!$B$1,G3,G4),data!$A$3:$A$1000,"<="&DATE(score!$B$1,H3,H4)),"") -> 0 | H24: =IFERROR(SUMIFS(data!$L$3:$L$1000,data!$B$3:$B$1000,score!$B$24,data!$A$3:$A$1000,">="&DATE(score!$B$1,H3,H4),data!$A$3:$A$1000,"<="&DATE(score!$B$1,I3,I4)),"") -> 0 | I24: =IFERROR(SUMIFS(data!$L$3:$L$1000,data!$B$3:$B$1000,score!$B$24,data!$A$3:$A$1000,">="&DATE(score!$B$1,I3,I4),data!$A$3:$A$1000,"<="&DATE(score!$B$1,J3,J4)),"") -> 0 | J24: =IFERROR(SUMIFS(data!$L$3:$L$1000,data!$B$3:$B$1000,score!$B$24,data!$A$3:$A$1000,">="&DATE(score!$B$1,J3,J4),data!$A$3:$A$1000,"<="&DATE(score!$B$1,K3,K4)),"") -> 0 | K24: =IFERROR(SUMIFS(data!$L$3:$L$1000,data!$B$3:$B$1000,score!$B$24,data!$A$3:$A$1000,">="&DATE(score!$B$1,K3,K4),data!$A$3:$A$1000,"<="&DATE(score!$B$1,L3,L4)),"") -> 0 | L24: =IFERROR(SUMIFS(data!$L$3:$L$1000,data!$B$3:$B$1000,score!$B$24,data!$A$3:$A$1000,">="&DATE(score!$B$1,L3,L4),data!$A$3:$A$1000,"<="&DATE(score!$B$1,M3,M4)),"") -> 0 | M24: =IFERROR(SUMIFS(data!$L$3:$L$1000,data!$B$3:$B$1000,score!$B$24,data!$A$3:$A$1000,">="&DATE(score!$B$1,M3,M4),data!$A$3:$A$1000,"<="&DATE(score!$B$1,N3,N4)),"") -> 0 | N24: =IFERROR(SUMIFS(data!$L$3:$L$1000,data!$B$3:$B$1000,score!$B$24,data!$A$3:$A$1000,">="&DATE(score!$B$1,N3,N4),data!$A$3:$A$1000,"<="&DATE(score!$B$1,O3,O4)),"") -> 0 | O24: =IFERROR(SUMIFS(data!$L$3:$L$1000,data!$B$3:$B$1000,score!$B$24,data!$A$3:$A$1000,">="&DATE(score!$B$1,O3,O4),data!$A$3:$A$1000,"<="&DATE(score!$B$1,P3,P4)),"") -> 0 | P24: =IFERROR(SUMIFS(data!$L$3:$L$1000,data!$B$3:$B$1000,score!$B$24,data!$A$3:$A$1000,">="&DATE(score!$B$1,P3,P4),data!$A$3:$A$1000,"<="&DATE(score!$B$1,Q3,Q4)),"") -> 0 | Q24: =IFERROR(SUMIFS(data!$L$3:$L$1000,data!$B$3:$B$1000,score!$B$24,data!$A$3:$A$1000,">="&DATE(score!$B$1,Q3,Q4),data!$A$3:$A$1000,"<="&DATE(score!$B$1,R3,R4)),"") -> 0 | R24: =IFERROR(SUMIFS(data!$L$3:$L$1000,data!$B$3:$B$1000,score!$B$24,data!$A$3:$A$1000,">="&DATE(score!$B$1,R3,R4),data!$A$3:$A$1000,"<="&DATE(score!$B$1,S3,S4)),"") -> 0 | S24: =IFERROR(SUMIFS(data!$L$3:$L$1000,data!$B$3:$B$1000,score!$B$24,data!$A$3:$A$1000,">="&DATE(score!$B$1,S3,S4),data!$A$3:$A$1000,"<="&DATE(score!$B$1,T3,T4)),"") -> 0 | T24: =IFERROR(SUMIFS(data!$L$3:$L$1000,data!$B$3:$B$1000,score!$B$24,data!$A$3:$A$1000,">="&DATE(score!$B$1,T3,T4),data!$A$3:$A$1000,"<="&DATE(score!$B$1,U3,U4)),"") -> 0 | U24: =IFERROR(SUMIFS(data!$L$3:$L$1000,data!$B$3:$B$1000,score!$B$24,data!$A$3:$A$1000,">="&DATE(score!$B$1,U3,U4),data!$A$3:$A$1000,"<="&DATE(score!$B$1,V3,V4)),"") -> 0 | V24: =IFERROR(SUMIFS(data!$L$3:$L$1000,data!$B$3:$B$1000,score!$B$24,data!$A$3:$A$1000,">="&DATE(score!$B$1,V3,V4),data!$A$3:$A$1000,"<="&DATE(score!$B$1,W3,W4)),"") -> 0 | W24: =IFERROR(SUMIFS(data!$L$3:$L$1000,data!$B$3:$B$1000,score!$B$24,data!$A$3:$A$1000,">="&DATE(score!$B$1,W3,W4),data!$A$3:$A$1000,"<="&DATE(score!$B$1,X3,X4)),"") -> 0 | X24: =IFERROR(SUMIFS(data!$L$3:$L$1000,data!$B$3:$B$1000,score!$B$24,data!$A$3:$A$1000,">="&DATE(score!$B$1,X3,X4),data!$A$3:$A$1000,"<="&DATE(score!$B$1,Y3,Y4)),"") -> 0 | Y24: =IFERROR(SUMIFS(data!$L$3:$L$1000,data!$B$3:$B$1000,score!$B$24,data!$A$3:$A$1000,">="&DATE(score!$B$1,Y3,Y4),data!$A$3:$A$1000,"<="&DATE(score!$B$1,Z3,Z4)),"") -> 0 | Z24: =IFERROR(SUMIFS(data!$L$3:$L$1000,data!$B$3:$B$1000,score!$B$24,data!$A$3:$A$1000,">="&DATE(score!$B$1,Z3,Z4),data!$A$3:$A$1000,"<="&DATE(score!$B$1,AA3,AA4)),"") -> 0 | AA24: =IFERROR(SUMIFS(data!$L$3:$L$1000,data!$B$3:$B$1000,score!$B$24,data!$A$3:$A$1000,">="&DATE(score!$B$1,AA3,AA4),data!$A$3:$A$1000,"<="&DATE(score!$B$1,AB3,AB4)),"") -> 0 | AB24: =IFERROR(SUMIFS(data!$L$3:$L$1000,data!$B$3:$B$1000,score!$B$24,data!$A$3:$A$1000,">="&DATE(score!$B$1,AB3,AB4),data!$A$3:$A$1000,"<="&DATE(score!$B$1,AC3,AC4)),"") -> 0 | AC24: =IFERROR(SUMIFS(data!$L$3:$L$1000,data!$B$3:$B$1000,score!$B$24,data!$A$3:$A$1000,">="&DATE(score!$B$1,AC3,AC4),data!$A$3:$A$1000,"<="&DATE(score!$B$1,AD3,AD4)),"") -> 0 | AD24: =IFERROR(SUMIFS(data!$L$3:$L$1000,data!$B$3:$B$1000,score!$B$24,data!$A$3:$A$1000,">="&DATE(score!$B$1,AD3,AD4),data!$A$3:$A$1000,"<="&DATE(score!$B$1,AE3,AE4)),"") -> 0 | AE24: =IFERROR(SUMIFS(data!$L$3:$L$1000,data!$B$3:$B$1000,score!$B$24,data!$A$3:$A$1000,">="&DATE(score!$B$1,AE3,AE4),data!$A$3:$A$1000,"<="&DATE(score!$B$1,AF3,AF4)),"") -> 0 | AF24: =IFERROR(SUMIFS(data!$L$3:$L$1000,data!$B$3:$B$1000,score!$B$24,data!$A$3:$A$1000,">="&DATE(score!$B$1,AF3,AF4),data!$A$3:$A$1000,"<="&DATE(score!$B$1,AG3,AG4)),"") -> 0 | AG24: =IFERROR(SUMIFS(data!$L$3:$L$1000,data!$B$3:$B$1000,score!$B$24,data!$A$3:$A$1000,">="&DATE(score!$B$1,AG3,AG4),data!$A$3:$A$1000,"<="&DATE(score!$B$1,AH3,AH4)),"") -> 0 | AH24: =IFERROR(SUMIFS(data!$L$3:$L$1000,data!$B$3:$B$1000,score!$B$24,data!$A$3:$A$1000,">="&DATE(score!$B$1,AH3,AH4),data!$A$3:$A$1000,"<="&DATE(score!$B$1,AI3,AI4)),"") -> 0 | AI24: =IFERROR(SUMIFS(data!$L$3:$L$1000,data!$B$3:$B$1000,score!$B$24,data!$A$3:$A$1000,">="&DATE(score!$B$1,AI3,AI4),data!$A$3:$A$1000,"<="&DATE(score!$B$1,AJ3,AJ4)),"") -> 0 | AJ24: =IFERROR(SUMIFS(data!$L$3:$L$1000,data!$B$3:$B$1000,score!$B$24,data!$A$3:$A$1000,">="&DATE(score!$B$1,AJ3,AJ4),data!$A$3:$A$1000,"<="&DATE(score!$B$1,AK3,AK4)),"") -> 0 | AK24: =IFERROR(SUMIFS(data!$L$3:$L$1000,data!$B$3:$B$1000,score!$B$24,data!$A$3:$A$1000,">="&DATE(score!$B$1,AK3,AK4),data!$A$3:$A$1000,"<="&DATE(score!$B$1,AL3,AL4)),"") -> 0 | AL24: =IFERROR(SUMIFS(data!$L$3:$L$1000,data!$B$3:$B$1000,score!$B$24,data!$A$3:$A$1000,">="&DATE(score!$B$1,AL3,AL4),data!$A$3:$A$1000,"<="&DATE(score!$B$1,AM3,AM4)),"") -> 0 | AM24: =IFERROR(SUMIFS(data!$L$3:$L$1000,data!$B$3:$B$1000,score!$B$24,data!$A$3:$A$1000,">="&DATE(score!$B$1,AM3,AM4),data!$A$3:$A$1000,"<="&DATE(score!$B$1,AN3,AN4)),"") -> 0 | AN24: =IFERROR(SUMIFS(data!$L$3:$L$1000,data!$B$3:$B$1000,score!$B$24,data!$A$3:$A$1000,">="&DATE(score!$B$1,AN3,AN4),data!$A$3:$A$1000,"<="&DATE(score!$B$1,AO3,AO4)),"") -> 0 | AO24: =IFERROR(SUMIFS(data!$L$3:$L$1000,data!$B$3:$B$1000,score!$B$24,data!$A$3:$A$1000,">="&DATE(score!$B$1,AO3,AO4),data!$A$3:$A$1000,"<="&DATE(score!$B$1,AP3,AP4)),"") -> 0 | AP24: =IFERROR(SUMIFS(data!$L$3:$L$1000,data!$B$3:$B$1000,score!$B$24,data!$A$3:$A$1000,">="&DATE(score!$B$1,AP3,AP4),data!$A$3:$A$1000,"<="&DATE(score!$B$1,AQ3,AQ4)),"") -> 0 | AQ24: =IFERROR(SUMIFS(data!$L$3:$L$1000,data!$B$3:$B$1000,score!$B$24,data!$A$3:$A$1000,">="&DATE(score!$B$1,AQ3,AQ4),data!$A$3:$A$1000,"<="&DATE(score!$B$1,AR3,AR4)),"") -> 0 | AR24: =IFERROR(SUMIFS(data!$L$3:$L$1000,data!$B$3:$B$1000,score!$B$24,data!$A$3:$A$1000,">="&DATE(score!$B$1,AR3,AR4),data!$A$3:$A$1000,"<="&DATE(score!$B$1,AS3,AS4)),"") -> 0 | AS24: =IFERROR(SUMIFS(data!$L$3:$L$1000,data!$B$3:$B$1000,score!$B$24,data!$A$3:$A$1000,">="&DATE(score!$B$1,AS3,AS4),data!$A$3:$A$1000,"<="&DATE(score!$B$1,AT3,AT4)),"") -> 0 | AT24: =IFERROR(SUMIFS(data!$L$3:$L$1000,data!$B$3:$B$1000,score!$B$24,data!$A$3:$A$1000,">="&DATE(score!$B$1,AT3,AT4),data!$A$3:$A$1000,"<="&DATE(score!$B$1,AU3,AU4)),"") -> 0 | AU24: =IFERROR(SUMIFS(data!$L$3:$L$1000,data!$B$3:$B$1000,score!$B$24,data!$A$3:$A$1000,">="&DATE(score!$B$1,AU3,AU4),data!$A$3:$A$1000,"<="&DATE(score!$B$1,AV3,AV4)),"") -> 0 | AV24: =IFERROR(SUMIFS(data!$L$3:$L$1000,data!$B$3:$B$1000,score!$B$24,data!$A$3:$A$1000,">="&DATE(score!$B$1,AV3,AV4),data!$A$3:$A$1000,"<="&DATE(score!$B$1,AW3,AW4)),"") -> 0 | AW24: =IFERROR(SUMIFS(data!$L$3:$L$1000,data!$B$3:$B$1000,score!$B$24,data!$A$3:$A$1000,">="&DATE(score!$B$1,AW3,AW4),data!$A$3:$A$1000,"<="&DATE(score!$B$1,AX3,AX4)),"") -> 0 | AX24: =IFERROR(SUMIFS(data!$L$3:$L$1000,data!$B$3:$B$1000,score!$B$24,data!$A$3:$A$1000,">="&DATE(score!$B$1,AX3,AX4),data!$A$3:$A$1000,"<="&DATE(score!$B$1,AY3,AY4)),"") -> 0 | AY24: =IFERROR(SUMIFS(data!$L$3:$L$1000,data!$B$3:$B$1000,score!$B$24,data!$A$3:$A$1000,">="&DATE(score!$B$1,AY3,AY4),data!$A$3:$A$1000,"<="&DATE(score!$B$1,AZ3,AZ4)),"") -> 0 | AZ24: =IFERROR(SUMIFS(data!$L$3:$L$1000,data!$B$3:$B$1000,score!$B$24,data!$A$3:$A$1000,">="&DATE(score!$B$1,AZ3,AZ4),data!$A$3:$A$1000,"<="&DATE(score!$B$1,BA3,BA4)),"") -> 0 | BA24: =IFERROR(SUMIFS(data!$L$3:$L$1000,data!$B$3:$B$1000,score!$B$24,data!$A$3:$A$1000,">="&DATE(score!$B$1,BA3,BA4),data!$A$3:$A$1000,"<="&DATE(score!$B$1,BB3,BB4)),"") -> 0 | BB24: =IFERROR(SUMIFS(data!$L$3:$L$1000,data!$B$3:$B$1000,score!$B$24,data!$A$3:$A$1000,">="&DATE(score!$B$1,BB3,BB4),data!$A$3:$A$1000,"<="&DATE(score!$B$1,BC3,BC4)),"") -> 0
C25: =IFERROR(SUMIFS(data!$L$3:$L$1000,data!$B$3:$B$1000,score!$B$25,data!$A$3:$A$1000,">="&DATE(score!$B$1,C3,C4),data!$A$3:$A$1000,"<="&DATE(score!$B$1,D3,D4)),"") -> 0 | D25: =IFERROR(SUMIFS(data!$L$3:$L$1000,data!$B$3:$B$1000,score!$B$25,data!$A$3:$A$1000,">="&DATE(score!$B$1,D3,D4),data!$A$3:$A$1000,"<="&DATE(score!$B$1,E3,E4)),"") -> 0 | E25: =IFERROR(SUMIFS(data!$L$3:$L$1000,data!$B$3:$B$1000,score!$B$25,data!$A$3:$A$1000,">="&DATE(score!$B$1,E3,E4),data!$A$3:$A$1000,"<="&DATE(score!$B$1,F3,F4)),"") -> 0 | F25: =IFERROR(SUMIFS(data!$L$3:$L$1000,data!$B$3:$B$1000,score!$B$25,data!$A$3:$A$1000,">="&DATE(score!$B$1,F3,F4),data!$A$3:$A$1000,"<="&DATE(score!$B$1,G3,G4)),"") -> 0 | G25: =IFERROR(SUMIFS(data!$L$3:$L$1000,data!$B$3:$B$1000,score!$B$25,data!$A$3:$A$1000,">="&DATE(score!$B$1,G3,G4),data!$A$3:$A$1000,"<="&DATE(score!$B$1,H3,H4)),"") -> 0 | H25: =IFERROR(SUMIFS(data!$L$3:$L$1000,data!$B$3:$B$1000,score!$B$25,data!$A$3:$A$1000,">="&DATE(score!$B$1,H3,H4),data!$A$3:$A$1000,"<="&DATE(score!$B$1,I3,I4)),"") -> 0 | I25: =IFERROR(SUMIFS(data!$L$3:$L$1000,data!$B$3:$B$1000,score!$B$25,data!$A$3:$A$1000,">="&DATE(score!$B$1,I3,I4),data!$A$3:$A$1000,"<="&DATE(score!$B$1,J3,J4)),"") -> 0 | J25: =IFERROR(SUMIFS(data!$L$3:$L$1000,data!$B$3:$B$1000,score!$B$25,data!$A$3:$A$1000,">="&DATE(score!$B$1,J3,J4),data!$A$3:$A$1000,"<="&DATE(score!$B$1,K3,K4)),"") -> 0 | K25: =IFERROR(SUMIFS(data!$L$3:$L$1000,data!$B$3:$B$1000,score!$B$25,data!$A$3:$A$1000,">="&DATE(score!$B$1,K3,K4),data!$A$3:$A$1000,"<="&DATE(score!$B$1,L3,L4)),"") -> 0 | L25: =IFERROR(SUMIFS(data!$L$3:$L$1000,data!$B$3:$B$1000,score!$B$25,data!$A$3:$A$1000,">="&DATE(score!$B$1,L3,L4),data!$A$3:$A$1000,"<="&DATE(score!$B$1,M3,M4)),"") -> 0 | M25: =IFERROR(SUMIFS(data!$L$3:$L$1000,data!$B$3:$B$1000,score!$B$25,data!$A$3:$A$1000,">="&DATE(score!$B$1,M3,M4),data!$A$3:$A$1000,"<="&DATE(score!$B$1,N3,N4)),"") -> 0 | N25: =IFERROR(SUMIFS(data!$L$3:$L$1000,data!$B$3:$B$1000,score!$B$25,data!$A$3:$A$1000,">="&DATE(score!$B$1,N3,N4),data!$A$3:$A$1000,"<="&DATE(score!$B$1,O3,O4)),"") -> 0 | O25: =IFERROR(SUMIFS(data!$L$3:$L$1000,data!$B$3:$B$1000,score!$B$25,data!$A$3:$A$1000,">="&DATE(score!$B$1,O3,O4),data!$A$3:$A$1000,"<="&DATE(score!$B$1,P3,P4)),"") -> 0 | P25: =IFERROR(SUMIFS(data!$L$3:$L$1000,data!$B$3:$B$1000,score!$B$25,data!$A$3:$A$1000,">="&DATE(score!$B$1,P3,P4),data!$A$3:$A$1000,"<="&DATE(score!$B$1,Q3,Q4)),"") -> 0 | Q25: =IFERROR(SUMIFS(data!$L$3:$L$1000,data!$B$3:$B$1000,score!$B$25,data!$A$3:$A$1000,">="&DATE(score!$B$1,Q3,Q4),data!$A$3:$A$1000,"<="&DATE(score!$B$1,R3,R4)),"") -> 0 | R25: =IFERROR(SUMIFS(data!$L$3:$L$1000,data!$B$3:$B$1000,score!$B$25,data!$A$3:$A$1000,">="&DATE(score!$B$1,R3,R4),data!$A$3:$A$1000,"<="&DATE(score!$B$1,S3,S4)),"") -> 0 | S25: =IFERROR(SUMIFS(data!$L$3:$L$1000,data!$B$3:$B$1000,score!$B$25,data!$A$3:$A$1000,">="&DATE(score!$B$1,S3,S4),data!$A$3:$A$1000,"<="&DATE(score!$B$1,T3,T4)),"") -> 0 | T25: =IFERROR(SUMIFS(data!$L$3:$L$1000,data!$B$3:$B$1000,score!$B$25,data!$A$3:$A$1000,">="&DATE(score!$B$1,T3,T4),data!$A$3:$A$1000,"<="&DATE(score!$B$1,U3,U4)),"") -> 0 | U25: =IFERROR(SUMIFS(data!$L$3:$L$1000,data!$B$3:$B$1000,score!$B$25,data!$A$3:$A$1000,">="&DATE(score!$B$1,U3,U4),data!$A$3:$A$1000,"<="&DATE(score!$B$1,V3,V4)),"") -> 0 | V25: =IFERROR(SUMIFS(data!$L$3:$L$1000,data!$B$3:$B$1000,score!$B$25,data!$A$3:$A$1000,">="&DATE(score!$B$1,V3,V4),data!$A$3:$A$1000,"<="&DATE(score!$B$1,W3,W4)),"") -> 0 | W25: =IFERROR(SUMIFS(data!$L$3:$L$1000,data!$B$3:$B$1000,score!$B$25,data!$A$3:$A$1000,">="&DATE(score!$B$1,W3,W4),data!$A$3:$A$1000,"<="&DATE(score!$B$1,X3,X4)),"") -> 0 | X25: =IFERROR(SUMIFS(data!$L$3:$L$1000,data!$B$3:$B$1000,score!$B$25,data!$A$3:$A$1000,">="&DATE(score!$B$1,X3,X4),data!$A$3:$A$1000,"<="&DATE(score!$B$1,Y3,Y4)),"") -> 0 | Y25: =IFERROR(SUMIFS(data!$L$3:$L$1000,data!$B$3:$B$1000,score!$B$25,data!$A$3:$A$1000,">="&DATE(score!$B$1,Y3,Y4),data!$A$3:$A$1000,"<="&DATE(score!$B$1,Z3,Z4)),"") -> 0 | Z25: =IFERROR(SUMIFS(data!$L$3:$L$1000,data!$B$3:$B$1000,score!$B$25,data!$A$3:$A$1000,">="&DATE(score!$B$1,Z3,Z4),data!$A$3:$A$1000,"<="&DATE(score!$B$1,AA3,AA4)),"") -> 0 | AA25: =IFERROR(SUMIFS(data!$L$3:$L$1000,data!$B$3:$B$1000,score!$B$25,data!$A$3:$A$1000,">="&DATE(score!$B$1,AA3,AA4),data!$A$3:$A$1000,"<="&DATE(score!$B$1,AB3,AB4)),"") -> 0 | AB25: =IFERROR(SUMIFS(data!$L$3:$L$1000,data!$B$3:$B$1000,score!$B$25,data!$A$3:$A$1000,">="&DATE(score!$B$1,AB3,AB4),data!$A$3:$A$1000,"<="&DATE(score!$B$1,AC3,AC4)),"") -> 0 | AC25: =IFERROR(SUMIFS(data!$L$3:$L$1000,data!$B$3:$B$1000,score!$B$25,data!$A$3:$A$1000,">="&DATE(score!$B$1,AC3,AC4),data!$A$3:$A$1000,"<="&DATE(score!$B$1,AD3,AD4)),"") -> 0 | AD25: =IFERROR(SUMIFS(data!$L$3:$L$1000,data!$B$3:$B$1000,score!$B$25,data!$A$3:$A$1000,">="&DATE(score!$B$1,AD3,AD4),data!$A$3:$A$1000,"<="&DATE(score!$B$1,AE3,AE4)),"") -> 0 | AE25: =IFERROR(SUMIFS(data!$L$3:$L$1000,data!$B$3:$B$1000,score!$B$25,data!$A$3:$A$1000,">="&DATE(score!$B$1,AE3,AE4),data!$A$3:$A$1000,"<="&DATE(score!$B$1,AF3,AF4)),"") -> 0 | AF25: =IFERROR(SUMIFS(data!$L$3:$L$1000,data!$B$3:$B$1000,score!$B$25,data!$A$3:$A$1000,">="&DATE(score!$B$1,AF3,AF4),data!$A$3:$A$1000,"<="&DATE(score!$B$1,AG3,AG4)),"") -> 0 | AG25: =IFERROR(SUMIFS(data!$L$3:$L$1000,data!$B$3:$B$1000,score!$B$25,data!$A$3:$A$1000,">="&DATE(score!$B$1,AG3,AG4),data!$A$3:$A$1000,"<="&DATE(score!$B$1,AH3,AH4)),"") -> 0 | AH25: =IFERROR(SUMIFS(data!$L$3:$L$1000,data!$B$3:$B$1000,score!$B$25,data!$A$3:$A$1000,">="&DATE(score!$B$1,AH3,AH4),data!$A$3:$A$1000,"<="&DATE(score!$B$1,AI3,AI4)),"") -> 0 | AI25: =IFERROR(SUMIFS(data!$L$3:$L$1000,data!$B$3:$B$1000,score!$B$25,data!$A$3:$A$1000,">="&DATE(score!$B$1,AI3,AI4),data!$A$3:$A$1000,"<="&DATE(score!$B$1,AJ3,AJ4)),"") -> 0 | AJ25: =IFERROR(SUMIFS(data!$L$3:$L$1000,data!$B$3:$B$1000,score!$B$25,data!$A$3:$A$1000,">="&DATE(score!$B$1,AJ3,AJ4),data!$A$3:$A$1000,"<="&DATE(score!$B$1,AK3,AK4)),"") -> 0 | AK25: =IFERROR(SUMIFS(data!$L$3:$L$1000,data!$B$3:$B$1000,score!$B$25,data!$A$3:$A$1000,">="&DATE(score!$B$1,AK3,AK4),data!$A$3:$A$1000,"<="&DATE(score!$B$1,AL3,AL4)),"") -> 0 | AL25: =IFERROR(SUMIFS(data!$L$3:$L$1000,data!$B$3:$B$1000,score!$B$25,data!$A$3:$A$1000,">="&DATE(score!$B$1,AL3,AL4),data!$A$3:$A$1000,"<="&DATE(score!$B$1,AM3,AM4)),"") -> 0 | AM25: =IFERROR(SUMIFS(data!$L$3:$L$1000,data!$B$3:$B$1000,score!$B$25,data!$A$3:$A$1000,">="&DATE(score!$B$1,AM3,AM4),data!$A$3:$A$1000,"<="&DATE(score!$B$1,AN3,AN4)),"") -> 0 | AN25: =IFERROR(SUMIFS(data!$L$3:$L$1000,data!$B$3:$B$1000,score!$B$25,data!$A$3:$A$1000,">="&DATE(score!$B$1,AN3,AN4),data!$A$3:$A$1000,"<="&DATE(score!$B$1,AO3,AO4)),"") -> 0 | AO25: =IFERROR(SUMIFS(data!$L$3:$L$1000,data!$B$3:$B$1000,score!$B$25,data!$A$3:$A$1000,">="&DATE(score!$B$1,AO3,AO4),data!$A$3:$A$1000,"<="&DATE(score!$B$1,AP3,AP4)),"") -> 0 | AP25: =IFERROR(SUMIFS(data!$L$3:$L$1000,data!$B$3:$B$1000,score!$B$25,data!$A$3:$A$1000,">="&DATE(score!$B$1,AP3,AP4),data!$A$3:$A$1000,"<="&DATE(score!$B$1,AQ3,AQ4)),"") -> 0 | AQ25: =IFERROR(SUMIFS(data!$L$3:$L$1000,data!$B$3:$B$1000,score!$B$25,data!$A$3:$A$1000,">="&DATE(score!$B$1,AQ3,AQ4),data!$A$3:$A$1000,"<="&DATE(score!$B$1,AR3,AR4)),"") -> 0 | AR25: =IFERROR(SUMIFS(data!$L$3:$L$1000,data!$B$3:$B$1000,score!$B$25,data!$A$3:$A$1000,">="&DATE(score!$B$1,AR3,AR4),data!$A$3:$A$1000,"<="&DATE(score!$B$1,AS3,AS4)),"") -> 0 | AS25: =IFERROR(SUMIFS(data!$L$3:$L$1000,data!$B$3:$B$1000,score!$B$25,data!$A$3:$A$1000,">="&DATE(score!$B$1,AS3,AS4),data!$A$3:$A$1000,"<="&DATE(score!$B$1,AT3,AT4)),"") -> 0 | AT25: =IFERROR(SUMIFS(data!$L$3:$L$1000,data!$B$3:$B$1000,score!$B$25,data!$A$3:$A$1000,">="&DATE(score!$B$1,AT3,AT4),data!$A$3:$A$1000,"<="&DATE(score!$B$1,AU3,AU4)),"") -> 0 | AU25: =IFERROR(SUMIFS(data!$L$3:$L$1000,data!$B$3:$B$1000,score!$B$25,data!$A$3:$A$1000,">="&DATE(score!$B$1,AU3,AU4),data!$A$3:$A$1000,"<="&DATE(score!$B$1,AV3,AV4)),"") -> 0 | AV25: =IFERROR(SUMIFS(data!$L$3:$L$1000,data!$B$3:$B$1000,score!$B$25,data!$A$3:$A$1000,">="&DATE(score!$B$1,AV3,AV4),data!$A$3:$A$1000,"<="&DATE(score!$B$1,AW3,AW4)),"") -> 0 | AW25: =IFERROR(SUMIFS(data!$L$3:$L$1000,data!$B$3:$B$1000,score!$B$25,data!$A$3:$A$1000,">="&DATE(score!$B$1,AW3,AW4),data!$A$3:$A$1000,"<="&DATE(score!$B$1,AX3,AX4)),"") -> 0 | AX25: =IFERROR(SUMIFS(data!$L$3:$L$1000,data!$B$3:$B$1000,score!$B$25,data!$A$3:$A$1000,">="&DATE(score!$B$1,AX3,AX4),data!$A$3:$A$1000,"<="&DATE(score!$B$1,AY3,AY4)),"") -> 0 | AY25: =IFERROR(SUMIFS(data!$L$3:$L$1000,data!$B$3:$B$1000,score!$B$25,data!$A$3:$A$1000,">="&DATE(score!$B$1,AY3,AY4),data!$A$3:$A$1000,"<="&DATE(score!$B$1,AZ3,AZ4)),"") -> 0 | AZ25: =IFERROR(SUMIFS(data!$L$3:$L$1000,data!$B$3:$B$1000,score!$B$25,data!$A$3:$A$1000,">="&DATE(score!$B$1,AZ3,AZ4),data!$A$3:$A$1000,"<="&DATE(score!$B$1,BA3,BA4)),"") -> 0 | BA25: =IFERROR(SUMIFS(data!$L$3:$L$1000,data!$B$3:$B$1000,score!$B$25,data!$A$3:$A$1000,">="&DATE(score!$B$1,BA3,BA4),data!$A$3:$A$1000,"<="&DATE(score!$B$1,BB3,BB4)),"") -> 0 | BB25: =IFERROR(SUMIFS(data!$L$3:$L$1000,data!$B$3:$B$1000,score!$B$25,data!$A$3:$A$1000,">="&DATE(score!$B$1,BB3,BB4),data!$A$3:$A$1000,"<="&DATE(score!$B$1,BC3,BC4)),"") -> 0
C26: =IFERROR(SUMIFS(data!$L$3:$L$1000,data!$B$3:$B$1000,score!$B$26,data!$A$3:$A$1000,">="&DATE(score!$B$1,C3,C4),data!$A$3:$A$1000,"<="&DATE(score!$B$1,D3,D4)),"") -> 0 | D26: =IFERROR(SUMIFS(data!$K$3:$K$1000,data!$B$3:$B$1000,score!$B$38,data!$A$3:$A$1000,">="&DATE(score!$B$1,#REF!,#REF!),data!$A$3:$A$1000,"<="&DATE(score!$B$1,#REF!,#REF!)),"") -> 0 | E26: =IFERROR(SUMIFS(data!$K$3:$K$1000,data!$B$3:$B$1000,score!$B$38,data!$A$3:$A$1000,">="&DATE(score!$B$1,#REF!,#REF!),data!$A$3:$A$1000,"<="&DATE(score!$B$1,#REF!,#REF!)),"") -> 0 | F26: =IFERROR(SUMIFS(data!$K$3:$K$1000,data!$B$3:$B$1000,score!$B$38,data!$A$3:$A$1000,">="&DATE(score!$B$1,#REF!,#REF!),data!$A$3:$A$1000,"<="&DATE(score!$B$1,#REF!,#REF!)),"") -> 0 | G26: =IFERROR(SUMIFS(data!$K$3:$K$1000,data!$B$3:$B$1000,score!$B$38,data!$A$3:$A$1000,">="&DATE(score!$B$1,#REF!,#REF!),data!$A$3:$A$1000,"<="&DATE(score!$B$1,#REF!,#REF!)),"") -> 0 | H26: =IFERROR(SUMIFS(data!$K$3:$K$1000,data!$B$3:$B$1000,score!$B$38,data!$A$3:$A$1000,">="&DATE(score!$B$1,#REF!,#REF!),data!$A$3:$A$1000,"<="&DATE(score!$B$1,#REF!,#REF!)),"") -> 0 | I26: =IFERROR(SUMIFS(data!$K$3:$K$1000,data!$B$3:$B$1000,score!$B$38,data!$A$3:$A$1000,">="&DATE(score!$B$1,#REF!,#REF!),data!$A$3:$A$1000,"<="&DATE(score!$B$1,#REF!,#REF!)),"") -> 0 | J26: =IFERROR(SUMIFS(data!$K$3:$K$1000,data!$B$3:$B$1000,score!$B$38,data!$A$3:$A$1000,">="&DATE(score!$B$1,#REF!,#REF!),data!$A$3:$A$1000,"<="&DATE(score!$B$1,#REF!,#REF!)),"") -> 0 | K26: =IFERROR(SUMIFS(data!$K$3:$K$1000,data!$B$3:$B$1000,score!$B$38,data!$A$3:$A$1000,">="&DATE(score!$B$1,#REF!,#REF!),data!$A$3:$A$1000,"<="&DATE(score!$B$1,#REF!,#REF!)),"") -> 0 | L26: =IFERROR(SUMIFS(data!$K$3:$K$1000,data!$B$3:$B$1000,score!$B$38,data!$A$3:$A$1000,">="&DATE(score!$B$1,#REF!,#REF!),data!$A$3:$A$1000,"<="&DATE(score!$B$1,#REF!,#REF!)),"") -> 0 | M26: =IFERROR(SUMIFS(data!$K$3:$K$1000,data!$B$3:$B$1000,score!$B$38,data!$A$3:$A$1000,">="&DATE(score!$B$1,#REF!,#REF!),data!$A$3:$A$1000,"<="&DATE(score!$B$1,#REF!,#REF!)),"") -> 0 | N26: =IFERROR(SUMIFS(data!$K$3:$K$1000,data!$B$3:$B$1000,score!$B$38,data!$A$3:$A$1000,">="&DATE(score!$B$1,#REF!,#REF!),data!$A$3:$A$1000,"<="&DATE(score!$B$1,#REF!,#REF!)),"") -> 0 | O26: =IFERROR(SUMIFS(data!$K$3:$K$1000,data!$B$3:$B$1000,score!$B$38,data!$A$3:$A$1000,">="&DATE(score!$B$1,#REF!,#REF!),data!$A$3:$A$1000,"<="&DATE(score!$B$1,#REF!,#REF!)),"") -> 0 | P26: =IFERROR(SUMIFS(data!$K$3:$K$1000,data!$B$3:$B$1000,score!$B$38,data!$A$3:$A$1000,">="&DATE(score!$B$1,#REF!,#REF!),data!$A$3:$A$1000,"<="&DATE(score!$B$1,#REF!,#REF!)),"") -> 0 | Q26: =IFERROR(SUMIFS(data!$K$3:$K$1000,data!$B$3:$B$1000,score!$B$38,data!$A$3:$A$1000,">="&DATE(score!$B$1,#REF!,#REF!),data!$A$3:$A$1000,"<="&DATE(score!$B$1,#REF!,#REF!)),"") -> 0 | R26: =IFERROR(SUMIFS(data!$K$3:$K$1000,data!$B$3:$B$1000,score!$B$38,data!$A$3:$A$1000,">="&DATE(score!$B$1,#REF!,#REF!),data!$A$3:$A$1000,"<="&DATE(score!$B$1,#REF!,#REF!)),"") -> 0 | S26: =IFERROR(SUMIFS(data!$K$3:$K$1000,data!$B$3:$B$1000,score!$B$38,data!$A$3:$A$1000,">="&DATE(score!$B$1,#REF!,#REF!),data!$A$3:$A$1000,"<="&DATE(score!$B$1,#REF!,#REF!)),"") -> 0 | T26: =IFERROR(SUMIFS(data!$K$3:$K$1000,data!$B$3:$B$1000,score!$B$38,data!$A$3:$A$1000,">="&DATE(score!$B$1,#REF!,#REF!),data!$A$3:$A$1000,"<="&DATE(score!$B$1,#REF!,#REF!)),"") -> 0 | U26: =IFERROR(SUMIFS(data!$K$3:$K$1000,data!$B$3:$B$1000,score!$B$38,data!$A$3:$A$1000,">="&DATE(score!$B$1,#REF!,#REF!),data!$A$3:$A$1000,"<="&DATE(score!$B$1,#REF!,#REF!)),"") -> 0 | V26: =IFERROR(SUMIFS(data!$K$3:$K$1000,data!$B$3:$B$1000,score!$B$38,data!$A$3:$A$1000,">="&DATE(score!$B$1,#REF!,#REF!),data!$A$3:$A$1000,"<="&DATE(score!$B$1,#REF!,#REF!)),"") -> 0 | W26: =IFERROR(SUMIFS(data!$K$3:$K$1000,data!$B$3:$B$1000,score!$B$38,data!$A$3:$A$1000,">="&DATE(score!$B$1,#REF!,#REF!),data!$A$3:$A$1000,"<="&DATE(score!$B$1,#REF!,#REF!)),"") -> 0 | X26: =IFERROR(SUMIFS(data!$K$3:$K$1000,data!$B$3:$B$1000,score!$B$38,data!$A$3:$A$1000,">="&DATE(score!$B$1,#REF!,#REF!),data!$A$3:$A$1000,"<="&DATE(score!$B$1,#REF!,#REF!)),"") -> 0 | Y26: =IFERROR(SUMIFS(data!$K$3:$K$1000,data!$B$3:$B$1000,score!$B$38,data!$A$3:$A$1000,">="&DATE(score!$B$1,#REF!,#REF!),data!$A$3:$A$1000,"<="&DATE(score!$B$1,#REF!,#REF!)),"") -> 0 | Z26: =IFERROR(SUMIFS(data!$K$3:$K$1000,data!$B$3:$B$1000,score!$B$38,data!$A$3:$A$1000,">="&DATE(score!$B$1,#REF!,#REF!),data!$A$3:$A$1000,"<="&DATE(score!$B$1,#REF!,#REF!)),"") -> 0 | AA26: =IFERROR(SUMIFS(data!$K$3:$K$1000,data!$B$3:$B$1000,score!$B$38,data!$A$3:$A$1000,">="&DATE(score!$B$1,#REF!,#REF!),data!$A$3:$A$1000,"<="&DATE(score!$B$1,#REF!,#REF!)),"") -> 0 | AB26: =IFERROR(SUMIFS(data!$K$3:$K$1000,data!$B$3:$B$1000,score!$B$38,data!$A$3:$A$1000,">="&DATE(score!$B$1,#REF!,#REF!),data!$A$3:$A$1000,"<="&DATE(score!$B$1,#REF!,#REF!)),"") -> 0 | AC26: =IFERROR(SUMIFS(data!$K$3:$K$1000,data!$B$3:$B$1000,score!$B$38,data!$A$3:$A$1000,">="&DATE(score!$B$1,#REF!,#REF!),data!$A$3:$A$1000,"<="&DATE(score!$B$1,#REF!,#REF!)),"") -> 0 | AD26: =IFERROR(SUMIFS(data!$K$3:$K$1000,data!$B$3:$B$1000,score!$B$38,data!$A$3:$A$1000,">="&DATE(score!$B$1,#REF!,#REF!),data!$A$3:$A$1000,"<="&DATE(score!$B$1,#REF!,#REF!)),"") -> 0 | AE26: =IFERROR(SUMIFS(data!$K$3:$K$1000,data!$B$3:$B$1000,score!$B$38,data!$A$3:$A$1000,">="&DATE(score!$B$1,#REF!,#REF!),data!$A$3:$A$1000,"<="&DATE(score!$B$1,#REF!,#REF!)),"") -> 0 | AF26: =IFERROR(SUMIFS(data!$K$3:$K$1000,data!$B$3:$B$1000,score!$B$38,data!$A$3:$A$1000,">="&DATE(score!$B$1,#REF!,#REF!),data!$A$3:$A$1000,"<="&DATE(score!$B$1,#REF!,#REF!)),"") -> 0 | AG26: =IFERROR(SUMIFS(data!$K$3:$K$1000,data!$B$3:$B$1000,score!$B$38,data!$A$3:$A$1000,">="&DATE(score!$B$1,#REF!,#REF!),data!$A$3:$A$1000,"<="&DATE(score!$B$1,#REF!,#REF!)),"") -> 0 | AH26: =IFERROR(SUMIFS(data!$K$3:$K$1000,data!$B$3:$B$1000,score!$B$38,data!$A$3:$A$1000,">="&DATE(score!$B$1,#REF!,#REF!),data!$A$3:$A$1000,"<="&DATE(score!$B$1,#REF!,#REF!)),"") -> 0 | AI26: =IFERROR(SUMIFS(data!$K$3:$K$1000,data!$B$3:$B$1000,score!$B$38,data!$A$3:$A$1000,">="&DATE(score!$B$1,#REF!,#REF!),data!$A$3:$A$1000,"<="&DATE(score!$B$1,#REF!,#REF!)),"") -> 0 | AJ26: =IFERROR(SUMIFS(data!$K$3:$K$1000,data!$B$3:$B$1000,score!$B$38,data!$A$3:$A$1000,">="&DATE(score!$B$1,#REF!,#REF!),data!$A$3:$A$1000,"<="&DATE(score!$B$1,#REF!,#REF!)),"") -> 0 | AK26: =IFERROR(SUMIFS(data!$K$3:$K$1000,data!$B$3:$B$1000,score!$B$38,data!$A$3:$A$1000,">="&DATE(score!$B$1,#REF!,#REF!),data!$A$3:$A$1000,"<="&DATE(score!$B$1,#REF!,#REF!)),"") -> 0 | AL26: =IFERROR(SUMIFS(data!$K$3:$K$1000,data!$B$3:$B$1000,score!$B$38,data!$A$3:$A$1000,">="&DATE(score!$B$1,#REF!,#REF!),data!$A$3:$A$1000,"<="&DATE(score!$B$1,#REF!,#REF!)),"") -> 0 | AM26: =IFERROR(SUMIFS(data!$K$3:$K$1000,data!$B$3:$B$1000,score!$B$38,data!$A$3:$A$1000,">="&DATE(score!$B$1,#REF!,#REF!),data!$A$3:$A$1000,"<="&DATE(score!$B$1,#REF!,#REF!)),"") -> 0 | AN26: =IFERROR(SUMIFS(data!$K$3:$K$1000,data!$B$3:$B$1000,score!$B$38,data!$A$3:$A$1000,">="&DATE(score!$B$1,#REF!,#REF!),data!$A$3:$A$1000,"<="&DATE(score!$B$1,#REF!,#REF!)),"") -> 0 | AO26: =IFERROR(SUMIFS(data!$K$3:$K$1000,data!$B$3:$B$1000,score!$B$38,data!$A$3:$A$1000,">="&DATE(score!$B$1,#REF!,#REF!),data!$A$3:$A$1000,"<="&DATE(score!$B$1,#REF!,#REF!)),"") -> 0 | AP26: =IFERROR(SUMIFS(data!$K$3:$K$1000,data!$B$3:$B$1000,score!$B$38,data!$A$3:$A$1000,">="&DATE(score!$B$1,#REF!,#REF!),data!$A$3:$A$1000,"<="&DATE(score!$B$1,#REF!,#REF!)),"") -> 0 | AQ26: =IFERROR(SUMIFS(data!$K$3:$K$1000,data!$B$3:$B$1000,score!$B$38,data!$A$3:$A$1000,">="&DATE(score!$B$1,#REF!,#REF!),data!$A$3:$A$1000,"<="&DATE(score!$B$1,#REF!,#REF!)),"") -> 0 | AR26: =IFERROR(SUMIFS(data!$K$3:$K$1000,data!$B$3:$B$1000,score!$B$38,data!$A$3:$A$1000,">="&DATE(score!$B$1,#REF!,#REF!),data!$A$3:$A$1000,"<="&DATE(score!$B$1,#REF!,#REF!)),"") -> 0 | AS26: =IFERROR(SUMIFS(data!$K$3:$K$1000,data!$B$3:$B$1000,score!$B$38,data!$A$3:$A$1000,">="&DATE(score!$B$1,#REF!,#REF!),data!$A$3:$A$1000,"<="&DATE(score!$B$1,#REF!,#REF!)),"") -> 0 | AT26: =IFERROR(SUMIFS(data!$K$3:$K$1000,data!$B$3:$B$1000,score!$B$38,data!$A$3:$A$1000,">="&DATE(score!$B$1,#REF!,#REF!),data!$A$3:$A$1000,"<="&DATE(score!$B$1,#REF!,#REF!)),"") -> 0 | AU26: =IFERROR(SUMIFS(data!$K$3:$K$1000,data!$B$3:$B$1000,score!$B$38,data!$A$3:$A$1000,">="&DATE(score!$B$1,#REF!,#REF!),data!$A$3:$A$1000,"<="&DATE(score!$B$1,#REF!,#REF!)),"") -> 0 | AV26: =IFERROR(SUMIFS(data!$K$3:$K$1000,data!$B$3:$B$1000,score!$B$38,data!$A$3:$A$1000,">="&DATE(score!$B$1,#REF!,#REF!),data!$A$3:$A$1000,"<="&DATE(score!$B$1,#REF!,#REF!)),"") -> 0 | AW26: =IFERROR(SUMIFS(data!$K$3:$K$1000,data!$B$3:$B$1000,score!$B$38,data!$A$3:$A$1000,">="&DATE(score!$B$1,#REF!,#REF!),data!$A$3:$A$1000,"<="&DATE(score!$B$1,#REF!,#REF!)),"") -> 0 | AX26: =IFERROR(SUMIFS(data!$K$3:$K$1000,data!$B$3:$B$1000,score!$B$38,data!$A$3:$A$1000,">="&DATE(score!$B$1,#REF!,#REF!),data!$A$3:$A$1000,"<="&DATE(score!$B$1,#REF!,#REF!)),"") -> 0 | AY26: =IFERROR(SUMIFS(data!$K$3:$K$1000,data!$B$3:$B$1000,score!$B$38,data!$A$3:$A$1000,">="&DATE(score!$B$1,#REF!,#REF!),data!$A$3:$A$1000,"<="&DATE(score!$B$1,#REF!,#REF!)),"") -> 0 | AZ26: =IFERROR(SUMIFS(data!$K$3:$K$1000,data!$B$3:$B$1000,score!$B$38,data!$A$3:$A$1000,">="&DATE(score!$B$1,#REF!,#REF!),data!$A$3:$A$1000,"<="&DATE(score!$B$1,#REF!,#REF!)),"") -> 0 | BA26: =IFERROR(SUMIFS(data!$K$3:$K$1000,data!$B$3:$B$1000,score!$B$38,data!$A$3:$A$1000,">="&DATE(score!$B$1,#REF!,#REF!),data!$A$3:$A$1000,"<="&DATE(score!$B$1,#REF!,#REF!)),"") -> 0 | BB26: =IFERROR(SUMIFS(data!$K$3:$K$1000,data!$B$3:$B$1000,score!$B$38,data!$A$3:$A$1000,">="&DATE(score!$B$1,#REF!,#REF!),data!$A$3:$A$1000,"<="&DATE(score!$B$1,#REF!,#REF!)),"") -> 0
C27: =IFERROR(SUMIFS(data!$L$3:$L$1000,data!$B$3:$B$1000,score!$B$27,data!$A$3:$A$1000,">="&DATE(score!$B$1,C3,C4),data!$A$3:$A$1000,"<="&DATE(score!$B$1,D3,D4)),"") -> 0 | D27: =IFERROR(SUMIFS(data!$K$3:$K$1000,data!$B$3:$B$1000,score!$B$39,data!$A$3:$A$1000,">="&DATE(score!$B$1,#REF!,#REF!),data!$A$3:$A$1000,"<="&DATE(score!$B$1,#REF!,#REF!)),"") -> 0 | E27: =IFERROR(SUMIFS(data!$K$3:$K$1000,data!$B$3:$B$1000,score!$B$39,data!$A$3:$A$1000,">="&DATE(score!$B$1,#REF!,#REF!),data!$A$3:$A$1000,"<="&DATE(score!$B$1,#REF!,#REF!)),"") -> 0 | F27: =IFERROR(SUMIFS(data!$K$3:$K$1000,data!$B$3:$B$1000,score!$B$39,data!$A$3:$A$1000,">="&DATE(score!$B$1,#REF!,#REF!),data!$A$3:$A$1000,"<="&DATE(score!$B$1,#REF!,#REF!)),"") -> 0 | G27: =IFERROR(SUMIFS(data!$K$3:$K$1000,data!$B$3:$B$1000,score!$B$39,data!$A$3:$A$1000,">="&DATE(score!$B$1,#REF!,#REF!),data!$A$3:$A$1000,"<="&DATE(score!$B$1,#REF!,#REF!)),"") -> 0 | H27: =IFERROR(SUMIFS(data!$K$3:$K$1000,data!$B$3:$B$1000,score!$B$39,data!$A$3:$A$1000,">="&DATE(score!$B$1,#REF!,#REF!),data!$A$3:$A$1000,"<="&DATE(score!$B$1,#REF!,#REF!)),"") -> 0 | I27: =IFERROR(SUMIFS(data!$K$3:$K$1000,data!$B$3:$B$1000,score!$B$39,data!$A$3:$A$1000,">="&DATE(score!$B$1,#REF!,#REF!),data!$A$3:$A$1000,"<="&DATE(score!$B$1,#REF!,#REF!)),"") -> 0 | J27: =IFERROR(SUMIFS(data!$K$3:$K$1000,data!$B$3:$B$1000,score!$B$39,data!$A$3:$A$1000,">="&DATE(score!$B$1,#REF!,#REF!),data!$A$3:$A$1000,"<="&DATE(score!$B$1,#REF!,#REF!)),"") -> 0 | K27: =IFERROR(SUMIFS(data!$K$3:$K$1000,data!$B$3:$B$1000,score!$B$39,data!$A$3:$A$1000,">="&DATE(score!$B$1,#REF!,#REF!),data!$A$3:$A$1000,"<="&DATE(score!$B$1,#REF!,#REF!)),"") -> 0 | L27: =IFERROR(SUMIFS(data!$K$3:$K$1000,data!$B$3:$B$1000,score!$B$39,data!$A$3:$A$1000,">="&DATE(score!$B$1,#REF!,#REF!),data!$A$3:$A$1000,"<="&DATE(score!$B$1,#REF!,#REF!)),"") -> 0 | M27: =IFERROR(SUMIFS(data!$K$3:$K$1000,data!$B$3:$B$1000,score!$B$39,data!$A$3:$A$1000,">="&DATE(score!$B$1,#REF!,#REF!),data!$A$3:$A$1000,"<="&DATE(score!$B$1,#REF!,#REF!)),"") -> 0 | N27: =IFERROR(SUMIFS(data!$K$3:$K$1000,data!$B$3:$B$1000,score!$B$39,data!$A$3:$A$1000,">="&DATE(score!$B$1,#REF!,#REF!),data!$A$3:$A$1000,"<="&DATE(score!$B$1,#REF!,#REF!)),"") -> 0 | O27: =IFERROR(SUMIFS(data!$K$3:$K$1000,data!$B$3:$B$1000,score!$B$39,data!$A$3:$A$1000,">="&DATE(score!$B$1,#REF!,#REF!),data!$A$3:$A$1000,"<="&DATE(score!$B$1,#REF!,#REF!)),"") -> 0 | P27: =IFERROR(SUMIFS(data!$K$3:$K$1000,data!$B$3:$B$1000,score!$B$39,data!$A$3:$A$1000,">="&DATE(score!$B$1,#REF!,#REF!),data!$A$3:$A$1000,"<="&DATE(score!$B$1,#REF!,#REF!)),"") -> 0 | Q27: =IFERROR(SUMIFS(data!$K$3:$K$1000,data!$B$3:$B$1000,score!$B$39,data!$A$3:$A$1000,">="&DATE(score!$B$1,#REF!,#REF!),data!$A$3:$A$1000,"<="&DATE(score!$B$1,#REF!,#REF!)),"") -> 0 | R27: =IFERROR(SUMIFS(data!$K$3:$K$1000,data!$B$3:$B$1000,score!$B$39,data!$A$3:$A$1000,">="&DATE(score!$B$1,#REF!,#REF!),data!$A$3:$A$1000,"<="&DATE(score!$B$1,#REF!,#REF!)),"") -> 0 | S27: =IFERROR(SUMIFS(data!$K$3:$K$1000,data!$B$3:$B$1000,score!$B$39,data!$A$3:$A$1000,">="&DATE(score!$B$1,#REF!,#REF!),data!$A$3:$A$1000,"<="&DATE(score!$B$1,#REF!,#REF!)),"") -> 0 | T27: =IFERROR(SUMIFS(data!$K$3:$K$1000,data!$B$3:$B$1000,score!$B$39,data!$A$3:$A$1000,">="&DATE(score!$B$1,#REF!,#REF!),data!$A$3:$A$1000,"<="&DATE(score!$B$1,#REF!,#REF!)),"") -> 0 | U27: =IFERROR(SUMIFS(data!$K$3:$K$1000,data!$B$3:$B$1000,score!$B$39,data!$A$3:$A$1000,">="&DATE(score!$B$1,#REF!,#REF!),data!$A$3:$A$1000,"<="&DATE(score!$B$1,#REF!,#REF!)),"") -> 0 | V27: =IFERROR(SUMIFS(data!$K$3:$K$1000,data!$B$3:$B$1000,score!$B$39,data!$A$3:$A$1000,">="&DATE(score!$B$1,#REF!,#REF!),data!$A$3:$A$1000,"<="&DATE(score!$B$1,#REF!,#REF!)),"") -> 0 | W27: =IFERROR(SUMIFS(data!$K$3:$K$1000,data!$B$3:$B$1000,score!$B$39,data!$A$3:$A$1000,">="&DATE(score!$B$1,#REF!,#REF!),data!$A$3:$A$1000,"<="&DATE(score!$B$1,#REF!,#REF!)),"") -> 0 | X27: =IFERROR(SUMIFS(data!$K$3:$K$1000,data!$B$3:$B$1000,score!$B$39,data!$A$3:$A$1000,">="&DATE(score!$B$1,#REF!,#REF!),data!$A$3:$A$1000,"<="&DATE(score!$B$1,#REF!,#REF!)),"") -> 0 | Y27: =IFERROR(SUMIFS(data!$K$3:$K$1000,data!$B$3:$B$1000,score!$B$39,data!$A$3:$A$1000,">="&DATE(score!$B$1,#REF!,#REF!),data!$A$3:$A$1000,"<="&DATE(score!$B$1,#REF!,#REF!)),"") -> 0 | Z27: =IFERROR(SUMIFS(data!$K$3:$K$1000,data!$B$3:$B$1000,score!$B$39,data!$A$3:$A$1000,">="&DATE(score!$B$1,#REF!,#REF!),data!$A$3:$A$1000,"<="&DATE(score!$B$1,#REF!,#REF!)),"") -> 0 | AA27: =IFERROR(SUMIFS(data!$K$3:$K$1000,data!$B$3:$B$1000,score!$B$39,data!$A$3:$A$1000,">="&DATE(score!$B$1,#REF!,#REF!),data!$A$3:$A$1000,"<="&DATE(score!$B$1,#REF!,#REF!)),"") -> 0 | AB27: =IFERROR(SUMIFS(data!$K$3:$K$1000,data!$B$3:$B$1000,score!$B$39,data!$A$3:$A$1000,">="&DATE(score!$B$1,#REF!,#REF!),data!$A$3:$A$1000,"<="&DATE(score!$B$1,#REF!,#REF!)),"") -> 0 | AC27: =IFERROR(SUMIFS(data!$K$3:$K$1000,data!$B$3:$B$1000,score!$B$39,data!$A$3:$A$1000,">="&DATE(score!$B$1,#REF!,#REF!),data!$A$3:$A$1000,"<="&DATE(score!$B$1,#REF!,#REF!)),"") -> 0 | AD27: =IFERROR(SUMIFS(data!$K$3:$K$1000,data!$B$3:$B$1000,score!$B$39,data!$A$3:$A$1000,">="&DATE(score!$B$1,#REF!,#REF!),data!$A$3:$A$1000,"<="&DATE(score!$B$1,#REF!,#REF!)),"") -> 0 | AE27: =IFERROR(SUMIFS(data!$K$3:$K$1000,data!$B$3:$B$1000,score!$B$39,data!$A$3:$A$1000,">="&DATE(score!$B$1,#REF!,#REF!),data!$A$3:$A$1000,"<="&DATE(score!$B$1,#REF!,#REF!)),"") -> 0 | AF27: =IFERROR(SUMIFS(data!$K$3:$K$1000,data!$B$3:$B$1000,score!$B$39,data!$A$3:$A$1000,">="&DATE(score!$B$1,#REF!,#REF!),data!$A$3:$A$1000,"<="&DATE(score!$B$1,#REF!,#REF!)),"") -> 0 | AG27: =IFERROR(SUMIFS(data!$K$3:$K$1000,data!$B$3:$B$1000,score!$B$39,data!$A$3:$A$1000,">="&DATE(score!$B$1,#REF!,#REF!),data!$A$3:$A$1000,"<="&DATE(score!$B$1,#REF!,#REF!)),"") -> 0 | AH27: =IFERROR(SUMIFS(data!$K$3:$K$1000,data!$B$3:$B$1000,score!$B$39,data!$A$3:$A$1000,">="&DATE(score!$B$1,#REF!,#REF!),data!$A$3:$A$1000,"<="&DATE(score!$B$1,#REF!,#REF!)),"") -> 0 | AI27: =IFERROR(SUMIFS(data!$K$3:$K$1000,data!$B$3:$B$1000,score!$B$39,data!$A$3:$A$1000,">="&DATE(score!$B$1,#REF!,#REF!),data!$A$3:$A$1000,"<="&DATE(score!$B$1,#REF!,#REF!)),"") -> 0 | AJ27: =IFERROR(SUMIFS(data!$K$3:$K$1000,data!$B$3:$B$1000,score!$B$39,data!$A$3:$A$1000,">="&DATE(score!$B$1,#REF!,#REF!),data!$A$3:$A$1000,"<="&DATE(score!$B$1,#REF!,#REF!)),"") -> 0 | AK27: =IFERROR(SUMIFS(data!$K$3:$K$1000,data!$B$3:$B$1000,score!$B$39,data!$A$3:$A$1000,">="&DATE(score!$B$1,#REF!,#REF!),data!$A$3:$A$1000,"<="&DATE(score!$B$1,#REF!,#REF!)),"") -> 0 | AL27: =IFERROR(SUMIFS(data!$K$3:$K$1000,data!$B$3:$B$1000,score!$B$39,data!$A$3:$A$1000,">="&DATE(score!$B$1,#REF!,#REF!),data!$A$3:$A$1000,"<="&DATE(score!$B$1,#REF!,#REF!)),"") -> 0 | AM27: =IFERROR(SUMIFS(data!$K$3:$K$1000,data!$B$3:$B$1000,score!$B$39,data!$A$3:$A$1000,">="&DATE(score!$B$1,#REF!,#REF!),data!$A$3:$A$1000,"<="&DATE(score!$B$1,#REF!,#REF!)),"") -> 0 | AN27: =IFERROR(SUMIFS(data!$K$3:$K$1000,data!$B$3:$B$1000,score!$B$39,data!$A$3:$A$1000,">="&DATE(score!$B$1,#REF!,#REF!),data!$A$3:$A$1000,"<="&DATE(score!$B$1,#REF!,#REF!)),"") -> 0 | AO27: =IFERROR(SUMIFS(data!$K$3:$K$1000,data!$B$3:$B$1000,score!$B$39,data!$A$3:$A$1000,">="&DATE(score!$B$1,#REF!,#REF!),data!$A$3:$A$1000,"<="&DATE(score!$B$1,#REF!,#REF!)),"") -> 0 | AP27: =IFERROR(SUMIFS(data!$K$3:$K$1000,data!$B$3:$B$1000,score!$B$39,data!$A$3:$A$1000,">="&DATE(score!$B$1,#REF!,#REF!),data!$A$3:$A$1000,"<="&DATE(score!$B$1,#REF!,#REF!)),"") -> 0 | AQ27: =IFERROR(SUMIFS(data!$K$3:$K$1000,data!$B$3:$B$1000,score!$B$39,data!$A$3:$A$1000,">="&DATE(score!$B$1,#REF!,#REF!),data!$A$3:$A$1000,"<="&DATE(score!$B$1,#REF!,#REF!)),"") -> 0 | AR27: =IFERROR(SUMIFS(data!$K$3:$K$1000,data!$B$3:$B$1000,score!$B$39,data!$A$3:$A$1000,">="&DATE(score!$B$1,#REF!,#REF!),data!$A$3:$A$1000,"<="&DATE(score!$B$1,#REF!,#REF!)),"") -> 0 | AS27: =IFERROR(SUMIFS(data!$K$3:$K$1000,data!$B$3:$B$1000,score!$B$39,data!$A$3:$A$1000,">="&DATE(score!$B$1,#REF!,#REF!),data!$A$3:$A$1000,"<="&DATE(score!$B$1,#REF!,#REF!)),"") -> 0 | AT27: =IFERROR(SUMIFS(data!$K$3:$K$1000,data!$B$3:$B$1000,score!$B$39,data!$A$3:$A$1000,">="&DATE(score!$B$1,#REF!,#REF!),data!$A$3:$A$1000,"<="&DATE(score!$B$1,#REF!,#REF!)),"") -> 0 | AU27: =IFERROR(SUMIFS(data!$K$3:$K$1000,data!$B$3:$B$1000,score!$B$39,data!$A$3:$A$1000,">="&DATE(score!$B$1,#REF!,#REF!),data!$A$3:$A$1000,"<="&DATE(score!$B$1,#REF!,#REF!)),"") -> 0 | AV27: =IFERROR(SUMIFS(data!$K$3:$K$1000,data!$B$3:$B$1000,score!$B$39,data!$A$3:$A$1000,">="&DATE(score!$B$1,#REF!,#REF!),data!$A$3:$A$1000,"<="&DATE(score!$B$1,#REF!,#REF!)),"") -> 0 | AW27: =IFERROR(SUMIFS(data!$K$3:$K$1000,data!$B$3:$B$1000,score!$B$39,data!$A$3:$A$1000,">="&DATE(score!$B$1,#REF!,#REF!),data!$A$3:$A$1000,"<="&DATE(score!$B$1,#REF!,#REF!)),"") -> 0 | AX27: =IFERROR(SUMIFS(data!$K$3:$K$1000,data!$B$3:$B$1000,score!$B$39,data!$A$3:$A$1000,">="&DATE(score!$B$1,#REF!,#REF!),data!$A$3:$A$1000,"<="&DATE(score!$B$1,#REF!,#REF!)),"") -> 0 | AY27: =IFERROR(SUMIFS(data!$K$3:$K$1000,data!$B$3:$B$1000,score!$B$39,data!$A$3:$A$1000,">="&DATE(score!$B$1,#REF!,#REF!),data!$A$3:$A$1000,"<="&DATE(score!$B$1,#REF!,#REF!)),"") -> 0 | AZ27: =IFERROR(SUMIFS(data!$K$3:$K$1000,data!$B$3:$B$1000,score!$B$39,data!$A$3:$A$1000,">="&DATE(score!$B$1,#REF!,#REF!),data!$A$3:$A$1000,"<="&DATE(score!$B$1,#REF!,#REF!)),"") -> 0 | BA27: =IFERROR(SUMIFS(data!$K$3:$K$1000,data!$B$3:$B$1000,score!$B$39,data!$A$3:$A$1000,">="&DATE(score!$B$1,#REF!,#REF!),data!$A$3:$A$1000,"<="&DATE(score!$B$1,#REF!,#REF!)),"") -> 0 | BB27: =IFERROR(SUMIFS(data!$K$3:$K$1000,data!$B$3:$B$1000,score!$B$39,data!$A$3:$A$1000,">="&DATE(score!$B$1,#REF!,#REF!),data!$A$3:$A$1000,"<="&DATE(score!$B$1,#REF!,#REF!)),"") -> 0
C28: =IFERROR(SUMIF(C21:G27,"<>0"),"") -> 0 | H28: =IFERROR(SUMIF(H21:K27,"<>0"),"") -> 0 | L28: =IFERROR(SUMIF(L21:O27,"<>0"),"") -> 0 | P28: =IFERROR(SUMIF(P21:T27,"<>0"),"") -> 0 | U28: =IFERROR(SUMIF(U21:X27,"<>0"),"") -> 0 | Y28: =IFERROR(SUMIF(Y21:AB27,"<>0"),"") -> 0 | AC28: =IFERROR(SUMIF(AC21:AG27,"<>0"),"") -> 0 | AH28: =IFERROR(SUMIF(AH21:AK27,"<>0"),"") -> 0 | AL28: =IFERROR(SUMIF(AL21:AP27,"<>0"),"") -> 0 | AQ28: =IFERROR(SUMIF(AQ21:AT27,"<>0"),"") -> 0 | AU28: =IFERROR(SUMIF(AU21:AX27,"<>0"),"") -> 0 | AY28: =IFERROR(SUMIF(AY21:BB27,"<>0"),"") -> 0
C31: January | H31: February | L31: March | P31: April | U31: May | Y31: June | AC31: July | AH31: August | AL31: September | AQ31: October | AU31: November | AY31: December
C32: W1 | D32: W2 | E32: W3 | F32: W4 | G32: W5 | H32: W6 | I32: W7 | J32: W8 | K32: W9 | L32: W10 | M32: W11 | N32: W12 | O32: W13 | P32: W14 | Q32: W15 | R32: W16 | S32: W17 | T32: W18 | U32: W19 | V32: W20 | W32: W21 | X32: W22 | Y32: W23 | Z32: W24 | AA32: W25 | AB32: W26 | AC32: W27 | AD32: W28 | AE32: W29 | AF32: W30 | AG32: W31 | AH32: W32 | AI32: W33 | AJ32: W34 | AK32: W35 | AL32: W36 | AM32: W37 | AN32: W38 | AO32: W39 | AP32: W40 | AQ32: W41 | AR32: W42 | AS32: W43 | AT32: W44 | AU32: W45 | AV32: W46 | AW32: W47 | AX32: W48 | AY32: W49 | AZ32: W50 | BA32: W51 | BB32: W52
C33: =IFERROR(SUMIFS(data!$K$3:$K$1000,data!$B$3:$B$1000,score!$B$33,data!$A$3:$A$1000,">="&DATE(score!$B$1,C3,C4),data!$A$3:$A$1000,"<="&DATE(score!$B$1,D3,D4)),"") -> 0 | D33: =IFERROR(SUMIFS(data!$K$3:$K$1000,data!$B$3:$B$1000,score!$B$33,data!$A$3:$A$1000,">="&DATE(score!$B$1,D3,D4),data!$A$3:$A$1000,"<="&DATE(score!$B$1,E3,E4)),"") -> 0 | E33: =IFERROR(SUMIFS(data!$K$3:$K$1000,data!$B$3:$B$1000,score!$B$33,data!$A$3:$A$1000,">="&DATE(score!$B$1,E3,E4),data!$A$3:$A$1000,"<="&DATE(score!$B$1,F3,F4)),"") -> 0 | F33: =IFERROR(SUMIFS(data!$K$3:$K$1000,data!$B$3:$B$1000,score!$B$33,data!$A$3:$A$1000,">="&DATE(score!$B$1,F3,F4),data!$A$3:$A$1000,"<="&DATE(score!$B$1,G3,G4)),"") -> 0 | G33: =IFERROR(SUMIFS(data!$K$3:$K$1000,data!$B$3:$B$1000,score!$B$33,data!$A$3:$A$1000,">="&DATE(score!$B$1,G3,G4),data!$A$3:$A$1000,"<="&DATE(score!$B$1,H3,H4)),"") -> 0 | H33: =IFERROR(SUMIFS(data!$K$3:$K$1000,data!$B$3:$B$1000,score!$B$33,data!$A$3:$A$1000,">="&DATE(score!$B$1,H3,H4),data!$A$3:$A$1000,"<="&DATE(score!$B$1,I3,I4)),"") -> 0 | I33: =IFERROR(SUMIFS(data!$K$3:$K$1000,data!$B$3:$B$1000,score!$B$33,data!$A$3:$A$1000,">="&DATE(score!$B$1,I3,I4),data!$A$3:$A$1000,"<="&DATE(score!$B$1,J3,J4)),"") -> 0 | J33: =IFERROR(SUMIFS(data!$K$3:$K$1000,data!$B$3:$B$1000,score!$B$33,data!$A$3:$A$1000,">="&DATE(score!$B$1,J3,J4),data!$A$3:$A$1000,"<="&DATE(score!$B$1,K3,K4)),"") -> 0 | K33: =IFERROR(SUMIFS(data!$K$3:$K$1000,data!$B$3:$B$1000,score!$B$33,data!$A$3:$A$1000,">="&DATE(score!$B$1,K3,K4),data!$A$3:$A$1000,"<="&DATE(score!$B$1,L3,L4)),"") -> 0 | L33: =IFERROR(SUMIFS(data!$K$3:$K$1000,data!$B$3:$B$1000,score!$B$33,data!$A$3:$A$1000,">="&DATE(score!$B$1,L3,L4),data!$A$3:$A$1000,"<="&DATE(score!$B$1,M3,M4)),"") -> 0 | M33: =IFERROR(SUMIFS(data!$K$3:$K$1000,data!$B$3:$B$1000,score!$B$33,data!$A$3:$A$1000,">="&DATE(score!$B$1,M3,M4),data!$A$3:$A$1000,"<="&DATE(score!$B$1,N3,N4)),"") -> 0 | N33: =IFERROR(SUMIFS(data!$K$3:$K$1000,data!$B$3:$B$1000,score!$B$33,data!$A$3:$A$1000,">="&DATE(score!$B$1,N3,N4),data!$A$3:$A$1000,"<="&DATE(score!$B$1,O3,O4)),"") -> 0 | O33: =IFERROR(SUMIFS(data!$K$3:$K$1000,data!$B$3:$B$1000,score!$B$33,data!$A$3:$A$1000,">="&DATE(score!$B$1,O3,O4),data!$A$3:$A$1000,"<="&DATE(score!$B$1,P3,P4)),"") -> 0 | P33: =IFERROR(SUMIFS(data!$K$3:$K$1000,data!$B$3:$B$1000,score!$B$33,data!$A$3:$A$1000,">="&DATE(score!$B$1,P3,P4),data!$A$3:$A$1000,"<="&DATE(score!$B$1,Q3,Q4)),"") -> 0 | Q33: =IFERROR(SUMIFS(data!$K$3:$K$1000,data!$B$3:$B$1000,score!$B$33,data!$A$3:$A$1000,">="&DATE(score!$B$1,Q3,Q4),data!$A$3:$A$1000,"<="&DATE(score!$B$1,R3,R4)),"") -> 0 | R33: =IFERROR(SUMIFS(data!$K$3:$K$1000,data!$B$3:$B$1000,score!$B$33,data!$A$3:$A$1000,">="&DATE(score!$B$1,R3,R4),data!$A$3:$A$1000,"<="&DATE(score!$B$1,S3,S4)),"") -> 0 | S33: =IFERROR(SUMIFS(data!$K$3:$K$1000,data!$B$3:$B$1000,score!$B$33,data!$A$3:$A$1000,">="&DATE(score!$B$1,S3,S4),data!$A$3:$A$1000,"<="&DATE(score!$B$1,T3,T4)),"") -> 0 | T33: =IFERROR(SUMIFS(data!$K$3:$K$1000,data!$B$3:$B$1000,score!$B$33,data!$A$3:$A$1000,">="&DATE(score!$B$1,T3,T4),data!$A$3:$A$1000,"<="&DATE(score!$B$1,U3,U4)),"") -> 0 | U33: =IFERROR(SUMIFS(data!$K$3:$K$1000,data!$B$3:$B$1000,score!$B$33,data!$A$3:$A$1000,">="&DATE(score!$B$1,U3,U4),data!$A$3:$A$1000,"<="&DATE(score!$B$1,V3,V4)),"") -> 0 | V33: =IFERROR(SUMIFS(data!$K$3:$K$1000,data!$B$3:$B$1000,score!$B$33,data!$A$3:$A$1000,">="&DATE(score!$B$1,V3,V4),data!$A$3:$A$1000,"<="&DATE(score!$B$1,W3,W4)),"") -> 0 | W33: =IFERROR(SUMIFS(data!$K$3:$K$1000,data!$B$3:$B$1000,score!$B$33,data!$A$3:$A$1000,">="&DATE(score!$B$1,W3,W4),data!$A$3:$A$1000,"<="&DATE(score!$B$1,X3,X4)),"") -> 0 | X33: =IFERROR(SUMIFS(data!$K$3:$K$1000,data!$B$3:$B$1000,score!$B$33,data!$A$3:$A$1000,">="&DATE(score!$B$1,X3,X4),data!$A$3:$A$1000,"<="&DATE(score!$B$1,Y3,Y4)),"") -> 0 | Y33: =IFERROR(SUMIFS(data!$K$3:$K$1000,data!$B$3:$B$1000,score!$B$33,data!$A$3:$A$1000,">="&DATE(score!$B$1,Y3,Y4),data!$A$3:$A$1000,"<="&DATE(score!$B$1,Z3,Z4)),"") -> 0 | Z33: =IFERROR(SUMIFS(data!$K$3:$K$1000,data!$B$3:$B$1000,score!$B$33,data!$A$3:$A$1000,">="&DATE(score!$B$1,Z3,Z4),data!$A$3:$A$1000,"<="&DATE(score!$B$1,AA3,AA4)),"") -> 0 | AA33: =IFERROR(SUMIFS(data!$K$3:$K$1000,data!$B$3:$B$1000,score!$B$33,data!$A$3:$A$1000,">="&DATE(score!$B$1,AA3,AA4),data!$A$3:$A$1000,"<="&DATE(score!$B$1,AB3,AB4)),"") -> 0 | AB33: =IFERROR(SUMIFS(data!$K$3:$K$1000,data!$B$3:$B$1000,score!$B$33,data!$A$3:$A$1000,">="&DATE(score!$B$1,AB3,AB4),data!$A$3:$A$1000,"<="&DATE(score!$B$1,AC3,AC4)),"") -> 0 | AC33: =IFERROR(SUMIFS(data!$K$3:$K$1000,data!$B$3:$B$1000,score!$B$33,data!$A$3:$A$1000,">="&DATE(score!$B$1,AC3,AC4),data!$A$3:$A$1000,"<="&DATE(score!$B$1,AD3,AD4)),"") -> 0 | AD33: =IFERROR(SUMIFS(data!$K$3:$K$1000,data!$B$3:$B$1000,score!$B$33,data!$A$3:$A$1000,">="&DATE(score!$B$1,AD3,AD4),data!$A$3:$A$1000,"<="&DATE(score!$B$1,AE3,AE4)),"") -> 0 | AE33: =IFERROR(SUMIFS(data!$K$3:$K$1000,data!$B$3:$B$1000,score!$B$33,data!$A$3:$A$1000,">="&DATE(score!$B$1,AE3,AE4),data!$A$3:$A$1000,"<="&DATE(score!$B$1,AF3,AF4)),"") -> 0 | AF33: =IFERROR(SUMIFS(data!$K$3:$K$1000,data!$B$3:$B$1000,score!$B$33,data!$A$3:$A$1000,">="&DATE(score!$B$1,AF3,AF4),data!$A$3:$A$1000,"<="&DATE(score!$B$1,AG3,AG4)),"") -> 0 | AG33: =IFERROR(SUMIFS(data!$K$3:$K$1000,data!$B$3:$B$1000,score!$B$33,data!$A$3:$A$1000,">="&DATE(score!$B$1,AG3,AG4),data!$A$3:$A$1000,"<="&DATE(score!$B$1,AH3,AH4)),"") -> 0 | AH33: =IFERROR(SUMIFS(data!$K$3:$K$1000,data!$B$3:$B$1000,score!$B$33,data!$A$3:$A$1000,">="&DATE(score!$B$1,AH3,AH4),data!$A$3:$A$1000,"<="&DATE(score!$B$1,AI3,AI4)),"") -> 0 | AI33: =IFERROR(SUMIFS(data!$K$3:$K$1000,data!$B$3:$B$1000,score!$B$33,data!$A$3:$A$1000,">="&DATE(score!$B$1,AI3,AI4),data!$A$3:$A$1000,"<="&DATE(score!$B$1,AJ3,AJ4)),"") -> 0 | AJ33: =IFERROR(SUMIFS(data!$K$3:$K$1000,data!$B$3:$B$1000,score!$B$33,data!$A$3:$A$1000,">="&DATE(score!$B$1,AJ3,AJ4),data!$A$3:$A$1000,"<="&DATE(score!$B$1,AK3,AK4)),"") -> 0 | AK33: =IFERROR(SUMIFS(data!$K$3:$K$1000,data!$B$3:$B$1000,score!$B$33,data!$A$3:$A$1000,">="&DATE(score!$B$1,AK3,AK4),data!$A$3:$A$1000,"<="&DATE(score!$B$1,AL3,AL4)),"") -> 0 | AL33: =IFERROR(SUMIFS(data!$K$3:$K$1000,data!$B$3:$B$1000,score!$B$33,data!$A$3:$A$1000,">="&DATE(score!$B$1,AL3,AL4),data!$A$3:$A$1000,"<="&DATE(score!$B$1,AM3,AM4)),"") -> 0 | AM33: =IFERROR(SUMIFS(data!$K$3:$K$1000,data!$B$3:$B$1000,score!$B$33,data!$A$3:$A$1000,">="&DATE(score!$B$1,AM3,AM4),data!$A$3:$A$1000,"<="&DATE(score!$B$1,AN3,AN4)),"") -> 0 | AN33: =IFERROR(SUMIFS(data!$K$3:$K$1000,data!$B$3:$B$1000,score!$B$33,data!$A$3:$A$1000,">="&DATE(score!$B$1,AN3,AN4),data!$A$3:$A$1000,"<="&DATE(score!$B$1,AO3,AO4)),"") -> 0 | AO33: =IFERROR(SUMIFS(data!$K$3:$K$1000,data!$B$3:$B$1000,score!$B$33,data!$A$3:$A$1000,">="&DATE(score!$B$1,AO3,AO4),data!$A$3:$A$1000,"<="&DATE(score!$B$1,AP3,AP4)),"") -> 0 | AP33: =IFERROR(SUMIFS(data!$K$3:$K$1000,data!$B$3:$B$1000,score!$B$33,data!$A$3:$A$1000,">="&DATE(score!$B$1,AP3,AP4),data!$A$3:$A$1000,"<="&DATE(score!$B$1,AQ3,AQ4)),"") -> 0 | AQ33: =IFERROR(SUMIFS(data!$K$3:$K$1000,data!$B$3:$B$1000,score!$B$33,data!$A$3:$A$1000,">="&DATE(score!$B$1,AQ3,AQ4),data!$A$3:$A$1000,"<="&DATE(score!$B$1,AR3,AR4)),"") -> 0 | AR33: =IFERROR(SUMIFS(data!$K$3:$K$1000,data!$B$3:$B$1000,score!$B$33,data!$A$3:$A$1000,">="&DATE(score!$B$1,AR3,AR4),data!$A$3:$A$1000,"<="&DATE(score!$B$1,AS3,AS4)),"") -> 0 | AS33: =IFERROR(SUMIFS(data!$K$3:$K$1000,data!$B$3:$B$1000,score!$B$33,data!$A$3:$A$1000,">="&DATE(score!$B$1,AS3,AS4),data!$A$3:$A$1000,"<="&DATE(score!$B$1,AT3,AT4)),"") -> 0 | AT33: =IFERROR(SUMIFS(data!$K$3:$K$1000,data!$B$3:$B$1000,score!$B$33,data!$A$3:$A$1000,">="&DATE(score!$B$1,AT3,AT4),data!$A$3:$A$1000,"<="&DATE(score!$B$1,AU3,AU4)),"") -> 0 | AU33: =IFERROR(SUMIFS(data!$K$3:$K$1000,data!$B$3:$B$1000,score!$B$33,data!$A$3:$A$1000,">="&DATE(score!$B$1,AU3,AU4),data!$A$3:$A$1000,"<="&DATE(score!$B$1,AV3,AV4)),"") -> 0 | AV33: =IFERROR(SUMIFS(data!$K$3:$K$1000,data!$B$3:$B$1000,score!$B$33,data!$A$3:$A$1000,">="&DATE(score!$B$1,AV3,AV4),data!$A$3:$A$1000,"<="&DATE(score!$B$1,AW3,AW4)),"") -> 0 | AW33: =IFERROR(SUMIFS(data!$K$3:$K$1000,data!$B$3:$B$1000,score!$B$33,data!$A$3:$A$1000,">="&DATE(score!$B$1,AW3,AW4),data!$A$3:$A$1000,"<="&DATE(score!$B$1,AX3,AX4)),"") -> 0 | AX33: =IFERROR(SUMIFS(data!$K$3:$K$1000,data!$B$3:$B$1000,score!$B$33,data!$A$3:$A$1000,">="&DATE(score!$B$1,AX3,AX4),data!$A$3:$A$1000,"<="&DATE(score!$B$1,AY3,AY4)),"") -> 0 | AY33: =IFERROR(SUMIFS(data!$K$3:$K$1000,data!$B$3:$B$1000,score!$B$33,data!$A$3:$A$1000,">="&DATE(score!$B$1,AY3,AY4),data!$A$3:$A$1000,"<="&DATE(score!$B$1,AZ3,AZ4)),"") -> 0 | AZ33: =IFERROR(SUMIFS(data!$K$3:$K$1000,data!$B$3:$B$1000,score!$B$33,data!$A$3:$A$1000,">="&DATE(score!$B$1,AZ3,AZ4),data!$A$3:$A$1000,"<="&DATE(score!$B$1,BA3,BA4)),"") -> 0 | BA33: =IFERROR(SUMIFS(data!$K$3:$K$1000,data!$B$3:$B$1000,score!$B$33,data!$A$3:$A$1000,">="&DATE(score!$B$1,BA3,BA4),data!$A$3:$A$1000,"<="&DATE(score!$B$1,BB3,BB4)),"") -> 0 | BB33: =IFERROR(SUMIFS(data!$K$3:$K$1000,data!$B$3:$B$1000,score!$B$33,data!$A$3:$A$1000,">="&DATE(score!$B$1,BB3,BB4),data!$A$3:$A$1000,"<="&DATE(score!$B$1,BC3,BC4)),"") -> 0
C34: =IFERROR(SUMIFS(data!$K$3:$K$1000,data!$B$3:$B$1000,score!$B$34,data!$A$3:$A$1000,">="&DATE(score!$B$1,C3,C4),data!$A$3:$A$1000,"<="&DATE(score!$B$1,D3,D4)),"") -> 0 | D34: =IFERROR(SUMIFS(data!$K$3:$K$1000,data!$B$3:$B$1000,score!$B$34,data!$A$3:$A$1000,">="&DATE(score!$B$1,D3,D4),data!$A$3:$A$1000,"<="&DATE(score!$B$1,E3,E4)),"") -> 0 | E34: =IFERROR(SUMIFS(data!$K$3:$K$1000,data!$B$3:$B$1000,score!$B$34,data!$A$3:$A$1000,">="&DATE(score!$B$1,E3,E4),data!$A$3:$A$1000,"<="&DATE(score!$B$1,F3,F4)),"") -> 0 | F34: =IFERROR(SUMIFS(data!$K$3:$K$1000,data!$B$3:$B$1000,score!$B$34,data!$A$3:$A$1000,">="&DATE(score!$B$1,F3,F4),data!$A$3:$A$1000,"<="&DATE(score!$B$1,G3,G4)),"") -> 0 | G34: =IFERROR(SUMIFS(data!$K$3:$K$1000,data!$B$3:$B$1000,score!$B$34,data!$A$3:$A$1000,">="&DATE(score!$B$1,G3,G4),data!$A$3:$A$1000,"<="&DATE(score!$B$1,H3,H4)),"") -> 0 | H34: =IFERROR(SUMIFS(data!$K$3:$K$1000,data!$B$3:$B$1000,score!$B$34,data!$A$3:$A$1000,">="&DATE(score!$B$1,H3,H4),data!$A$3:$A$1000,"<="&DATE(score!$B$1,I3,I4)),"") -> 0 | I34: =IFERROR(SUMIFS(data!$K$3:$K$1000,data!$B$3:$B$1000,score!$B$34,data!$A$3:$A$1000,">="&DATE(score!$B$1,I3,I4),data!$A$3:$A$1000,"<="&DATE(score!$B$1,J3,J4)),"") -> 0 | J34: =IFERROR(SUMIFS(data!$K$3:$K$1000,data!$B$3:$B$1000,score!$B$34,data!$A$3:$A$1000,">="&DATE(score!$B$1,J3,J4),data!$A$3:$A$1000,"<="&DATE(score!$B$1,K3,K4)),"") -> 0 | K34: =IFERROR(SUMIFS(data!$K$3:$K$1000,data!$B$3:$B$1000,score!$B$34,data!$A$3:$A$1000,">="&DATE(score!$B$1,K3,K4),data!$A$3:$A$1000,"<="&DATE(score!$B$1,L3,L4)),"") -> 0 | L34: =IFERROR(SUMIFS(data!$K$3:$K$1000,data!$B$3:$B$1000,score!$B$34,data!$A$3:$A$1000,">="&DATE(score!$B$1,L3,L4),data!$A$3:$A$1000,"<="&DATE(score!$B$1,M3,M4)),"") -> 0 | M34: =IFERROR(SUMIFS(data!$K$3:$K$1000,data!$B$3:$B$1000,score!$B$34,data!$A$3:$A$1000,">="&DATE(score!$B$1,M3,M4),data!$A$3:$A$1000,"<="&DATE(score!$B$1,N3,N4)),"") -> 0 | N34: =IFERROR(SUMIFS(data!$K$3:$K$1000,data!$B$3:$B$1000,score!$B$34,data!$A$3:$A$1000,">="&DATE(score!$B$1,N3,N4),data!$A$3:$A$1000,"<="&DATE(score!$B$1,O3,O4)),"") -> 0 | O34: =IFERROR(SUMIFS(data!$K$3:$K$1000,data!$B$3:$B$1000,score!$B$34,data!$A$3:$A$1000,">="&DATE(score!$B$1,O3,O4),data!$A$3:$A$1000,"<="&DATE(score!$B$1,P3,P4)),"") -> 0 | P34: =IFERROR(SUMIFS(data!$K$3:$K$1000,data!$B$3:$B$1000,score!$B$34,data!$A$3:$A$1000,">="&DATE(score!$B$1,P3,P4),data!$A$3:$A$1000,"<="&DATE(score!$B$1,Q3,Q4)),"") -> 0 | Q34: =IFERROR(SUMIFS(data!$K$3:$K$1000,data!$B$3:$B$1000,score!$B$34,data!$A$3:$A$1000,">="&DATE(score!$B$1,Q3,Q4),data!$A$3:$A$1000,"<="&DATE(score!$B$1,R3,R4)),"") -> 0 | R34: =IFERROR(SUMIFS(data!$K$3:$K$1000,data!$B$3:$B$1000,score!$B$34,data!$A$3:$A$1000,">="&DATE(score!$B$1,R3,R4),data!$A$3:$A$1000,"<="&DATE(score!$B$1,S3,S4)),"") -> 0 | S34: =IFERROR(SUMIFS(data!$K$3:$K$1000,data!$B$3:$B$1000,score!$B$34,data!$A$3:$A$1000,">="&DATE(score!$B$1,S3,S4),data!$A$3:$A$1000,"<="&DATE(score!$B$1,T3,T4)),"") -> 0 | T34: =IFERROR(SUMIFS(data!$K$3:$K$1000,data!$B$3:$B$1000,score!$B$34,data!$A$3:$A$1000,">="&DATE(score!$B$1,T3,T4),data!$A$3:$A$1000,"<="&DATE(score!$B$1,U3,U4)),"") -> 0 | U34: =IFERROR(SUMIFS(data!$K$3:$K$1000,data!$B$3:$B$1000,score!$B$34,data!$A$3:$A$1000,">="&DATE(score!$B$1,U3,U4),data!$A$3:$A$1000,"<="&DATE(score!$B$1,V3,V4)),"") -> 0 | V34: =IFERROR(SUMIFS(data!$K$3:$K$1000,data!$B$3:$B$1000,score!$B$34,data!$A$3:$A$1000,">="&DATE(score!$B$1,V3,V4),data!$A$3:$A$1000,"<="&DATE(score!$B$1,W3,W4)),"") -> 0 | W34: =IFERROR(SUMIFS(data!$K$3:$K$1000,data!$B$3:$B$1000,score!$B$34,data!$A$3:$A$1000,">="&DATE(score!$B$1,W3,W4),data!$A$3:$A$1000,"<="&DATE(score!$B$1,X3,X4)),"") -> 0 | X34: =IFERROR(SUMIFS(data!$K$3:$K$1000,data!$B$3:$B$1000,score!$B$34,data!$A$3:$A$1000,">="&DATE(score!$B$1,X3,X4),data!$A$3:$A$1000,"<="&DATE(score!$B$1,Y3,Y4)),"") -> 0 | Y34: =IFERROR(SUMIFS(data!$K$3:$K$1000,data!$B$3:$B$1000,score!$B$34,data!$A$3:$A$1000,">="&DATE(score!$B$1,Y3,Y4),data!$A$3:$A$1000,"<="&DATE(score!$B$1,Z3,Z4)),"") -> 0 | Z34: =IFERROR(SUMIFS(data!$K$3:$K$1000,data!$B$3:$B$1000,score!$B$34,data!$A$3:$A$1000,">="&DATE(score!$B$1,Z3,Z4),data!$A$3:$A$1000,"<="&DATE(score!$B$1,AA3,AA4)),"") -> 0 | AA34: =IFERROR(SUMIFS(data!$K$3:$K$1000,data!$B$3:$B$1000,score!$B$34,data!$A$3:$A$1000,">="&DATE(score!$B$1,AA3,AA4),data!$A$3:$A$1000,"<="&DATE(score!$B$1,AB3,AB4)),"") -> 0 | AB34: =IFERROR(SUMIFS(data!$K$3:$K$1000,data!$B$3:$B$1000,score!$B$34,data!$A$3:$A$1000,">="&DATE(score!$B$1,AB3,AB4),data!$A$3:$A$1000,"<="&DATE(score!$B$1,AC3,AC4)),"") -> 0 | AC34: =IFERROR(SUMIFS(data!$K$3:$K$1000,data!$B$3:$B$1000,score!$B$34,data!$A$3:$A$1000,">="&DATE(score!$B$1,AC3,AC4),data!$A$3:$A$1000,"<="&DATE(score!$B$1,AD3,AD4)),"") -> 0 | AD34: =IFERROR(SUMIFS(data!$K$3:$K$1000,data!$B$3:$B$1000,score!$B$34,data!$A$3:$A$1000,">="&DATE(score!$B$1,AD3,AD4),data!$A$3:$A$1000,"<="&DATE(score!$B$1,AE3,AE4)),"") -> 0 | AE34: =IFERROR(SUMIFS(data!$K$3:$K$1000,data!$B$3:$B$1000,score!$B$34,data!$A$3:$A$1000,">="&DATE(score!$B$1,AE3,AE4),data!$A$3:$A$1000,"<="&DATE(score!$B$1,AF3,AF4)),"") -> 0 | AF34: =IFERROR(SUMIFS(data!$K$3:$K$1000,data!$B$3:$B$1000,score!$B$34,data!$A$3:$A$1000,">="&DATE(score!$B$1,AF3,AF4),data!$A$3:$A$1000,"<="&DATE(score!$B$1,AG3,AG4)),"") -> 0 | AG34: =IFERROR(SUMIFS(data!$K$3:$K$1000,data!$B$3:$B$1000,score!$B$34,data!$A$3:$A$1000,">="&DATE(score!$B$1,AG3,AG4),data!$A$3:$A$1000,"<="&DATE(score!$B$1,AH3,AH4)),"") -> 0 | AH34: =IFERROR(SUMIFS(data!$K$3:$K$1000,data!$B$3:$B$1000,score!$B$34,data!$A$3:$A$1000,">="&DATE(score!$B$1,AH3,AH4),data!$A$3:$A$1000,"<="&DATE(score!$B$1,AI3,AI4)),"") -> 0 | AI34: =IFERROR(SUMIFS(data!$K$3:$K$1000,data!$B$3:$B$1000,score!$B$34,data!$A$3:$A$1000,">="&DATE(score!$B$1,AI3,AI4),data!$A$3:$A$1000,"<="&DATE(score!$B$1,AJ3,AJ4)),"") -> 0 | AJ34: =IFERROR(SUMIFS(data!$K$3:$K$1000,data!$B$3:$B$1000,score!$B$34,data!$A$3:$A$1000,">="&DATE(score!$B$1,AJ3,AJ4),data!$A$3:$A$1000,"<="&DATE(score!$B$1,AK3,AK4)),"") -> 0 | AK34: =IFERROR(SUMIFS(data!$K$3:$K$1000,data!$B$3:$B$1000,score!$B$34,data!$A$3:$A$1000,">="&DATE(score!$B$1,AK3,AK4),data!$A$3:$A$1000,"<="&DATE(score!$B$1,AL3,AL4)),"") -> 0 | AL34: =IFERROR(SUMIFS(data!$K$3:$K$1000,data!$B$3:$B$1000,score!$B$34,data!$A$3:$A$1000,">="&DATE(score!$B$1,AL3,AL4),data!$A$3:$A$1000,"<="&DATE(score!$B$1,AM3,AM4)),"") -> 0 | AM34: =IFERROR(SUMIFS(data!$K$3:$K$1000,data!$B$3:$B$1000,score!$B$34,data!$A$3:$A$1000,">="&DATE(score!$B$1,AM3,AM4),data!$A$3:$A$1000,"<="&DATE(score!$B$1,AN3,AN4)),"") -> 0 | AN34: =IFERROR(SUMIFS(data!$K$3:$K$1000,data!$B$3:$B$1000,score!$B$34,data!$A$3:$A$1000,">="&DATE(score!$B$1,AN3,AN4),data!$A$3:$A$1000,"<="&DATE(score!$B$1,AO3,AO4)),"") -> 0 | AO34: =IFERROR(SUMIFS(data!$K$3:$K$1000,data!$B$3:$B$1000,score!$B$34,data!$A$3:$A$1000,">="&DATE(score!$B$1,AO3,AO4),data!$A$3:$A$1000,"<="&DATE(score!$B$1,AP3,AP4)),"") -> 0 | AP34: =IFERROR(SUMIFS(data!$K$3:$K$1000,data!$B$3:$B$1000,score!$B$34,data!$A$3:$A$1000,">="&DATE(score!$B$1,AP3,AP4),data!$A$3:$A$1000,"<="&DATE(score!$B$1,AQ3,AQ4)),"") -> 0 | AQ34: =IFERROR(SUMIFS(data!$K$3:$K$1000,data!$B$3:$B$1000,score!$B$34,data!$A$3:$A$1000,">="&DATE(score!$B$1,AQ3,AQ4),data!$A$3:$A$1000,"<="&DATE(score!$B$1,AR3,AR4)),"") -> 0 | AR34: =IFERROR(SUMIFS(data!$K$3:$K$1000,data!$B$3:$B$1000,score!$B$34,data!$A$3:$A$1000,">="&DATE(score!$B$1,AR3,AR4),data!$A$3:$A$1000,"<="&DATE(score!$B$1,AS3,AS4)),"") -> 0 | AS34: =IFERROR(SUMIFS(data!$K$3:$K$1000,data!$B$3:$B$1000,score!$B$34,data!$A$3:$A$1000,">="&DATE(score!$B$1,AS3,AS4),data!$A$3:$A$1000,"<="&DATE(score!$B$1,AT3,AT4)),"") -> 0 | AT34: =IFERROR(SUMIFS(data!$K$3:$K$1000,data!$B$3:$B$1000,score!$B$34,data!$A$3:$A$1000,">="&DATE(score!$B$1,AT3,AT4),data!$A$3:$A$1000,"<="&DATE(score!$B$1,AU3,AU4)),"") -> 0 | AU34: =IFERROR(SUMIFS(data!$K$3:$K$1000,data!$B$3:$B$1000,score!$B$34,data!$A$3:$A$1000,">="&DATE(score!$B$1,AU3,AU4),data!$A$3:$A$1000,"<="&DATE(score!$B$1,AV3,AV4)),"") -> 0 | AV34: =IFERROR(SUMIFS(data!$K$3:$K$1000,data!$B$3:$B$1000,score!$B$34,data!$A$3:$A$1000,">="&DATE(score!$B$1,AV3,AV4),data!$A$3:$A$1000,"<="&DATE(score!$B$1,AW3,AW4)),"") -> 0 | AW34: =IFERROR(SUMIFS(data!$K$3:$K$1000,data!$B$3:$B$1000,score!$B$34,data!$A$3:$A$1000,">="&DATE(score!$B$1,AW3,AW4),data!$A$3:$A$1000,"<="&DATE(score!$B$1,AX3,AX4)),"") -> 0 | AX34: =IFERROR(SUMIFS(data!$K$3:$K$1000,data!$B$3:$B$1000,score!$B$34,data!$A$3:$A$1000,">="&DATE(score!$B$1,AX3,AX4),data!$A$3:$A$1000,"<="&DATE(score!$B$1,AY3,AY4)),"") -> 0 | AY34: =IFERROR(SUMIFS(data!$K$3:$K$1000,data!$B$3:$B$1000,score!$B$34,data!$A$3:$A$1000,">="&DATE(score!$B$1,AY3,AY4),data!$A$3:$A$1000,"<="&DATE(score!$B$1,AZ3,AZ4)),"") -> 0 | AZ34: =IFERROR(SUMIFS(data!$K$3:$K$1000,data!$B$3:$B$1000,score!$B$34,data!$A$3:$A$1000,">="&DATE(score!$B$1,AZ3,AZ4),data!$A$3:$A$1000,"<="&DATE(score!$B$1,BA3,BA4)),"") -> 0 | BA34: =IFERROR(SUMIFS(data!$K$3:$K$1000,data!$B$3:$B$1000,score!$B$34,data!$A$3:$A$1000,">="&DATE(score!$B$1,BA3,BA4),data!$A$3:$A$1000,"<="&DATE(score!$B$1,BB3,BB4)),"") -> 0 | BB34: =IFERROR(SUMIFS(data!$K$3:$K$1000,data!$B$3:$B$1000,score!$B$34,data!$A$3:$A$1000,">="&DATE(score!$B$1,BB3,BB4),data!$A$3:$A$1000,"<="&DATE(score!$B$1,BC3,BC4)),"") -> 0
C35: =IFERROR(SUMIFS(data!$K$3:$K$1000,data!$B$3:$B$1000,score!$B$35,data!$A$3:$A$1000,">="&DATE(score!$B$1,C3,C4),data!$A$3:$A$1000,"<="&DATE(score!$B$1,D3,D4)),"") -> 0 | D35: =IFERROR(SUMIFS(data!$K$3:$K$1000,data!$B$3:$B$1000,score!$B$35,data!$A$3:$A$1000,">="&DATE(score!$B$1,D3,D4),data!$A$3:$A$1000,"<="&DATE(score!$B$1,E3,E4)),"") -> 0 | E35: =IFERROR(SUMIFS(data!$K$3:$K$1000,data!$B$3:$B$1000,score!$B$35,data!$A$3:$A$1000,">="&DATE(score!$B$1,E3,E4),data!$A$3:$A$1000,"<="&DATE(score!$B$1,F3,F4)),"") -> 0 | F35: =IFERROR(SUMIFS(data!$K$3:$K$1000,data!$B$3:$B$1000,score!$B$35,data!$A$3:$A$1000,">="&DATE(score!$B$1,F3,F4),data!$A$3:$A$1000,"<="&DATE(score!$B$1,G3,G4)),"") -> 0 | G35: =IFERROR(SUMIFS(data!$K$3:$K$1000,data!$B$3:$B$1000,score!$B$35,data!$A$3:$A$1000,">="&DATE(score!$B$1,G3,G4),data!$A$3:$A$1000,"<="&DATE(score!$B$1,H3,H4)),"") -> 0 | H35: =IFERROR(SUMIFS(data!$K$3:$K$1000,data!$B$3:$B$1000,score!$B$35,data!$A$3:$A$1000,">="&DATE(score!$B$1,H3,H4),data!$A$3:$A$1000,"<="&DATE(score!$B$1,I3,I4)),"") -> 0 | I35: =IFERROR(SUMIFS(data!$K$3:$K$1000,data!$B$3:$B$1000,score!$B$35,data!$A$3:$A$1000,">="&DATE(score!$B$1,I3,I4),data!$A$3:$A$1000,"<="&DATE(score!$B$1,J3,J4)),"") -> 0 | J35: =IFERROR(SUMIFS(data!$K$3:$K$1000,data!$B$3:$B$1000,score!$B$35,data!$A$3:$A$1000,">="&DATE(score!$B$1,J3,J4),data!$A$3:$A$1000,"<="&DATE(score!$B$1,K3,K4)),"") -> 0 | K35: =IFERROR(SUMIFS(data!$K$3:$K$1000,data!$B$3:$B$1000,score!$B$35,data!$A$3:$A$1000,">="&DATE(score!$B$1,K3,K4),data!$A$3:$A$1000,"<="&DATE(score!$B$1,L3,L4)),"") -> 0 | L35: =IFERROR(SUMIFS(data!$K$3:$K$1000,data!$B$3:$B$1000,score!$B$35,data!$A$3:$A$1000,">="&DATE(score!$B$1,L3,L4),data!$A$3:$A$1000,"<="&DATE(score!$B$1,M3,M4)),"") -> 0 | M35: =IFERROR(SUMIFS(data!$K$3:$K$1000,data!$B$3:$B$1000,score!$B$35,data!$A$3:$A$1000,">="&DATE(score!$B$1,M3,M4),data!$A$3:$A$1000,"<="&DATE(score!$B$1,N3,N4)),"") -> 0 | N35: =IFERROR(SUMIFS(data!$K$3:$K$1000,data!$B$3:$B$1000,score!$B$35,data!$A$3:$A$1000,">="&DATE(score!$B$1,N3,N4),data!$A$3:$A$1000,"<="&DATE(score!$B$1,O3,O4)),"") -> 0 | O35: =IFERROR(SUMIFS(data!$K$3:$K$1000,data!$B$3:$B$1000,score!$B$35,data!$A$3:$A$1000,">="&DATE(score!$B$1,O3,O4),data!$A$3:$A$1000,"<="&DATE(score!$B$1,P3,P4)),"") -> 0 | P35: =IFERROR(SUMIFS(data!$K$3:$K$1000,data!$B$3:$B$1000,score!$B$35,data!$A$3:$A$1000,">="&DATE(score!$B$1,P3,P4),data!$A$3:$A$1000,"<="&DATE(score!$B$1,Q3,Q4)),"") -> 0 | Q35: =IFERROR(SUMIFS(data!$K$3:$K$1000,data!$B$3:$B$1000,score!$B$35,data!$A$3:$A$1000,">="&DATE(score!$B$1,Q3,Q4),data!$A$3:$A$1000,"<="&DATE(score!$B$1,R3,R4)),"") -> 0 | R35: =IFERROR(SUMIFS(data!$K$3:$K$1000,data!$B$3:$B$1000,score!$B$35,data!$A$3:$A$1000,">="&DATE(score!$B$1,R3,R4),data!$A$3:$A$1000,"<="&DATE(score!$B$1,S3,S4)),"") -> 0 | S35: =IFERROR(SUMIFS(data!$K$3:$K$1000,data!$B$3:$B$1000,score!$B$35,data!$A$3:$A$1000,">="&DATE(score!$B$1,S3,S4),data!$A$3:$A$1000,"<="&DATE(score!$B$1,T3,T4)),"") -> 0 | T35: =IFERROR(SUMIFS(data!$K$3:$K$1000,data!$B$3:$B$1000,score!$B$35,data!$A$3:$A$1000,">="&DATE(score!$B$1,T3,T4),data!$A$3:$A$1000,"<="&DATE(score!$B$1,U3,U4)),"") -> 0 | U35: =IFERROR(SUMIFS(data!$K$3:$K$1000,data!$B$3:$B$1000,score!$B$35,data!$A$3:$A$1000,">="&DATE(score!$B$1,U3,U4),data!$A$3:$A$1000,"<="&DATE(score!$B$1,V3,V4)),"") -> 0 | V35: =IFERROR(SUMIFS(data!$K$3:$K$1000,data!$B$3:$B$1000,score!$B$35,data!$A$3:$A$1000,">="&DATE(score!$B$1,V3,V4),data!$A$3:$A$1000,"<="&DATE(score!$B$1,W3,W4)),"") -> 0 | W35: =IFERROR(SUMIFS(data!$K$3:$K$1000,data!$B$3:$B$1000,score!$B$35,data!$A$3:$A$1000,">="&DATE(score!$B$1,W3,W4),data!$A$3:$A$1000,"<="&DATE(score!$B$1,X3,X4)),"") -> 0 | X35: =IFERROR(SUMIFS(data!$K$3:$K$1000,data!$B$3:$B$1000,score!$B$35,data!$A$3:$A$1000,">="&DATE(score!$B$1,X3,X4),data!$A$3:$A$1000,"<="&DATE(score!$B$1,Y3,Y4)),"") -> 0 | Y35: =IFERROR(SUMIFS(data!$K$3:$K$1000,data!$B$3:$B$1000,score!$B$35,data!$A$3:$A$1000,">="&DATE(score!$B$1,Y3,Y4),data!$A$3:$A$1000,"<="&DATE(score!$B$1,Z3,Z4)),"") -> 0 | Z35: =IFERROR(SUMIFS(data!$K$3:$K$1000,data!$B$3:$B$1000,score!$B$35,data!$A$3:$A$1000,">="&DATE(score!$B$1,Z3,Z4),data!$A$3:$A$1000,"<="&DATE(score!$B$1,AA3,AA4)),"") -> 0 | AA35: =IFERROR(SUMIFS(data!$K$3:$K$1000,data!$B$3:$B$1000,score!$B$35,data!$A$3:$A$1000,">="&DATE(score!$B$1,AA3,AA4),data!$A$3:$A$1000,"<="&DATE(score!$B$1,AB3,AB4)),"") -> 0 | AB35: =IFERROR(SUMIFS(data!$K$3:$K$1000,data!$B$3:$B$1000,score!$B$35,data!$A$3:$A$1000,">="&DATE(score!$B$1,AB3,AB4),data!$A$3:$A$1000,"<="&DATE(score!$B$1,AC3,AC4)),"") -> 0 | AC35: =IFERROR(SUMIFS(data!$K$3:$K$1000,data!$B$3:$B$1000,score!$B$35,data!$A$3:$A$1000,">="&DATE(score!$B$1,AC3,AC4),data!$A$3:$A$1000,"<="&DATE(score!$B$1,AD3,AD4)),"") -> 0 | AD35: =IFERROR(SUMIFS(data!$K$3:$K$1000,data!$B$3:$B$1000,score!$B$35,data!$A$3:$A$1000,">="&DATE(score!$B$1,AD3,AD4),data!$A$3:$A$1000,"<="&DATE(score!$B$1,AE3,AE4)),"") -> 0 | AE35: =IFERROR(SUMIFS(data!$K$3:$K$1000,data!$B$3:$B$1000,score!$B$35,data!$A$3:$A$1000,">="&DATE(score!$B$1,AE3,AE4),data!$A$3:$A$1000,"<="&DATE(score!$B$1,AF3,AF4)),"") -> 0 | AF35: =IFERROR(SUMIFS(data!$K$3:$K$1000,data!$B$3:$B$1000,score!$B$35,data!$A$3:$A$1000,">="&DATE(score!$B$1,AF3,AF4),data!$A$3:$A$1000,"<="&DATE(score!$B$1,AG3,AG4)),"") -> 0 | AG35: =IFERROR(SUMIFS(data!$K$3:$K$1000,data!$B$3:$B$1000,score!$B$35,data!$A$3:$A$1000,">="&DATE(score!$B$1,AG3,AG4),data!$A$3:$A$1000,"<="&DATE(score!$B$1,AH3,AH4)),"") -> 0 | AH35: =IFERROR(SUMIFS(data!$K$3:$K$1000,data!$B$3:$B$1000,score!$B$35,data!$A$3:$A$1000,">="&DATE(score!$B$1,AH3,AH4),data!$A$3:$A$1000,"<="&DATE(score!$B$1,AI3,AI4)),"") -> 0 | AI35: =IFERROR(SUMIFS(data!$K$3:$K$1000,data!$B$3:$B$1000,score!$B$35,data!$A$3:$A$1000,">="&DATE(score!$B$1,AI3,AI4),data!$A$3:$A$1000,"<="&DATE(score!$B$1,AJ3,AJ4)),"") -> 0 | AJ35: =IFERROR(SUMIFS(data!$K$3:$K$1000,data!$B$3:$B$1000,score!$B$35,data!$A$3:$A$1000,">="&DATE(score!$B$1,AJ3,AJ4),data!$A$3:$A$1000,"<="&DATE(score!$B$1,AK3,AK4)),"") -> 0 | AK35: =IFERROR(SUMIFS(data!$K$3:$K$1000,data!$B$3:$B$1000,score!$B$35,data!$A$3:$A$1000,">="&DATE(score!$B$1,AK3,AK4),data!$A$3:$A$1000,"<="&DATE(score!$B$1,AL3,AL4)),"") -> 0 | AL35: =IFERROR(SUMIFS(data!$K$3:$K$1000,data!$B$3:$B$1000,score!$B$35,data!$A$3:$A$1000,">="&DATE(score!$B$1,AL3,AL4),data!$A$3:$A$1000,"<="&DATE(score!$B$1,AM3,AM4)),"") -> 0 | AM35: =IFERROR(SUMIFS(data!$K$3:$K$1000,data!$B$3:$B$1000,score!$B$35,data!$A$3:$A$1000,">="&DATE(score!$B$1,AM3,AM4),data!$A$3:$A$1000,"<="&DATE(score!$B$1,AN3,AN4)),"") -> 0 | AN35: =IFERROR(SUMIFS(data!$K$3:$K$1000,data!$B$3:$B$1000,score!$B$35,data!$A$3:$A$1000,">="&DATE(score!$B$1,AN3,AN4),data!$A$3:$A$1000,"<="&DATE(score!$B$1,AO3,AO4)),"") -> 0 | AO35: =IFERROR(SUMIFS(data!$K$3:$K$1000,data!$B$3:$B$1000,score!$B$35,data!$A$3:$A$1000,">="&DATE(score!$B$1,AO3,AO4),data!$A$3:$A$1000,"<="&DATE(score!$B$1,AP3,AP4)),"") -> 0 | AP35: =IFERROR(SUMIFS(data!$K$3:$K$1000,data!$B$3:$B$1000,score!$B$35,data!$A$3:$A$1000,">="&DATE(score!$B$1,AP3,AP4),data!$A$3:$A$1000,"<="&DATE(score!$B$1,AQ3,AQ4)),"") -> 0 | AQ35: =IFERROR(SUMIFS(data!$K$3:$K$1000,data!$B$3:$B$1000,score!$B$35,data!$A$3:$A$1000,">="&DATE(score!$B$1,AQ3,AQ4),data!$A$3:$A$1000,"<="&DATE(score!$B$1,AR3,AR4)),"") -> 0 | AR35: =IFERROR(SUMIFS(data!$K$3:$K$1000,data!$B$3:$B$1000,score!$B$35,data!$A$3:$A$1000,">="&DATE(score!$B$1,AR3,AR4),data!$A$3:$A$1000,"<="&DATE(score!$B$1,AS3,AS4)),"") -> 0 | AS35: =IFERROR(SUMIFS(data!$K$3:$K$1000,data!$B$3:$B$1000,score!$B$35,data!$A$3:$A$1000,">="&DATE(score!$B$1,AS3,AS4),data!$A$3:$A$1000,"<="&DATE(score!$B$1,AT3,AT4)),"") -> 0 | AT35: =IFERROR(SUMIFS(data!$K$3:$K$1000,data!$B$3:$B$1000,score!$B$35,data!$A$3:$A$1000,">="&DATE(score!$B$1,AT3,AT4),data!$A$3:$A$1000,"<="&DATE(score!$B$1,AU3,AU4)),"") -> 0 | AU35: =IFERROR(SUMIFS(data!$K$3:$K$1000,data!$B$3:$B$1000,score!$B$35,data!$A$3:$A$1000,">="&DATE(score!$B$1,AU3,AU4),data!$A$3:$A$1000,"<="&DATE(score!$B$1,AV3,AV4)),"") -> 0 | AV35: =IFERROR(SUMIFS(data!$K$3:$K$1000,data!$B$3:$B$1000,score!$B$35,data!$A$3:$A$1000,">="&DATE(score!$B$1,AV3,AV4),data!$A$3:$A$1000,"<="&DATE(score!$B$1,AW3,AW4)),"") -> 0 | AW35: =IFERROR(SUMIFS(data!$K$3:$K$1000,data!$B$3:$B$1000,score!$B$35,data!$A$3:$A$1000,">="&DATE(score!$B$1,AW3,AW4),data!$A$3:$A$1000,"<="&DATE(score!$B$1,AX3,AX4)),"") -> 0 | AX35: =IFERROR(SUMIFS(data!$K$3:$K$1000,data!$B$3:$B$1000,score!$B$35,data!$A$3:$A$1000,">="&DATE(score!$B$1,AX3,AX4),data!$A$3:$A$1000,"<="&DATE(score!$B$1,AY3,AY4)),"") -> 0 | AY35: =IFERROR(SUMIFS(data!$K$3:$K$1000,data!$B$3:$B$1000,score!$B$35,data!$A$3:$A$1000,">="&DATE(score!$B$1,AY3,AY4),data!$A$3:$A$1000,"<="&DATE(score!$B$1,AZ3,AZ4)),"") -> 0 | AZ35: =IFERROR(SUMIFS(data!$K$3:$K$1000,data!$B$3:$B$1000,score!$B$35,data!$A$3:$A$1000,">="&DATE(score!$B$1,AZ3,AZ4),data!$A$3:$A$1000,"<="&DATE(score!$B$1,BA3,BA4)),"") -> 0 | BA35: =IFERROR(SUMIFS(data!$K$3:$K$1000,data!$B$3:$B$1000,score!$B$35,data!$A$3:$A$1000,">="&DATE(score!$B$1,BA3,BA4),data!$A$3:$A$1000,"<="&DATE(score!$B$1,BB3,BB4)),"") -> 0 | BB35: =IFERROR(SUMIFS(data!$K$3:$K$1000,data!$B$3:$B$1000,score!$B$35,data!$A$3:$A$1000,">="&DATE(score!$B$1,BB3,BB4),data!$A$3:$A$1000,"<="&DATE(score!$B$1,BC3,BC4)),"") -> 0
C36: =IFERROR(SUMIFS(data!$K$3:$K$1000,data!$B$3:$B$1000,score!$B$36,data!$A$3:$A$1000,">="&DATE(score!$B$1,C3,C4),data!$A$3:$A$1000,"<="&DATE(score!$B$1,D3,D4)),"") -> 0 | D36: =IFERROR(SUMIFS(data!$K$3:$K$1000,data!$B$3:$B$1000,score!$B$36,data!$A$3:$A$1000,">="&DATE(score!$B$1,D3,D4),data!$A$3:$A$1000,"<="&DATE(score!$B$1,E3,E4)),"") -> 0 | E36: =IFERROR(SUMIFS(data!$K$3:$K$1000,data!$B$3:$B$1000,score!$B$36,data!$A$3:$A$1000,">="&DATE(score!$B$1,E3,E4),data!$A$3:$A$1000,"<="&DATE(score!$B$1,F3,F4)),"") -> 0 | F36: =IFERROR(SUMIFS(data!$K$3:$K$1000,data!$B$3:$B$1000,score!$B$36,data!$A$3:$A$1000,">="&DATE(score!$B$1,F3,F4),data!$A$3:$A$1000,"<="&DATE(score!$B$1,G3,G4)),"") -> 0 | G36: =IFERROR(SUMIFS(data!$K$3:$K$1000,data!$B$3:$B$1000,score!$B$36,data!$A$3:$A$1000,">="&DATE(score!$B$1,G3,G4),data!$A$3:$A$1000,"<="&DATE(score!$B$1,H3,H4)),"") -> 0 | H36: =IFERROR(SUMIFS(data!$K$3:$K$1000,data!$B$3:$B$1000,score!$B$36,data!$A$3:$A$1000,">="&DATE(score!$B$1,H3,H4),data!$A$3:$A$1000,"<="&DATE(score!$B$1,I3,I4)),"") -> 0 | I36: =IFERROR(SUMIFS(data!$K$3:$K$1000,data!$B$3:$B$1000,score!$B$36,data!$A$3:$A$1000,">="&DATE(score!$B$1,I3,I4),data!$A$3:$A$1000,"<="&DATE(score!$B$1,J3,J4)),"") -> 0 | J36: =IFERROR(SUMIFS(data!$K$3:$K$1000,data!$B$3:$B$1000,score!$B$36,data!$A$3:$A$1000,">="&DATE(score!$B$1,J3,J4),data!$A$3:$A$1000,"<="&DATE(score!$B$1,K3,K4)),"") -> 0 | K36: =IFERROR(SUMIFS(data!$K$3:$K$1000,data!$B$3:$B$1000,score!$B$36,data!$A$3:$A$1000,">="&DATE(score!$B$1,K3,K4),data!$A$3:$A$1000,"<="&DATE(score!$B$1,L3,L4)),"") -> 0 | L36: =IFERROR(SUMIFS(data!$K$3:$K$1000,data!$B$3:$B$1000,score!$B$36,data!$A$3:$A$1000,">="&DATE(score!$B$1,L3,L4),data!$A$3:$A$1000,"<="&DATE(score!$B$1,M3,M4)),"") -> 0 | M36: =IFERROR(SUMIFS(data!$K$3:$K$1000,data!$B$3:$B$1000,score!$B$36,data!$A$3:$A$1000,">="&DATE(score!$B$1,M3,M4),data!$A$3:$A$1000,"<="&DATE(score!$B$1,N3,N4)),"") -> 0 | N36: =IFERROR(SUMIFS(data!$K$3:$K$1000,data!$B$3:$B$1000,score!$B$36,data!$A$3:$A$1000,">="&DATE(score!$B$1,N3,N4),data!$A$3:$A$1000,"<="&DATE(score!$B$1,O3,O4)),"") -> 0 | O36: =IFERROR(SUMIFS(data!$K$3:$K$1000,data!$B$3:$B$1000,score!$B$36,data!$A$3:$A$1000,">="&DATE(score!$B$1,O3,O4),data!$A$3:$A$1000,"<="&DATE(score!$B$1,P3,P4)),"") -> 0 | P36: =IFERROR(SUMIFS(data!$K$3:$K$1000,data!$B$3:$B$1000,score!$B$36,data!$A$3:$A$1000,">="&DATE(score!$B$1,P3,P4),data!$A$3:$A$1000,"<="&DATE(score!$B$1,Q3,Q4)),"") -> 0 | Q36: =IFERROR(SUMIFS(data!$K$3:$K$1000,data!$B$3:$B$1000,score!$B$36,data!$A$3:$A$1000,">="&DATE(score!$B$1,Q3,Q4),data!$A$3:$A$1000,"<="&DATE(score!$B$1,R3,R4)),"") -> 0 | R36: =IFERROR(SUMIFS(data!$K$3:$K$1000,data!$B$3:$B$1000,score!$B$36,data!$A$3:$A$1000,">="&DATE(score!$B$1,R3,R4),data!$A$3:$A$1000,"<="&DATE(score!$B$1,S3,S4)),"") -> 0 | S36: =IFERROR(SUMIFS(data!$K$3:$K$1000,data!$B$3:$B$1000,score!$B$36,data!$A$3:$A$1000,">="&DATE(score!$B$1,S3,S4),data!$A$3:$A$1000,"<="&DATE(score!$B$1,T3,T4)),"") -> 0 | T36: =IFERROR(SUMIFS(data!$K$3:$K$1000,data!$B$3:$B$1000,score!$B$36,data!$A$3:$A$1000,">="&DATE(score!$B$1,T3,T4),data!$A$3:$A$1000,"<="&DATE(score!$B$1,U3,U4)),"") -> 0 | U36: =IFERROR(SUMIFS(data!$K$3:$K$1000,data!$B$3:$B$1000,score!$B$36,data!$A$3:$A$1000,">="&DATE(score!$B$1,U3,U4),data!$A$3:$A$1000,"<="&DATE(score!$B$1,V3,V4)),"") -> 0 | V36: =IFERROR(SUMIFS(data!$K$3:$K$1000,data!$B$3:$B$1000,score!$B$36,data!$A$3:$A$1000,">="&DATE(score!$B$1,V3,V4),data!$A$3:$A$1000,"<="&DATE(score!$B$1,W3,W4)),"") -> 0 | W36: =IFERROR(SUMIFS(data!$K$3:$K$1000,data!$B$3:$B$1000,score!$B$36,data!$A$3:$A$1000,">="&DATE(score!$B$1,W3,W4),data!$A$3:$A$1000,"<="&DATE(score!$B$1,X3,X4)),"") -> 0 | X36: =IFERROR(SUMIFS(data!$K$3:$K$1000,data!$B$3:$B$1000,score!$B$36,data!$A$3:$A$1000,">="&DATE(score!$B$1,X3,X4),data!$A$3:$A$1000,"<="&DATE(score!$B$1,Y3,Y4)),"") -> 0 | Y36: =IFERROR(SUMIFS(data!$K$3:$K$1000,data!$B$3:$B$1000,score!$B$36,data!$A$3:$A$1000,">="&DATE(score!$B$1,Y3,Y4),data!$A$3:$A$1000,"<="&DATE(score!$B$1,Z3,Z4)),"") -> 0 | Z36: =IFERROR(SUMIFS(data!$K$3:$K$1000,data!$B$3:$B$1000,score!$B$36,data!$A$3:$A$1000,">="&DATE(score!$B$1,Z3,Z4),data!$A$3:$A$1000,"<="&DATE(score!$B$1,AA3,AA4)),"") -> 0 | AA36: =IFERROR(SUMIFS(data!$K$3:$K$1000,data!$B$3:$B$1000,score!$B$36,data!$A$3:$A$1000,">="&DATE(score!$B$1,AA3,AA4),data!$A$3:$A$1000,"<="&DATE(score!$B$1,AB3,AB4)),"") -> 0 | AB36: =IFERROR(SUMIFS(data!$K$3:$K$1000,data!$B$3:$B$1000,score!$B$36,data!$A$3:$A$1000,">="&DATE(score!$B$1,AB3,AB4),data!$A$3:$A$1000,"<="&DATE(score!$B$1,AC3,AC4)),"") -> 0 | AC36: =IFERROR(SUMIFS(data!$K$3:$K$1000,data!$B$3:$B$1000,score!$B$36,data!$A$3:$A$1000,">="&DATE(score!$B$1,AC3,AC4),data!$A$3:$A$1000,"<="&DATE(score!$B$1,AD3,AD4)),"") -> 0 | AD36: =IFERROR(SUMIFS(data!$K$3:$K$1000,data!$B$3:$B$1000,score!$B$36,data!$A$3:$A$1000,">="&DATE(score!$B$1,AD3,AD4),data!$A$3:$A$1000,"<="&DATE(score!$B$1,AE3,AE4)),"") -> 0 | AE36: =IFERROR(SUMIFS(data!$K$3:$K$1000,data!$B$3:$B$1000,score!$B$36,data!$A$3:$A$1000,">="&DATE(score!$B$1,AE3,AE4),data!$A$3:$A$1000,"<="&DATE(score!$B$1,AF3,AF4)),"") -> 0 | AF36: =IFERROR(SUMIFS(data!$K$3:$K$1000,data!$B$3:$B$1000,score!$B$36,data!$A$3:$A$1000,">="&DATE(score!$B$1,AF3,AF4),data!$A$3:$A$1000,"<="&DATE(score!$B$1,AG3,AG4)),"") -> 0 | AG36: =IFERROR(SUMIFS(data!$K$3:$K$1000,data!$B$3:$B$1000,score!$B$36,data!$A$3:$A$1000,">="&DATE(score!$B$1,AG3,AG4),data!$A$3:$A$1000,"<="&DATE(score!$B$1,AH3,AH4)),"") -> 0 | AH36: =IFERROR(SUMIFS(data!$K$3:$K$1000,data!$B$3:$B$1000,score!$B$36,data!$A$3:$A$1000,">="&DATE(score!$B$1,AH3,AH4),data!$A$3:$A$1000,"<="&DATE(score!$B$1,AI3,AI4)),"") -> 0 | AI36: =IFERROR(SUMIFS(data!$K$3:$K$1000,data!$B$3:$B$1000,score!$B$36,data!$A$3:$A$1000,">="&DATE(score!$B$1,AI3,AI4),data!$A$3:$A$1000,"<="&DATE(score!$B$1,AJ3,AJ4)),"") -> 0 | AJ36: =IFERROR(SUMIFS(data!$K$3:$K$1000,data!$B$3:$B$1000,score!$B$36,data!$A$3:$A$1000,">="&DATE(score!$B$1,AJ3,AJ4),data!$A$3:$A$1000,"<="&DATE(score!$B$1,AK3,AK4)),"") -> 0 | AK36: =IFERROR(SUMIFS(data!$K$3:$K$1000,data!$B$3:$B$1000,score!$B$36,data!$A$3:$A$1000,">="&DATE(score!$B$1,AK3,AK4),data!$A$3:$A$1000,"<="&DATE(score!$B$1,AL3,AL4)),"") -> 0 | AL36: =IFERROR(SUMIFS(data!$K$3:$K$1000,data!$B$3:$B$1000,score!$B$36,data!$A$3:$A$1000,">="&DATE(score!$B$1,AL3,AL4),data!$A$3:$A$1000,"<="&DATE(score!$B$1,AM3,AM4)),"") -> 0 | AM36: =IFERROR(SUMIFS(data!$K$3:$K$1000,data!$B$3:$B$1000,score!$B$36,data!$A$3:$A$1000,">="&DATE(score!$B$1,AM3,AM4),data!$A$3:$A$1000,"<="&DATE(score!$B$1,AN3,AN4)),"") -> 0 | AN36: =IFERROR(SUMIFS(data!$K$3:$K$1000,data!$B$3:$B$1000,score!$B$36,data!$A$3:$A$1000,">="&DATE(score!$B$1,AN3,AN4),data!$A$3:$A$1000,"<="&DATE(score!$B$1,AO3,AO4)),"") -> 0 | AO36: =IFERROR(SUMIFS(data!$K$3:$K$1000,data!$B$3:$B$1000,score!$B$36,data!$A$3:$A$1000,">="&DATE(score!$B$1,AO3,AO4),data!$A$3:$A$1000,"<="&DATE(score!$B$1,AP3,AP4)),"") -> 0 | AP36: =IFERROR(SUMIFS(data!$K$3:$K$1000,data!$B$3:$B$1000,score!$B$36,data!$A$3:$A$1000,">="&DATE(score!$B$1,AP3,AP4),data!$A$3:$A$1000,"<="&DATE(score!$B$1,AQ3,AQ4)),"") -> 0 | AQ36: =IFERROR(SUMIFS(data!$K$3:$K$1000,data!$B$3:$B$1000,score!$B$36,data!$A$3:$A$1000,">="&DATE(score!$B$1,AQ3,AQ4),data!$A$3:$A$1000,"<="&DATE(score!$B$1,AR3,AR4)),"") -> 0 | AR36: =IFERROR(SUMIFS(data!$K$3:$K$1000,data!$B$3:$B$1000,score!$B$36,data!$A$3:$A$1000,">="&DATE(score!$B$1,AR3,AR4),data!$A$3:$A$1000,"<="&DATE(score!$B$1,AS3,AS4)),"") -> 0 | AS36: =IFERROR(SUMIFS(data!$K$3:$K$1000,data!$B$3:$B$1000,score!$B$36,data!$A$3:$A$1000,">="&DATE(score!$B$1,AS3,AS4),data!$A$3:$A$1000,"<="&DATE(score!$B$1,AT3,AT4)),"") -> 0 | AT36: =IFERROR(SUMIFS(data!$K$3:$K$1000,data!$B$3:$B$1000,score!$B$36,data!$A$3:$A$1000,">="&DATE(score!$B$1,AT3,AT4),data!$A$3:$A$1000,"<="&DATE(score!$B$1,AU3,AU4)),"") -> 0 | AU36: =IFERROR(SUMIFS(data!$K$3:$K$1000,data!$B$3:$B$1000,score!$B$36,data!$A$3:$A$1000,">="&DATE(score!$B$1,AU3,AU4),data!$A$3:$A$1000,"<="&DATE(score!$B$1,AV3,AV4)),"") -> 0 | AV36: =IFERROR(SUMIFS(data!$K$3:$K$1000,data!$B$3:$B$1000,score!$B$36,data!$A$3:$A$1000,">="&DATE(score!$B$1,AV3,AV4),data!$A$3:$A$1000,"<="&DATE(score!$B$1,AW3,AW4)),"") -> 0 | AW36: =IFERROR(SUMIFS(data!$K$3:$K$1000,data!$B$3:$B$1000,score!$B$36,data!$A$3:$A$1000,">="&DATE(score!$B$1,AW3,AW4),data!$A$3:$A$1000,"<="&DATE(score!$B$1,AX3,AX4)),"") -> 0 | AX36: =IFERROR(SUMIFS(data!$K$3:$K$1000,data!$B$3:$B$1000,score!$B$36,data!$A$3:$A$1000,">="&DATE(score!$B$1,AX3,AX4),data!$A$3:$A$1000,"<="&DATE(score!$B$1,AY3,AY4)),"") -> 0 | AY36: =IFERROR(SUMIFS(data!$K$3:$K$1000,data!$B$3:$B$1000,score!$B$36,data!$A$3:$A$1000,">="&DATE(score!$B$1,AY3,AY4),data!$A$3:$A$1000,"<="&DATE(score!$B$1,AZ3,AZ4)),"") -> 0 | AZ36: =IFERROR(SUMIFS(data!$K$3:$K$1000,data!$B$3:$B$1000,score!$B$36,data!$A$3:$A$1000,">="&DATE(score!$B$1,AZ3,AZ4),data!$A$3:$A$1000,"<="&DATE(score!$B$1,BA3,BA4)),"") -> 0 | BA36: =IFERROR(SUMIFS(data!$K$3:$K$1000,data!$B$3:$B$1000,score!$B$36,data!$A$3:$A$1000,">="&DATE(score!$B$1,BA3,BA4),data!$A$3:$A$1000,"<="&DATE(score!$B$1,BB3,BB4)),"") -> 0 | BB36: =IFERROR(SUMIFS(data!$K$3:$K$1000,data!$B$3:$B$1000,score!$B$36,data!$A$3:$A$1000,">="&DATE(score!$B$1,BB3,BB4),data!$A$3:$A$1000,"<="&DATE(score!$B$1,BC3,BC4)),"") -> 0
C37: =IFERROR(SUMIFS(data!$K$3:$K$1000,data!$B$3:$B$1000,score!$B$37,data!$A$3:$A$1000,">="&DATE(score!$B$1,C3,C4),data!$A$3:$A$1000,"<="&DATE(score!$B$1,D3,D4)),"") -> 0 | D37: =IFERROR(SUMIFS(data!$K$3:$K$1000,data!$B$3:$B$1000,score!$B$37,data!$A$3:$A$1000,">="&DATE(score!$B$1,D3,D4),data!$A$3:$A$1000,"<="&DATE(score!$B$1,E3,E4)),"") -> 0 | E37: =IFERROR(SUMIFS(data!$K$3:$K$1000,data!$B$3:$B$1000,score!$B$37,data!$A$3:$A$1000,">="&DATE(score!$B$1,E3,E4),data!$A$3:$A$1000,"<="&DATE(score!$B$1,F3,F4)),"") -> 0 | F37: =IFERROR(SUMIFS(data!$K$3:$K$1000,data!$B$3:$B$1000,score!$B$37,data!$A$3:$A$1000,">="&DATE(score!$B$1,F3,F4),data!$A$3:$A$1000,"<="&DATE(score!$B$1,G3,G4)),"") -> 0 | G37: =IFERROR(SUMIFS(data!$K$3:$K$1000,data!$B$3:$B$1000,score!$B$37,data!$A$3:$A$1000,">="&DATE(score!$B$1,G3,G4),data!$A$3:$A$1000,"<="&DATE(score!$B$1,H3,H4)),"") -> 0 | H37: =IFERROR(SUMIFS(data!$K$3:$K$1000,data!$B$3:$B$1000,score!$B$37,data!$A$3:$A$1000,">="&DATE(score!$B$1,H3,H4),data!$A$3:$A$1000,"<="&DATE(score!$B$1,I3,I4)),"") -> 0 | I37: =IFERROR(SUMIFS(data!$K$3:$K$1000,data!$B$3:$B$1000,score!$B$37,data!$A$3:$A$1000,">="&DATE(score!$B$1,I3,I4),data!$A$3:$A$1000,"<="&DATE(score!$B$1,J3,J4)),"") -> 0 | J37: =IFERROR(SUMIFS(data!$K$3:$K$1000,data!$B$3:$B$1000,score!$B$37,data!$A$3:$A$1000,">="&DATE(score!$B$1,J3,J4),data!$A$3:$A$1000,"<="&DATE(score!$B$1,K3,K4)),"") -> 0 | K37: =IFERROR(SUMIFS(data!$K$3:$K$1000,data!$B$3:$B$1000,score!$B$37,data!$A$3:$A$1000,">="&DATE(score!$B$1,K3,K4),data!$A$3:$A$1000,"<="&DATE(score!$B$1,L3,L4)),"") -> 0 | L37: =IFERROR(SUMIFS(data!$K$3:$K$1000,data!$B$3:$B$1000,score!$B$37,data!$A$3:$A$1000,">="&DATE(score!$B$1,L3,L4),data!$A$3:$A$1000,"<="&DATE(score!$B$1,M3,M4)),"") -> 0 | M37: =IFERROR(SUMIFS(data!$K$3:$K$1000,data!$B$3:$B$1000,score!$B$37,data!$A$3:$A$1000,">="&DATE(score!$B$1,M3,M4),data!$A$3:$A$1000,"<="&DATE(score!$B$1,N3,N4)),"") -> 0 | N37: =IFERROR(SUMIFS(data!$K$3:$K$1000,data!$B$3:$B$1000,score!$B$37,data!$A$3:$A$1000,">="&DATE(score!$B$1,N3,N4),data!$A$3:$A$1000,"<="&DATE(score!$B$1,O3,O4)),"") -> 0 | O37: =IFERROR(SUMIFS(data!$K$3:$K$1000,data!$B$3:$B$1000,score!$B$37,data!$A$3:$A$1000,">="&DATE(score!$B$1,O3,O4),data!$A$3:$A$1000,"<="&DATE(score!$B$1,P3,P4)),"") -> 0 | P37: =IFERROR(SUMIFS(data!$K$3:$K$1000,data!$B$3:$B$1000,score!$B$37,data!$A$3:$A$1000,">="&DATE(score!$B$1,P3,P4),data!$A$3:$A$1000,"<="&DATE(score!$B$1,Q3,Q4)),"") -> 0 | Q37: =IFERROR(SUMIFS(data!$K$3:$K$1000,data!$B$3:$B$1000,score!$B$37,data!$A$3:$A$1000,">="&DATE(score!$B$1,Q3,Q4),data!$A$3:$A$1000,"<="&DATE(score!$B$1,R3,R4)),"") -> 0 | R37: =IFERROR(SUMIFS(data!$K$3:$K$1000,data!$B$3:$B$1000,score!$B$37,data!$A$3:$A$1000,">="&DATE(score!$B$1,R3,R4),data!$A$3:$A$1000,"<="&DATE(score!$B$1,S3,S4)),"") -> 0 | S37: =IFERROR(SUMIFS(data!$K$3:$K$1000,data!$B$3:$B$1000,score!$B$37,data!$A$3:$A$1000,">="&DATE(score!$B$1,S3,S4),data!$A$3:$A$1000,"<="&DATE(score!$B$1,T3,T4)),"") -> 0 | T37: =IFERROR(SUMIFS(data!$K$3:$K$1000,data!$B$3:$B$1000,score!$B$37,data!$A$3:$A$1000,">="&DATE(score!$B$1,T3,T4),data!$A$3:$A$1000,"<="&DATE(score!$B$1,U3,U4)),"") -> 0 | U37: =IFERROR(SUMIFS(data!$K$3:$K$1000,data!$B$3:$B$1000,score!$B$37,data!$A$3:$A$1000,">="&DATE(score!$B$1,U3,U4),data!$A$3:$A$1000,"<="&DATE(score!$B$1,V3,V4)),"") -> 0 | V37: =IFERROR(SUMIFS(data!$K$3:$K$1000,data!$B$3:$B$1000,score!$B$37,data!$A$3:$A$1000,">="&DATE(score!$B$1,V3,V4),data!$A$3:$A$1000,"<="&DATE(score!$B$1,W3,W4)),"") -> 0 | W37: =IFERROR(SUMIFS(data!$K$3:$K$1000,data!$B$3:$B$1000,score!$B$37,data!$A$3:$A$1000,">="&DATE(score!$B$1,W3,W4),data!$A$3:$A$1000,"<="&DATE(score!$B$1,X3,X4)),"") -> 0 | X37: =IFERROR(SUMIFS(data!$K$3:$K$1000,data!$B$3:$B$1000,score!$B$37,data!$A$3:$A$1000,">="&DATE(score!$B$1,X3,X4),data!$A$3:$A$1000,"<="&DATE(score!$B$1,Y3,Y4)),"") -> 0 | Y37: =IFERROR(SUMIFS(data!$K$3:$K$1000,data!$B$3:$B$1000,score!$B$37,data!$A$3:$A$1000,">="&DATE(score!$B$1,Y3,Y4),data!$A$3:$A$1000,"<="&DATE(score!$B$1,Z3,Z4)),"") -> 0 | Z37: =IFERROR(SUMIFS(data!$K$3:$K$1000,data!$B$3:$B$1000,score!$B$37,data!$A$3:$A$1000,">="&DATE(score!$B$1,Z3,Z4),data!$A$3:$A$1000,"<="&DATE(score!$B$1,AA3,AA4)),"") -> 0 | AA37: =IFERROR(SUMIFS(data!$K$3:$K$1000,data!$B$3:$B$1000,score!$B$37,data!$A$3:$A$1000,">="&DATE(score!$B$1,AA3,AA4),data!$A$3:$A$1000,"<="&DATE(score!$B$1,AB3,AB4)),"") -> 0 | AB37: =IFERROR(SUMIFS(data!$K$3:$K$1000,data!$B$3:$B$1000,score!$B$37,data!$A$3:$A$1000,">="&DATE(score!$B$1,AB3,AB4),data!$A$3:$A$1000,"<="&DATE(score!$B$1,AC3,AC4)),"") -> 0 | AC37: =IFERROR(SUMIFS(data!$K$3:$K$1000,data!$B$3:$B$1000,score!$B$37,data!$A$3:$A$1000,">="&DATE(score!$B$1,AC3,AC4),data!$A$3:$A$1000,"<="&DATE(score!$B$1,AD3,AD4)),"") -> 0 | AD37: =IFERROR(SUMIFS(data!$K$3:$K$1000,data!$B$3:$B$1000,score!$B$37,data!$A$3:$A$1000,">="&DATE(score!$B$1,AD3,AD4),data!$A$3:$A$1000,"<="&DATE(score!$B$1,AE3,AE4)),"") -> 0 | AE37: =IFERROR(SUMIFS(data!$K$3:$K$1000,data!$B$3:$B$1000,score!$B$37,data!$A$3:$A$1000,">="&DATE(score!$B$1,AE3,AE4),data!$A$3:$A$1000,"<="&DATE(score!$B$1,AF3,AF4)),"") -> 0 | AF37: =IFERROR(SUMIFS(data!$K$3:$K$1000,data!$B$3:$B$1000,score!$B$37,data!$A$3:$A$1000,">="&DATE(score!$B$1,AF3,AF4),data!$A$3:$A$1000,"<="&DATE(score!$B$1,AG3,AG4)),"") -> 0 | AG37: =IFERROR(SUMIFS(data!$K$3:$K$1000,data!$B$3:$B$1000,score!$B$37,data!$A$3:$A$1000,">="&DATE(score!$B$1,AG3,AG4),data!$A$3:$A$1000,"<="&DATE(score!$B$1,AH3,AH4)),"") -> 0 | AH37: =IFERROR(SUMIFS(data!$K$3:$K$1000,data!$B$3:$B$1000,score!$B$37,data!$A$3:$A$1000,">="&DATE(score!$B$1,AH3,AH4),data!$A$3:$A$1000,"<="&DATE(score!$B$1,AI3,AI4)),"") -> 0 | AI37: =IFERROR(SUMIFS(data!$K$3:$K$1000,data!$B$3:$B$1000,score!$B$37,data!$A$3:$A$1000,">="&DATE(score!$B$1,AI3,AI4),data!$A$3:$A$1000,"<="&DATE(score!$B$1,AJ3,AJ4)),"") -> 0 | AJ37: =IFERROR(SUMIFS(data!$K$3:$K$1000,data!$B$3:$B$1000,score!$B$37,data!$A$3:$A$1000,">="&DATE(score!$B$1,AJ3,AJ4),data!$A$3:$A$1000,"<="&DATE(score!$B$1,AK3,AK4)),"") -> 0 | AK37: =IFERROR(SUMIFS(data!$K$3:$K$1000,data!$B$3:$B$1000,score!$B$37,data!$A$3:$A$1000,">="&DATE(score!$B$1,AK3,AK4),data!$A$3:$A$1000,"<="&DATE(score!$B$1,AL3,AL4)),"") -> 0 | AL37: =IFERROR(SUMIFS(data!$K$3:$K$1000,data!$B$3:$B$1000,score!$B$37,data!$A$3:$A$1000,">="&DATE(score!$B$1,AL3,AL4),data!$A$3:$A$1000,"<="&DATE(score!$B$1,AM3,AM4)),"") -> 0 | AM37: =IFERROR(SUMIFS(data!$K$3:$K$1000,data!$B$3:$B$1000,score!$B$37,data!$A$3:$A$1000,">="&DATE(score!$B$1,AM3,AM4),data!$A$3:$A$1000,"<="&DATE(score!$B$1,AN3,AN4)),"") -> 0 | AN37: =IFERROR(SUMIFS(data!$K$3:$K$1000,data!$B$3:$B$1000,score!$B$37,data!$A$3:$A$1000,">="&DATE(score!$B$1,AN3,AN4),data!$A$3:$A$1000,"<="&DATE(score!$B$1,AO3,AO4)),"") -> 0 | AO37: =IFERROR(SUMIFS(data!$K$3:$K$1000,data!$B$3:$B$1000,score!$B$37,data!$A$3:$A$1000,">="&DATE(score!$B$1,AO3,AO4),data!$A$3:$A$1000,"<="&DATE(score!$B$1,AP3,AP4)),"") -> 0 | AP37: =IFERROR(SUMIFS(data!$K$3:$K$1000,data!$B$3:$B$1000,score!$B$37,data!$A$3:$A$1000,">="&DATE(score!$B$1,AP3,AP4),data!$A$3:$A$1000,"<="&DATE(score!$B$1,AQ3,AQ4)),"") -> 0 | AQ37: =IFERROR(SUMIFS(data!$K$3:$K$1000,data!$B$3:$B$1000,score!$B$37,data!$A$3:$A$1000,">="&DATE(score!$B$1,AQ3,AQ4),data!$A$3:$A$1000,"<="&DATE(score!$B$1,AR3,AR4)),"") -> 0 | AR37: =IFERROR(SUMIFS(data!$K$3:$K$1000,data!$B$3:$B$1000,score!$B$37,data!$A$3:$A$1000,">="&DATE(score!$B$1,AR3,AR4),data!$A$3:$A$1000,"<="&DATE(score!$B$1,AS3,AS4)),"") -> 0 | AS37: =IFERROR(SUMIFS(data!$K$3:$K$1000,data!$B$3:$B$1000,score!$B$37,data!$A$3:$A$1000,">="&DATE(score!$B$1,AS3,AS4),data!$A$3:$A$1000,"<="&DATE(score!$B$1,AT3,AT4)),"") -> 0 | AT37: =IFERROR(SUMIFS(data!$K$3:$K$1000,data!$B$3:$B$1000,score!$B$37,data!$A$3:$A$1000,">="&DATE(score!$B$1,AT3,AT4),data!$A$3:$A$1000,"<="&DATE(score!$B$1,AU3,AU4)),"") -> 0 | AU37: =IFERROR(SUMIFS(data!$K$3:$K$1000,data!$B$3:$B$1000,score!$B$37,data!$A$3:$A$1000,">="&DATE(score!$B$1,AU3,AU4),data!$A$3:$A$1000,"<="&DATE(score!$B$1,AV3,AV4)),"") -> 0 | AV37: =IFERROR(SUMIFS(data!$K$3:$K$1000,data!$B$3:$B$1000,score!$B$37,data!$A$3:$A$1000,">="&DATE(score!$B$1,AV3,AV4),data!$A$3:$A$1000,"<="&DATE(score!$B$1,AW3,AW4)),"") -> 0 | AW37: =IFERROR(SUMIFS(data!$K$3:$K$1000,data!$B$3:$B$1000,score!$B$37,data!$A$3:$A$1000,">="&DATE(score!$B$1,AW3,AW4),data!$A$3:$A$1000,"<="&DATE(score!$B$1,AX3,AX4)),"") -> 0 | AX37: =IFERROR(SUMIFS(data!$K$3:$K$1000,data!$B$3:$B$1000,score!$B$37,data!$A$3:$A$1000,">="&DATE(score!$B$1,AX3,AX4),data!$A$3:$A$1000,"<="&DATE(score!$B$1,AY3,AY4)),"") -> 0 | AY37: =IFERROR(SUMIFS(data!$K$3:$K$1000,data!$B$3:$B$1000,score!$B$37,data!$A$3:$A$1000,">="&DATE(score!$B$1,AY3,AY4),data!$A$3:$A$1000,"<="&DATE(score!$B$1,AZ3,AZ4)),"") -> 0 | AZ37: =IFERROR(SUMIFS(data!$K$3:$K$1000,data!$B$3:$B$1000,score!$B$37,data!$A$3:$A$1000,">="&DATE(score!$B$1,AZ3,AZ4),data!$A$3:$A$1000,"<="&DATE(score!$B$1,BA3,BA4)),"") -> 0 | BA37: =IFERROR(SUMIFS(data!$K$3:$K$1000,data!$B$3:$B$1000,score!$B$37,data!$A$3:$A$1000,">="&DATE(score!$B$1,BA3,BA4),data!$A$3:$A$1000,"<="&DATE(score!$B$1,BB3,BB4)),"") -> 0 | BB37: =IFERROR(SUMIFS(data!$K$3:$K$1000,data!$B$3:$B$1000,score!$B$37,data!$A$3:$A$1000,">="&DATE(score!$B$1,BB3,BB4),data!$A$3:$A$1000,"<="&DATE(score!$B$1,BC3,BC4)),"") -> 0
C38: =IFERROR(SUMIFS(data!$K$3:$K$1000,data!$B$3:$B$1000,score!$B$38,data!$A$3:$A$1000,">="&DATE(score!$B$1,C3,C4),data!$A$3:$A$1000,"<="&DATE(score!$B$1,D3,D4)),"") -> 0 | D38: =IFERROR(SUMIFS(data!$K$3:$K$1000,data!$B$3:$B$1000,score!$B$38,data!$A$3:$A$1000,">="&DATE(score!$B$1,D3,D4),data!$A$3:$A$1000,"<="&DATE(score!$B$1,E3,E4)),"") -> 0 | E38: =IFERROR(SUMIFS(data!$K$3:$K$1000,data!$B$3:$B$1000,score!$B$38,data!$A$3:$A$1000,">="&DATE(score!$B$1,E3,E4),data!$A$3:$A$1000,"<="&DATE(score!$B$1,F3,F4)),"") -> 0 | F38: =IFERROR(SUMIFS(data!$K$3:$K$1000,data!$B$3:$B$1000,score!$B$38,data!$A$3:$A$1000,">="&DATE(score!$B$1,F3,F4),data!$A$3:$A$1000,"<="&DATE(score!$B$1,G3,G4)),"") -> 0 | G38: =IFERROR(SUMIFS(data!$K$3:$K$1000,data!$B$3:$B$1000,score!$B$38,data!$A$3:$A$1000,">="&DATE(score!$B$1,G3,G4),data!$A$3:$A$1000,"<="&DATE(score!$B$1,H3,H4)),"") -> 0 | H38: =IFERROR(SUMIFS(data!$K$3:$K$1000,data!$B$3:$B$1000,score!$B$38,data!$A$3:$A$1000,">="&DATE(score!$B$1,H3,H4),data!$A$3:$A$1000,"<="&DATE(score!$B$1,I3,I4)),"") -> 0 | I38: =IFERROR(SUMIFS(data!$K$3:$K$1000,data!$B$3:$B$1000,score!$B$38,data!$A$3:$A$1000,">="&DATE(score!$B$1,I3,I4),data!$A$3:$A$1000,"<="&DATE(score!$B$1,J3,J4)),"") -> 0 | J38: =IFERROR(SUMIFS(data!$K$3:$K$1000,data!$B$3:$B$1000,score!$B$38,data!$A$3:$A$1000,">="&DATE(score!$B$1,J3,J4),data!$A$3:$A$1000,"<="&DATE(score!$B$1,K3,K4)),"") -> 0 | K38: =IFERROR(SUMIFS(data!$K$3:$K$1000,data!$B$3:$B$1000,score!$B$38,data!$A$3:$A$1000,">="&DATE(score!$B$1,K3,K4),data!$A$3:$A$1000,"<="&DATE(score!$B$1,L3,L4)),"") -> 0 | L38: =IFERROR(SUMIFS(data!$K$3:$K$1000,data!$B$3:$B$1000,score!$B$38,data!$A$3:$A$1000,">="&DATE(score!$B$1,L3,L4),data!$A$3:$A$1000,"<="&DATE(score!$B$1,M3,M4)),"") -> 0 | M38: =IFERROR(SUMIFS(data!$K$3:$K$1000,data!$B$3:$B$1000,score!$B$38,data!$A$3:$A$1000,">="&DATE(score!$B$1,M3,M4),data!$A$3:$A$1000,"<="&DATE(score!$B$1,N3,N4)),"") -> 0 | N38: =IFERROR(SUMIFS(data!$K$3:$K$1000,data!$B$3:$B$1000,score!$B$38,data!$A$3:$A$1000,">="&DATE(score!$B$1,N3,N4),data!$A$3:$A$1000,"<="&DATE(score!$B$1,O3,O4)),"") -> 0 | O38: =IFERROR(SUMIFS(data!$K$3:$K$1000,data!$B$3:$B$1000,score!$B$38,data!$A$3:$A$1000,">="&DATE(score!$B$1,O3,O4),data!$A$3:$A$1000,"<="&DATE(score!$B$1,P3,P4)),"") -> 0 | P38: =IFERROR(SUMIFS(data!$K$3:$K$1000,data!$B$3:$B$1000,score!$B$38,data!$A$3:$A$1000,">="&DATE(score!$B$1,P3,P4),data!$A$3:$A$1000,"<="&DATE(score!$B$1,Q3,Q4)),"") -> 0 | Q38: =IFERROR(SUMIFS(data!$K$3:$K$1000,data!$B$3:$B$1000,score!$B$38,data!$A$3:$A$1000,">="&DATE(score!$B$1,Q3,Q4),data!$A$3:$A$1000,"<="&DATE(score!$B$1,R3,R4)),"") -> 0 | R38: =IFERROR(SUMIFS(data!$K$3:$K$1000,data!$B$3:$B$1000,score!$B$38,data!$A$3:$A$1000,">="&DATE(score!$B$1,R3,R4),data!$A$3:$A$1000,"<="&DATE(score!$B$1,S3,S4)),"") -> 0 | S38: =IFERROR(SUMIFS(data!$K$3:$K$1000,data!$B$3:$B$1000,score!$B$38,data!$A$3:$A$1000,">="&DATE(score!$B$1,S3,S4),data!$A$3:$A$1000,"<="&DATE(score!$B$1,T3,T4)),"") -> 0 | T38: =IFERROR(SUMIFS(data!$K$3:$K$1000,data!$B$3:$B$1000,score!$B$38,data!$A$3:$A$1000,">="&DATE(score!$B$1,T3,T4),data!$A$3:$A$1000,"<="&DATE(score!$B$1,U3,U4)),"") -> 0 | U38: =IFERROR(SUMIFS(data!$K$3:$K$1000,data!$B$3:$B$1000,score!$B$38,data!$A$3:$A$1000,">="&DATE(score!$B$1,U3,U4),data!$A$3:$A$1000,"<="&DATE(score!$B$1,V3,V4)),"") -> 0 | V38: =IFERROR(SUMIFS(data!$K$3:$K$1000,data!$B$3:$B$1000,score!$B$38,data!$A$3:$A$1000,">="&DATE(score!$B$1,V3,V4),data!$A$3:$A$1000,"<="&DATE(score!$B$1,W3,W4)),"") -> 0 | W38: =IFERROR(SUMIFS(data!$K$3:$K$1000,data!$B$3:$B$1000,score!$B$38,data!$A$3:$A$1000,">="&DATE(score!$B$1,W3,W4),data!$A$3:$A$1000,"<="&DATE(score!$B$1,X3,X4)),"") -> 0 | X38: =IFERROR(SUMIFS(data!$K$3:$K$1000,data!$B$3:$B$1000,score!$B$38,data!$A$3:$A$1000,">="&DATE(score!$B$1,X3,X4),data!$A$3:$A$1000,"<="&DATE(score!$B$1,Y3,Y4)),"") -> 0 | Y38: =IFERROR(SUMIFS(data!$K$3:$K$1000,data!$B$3:$B$1000,score!$B$38,data!$A$3:$A$1000,">="&DATE(score!$B$1,Y3,Y4),data!$A$3:$A$1000,"<="&DATE(score!$B$1,Z3,Z4)),"") -> 0 | Z38: =IFERROR(SUMIFS(data!$K$3:$K$1000,data!$B$3:$B$1000,score!$B$38,data!$A$3:$A$1000,">="&DATE(score!$B$1,Z3,Z4),data!$A$3:$A$1000,"<="&DATE(score!$B$1,AA3,AA4)),"") -> 0 | AA38: =IFERROR(SUMIFS(data!$K$3:$K$1000,data!$B$3:$B$1000,score!$B$38,data!$A$3:$A$1000,">="&DATE(score!$B$1,AA3,AA4),data!$A$3:$A$1000,"<="&DATE(score!$B$1,AB3,AB4)),"") -> 0 | AB38: =IFERROR(SUMIFS(data!$K$3:$K$1000,data!$B$3:$B$1000,score!$B$38,data!$A$3:$A$1000,">="&DATE(score!$B$1,AB3,AB4),data!$A$3:$A$1000,"<="&DATE(score!$B$1,AC3,AC4)),"") -> 0 | AC38: =IFERROR(SUMIFS(data!$K$3:$K$1000,data!$B$3:$B$1000,score!$B$38,data!$A$3:$A$1000,">="&DATE(score!$B$1,AC3,AC4),data!$A$3:$A$1000,"<="&DATE(score!$B$1,AD3,AD4)),"") -> 0 | AD38: =IFERROR(SUMIFS(data!$K$3:$K$1000,data!$B$3:$B$1000,score!$B$38,data!$A$3:$A$1000,">="&DATE(score!$B$1,AD3,AD4),data!$A$3:$A$1000,"<="&DATE(score!$B$1,AE3,AE4)),"") -> 0 | AE38: =IFERROR(SUMIFS(data!$K$3:$K$1000,data!$B$3:$B$1000,score!$B$38,data!$A$3:$A$1000,">="&DATE(score!$B$1,AE3,AE4),data!$A$3:$A$1000,"<="&DATE(score!$B$1,AF3,AF4)),"") -> 0 | AF38: =IFERROR(SUMIFS(data!$K$3:$K$1000,data!$B$3:$B$1000,score!$B$38,data!$A$3:$A$1000,">="&DATE(score!$B$1,AF3,AF4),data!$A$3:$A$1000,"<="&DATE(score!$B$1,AG3,AG4)),"") -> 0 | AG38: =IFERROR(SUMIFS(data!$K$3:$K$1000,data!$B$3:$B$1000,score!$B$38,data!$A$3:$A$1000,">="&DATE(score!$B$1,AG3,AG4),data!$A$3:$A$1000,"<="&DATE(score!$B$1,AH3,AH4)),"") -> 0 | AH38: =IFERROR(SUMIFS(data!$K$3:$K$1000,data!$B$3:$B$1000,score!$B$38,data!$A$3:$A$1000,">="&DATE(score!$B$1,AH3,AH4),data!$A$3:$A$1000,"<="&DATE(score!$B$1,AI3,AI4)),"") -> 0 | AI38: =IFERROR(SUMIFS(data!$K$3:$K$1000,data!$B$3:$B$1000,score!$B$38,data!$A$3:$A$1000,">="&DATE(score!$B$1,AI3,AI4),data!$A$3:$A$1000,"<="&DATE(score!$B$1,AJ3,AJ4)),"") -> 0 | AJ38: =IFERROR(SUMIFS(data!$K$3:$K$1000,data!$B$3:$B$1000,score!$B$38,data!$A$3:$A$1000,">="&DATE(score!$B$1,AJ3,AJ4),data!$A$3:$A$1000,"<="&DATE(score!$B$1,AK3,AK4)),"") -> 0 | AK38: =IFERROR(SUMIFS(data!$K$3:$K$1000,data!$B$3:$B$1000,score!$B$38,data!$A$3:$A$1000,">="&DATE(score!$B$1,AK3,AK4),data!$A$3:$A$1000,"<="&DATE(score!$B$1,AL3,AL4)),"") -> 0 | AL38: =IFERROR(SUMIFS(data!$K$3:$K$1000,data!$B$3:$B$1000,score!$B$38,data!$A$3:$A$1000,">="&DATE(score!$B$1,AL3,AL4),data!$A$3:$A$1000,"<="&DATE(score!$B$1,AM3,AM4)),"") -> 0 | AM38: =IFERROR(SUMIFS(data!$K$3:$K$1000,data!$B$3:$B$1000,score!$B$38,data!$A$3:$A$1000,">="&DATE(score!$B$1,AM3,AM4),data!$A$3:$A$1000,"<="&DATE(score!$B$1,AN3,AN4)),"") -> 0 | AN38: =IFERROR(SUMIFS(data!$K$3:$K$1000,data!$B$3:$B$1000,score!$B$38,data!$A$3:$A$1000,">="&DATE(score!$B$1,AN3,AN4),data!$A$3:$A$1000,"<="&DATE(score!$B$1,AO3,AO4)),"") -> 0 | AO38: =IFERROR(SUMIFS(data!$K$3:$K$1000,data!$B$3:$B$1000,score!$B$38,data!$A$3:$A$1000,">="&DATE(score!$B$1,AO3,AO4),data!$A$3:$A$1000,"<="&DATE(score!$B$1,AP3,AP4)),"") -> 0 | AP38: =IFERROR(SUMIFS(data!$K$3:$K$1000,data!$B$3:$B$1000,score!$B$38,data!$A$3:$A$1000,">="&DATE(score!$B$1,AP3,AP4),data!$A$3:$A$1000,"<="&DATE(score!$B$1,AQ3,AQ4)),"") -> 0 | AQ38: =IFERROR(SUMIFS(data!$K$3:$K$1000,data!$B$3:$B$1000,score!$B$38,data!$A$3:$A$1000,">="&DATE(score!$B$1,AQ3,AQ4),data!$A$3:$A$1000,"<="&DATE(score!$B$1,AR3,AR4)),"") -> 0 | AR38: =IFERROR(SUMIFS(data!$K$3:$K$1000,data!$B$3:$B$1000,score!$B$38,data!$A$3:$A$1000,">="&DATE(score!$B$1,AR3,AR4),data!$A$3:$A$1000,"<="&DATE(score!$B$1,AS3,AS4)),"") -> 0 | AS38: =IFERROR(SUMIFS(data!$K$3:$K$1000,data!$B$3:$B$1000,score!$B$38,data!$A$3:$A$1000,">="&DATE(score!$B$1,AS3,AS4),data!$A$3:$A$1000,"<="&DATE(score!$B$1,AT3,AT4)),"") -> 0 | AT38: =IFERROR(SUMIFS(data!$K$3:$K$1000,data!$B$3:$B$1000,score!$B$38,data!$A$3:$A$1000,">="&DATE(score!$B$1,AT3,AT4),data!$A$3:$A$1000,"<="&DATE(score!$B$1,AU3,AU4)),"") -> 0 | AU38: =IFERROR(SUMIFS(data!$K$3:$K$1000,data!$B$3:$B$1000,score!$B$38,data!$A$3:$A$1000,">="&DATE(score!$B$1,AU3,AU4),data!$A$3:$A$1000,"<="&DATE(score!$B$1,AV3,AV4)),"") -> 0 | AV38: =IFERROR(SUMIFS(data!$K$3:$K$1000,data!$B$3:$B$1000,score!$B$38,data!$A$3:$A$1000,">="&DATE(score!$B$1,AV3,AV4),data!$A$3:$A$1000,"<="&DATE(score!$B$1,AW3,AW4)),"") -> 0 | AW38: =IFERROR(SUMIFS(data!$K$3:$K$1000,data!$B$3:$B$1000,score!$B$38,data!$A$3:$A$1000,">="&DATE(score!$B$1,AW3,AW4),data!$A$3:$A$1000,"<="&DATE(score!$B$1,AX3,AX4)),"") -> 0 | AX38: =IFERROR(SUMIFS(data!$K$3:$K$1000,data!$B$3:$B$1000,score!$B$38,data!$A$3:$A$1000,">="&DATE(score!$B$1,AX3,AX4),data!$A$3:$A$1000,"<="&DATE(score!$B$1,AY3,AY4)),"") -> 0 | AY38: =IFERROR(SUMIFS(data!$K$3:$K$1000,data!$B$3:$B$1000,score!$B$38,data!$A$3:$A$1000,">="&DATE(score!$B$1,AY3,AY4),data!$A$3:$A$1000,"<="&DATE(score!$B$1,AZ3,AZ4)),"") -> 0 | AZ38: =IFERROR(SUMIFS(data!$K$3:$K$1000,data!$B$3:$B$1000,score!$B$38,data!$A$3:$A$1000,">="&DATE(score!$B$1,AZ3,AZ4),data!$A$3:$A$1000,"<="&DATE(score!$B$1,BA3,BA4)),"") -> 0 | BA38: =IFERROR(SUMIFS(data!$K$3:$K$1000,data!$B$3:$B$1000,score!$B$38,data!$A$3:$A$1000,">="&DATE(score!$B$1,BA3,BA4),data!$A$3:$A$1000,"<="&DATE(score!$B$1,BB3,BB4)),"") -> 0 | BB38: =IFERROR(SUMIFS(data!$K$3:$K$1000,data!$B$3:$B$1000,score!$B$38,data!$A$3:$A$1000,">="&DATE(score!$B$1,BB3,BB4),data!$A$3:$A$1000,"<="&DATE(score!$B$1,BC3,BC4)),"") -> 0
C39: =IFERROR(SUMIFS(data!$K$3:$K$1000,data!$B$3:$B$1000,score!$B$39,data!$A$3:$A$1000,">="&DATE(score!$B$1,C3,C4),data!$A$3:$A$1000,"<="&DATE(score!$B$1,D3,D4)),"") -> 0 | D39: =IFERROR(SUMIFS(data!$K$3:$K$1000,data!$B$3:$B$1000,score!$B$39,data!$A$3:$A$1000,">="&DATE(score!$B$1,D3,D4),data!$A$3:$A$1000,"<="&DATE(score!$B$1,E3,E4)),"") -> 0 | E39: =IFERROR(SUMIFS(data!$K$3:$K$1000,data!$B$3:$B$1000,score!$B$39,data!$A$3:$A$1000,">="&DATE(score!$B$1,E3,E4),data!$A$3:$A$1000,"<="&DATE(score!$B$1,F3,F4)),"") -> 0 | F39: =IFERROR(SUMIFS(data!$K$3:$K$1000,data!$B$3:$B$1000,score!$B$39,data!$A$3:$A$1000,">="&DATE(score!$B$1,F3,F4),data!$A$3:$A$1000,"<="&DATE(score!$B$1,G3,G4)),"") -> 0 | G39: =IFERROR(SUMIFS(data!$K$3:$K$1000,data!$B$3:$B$1000,score!$B$39,data!$A$3:$A$1000,">="&DATE(score!$B$1,G3,G4),data!$A$3:$A$1000,"<="&DATE(score!$B$1,H3,H4)),"") -> 0 | H39: =IFERROR(SUMIFS(data!$K$3:$K$1000,data!$B$3:$B$1000,score!$B$39,data!$A$3:$A$1000,">="&DATE(score!$B$1,H3,H4),data!$A$3:$A$1000,"<="&DATE(score!$B$1,I3,I4)),"") -> 0 | I39: =IFERROR(SUMIFS(data!$K$3:$K$1000,data!$B$3:$B$1000,score!$B$39,data!$A$3:$A$1000,">="&DATE(score!$B$1,I3,I4),data!$A$3:$A$1000,"<="&DATE(score!$B$1,J3,J4)),"") -> 0 | J39: =IFERROR(SUMIFS(data!$K$3:$K$1000,data!$B$3:$B$1000,score!$B$39,data!$A$3:$A$1000,">="&DATE(score!$B$1,J3,J4),data!$A$3:$A$1000,"<="&DATE(score!$B$1,K3,K4)),"") -> 0 | K39: =IFERROR(SUMIFS(data!$K$3:$K$1000,data!$B$3:$B$1000,score!$B$39,data!$A$3:$A$1000,">="&DATE(score!$B$1,K3,K4),data!$A$3:$A$1000,"<="&DATE(score!$B$1,L3,L4)),"") -> 0 | L39: =IFERROR(SUMIFS(data!$K$3:$K$1000,data!$B$3:$B$1000,score!$B$39,data!$A$3:$A$1000,">="&DATE(score!$B$1,L3,L4),data!$A$3:$A$1000,"<="&DATE(score!$B$1,M3,M4)),"") -> 0 | M39: =IFERROR(SUMIFS(data!$K$3:$K$1000,data!$B$3:$B$1000,score!$B$39,data!$A$3:$A$1000,">="&DATE(score!$B$1,M3,M4),data!$A$3:$A$1000,"<="&DATE(score!$B$1,N3,N4)),"") -> 0 | N39: =IFERROR(SUMIFS(data!$K$3:$K$1000,data!$B$3:$B$1000,score!$B$39,data!$A$3:$A$1000,">="&DATE(score!$B$1,N3,N4),data!$A$3:$A$1000,"<="&DATE(score!$B$1,O3,O4)),"") -> 0 | O39: =IFERROR(SUMIFS(data!$K$3:$K$1000,data!$B$3:$B$1000,score!$B$39,data!$A$3:$A$1000,">="&DATE(score!$B$1,O3,O4),data!$A$3:$A$1000,"<="&DATE(score!$B$1,P3,P4)),"") -> 0 | P39: =IFERROR(SUMIFS(data!$K$3:$K$1000,data!$B$3:$B$1000,score!$B$39,data!$A$3:$A$1000,">="&DATE(score!$B$1,P3,P4),data!$A$3:$A$1000,"<="&DATE(score!$B$1,Q3,Q4)),"") -> 0 | Q39: =IFERROR(SUMIFS(data!$K$3:$K$1000,data!$B$3:$B$1000,score!$B$39,data!$A$3:$A$1000,">="&DATE(score!$B$1,Q3,Q4),data!$A$3:$A$1000,"<="&DATE(score!$B$1,R3,R4)),"") -> 0 | R39: =IFERROR(SUMIFS(data!$K$3:$K$1000,data!$B$3:$B$1000,score!$B$39,data!$A$3:$A$1000,">="&DATE(score!$B$1,R3,R4),data!$A$3:$A$1000,"<="&DATE(score!$B$1,S3,S4)),"") -> 0 | S39: =IFERROR(SUMIFS(data!$K$3:$K$1000,data!$B$3:$B$1000,score!$B$39,data!$A$3:$A$1000,">="&DATE(score!$B$1,S3,S4),data!$A$3:$A$1000,"<="&DATE(score!$B$1,T3,T4)),"") -> 0 | T39: =IFERROR(SUMIFS(data!$K$3:$K$1000,data!$B$3:$B$1000,score!$B$39,data!$A$3:$A$1000,">="&DATE(score!$B$1,T3,T4),data!$A$3:$A$1000,"<="&DATE(score!$B$1,U3,U4)),"") -> 0 | U39: =IFERROR(SUMIFS(data!$K$3:$K$1000,data!$B$3:$B$1000,score!$B$39,data!$A$3:$A$1000,">="&DATE(score!$B$1,U3,U4),data!$A$3:$A$1000,"<="&DATE(score!$B$1,V3,V4)),"") -> 0 | V39: =IFERROR(SUMIFS(data!$K$3:$K$1000,data!$B$3:$B$1000,score!$B$39,data!$A$3:$A$1000,">="&DATE(score!$B$1,V3,V4),data!$A$3:$A$1000,"<="&DATE(score!$B$1,W3,W4)),"") -> 0 | W39: =IFERROR(SUMIFS(data!$K$3:$K$1000,data!$B$3:$B$1000,score!$B$39,data!$A$3:$A$1000,">="&DATE(score!$B$1,W3,W4),data!$A$3:$A$1000,"<="&DATE(score!$B$1,X3,X4)),"") -> 0 | X39: =IFERROR(SUMIFS(data!$K$3:$K$1000,data!$B$3:$B$1000,score!$B$39,data!$A$3:$A$1000,">="&DATE(score!$B$1,X3,X4),data!$A$3:$A$1000,"<="&DATE(score!$B$1,Y3,Y4)),"") -> 0 | Y39: =IFERROR(SUMIFS(data!$K$3:$K$1000,data!$B$3:$B$1000,score!$B$39,data!$A$3:$A$1000,">="&DATE(score!$B$1,Y3,Y4),data!$A$3:$A$1000,"<="&DATE(score!$B$1,Z3,Z4)),"") -> 0 | Z39: =IFERROR(SUMIFS(data!$K$3:$K$1000,data!$B$3:$B$1000,score!$B$39,data!$A$3:$A$1000,">="&DATE(score!$B$1,Z3,Z4),data!$A$3:$A$1000,"<="&DATE(score!$B$1,AA3,AA4)),"") -> 0 | AA39: =IFERROR(SUMIFS(data!$K$3:$K$1000,data!$B$3:$B$1000,score!$B$39,data!$A$3:$A$1000,">="&DATE(score!$B$1,AA3,AA4),data!$A$3:$A$1000,"<="&DATE(score!$B$1,AB3,AB4)),"") -> 0 | AB39: =IFERROR(SUMIFS(data!$K$3:$K$1000,data!$B$3:$B$1000,score!$B$39,data!$A$3:$A$1000,">="&DATE(score!$B$1,AB3,AB4),data!$A$3:$A$1000,"<="&DATE(score!$B$1,AC3,AC4)),"") -> 0 | AC39: =IFERROR(SUMIFS(data!$K$3:$K$1000,data!$B$3:$B$1000,score!$B$39,data!$A$3:$A$1000,">="&DATE(score!$B$1,AC3,AC4),data!$A$3:$A$1000,"<="&DATE(score!$B$1,AD3,AD4)),"") -> 0 | AD39: =IFERROR(SUMIFS(data!$K$3:$K$1000,data!$B$3:$B$1000,score!$B$39,data!$A$3:$A$1000,">="&DATE(score!$B$1,AD3,AD4),data!$A$3:$A$1000,"<="&DATE(score!$B$1,AE3,AE4)),"") -> 0 | AE39: =IFERROR(SUMIFS(data!$K$3:$K$1000,data!$B$3:$B$1000,score!$B$39,data!$A$3:$A$1000,">="&DATE(score!$B$1,AE3,AE4),data!$A$3:$A$1000,"<="&DATE(score!$B$1,AF3,AF4)),"") -> 0 | AF39: =IFERROR(SUMIFS(data!$K$3:$K$1000,data!$B$3:$B$1000,score!$B$39,data!$A$3:$A$1000,">="&DATE(score!$B$1,AF3,AF4),data!$A$3:$A$1000,"<="&DATE(score!$B$1,AG3,AG4)),"") -> 0 | AG39: =IFERROR(SUMIFS(data!$K$3:$K$1000,data!$B$3:$B$1000,score!$B$39,data!$A$3:$A$1000,">="&DATE(score!$B$1,AG3,AG4),data!$A$3:$A$1000,"<="&DATE(score!$B$1,AH3,AH4)),"") -> 0 | AH39: =IFERROR(SUMIFS(data!$K$3:$K$1000,data!$B$3:$B$1000,score!$B$39,data!$A$3:$A$1000,">="&DATE(score!$B$1,AH3,AH4),data!$A$3:$A$1000,"<="&DATE(score!$B$1,AI3,AI4)),"") -> 0 | AI39: =IFERROR(SUMIFS(data!$K$3:$K$1000,data!$B$3:$B$1000,score!$B$39,data!$A$3:$A$1000,">="&DATE(score!$B$1,AI3,AI4),data!$A$3:$A$1000,"<="&DATE(score!$B$1,AJ3,AJ4)),"") -> 0 | AJ39: =IFERROR(SUMIFS(data!$K$3:$K$1000,data!$B$3:$B$1000,score!$B$39,data!$A$3:$A$1000,">="&DATE(score!$B$1,AJ3,AJ4),data!$A$3:$A$1000,"<="&DATE(score!$B$1,AK3,AK4)),"") -> 0 | AK39: =IFERROR(SUMIFS(data!$K$3:$K$1000,data!$B$3:$B$1000,score!$B$39,data!$A$3:$A$1000,">="&DATE(score!$B$1,AK3,AK4),data!$A$3:$A$1000,"<="&DATE(score!$B$1,AL3,AL4)),"") -> 0 | AL39: =IFERROR(SUMIFS(data!$K$3:$K$1000,data!$B$3:$B$1000,score!$B$39,data!$A$3:$A$1000,">="&DATE(score!$B$1,AL3,AL4),data!$A$3:$A$1000,"<="&DATE(score!$B$1,AM3,AM4)),"") -> 0 | AM39: =IFERROR(SUMIFS(data!$K$3:$K$1000,data!$B$3:$B$1000,score!$B$39,data!$A$3:$A$1000,">="&DATE(score!$B$1,AM3,AM4),data!$A$3:$A$1000,"<="&DATE(score!$B$1,AN3,AN4)),"") -> 0 | AN39: =IFERROR(SUMIFS(data!$K$3:$K$1000,data!$B$3:$B$1000,score!$B$39,data!$A$3:$A$1000,">="&DATE(score!$B$1,AN3,AN4),data!$A$3:$A$1000,"<="&DATE(score!$B$1,AO3,AO4)),"") -> 0 | AO39: =IFERROR(SUMIFS(data!$K$3:$K$1000,data!$B$3:$B$1000,score!$B$39,data!$A$3:$A$1000,">="&DATE(score!$B$1,AO3,AO4),data!$A$3:$A$1000,"<="&DATE(score!$B$1,AP3,AP4)),"") -> 0 | AP39: =IFERROR(SUMIFS(data!$K$3:$K$1000,data!$B$3:$B$1000,score!$B$39,data!$A$3:$A$1000,">="&DATE(score!$B$1,AP3,AP4),data!$A$3:$A$1000,"<="&DATE(score!$B$1,AQ3,AQ4)),"") -> 0 | AQ39: =IFERROR(SUMIFS(data!$K$3:$K$1000,data!$B$3:$B$1000,score!$B$39,data!$A$3:$A$1000,">="&DATE(score!$B$1,AQ3,AQ4),data!$A$3:$A$1000,"<="&DATE(score!$B$1,AR3,AR4)),"") -> 0 | AR39: =IFERROR(SUMIFS(data!$K$3:$K$1000,data!$B$3:$B$1000,score!$B$39,data!$A$3:$A$1000,">="&DATE(score!$B$1,AR3,AR4),data!$A$3:$A$1000,"<="&DATE(score!$B$1,AS3,AS4)),"") -> 0 | AS39: =IFERROR(SUMIFS(data!$K$3:$K$1000,data!$B$3:$B$1000,score!$B$39,data!$A$3:$A$1000,">="&DATE(score!$B$1,AS3,AS4),data!$A$3:$A$1000,"<="&DATE(score!$B$1,AT3,AT4)),"") -> 0 | AT39: =IFERROR(SUMIFS(data!$K$3:$K$1000,data!$B$3:$B$1000,score!$B$39,data!$A$3:$A$1000,">="&DATE(score!$B$1,AT3,AT4),data!$A$3:$A$1000,"<="&DATE(score!$B$1,AU3,AU4)),"") -> 0 | AU39: =IFERROR(SUMIFS(data!$K$3:$K$1000,data!$B$3:$B$1000,score!$B$39,data!$A$3:$A$1000,">="&DATE(score!$B$1,AU3,AU4),data!$A$3:$A$1000,"<="&DATE(score!$B$1,AV3,AV4)),"") -> 0 | AV39: =IFERROR(SUMIFS(data!$K$3:$K$1000,data!$B$3:$B$1000,score!$B$39,data!$A$3:$A$1000,">="&DATE(score!$B$1,AV3,AV4),data!$A$3:$A$1000,"<="&DATE(score!$B$1,AW3,AW4)),"") -> 0 | AW39: =IFERROR(SUMIFS(data!$K$3:$K$1000,data!$B$3:$B$1000,score!$B$39,data!$A$3:$A$1000,">="&DATE(score!$B$1,AW3,AW4),data!$A$3:$A$1000,"<="&DATE(score!$B$1,AX3,AX4)),"") -> 0 | AX39: =IFERROR(SUMIFS(data!$K$3:$K$1000,data!$B$3:$B$1000,score!$B$39,data!$A$3:$A$1000,">="&DATE(score!$B$1,AX3,AX4),data!$A$3:$A$1000,"<="&DATE(score!$B$1,AY3,AY4)),"") -> 0 | AY39: =IFERROR(SUMIFS(data!$K$3:$K$1000,data!$B$3:$B$1000,score!$B$39,data!$A$3:$A$1000,">="&DATE(score!$B$1,AY3,AY4),data!$A$3:$A$1000,"<="&DATE(score!$B$1,AZ3,AZ4)),"") -> 0 | AZ39: =IFERROR(SUMIFS(data!$K$3:$K$1000,data!$B$3:$B$1000,score!$B$39,data!$A$3:$A$1000,">="&DATE(score!$B$1,AZ3,AZ4),data!$A$3:$A$1000,"<="&DATE(score!$B$1,BA3,BA4)),"") -> 0 | BA39: =IFERROR(SUMIFS(data!$K$3:$K$1000,data!$B$3:$B$1000,score!$B$39,data!$A$3:$A$1000,">="&DATE(score!$B$1,BA3,BA4),data!$A$3:$A$1000,"<="&DATE(score!$B$1,BB3,BB4)),"") -> 0 | BB39: =IFERROR(SUMIFS(data!$K$3:$K$1000,data!$B$3:$B$1000,score!$B$39,data!$A$3:$A$1000,">="&DATE(score!$B$1,BB3,BB4),data!$A$3:$A$1000,"<="&DATE(score!$B$1,BC3,BC4)),"") -> 0
C40: =IFERROR(SUMIF(C33:G39,"<>0"),"") -> 0 | H40: =IFERROR(SUMIF(H33:K39,"<>0"),"") -> 0 | L40: =IFERROR(SUMIF(L33:O39,"<>0"),"") -> 0 | P40: =IFERROR(SUMIF(P33:T39,"<>0"),"") -> 0 | U40: =IFERROR(SUMIF(U33:X39,"<>0"),"") -> 0 | Y40: =IFERROR(SUMIF(Y33:AB39,"<>0"),"") -> 0 | AC40: =IFERROR(SUMIF(AC33:AG39,"<>0"),"") -> 0 | AH40: =IFERROR(SUMIF(AH33:AK39,"<>0"),"") -> 0 | AL40: =IFERROR(SUMIF(AL33:AP39,"<>0"),"") -> 0 | AQ40: =IFERROR(SUMIF(AQ33:AT39,"<>0"),"") -> 0 | AU40: =IFERROR(SUMIF(AU33:AX39,"<>0"),"") -> 0 | AY40: =IFERROR(SUMIF(AY33:BB39,"<>0"),"") -> 0
C43: January | H43: February | L43: March | P43: April | U43: May | Y43: June | AC43: July | AH43: August | AL43: September | AQ43: October | AU43: November | AY43: December
C44: W1 | D44: W2 | E44: W3 | F44: W4 | G44: W5 | H44: W6 | I44: W7 | J44: W8 | K44: W9 | L44: W10 | M44: W11 | N44: W12 | O44: W13 | P44: W14 | Q44: W15 | R44: W16 | S44: W17 | T44: W18 | U44: W19 | V44: W20 | W44: W21 | X44: W22 | Y44: W23 | Z44: W24 | AA44: W25 | AB44: W26 | AC44: W27 | AD44: W28 | AE44: W29 | AF44: W30 | AG44: W31 | AH44: W32 | AI44: W33 | AJ44: W34 | AK44: W35 | AL44: W36 | AM44: W37 | AN44: W38 | AO44: W39 | AP44: W40 | AQ44: W41 | AR44: W42 | AS44: W43 | AT44: W44 | AU44: W45 | AV44: W46 | AW44: W47 | AX44: W48 | AY44: W49 | AZ44: W50 | BA44: W51 | BB44: W52
C45: =IFERROR(SUMIFS(data!$M$3:$M$1000,data!$B$3:$B$1000,score!$B$45,data!$A$3:$A$1000,">="&DATE(score!$B$1,C3,C4),data!$A$3:$A$1000,"<="&DATE(score!$B$1,D3,D4)),"") -> 0 | D45: =IFERROR(SUMIFS(data!$M$3:$M$1000,data!$B$3:$B$1000,score!$B$45,data!$A$3:$A$1000,">="&DATE(score!$B$1,D3,D4),data!$A$3:$A$1000,"<="&DATE(score!$B$1,E3,E4)),"") -> 0 | E45: =IFERROR(SUMIFS(data!$M$3:$M$1000,data!$B$3:$B$1000,score!$B$45,data!$A$3:$A$1000,">="&DATE(score!$B$1,E3,E4),data!$A$3:$A$1000,"<="&DATE(score!$B$1,F3,F4)),"") -> 0 | F45: =IFERROR(SUMIFS(data!$M$3:$M$1000,data!$B$3:$B$1000,score!$B$45,data!$A$3:$A$1000,">="&DATE(score!$B$1,F3,F4),data!$A$3:$A$1000,"<="&DATE(score!$B$1,G3,G4)),"") -> 0 | G45: =IFERROR(SUMIFS(data!$M$3:$M$1000,data!$B$3:$B$1000,score!$B$45,data!$A$3:$A$1000,">="&DATE(score!$B$1,G3,G4),data!$A$3:$A$1000,"<="&DATE(score!$B$1,H3,H4)),"") -> 0 | H45: =IFERROR(SUMIFS(data!$M$3:$M$1000,data!$B$3:$B$1000,score!$B$45,data!$A$3:$A$1000,">="&DATE(score!$B$1,H3,H4),data!$A$3:$A$1000,"<="&DATE(score!$B$1,I3,I4)),"") -> 0 | I45: =IFERROR(SUMIFS(data!$M$3:$M$1000,data!$B$3:$B$1000,score!$B$45,data!$A$3:$A$1000,">="&DATE(score!$B$1,I3,I4),data!$A$3:$A$1000,"<="&DATE(score!$B$1,J3,J4)),"") -> 0 | J45: =IFERROR(SUMIFS(data!$M$3:$M$1000,data!$B$3:$B$1000,score!$B$45,data!$A$3:$A$1000,">="&DATE(score!$B$1,J3,J4),data!$A$3:$A$1000,"<="&DATE(score!$B$1,K3,K4)),"") -> 0 | K45: =IFERROR(SUMIFS(data!$M$3:$M$1000,data!$B$3:$B$1000,score!$B$45,data!$A$3:$A$1000,">="&DATE(score!$B$1,K3,K4),data!$A$3:$A$1000,"<="&DATE(score!$B$1,L3,L4)),"") -> 0 | L45: =IFERROR(SUMIFS(data!$M$3:$M$1000,data!$B$3:$B$1000,score!$B$45,data!$A$3:$A$1000,">="&DATE(score!$B$1,L3,L4),data!$A$3:$A$1000,"<="&DATE(score!$B$1,M3,M4)),"") -> 0 | M45: =IFERROR(SUMIFS(data!$M$3:$M$1000,data!$B$3:$B$1000,score!$B$45,data!$A$3:$A$1000,">="&DATE(score!$B$1,M3,M4),data!$A$3:$A$1000,"<="&DATE(score!$B$1,N3,N4)),"") -> 0 | N45: =IFERROR(SUMIFS(data!$M$3:$M$1000,data!$B$3:$B$1000,score!$B$45,data!$A$3:$A$1000,">="&DATE(score!$B$1,N3,N4),data!$A$3:$A$1000,"<="&DATE(score!$B$1,O3,O4)),"") -> 0 | O45: =IFERROR(SUMIFS(data!$M$3:$M$1000,data!$B$3:$B$1000,score!$B$45,data!$A$3:$A$1000,">="&DATE(score!$B$1,O3,O4),data!$A$3:$A$1000,"<="&DATE(score!$B$1,P3,P4)),"") -> 0 | P45: =IFERROR(SUMIFS(data!$M$3:$M$1000,data!$B$3:$B$1000,score!$B$45,data!$A$3:$A$1000,">="&DATE(score!$B$1,P3,P4),data!$A$3:$A$1000,"<="&DATE(score!$B$1,Q3,Q4)),"") -> 0 | Q45: =IFERROR(SUMIFS(data!$M$3:$M$1000,data!$B$3:$B$1000,score!$B$45,data!$A$3:$A$1000,">="&DATE(score!$B$1,Q3,Q4),data!$A$3:$A$1000,"<="&DATE(score!$B$1,R3,R4)),"") -> 0 | R45: =IFERROR(SUMIFS(data!$M$3:$M$1000,data!$B$3:$B$1000,score!$B$45,data!$A$3:$A$1000,">="&DATE(score!$B$1,R3,R4),data!$A$3:$A$1000,"<="&DATE(score!$B$1,S3,S4)),"") -> 0 | S45: =IFERROR(SUMIFS(data!$M$3:$M$1000,data!$B$3:$B$1000,score!$B$45,data!$A$3:$A$1000,">="&DATE(score!$B$1,S3,S4),data!$A$3:$A$1000,"<="&DATE(score!$B$1,T3,T4)),"") -> 0 | T45: =IFERROR(SUMIFS(data!$M$3:$M$1000,data!$B$3:$B$1000,score!$B$45,data!$A$3:$A$1000,">="&DATE(score!$B$1,T3,T4),data!$A$3:$A$1000,"<="&DATE(score!$B$1,U3,U4)),"") -> 0 | U45: =IFERROR(SUMIFS(data!$M$3:$M$1000,data!$B$3:$B$1000,score!$B$45,data!$A$3:$A$1000,">="&DATE(score!$B$1,U3,U4),data!$A$3:$A$1000,"<="&DATE(score!$B$1,V3,V4)),"") -> 0 | V45: =IFERROR(SUMIFS(data!$M$3:$M$1000,data!$B$3:$B$1000,score!$B$45,data!$A$3:$A$1000,">="&DATE(score!$B$1,V3,V4),data!$A$3:$A$1000,"<="&DATE(score!$B$1,W3,W4)),"") -> 0 | W45: =IFERROR(SUMIFS(data!$M$3:$M$1000,data!$B$3:$B$1000,score!$B$45,data!$A$3:$A$1000,">="&DATE(score!$B$1,W3,W4),data!$A$3:$A$1000,"<="&DATE(score!$B$1,X3,X4)),"") -> 0 | X45: =IFERROR(SUMIFS(data!$M$3:$M$1000,data!$B$3:$B$1000,score!$B$45,data!$A$3:$A$1000,">="&DATE(score!$B$1,X3,X4),data!$A$3:$A$1000,"<="&DATE(score!$B$1,Y3,Y4)),"") -> 0 | Y45: =IFERROR(SUMIFS(data!$M$3:$M$1000,data!$B$3:$B$1000,score!$B$45,data!$A$3:$A$1000,">="&DATE(score!$B$1,Y3,Y4),data!$A$3:$A$1000,"<="&DATE(score!$B$1,Z3,Z4)),"") -> 0 | Z45: =IFERROR(SUMIFS(data!$M$3:$M$1000,data!$B$3:$B$1000,score!$B$45,data!$A$3:$A$1000,">="&DATE(score!$B$1,Z3,Z4),data!$A$3:$A$1000,"<="&DATE(score!$B$1,AA3,AA4)),"") -> 0 | AA45: =IFERROR(SUMIFS(data!$M$3:$M$1000,data!$B$3:$B$1000,score!$B$45,data!$A$3:$A$1000,">="&DATE(score!$B$1,AA3,AA4),data!$A$3:$A$1000,"<="&DATE(score!$B$1,AB3,AB4)),"") -> 0 | AB45: =IFERROR(SUMIFS(data!$M$3:$M$1000,data!$B$3:$B$1000,score!$B$45,data!$A$3:$A$1000,">="&DATE(score!$B$1,AB3,AB4),data!$A$3:$A$1000,"<="&DATE(score!$B$1,AC3,AC4)),"") -> 0 | AC45: =IFERROR(SUMIFS(data!$M$3:$M$1000,data!$B$3:$B$1000,score!$B$45,data!$A$3:$A$1000,">="&DATE(score!$B$1,AC3,AC4),data!$A$3:$A$1000,"<="&DATE(score!$B$1,AD3,AD4)),"") -> 0 | AD45: =IFERROR(SUMIFS(data!$M$3:$M$1000,data!$B$3:$B$1000,score!$B$45,data!$A$3:$A$1000,">="&DATE(score!$B$1,AD3,AD4),data!$A$3:$A$1000,"<="&DATE(score!$B$1,AE3,AE4)),"") -> 0 | AE45: =IFERROR(SUMIFS(data!$M$3:$M$1000,data!$B$3:$B$1000,score!$B$45,data!$A$3:$A$1000,">="&DATE(score!$B$1,AE3,AE4),data!$A$3:$A$1000,"<="&DATE(score!$B$1,AF3,AF4)),"") -> 0 | AF45: =IFERROR(SUMIFS(data!$M$3:$M$1000,data!$B$3:$B$1000,score!$B$45,data!$A$3:$A$1000,">="&DATE(score!$B$1,AF3,AF4),data!$A$3:$A$1000,"<="&DATE(score!$B$1,AG3,AG4)),"") -> 0 | AG45: =IFERROR(SUMIFS(data!$M$3:$M$1000,data!$B$3:$B$1000,score!$B$45,data!$A$3:$A$1000,">="&DATE(score!$B$1,AG3,AG4),data!$A$3:$A$1000,"<="&DATE(score!$B$1,AH3,AH4)),"") -> 0 | AH45: =IFERROR(SUMIFS(data!$M$3:$M$1000,data!$B$3:$B$1000,score!$B$45,data!$A$3:$A$1000,">="&DATE(score!$B$1,AH3,AH4),data!$A$3:$A$1000,"<="&DATE(score!$B$1,AI3,AI4)),"") -> 0 | AI45: =IFERROR(SUMIFS(data!$M$3:$M$1000,data!$B$3:$B$1000,score!$B$45,data!$A$3:$A$1000,">="&DATE(score!$B$1,AI3,AI4),data!$A$3:$A$1000,"<="&DATE(score!$B$1,AJ3,AJ4)),"") -> 0 | AJ45: =IFERROR(SUMIFS(data!$M$3:$M$1000,data!$B$3:$B$1000,score!$B$45,data!$A$3:$A$1000,">="&DATE(score!$B$1,AJ3,AJ4),data!$A$3:$A$1000,"<="&DATE(score!$B$1,AK3,AK4)),"") -> 0 | AK45: =IFERROR(SUMIFS(data!$M$3:$M$1000,data!$B$3:$B$1000,score!$B$45,data!$A$3:$A$1000,">="&DATE(score!$B$1,AK3,AK4),data!$A$3:$A$1000,"<="&DATE(score!$B$1,AL3,AL4)),"") -> 0 | AL45: =IFERROR(SUMIFS(data!$M$3:$M$1000,data!$B$3:$B$1000,score!$B$45,data!$A$3:$A$1000,">="&DATE(score!$B$1,AL3,AL4),data!$A$3:$A$1000,"<="&DATE(score!$B$1,AM3,AM4)),"") -> 0 | AM45: =IFERROR(SUMIFS(data!$M$3:$M$1000,data!$B$3:$B$1000,score!$B$45,data!$A$3:$A$1000,">="&DATE(score!$B$1,AM3,AM4),data!$A$3:$A$1000,"<="&DATE(score!$B$1,AN3,AN4)),"") -> 0 | AN45: =IFERROR(SUMIFS(data!$M$3:$M$1000,data!$B$3:$B$1000,score!$B$45,data!$A$3:$A$1000,">="&DATE(score!$B$1,AN3,AN4),data!$A$3:$A$1000,"<="&DATE(score!$B$1,AO3,AO4)),"") -> 0 | AO45: =IFERROR(SUMIFS(data!$M$3:$M$1000,data!$B$3:$B$1000,score!$B$45,data!$A$3:$A$1000,">="&DATE(score!$B$1,AO3,AO4),data!$A$3:$A$1000,"<="&DATE(score!$B$1,AP3,AP4)),"") -> 0 | AP45: =IFERROR(SUMIFS(data!$M$3:$M$1000,data!$B$3:$B$1000,score!$B$45,data!$A$3:$A$1000,">="&DATE(score!$B$1,AP3,AP4),data!$A$3:$A$1000,"<="&DATE(score!$B$1,AQ3,AQ4)),"") -> 0 | AQ45: =IFERROR(SUMIFS(data!$M$3:$M$1000,data!$B$3:$B$1000,score!$B$45,data!$A$3:$A$1000,">="&DATE(score!$B$1,AQ3,AQ4),data!$A$3:$A$1000,"<="&DATE(score!$B$1,AR3,AR4)),"") -> 0 | AR45: =IFERROR(SUMIFS(data!$M$3:$M$1000,data!$B$3:$B$1000,score!$B$45,data!$A$3:$A$1000,">="&DATE(score!$B$1,AR3,AR4),data!$A$3:$A$1000,"<="&DATE(score!$B$1,AS3,AS4)),"") -> 0 | AS45: =IFERROR(SUMIFS(data!$M$3:$M$1000,data!$B$3:$B$1000,score!$B$45,data!$A$3:$A$1000,">="&DATE(score!$B$1,AS3,AS4),data!$A$3:$A$1000,"<="&DATE(score!$B$1,AT3,AT4)),"") -> 0 | AT45: =IFERROR(SUMIFS(data!$M$3:$M$1000,data!$B$3:$B$1000,score!$B$45,data!$A$3:$A$1000,">="&DATE(score!$B$1,AT3,AT4),data!$A$3:$A$1000,"<="&DATE(score!$B$1,AU3,AU4)),"") -> 0 | AU45: =IFERROR(SUMIFS(data!$M$3:$M$1000,data!$B$3:$B$1000,score!$B$45,data!$A$3:$A$1000,">="&DATE(score!$B$1,AU3,AU4),data!$A$3:$A$1000,"<="&DATE(score!$B$1,AV3,AV4)),"") -> 0 | AV45: =IFERROR(SUMIFS(data!$M$3:$M$1000,data!$B$3:$B$1000,score!$B$45,data!$A$3:$A$1000,">="&DATE(score!$B$1,AV3,AV4),data!$A$3:$A$1000,"<="&DATE(score!$B$1,AW3,AW4)),"") -> 0 | AW45: =IFERROR(SUMIFS(data!$M$3:$M$1000,data!$B$3:$B$1000,score!$B$45,data!$A$3:$A$1000,">="&DATE(score!$B$1,AW3,AW4),data!$A$3:$A$1000,"<="&DATE(score!$B$1,AX3,AX4)),"") -> 0 | AX45: =IFERROR(SUMIFS(data!$M$3:$M$1000,data!$B$3:$B$1000,score!$B$45,data!$A$3:$A$1000,">="&DATE(score!$B$1,AX3,AX4),data!$A$3:$A$1000,"<="&DATE(score!$B$1,AY3,AY4)),"") -> 0 | AY45: =IFERROR(SUMIFS(data!$M$3:$M$1000,data!$B$3:$B$1000,score!$B$45,data!$A$3:$A$1000,">="&DATE(score!$B$1,AY3,AY4),data!$A$3:$A$1000,"<="&DATE(score!$B$1,AZ3,AZ4)),"") -> 0 | AZ45: =IFERROR(SUMIFS(data!$M$3:$M$1000,data!$B$3:$B$1000,score!$B$45,data!$A$3:$A$1000,">="&DATE(score!$B$1,AZ3,AZ4),data!$A$3:$A$1000,"<="&DATE(score!$B$1,BA3,BA4)),"") -> 0 | BA45: =IFERROR(SUMIFS(data!$M$3:$M$1000,data!$B$3:$B$1000,score!$B$45,data!$A$3:$A$1000,">="&DATE(score!$B$1,BA3,BA4),data!$A$3:$A$1000,"<="&DATE(score!$B$1,BB3,BB4)),"") -> 0 | BB45: =IFERROR(SUMIFS(data!$M$3:$M$1000,data!$B$3:$B$1000,score!$B$45,data!$A$3:$A$1000,">="&DATE(score!$B$1,BB3,BB4),data!$A$3:$A$1000,"<="&DATE(score!$B$1,BC3,BC4)),"") -> 0
C46: =IFERROR(SUMIFS(data!$M$3:$M$1000,data!$B$3:$B$1000,score!$B$46,data!$A$3:$A$1000,">="&DATE(score!$B$1,C3,C4),data!$A$3:$A$1000,"<="&DATE(score!$B$1,D3,D4)),"") -> 0 | D46: =IFERROR(SUMIFS(data!$M$3:$M$1000,data!$B$3:$B$1000,score!$B$46,data!$A$3:$A$1000,">="&DATE(score!$B$1,D3,D4),data!$A$3:$A$1000,"<="&DATE(score!$B$1,E3,E4)),"") -> 0 | E46: =IFERROR(SUMIFS(data!$M$3:$M$1000,data!$B$3:$B$1000,score!$B$46,data!$A$3:$A$1000,">="&DATE(score!$B$1,E3,E4),data!$A$3:$A$1000,"<="&DATE(score!$B$1,F3,F4)),"") -> 0 | F46: =IFERROR(SUMIFS(data!$M$3:$M$1000,data!$B$3:$B$1000,score!$B$46,data!$A$3:$A$1000,">="&DATE(score!$B$1,F3,F4),data!$A$3:$A$1000,"<="&DATE(score!$B$1,G3,G4)),"") -> 0 | G46: =IFERROR(SUMIFS(data!$M$3:$M$1000,data!$B$3:$B$1000,score!$B$46,data!$A$3:$A$1000,">="&DATE(score!$B$1,G3,G4),data!$A$3:$A$1000,"<="&DATE(score!$B$1,H3,H4)),"") -> 0 | H46: =IFERROR(SUMIFS(data!$M$3:$M$1000,data!$B$3:$B$1000,score!$B$46,data!$A$3:$A$1000,">="&DATE(score!$B$1,H3,H4),data!$A$3:$A$1000,"<="&DATE(score!$B$1,I3,I4)),"") -> 0 | I46: =IFERROR(SUMIFS(data!$M$3:$M$1000,data!$B$3:$B$1000,score!$B$46,data!$A$3:$A$1000,">="&DATE(score!$B$1,I3,I4),data!$A$3:$A$1000,"<="&DATE(score!$B$1,J3,J4)),"") -> 0 | J46: =IFERROR(SUMIFS(data!$M$3:$M$1000,data!$B$3:$B$1000,score!$B$46,data!$A$3:$A$1000,">="&DATE(score!$B$1,J3,J4),data!$A$3:$A$1000,"<="&DATE(score!$B$1,K3,K4)),"") -> 0 | K46: =IFERROR(SUMIFS(data!$M$3:$M$1000,data!$B$3:$B$1000,score!$B$46,data!$A$3:$A$1000,">="&DATE(score!$B$1,K3,K4),data!$A$3:$A$1000,"<="&DATE(score!$B$1,L3,L4)),"") -> 0 | L46: =IFERROR(SUMIFS(data!$M$3:$M$1000,data!$B$3:$B$1000,score!$B$46,data!$A$3:$A$1000,">="&DATE(score!$B$1,L3,L4),data!$A$3:$A$1000,"<="&DATE(score!$B$1,M3,M4)),"") -> 0 | M46: =IFERROR(SUMIFS(data!$M$3:$M$1000,data!$B$3:$B$1000,score!$B$46,data!$A$3:$A$1000,">="&DATE(score!$B$1,M3,M4),data!$A$3:$A$1000,"<="&DATE(score!$B$1,N3,N4)),"") -> 0 | N46: =IFERROR(SUMIFS(data!$M$3:$M$1000,data!$B$3:$B$1000,score!$B$46,data!$A$3:$A$1000,">="&DATE(score!$B$1,N3,N4),data!$A$3:$A$1000,"<="&DATE(score!$B$1,O3,O4)),"") -> 0 | O46: =IFERROR(SUMIFS(data!$M$3:$M$1000,data!$B$3:$B$1000,score!$B$46,data!$A$3:$A$1000,">="&DATE(score!$B$1,O3,O4),data!$A$3:$A$1000,"<="&DATE(score!$B$1,P3,P4)),"") -> 0 | P46: =IFERROR(SUMIFS(data!$M$3:$M$1000,data!$B$3:$B$1000,score!$B$46,data!$A$3:$A$1000,">="&DATE(score!$B$1,P3,P4),data!$A$3:$A$1000,"<="&DATE(score!$B$1,Q3,Q4)),"") -> 0 | Q46: =IFERROR(SUMIFS(data!$M$3:$M$1000,data!$B$3:$B$1000,score!$B$46,data!$A$3:$A$1000,">="&DATE(score!$B$1,Q3,Q4),data!$A$3:$A$1000,"<="&DATE(score!$B$1,R3,R4)),"") -> 0 | R46: =IFERROR(SUMIFS(data!$M$3:$M$1000,data!$B$3:$B$1000,score!$B$46,data!$A$3:$A$1000,">="&DATE(score!$B$1,R3,R4),data!$A$3:$A$1000,"<="&DATE(score!$B$1,S3,S4)),"") -> 0 | S46: =IFERROR(SUMIFS(data!$M$3:$M$1000,data!$B$3:$B$1000,score!$B$46,data!$A$3:$A$1000,">="&DATE(score!$B$1,S3,S4),data!$A$3:$A$1000,"<="&DATE(score!$B$1,T3,T4)),"") -> 0 | T46: =IFERROR(SUMIFS(data!$M$3:$M$1000,data!$B$3:$B$1000,score!$B$46,data!$A$3:$A$1000,">="&DATE(score!$B$1,T3,T4),data!$A$3:$A$1000,"<="&DATE(score!$B$1,U3,U4)),"") -> 0 | U46: =IFERROR(SUMIFS(data!$M$3:$M$1000,data!$B$3:$B$1000,score!$B$46,data!$A$3:$A$1000,">="&DATE(score!$B$1,U3,U4),data!$A$3:$A$1000,"<="&DATE(score!$B$1,V3,V4)),"") -> 0 | V46: =IFERROR(SUMIFS(data!$M$3:$M$1000,data!$B$3:$B$1000,score!$B$46,data!$A$3:$A$1000,">="&DATE(score!$B$1,V3,V4),data!$A$3:$A$1000,"<="&DATE(score!$B$1,W3,W4)),"") -> 0 | W46: =IFERROR(SUMIFS(data!$M$3:$M$1000,data!$B$3:$B$1000,score!$B$46,data!$A$3:$A$1000,">="&DATE(score!$B$1,W3,W4),data!$A$3:$A$1000,"<="&DATE(score!$B$1,X3,X4)),"") -> 0 | X46: =IFERROR(SUMIFS(data!$M$3:$M$1000,data!$B$3:$B$1000,score!$B$46,data!$A$3:$A$1000,">="&DATE(score!$B$1,X3,X4),data!$A$3:$A$1000,"<="&DATE(score!$B$1,Y3,Y4)),"") -> 0 | Y46: =IFERROR(SUMIFS(data!$M$3:$M$1000,data!$B$3:$B$1000,score!$B$46,data!$A$3:$A$1000,">="&DATE(score!$B$1,Y3,Y4),data!$A$3:$A$1000,"<="&DATE(score!$B$1,Z3,Z4)),"") -> 0 | Z46: =IFERROR(SUMIFS(data!$M$3:$M$1000,data!$B$3:$B$1000,score!$B$46,data!$A$3:$A$1000,">="&DATE(score!$B$1,Z3,Z4),data!$A$3:$A$1000,"<="&DATE(score!$B$1,AA3,AA4)),"") -> 0 | AA46: =IFERROR(SUMIFS(data!$M$3:$M$1000,data!$B$3:$B$1000,score!$B$46,data!$A$3:$A$1000,">="&DATE(score!$B$1,AA3,AA4),data!$A$3:$A$1000,"<="&DATE(score!$B$1,AB3,AB4)),"") -> 0 | AB46: =IFERROR(SUMIFS(data!$M$3:$M$1000,data!$B$3:$B$1000,score!$B$46,data!$A$3:$A$1000,">="&DATE(score!$B$1,AB3,AB4),data!$A$3:$A$1000,"<="&DATE(score!$B$1,AC3,AC4)),"") -> 0 | AC46: =IFERROR(SUMIFS(data!$M$3:$M$1000,data!$B$3:$B$1000,score!$B$46,data!$A$3:$A$1000,">="&DATE(score!$B$1,AC3,AC4),data!$A$3:$A$1000,"<="&DATE(score!$B$1,AD3,AD4)),"") -> 0 | AD46: =IFERROR(SUMIFS(data!$M$3:$M$1000,data!$B$3:$B$1000,score!$B$46,data!$A$3:$A$1000,">="&DATE(score!$B$1,AD3,AD4),data!$A$3:$A$1000,"<="&DATE(score!$B$1,AE3,AE4)),"") -> 0 | AE46: =IFERROR(SUMIFS(data!$M$3:$M$1000,data!$B$3:$B$1000,score!$B$46,data!$A$3:$A$1000,">="&DATE(score!$B$1,AE3,AE4),data!$A$3:$A$1000,"<="&DATE(score!$B$1,AF3,AF4)),"") -> 0 | AF46: =IFERROR(SUMIFS(data!$M$3:$M$1000,data!$B$3:$B$1000,score!$B$46,data!$A$3:$A$1000,">="&DATE(score!$B$1,AF3,AF4),data!$A$3:$A$1000,"<="&DATE(score!$B$1,AG3,AG4)),"") -> 0 | AG46: =IFERROR(SUMIFS(data!$M$3:$M$1000,data!$B$3:$B$1000,score!$B$46,data!$A$3:$A$1000,">="&DATE(score!$B$1,AG3,AG4),data!$A$3:$A$1000,"<="&DATE(score!$B$1,AH3,AH4)),"") -> 0 | AH46: =IFERROR(SUMIFS(data!$M$3:$M$1000,data!$B$3:$B$1000,score!$B$46,data!$A$3:$A$1000,">="&DATE(score!$B$1,AH3,AH4),data!$A$3:$A$1000,"<="&DATE(score!$B$1,AI3,AI4)),"") -> 0 | AI46: =IFERROR(SUMIFS(data!$M$3:$M$1000,data!$B$3:$B$1000,score!$B$46,data!$A$3:$A$1000,">="&DATE(score!$B$1,AI3,AI4),data!$A$3:$A$1000,"<="&DATE(score!$B$1,AJ3,AJ4)),"") -> 0 | AJ46: =IFERROR(SUMIFS(data!$M$3:$M$1000,data!$B$3:$B$1000,score!$B$46,data!$A$3:$A$1000,">="&DATE(score!$B$1,AJ3,AJ4),data!$A$3:$A$1000,"<="&DATE(score!$B$1,AK3,AK4)),"") -> 0 | AK46: =IFERROR(SUMIFS(data!$M$3:$M$1000,data!$B$3:$B$1000,score!$B$46,data!$A$3:$A$1000,">="&DATE(score!$B$1,AK3,AK4),data!$A$3:$A$1000,"<="&DATE(score!$B$1,AL3,AL4)),"") -> 0 | AL46: =IFERROR(SUMIFS(data!$M$3:$M$1000,data!$B$3:$B$1000,score!$B$46,data!$A$3:$A$1000,">="&DATE(score!$B$1,AL3,AL4),data!$A$3:$A$1000,"<="&DATE(score!$B$1,AM3,AM4)),"") -> 0 | AM46: =IFERROR(SUMIFS(data!$M$3:$M$1000,data!$B$3:$B$1000,score!$B$46,data!$A$3:$A$1000,">="&DATE(score!$B$1,AM3,AM4),data!$A$3:$A$1000,"<="&DATE(score!$B$1,AN3,AN4)),"") -> 0 | AN46: =IFERROR(SUMIFS(data!$M$3:$M$1000,data!$B$3:$B$1000,score!$B$46,data!$A$3:$A$1000,">="&DATE(score!$B$1,AN3,AN4),data!$A$3:$A$1000,"<="&DATE(score!$B$1,AO3,AO4)),"") -> 0 | AO46: =IFERROR(SUMIFS(data!$M$3:$M$1000,data!$B$3:$B$1000,score!$B$46,data!$A$3:$A$1000,">="&DATE(score!$B$1,AO3,AO4),data!$A$3:$A$1000,"<="&DATE(score!$B$1,AP3,AP4)),"") -> 0 | AP46: =IFERROR(SUMIFS(data!$M$3:$M$1000,data!$B$3:$B$1000,score!$B$46,data!$A$3:$A$1000,">="&DATE(score!$B$1,AP3,AP4),data!$A$3:$A$1000,"<="&DATE(score!$B$1,AQ3,AQ4)),"") -> 0 | AQ46: =IFERROR(SUMIFS(data!$M$3:$M$1000,data!$B$3:$B$1000,score!$B$46,data!$A$3:$A$1000,">="&DATE(score!$B$1,AQ3,AQ4),data!$A$3:$A$1000,"<="&DATE(score!$B$1,AR3,AR4)),"") -> 0 | AR46: =IFERROR(SUMIFS(data!$M$3:$M$1000,data!$B$3:$B$1000,score!$B$46,data!$A$3:$A$1000,">="&DATE(score!$B$1,AR3,AR4),data!$A$3:$A$1000,"<="&DATE(score!$B$1,AS3,AS4)),"") -> 0 | AS46: =IFERROR(SUMIFS(data!$M$3:$M$1000,data!$B$3:$B$1000,score!$B$46,data!$A$3:$A$1000,">="&DATE(score!$B$1,AS3,AS4),data!$A$3:$A$1000,"<="&DATE(score!$B$1,AT3,AT4)),"") -> 0 | AT46: =IFERROR(SUMIFS(data!$M$3:$M$1000,data!$B$3:$B$1000,score!$B$46,data!$A$3:$A$1000,">="&DATE(score!$B$1,AT3,AT4),data!$A$3:$A$1000,"<="&DATE(score!$B$1,AU3,AU4)),"") -> 0 | AU46: =IFERROR(SUMIFS(data!$M$3:$M$1000,data!$B$3:$B$1000,score!$B$46,data!$A$3:$A$1000,">="&DATE(score!$B$1,AU3,AU4),data!$A$3:$A$1000,"<="&DATE(score!$B$1,AV3,AV4)),"") -> 0 | AV46: =IFERROR(SUMIFS(data!$M$3:$M$1000,data!$B$3:$B$1000,score!$B$46,data!$A$3:$A$1000,">="&DATE(score!$B$1,AV3,AV4),data!$A$3:$A$1000,"<="&DATE(score!$B$1,AW3,AW4)),"") -> 0 | AW46: =IFERROR(SUMIFS(data!$M$3:$M$1000,data!$B$3:$B$1000,score!$B$46,data!$A$3:$A$1000,">="&DATE(score!$B$1,AW3,AW4),data!$A$3:$A$1000,"<="&DATE(score!$B$1,AX3,AX4)),"") -> 0 | AX46: =IFERROR(SUMIFS(data!$M$3:$M$1000,data!$B$3:$B$1000,score!$B$46,data!$A$3:$A$1000,">="&DATE(score!$B$1,AX3,AX4),data!$A$3:$A$1000,"<="&DATE(score!$B$1,AY3,AY4)),"") -> 0 | AY46: =IFERROR(SUMIFS(data!$M$3:$M$1000,data!$B$3:$B$1000,score!$B$46,data!$A$3:$A$1000,">="&DATE(score!$B$1,AY3,AY4),data!$A$3:$A$1000,"<="&DATE(score!$B$1,AZ3,AZ4)),"") -> 0 | AZ46: =IFERROR(SUMIFS(data!$M$3:$M$1000,data!$B$3:$B$1000,score!$B$46,data!$A$3:$A$1000,">="&DATE(score!$B$1,AZ3,AZ4),data!$A$3:$A$1000,"<="&DATE(score!$B$1,BA3,BA4)),"") -> 0 | BA46: =IFERROR(SUMIFS(data!$M$3:$M$1000,data!$B$3:$B$1000,score!$B$46,data!$A$3:$A$1000,">="&DATE(score!$B$1,BA3,BA4),data!$A$3:$A$1000,"<="&DATE(score!$B$1,BB3,BB4)),"") -> 0 | BB46: =IFERROR(SUMIFS(data!$M$3:$M$1000,data!$B$3:$B$1000,score!$B$46,data!$A$3:$A$1000,">="&DATE(score!$B$1,BB3,BB4),data!$A$3:$A$1000,"<="&DATE(score!$B$1,BC3,BC4)),"") -> 0
C47: =IFERROR(SUMIFS(data!$M$3:$M$1000,data!$B$3:$B$1000,score!$B$47,data!$A$3:$A$1000,">="&DATE(score!$B$1,C3,C4),data!$A$3:$A$1000,"<="&DATE(score!$B$1,D3,D4)),"") -> 0 | D47: =IFERROR(SUMIFS(data!$M$3:$M$1000,data!$B$3:$B$1000,score!$B$47,data!$A$3:$A$1000,">="&DATE(score!$B$1,D3,D4),data!$A$3:$A$1000,"<="&DATE(score!$B$1,E3,E4)),"") -> 0 | E47: =IFERROR(SUMIFS(data!$M$3:$M$1000,data!$B$3:$B$1000,score!$B$47,data!$A$3:$A$1000,">="&DATE(score!$B$1,E3,E4),data!$A$3:$A$1000,"<="&DATE(score!$B$1,F3,F4)),"") -> 0 | F47: =IFERROR(SUMIFS(data!$M$3:$M$1000,data!$B$3:$B$1000,score!$B$47,data!$A$3:$A$1000,">="&DATE(score!$B$1,F3,F4),data!$A$3:$A$1000,"<="&DATE(score!$B$1,G3,G4)),"") -> 0 | G47: =IFERROR(SUMIFS(data!$M$3:$M$1000,data!$B$3:$B$1000,score!$B$47,data!$A$3:$A$1000,">="&DATE(score!$B$1,G3,G4),data!$A$3:$A$1000,"<="&DATE(score!$B$1,H3,H4)),"") -> 0 | H47: =IFERROR(SUMIFS(data!$M$3:$M$1000,data!$B$3:$B$1000,score!$B$47,data!$A$3:$A$1000,">="&DATE(score!$B$1,H3,H4),data!$A$3:$A$1000,"<="&DATE(score!$B$1,I3,I4)),"") -> 0 | I47: =IFERROR(SUMIFS(data!$M$3:$M$1000,data!$B$3:$B$1000,score!$B$47,data!$A$3:$A$1000,">="&DATE(score!$B$1,I3,I4),data!$A$3:$A$1000,"<="&DATE(score!$B$1,J3,J4)),"") -> 0 | J47: =IFERROR(SUMIFS(data!$M$3:$M$1000,data!$B$3:$B$1000,score!$B$47,data!$A$3:$A$1000,">="&DATE(score!$B$1,J3,J4),data!$A$3:$A$1000,"<="&DATE(score!$B$1,K3,K4)),"") -> 0 | K47: =IFERROR(SUMIFS(data!$M$3:$M$1000,data!$B$3:$B$1000,score!$B$47,data!$A$3:$A$1000,">="&DATE(score!$B$1,K3,K4),data!$A$3:$A$1000,"<="&DATE(score!$B$1,L3,L4)),"") -> 0 | L47: =IFERROR(SUMIFS(data!$M$3:$M$1000,data!$B$3:$B$1000,score!$B$47,data!$A$3:$A$1000,">="&DATE(score!$B$1,L3,L4),data!$A$3:$A$1000,"<="&DATE(score!$B$1,M3,M4)),"") -> 0 | M47: =IFERROR(SUMIFS(data!$M$3:$M$1000,data!$B$3:$B$1000,score!$B$47,data!$A$3:$A$1000,">="&DATE(score!$B$1,M3,M4),data!$A$3:$A$1000,"<="&DATE(score!$B$1,N3,N4)),"") -> 0 | N47: =IFERROR(SUMIFS(data!$M$3:$M$1000,data!$B$3:$B$1000,score!$B$47,data!$A$3:$A$1000,">="&DATE(score!$B$1,N3,N4),data!$A$3:$A$1000,"<="&DATE(score!$B$1,O3,O4)),"") -> 0 | O47: =IFERROR(SUMIFS(data!$M$3:$M$1000,data!$B$3:$B$1000,score!$B$47,data!$A$3:$A$1000,">="&DATE(score!$B$1,O3,O4),data!$A$3:$A$1000,"<="&DATE(score!$B$1,P3,P4)),"") -> 0 | P47: =IFERROR(SUMIFS(data!$M$3:$M$1000,data!$B$3:$B$1000,score!$B$47,data!$A$3:$A$1000,">="&DATE(score!$B$1,P3,P4),data!$A$3:$A$1000,"<="&DATE(score!$B$1,Q3,Q4)),"") -> 0 | Q47: =IFERROR(SUMIFS(data!$M$3:$M$1000,data!$B$3:$B$1000,score!$B$47,data!$A$3:$A$1000,">="&DATE(score!$B$1,Q3,Q4),data!$A$3:$A$1000,"<="&DATE(score!$B$1,R3,R4)),"") -> 0 | R47: =IFERROR(SUMIFS(data!$M$3:$M$1000,data!$B$3:$B$1000,score!$B$47,data!$A$3:$A$1000,">="&DATE(score!$B$1,R3,R4),data!$A$3:$A$1000,"<="&DATE(score!$B$1,S3,S4)),"") -> 0 | S47: =IFERROR(SUMIFS(data!$M$3:$M$1000,data!$B$3:$B$1000,score!$B$47,data!$A$3:$A$1000,">="&DATE(score!$B$1,S3,S4),data!$A$3:$A$1000,"<="&DATE(score!$B$1,T3,T4)),"") -> 0 | T47: =IFERROR(SUMIFS(data!$M$3:$M$1000,data!$B$3:$B$1000,score!$B$47,data!$A$3:$A$1000,">="&DATE(score!$B$1,T3,T4),data!$A$3:$A$1000,"<="&DATE(score!$B$1,U3,U4)),"") -> 0 | U47: =IFERROR(SUMIFS(data!$M$3:$M$1000,data!$B$3:$B$1000,score!$B$47,data!$A$3:$A$1000,">="&DATE(score!$B$1,U3,U4),data!$A$3:$A$1000,"<="&DATE(score!$B$1,V3,V4)),"") -> 0 | V47: =IFERROR(SUMIFS(data!$M$3:$M$1000,data!$B$3:$B$1000,score!$B$47,data!$A$3:$A$1000,">="&DATE(score!$B$1,V3,V4),data!$A$3:$A$1000,"<="&DATE(score!$B$1,W3,W4)),"") -> 0 | W47: =IFERROR(SUMIFS(data!$M$3:$M$1000,data!$B$3:$B$1000,score!$B$47,data!$A$3:$A$1000,">="&DATE(score!$B$1,W3,W4),data!$A$3:$A$1000,"<="&DATE(score!$B$1,X3,X4)),"") -> 0 | X47: =IFERROR(SUMIFS(data!$M$3:$M$1000,data!$B$3:$B$1000,score!$B$47,data!$A$3:$A$1000,">="&DATE(score!$B$1,X3,X4),data!$A$3:$A$1000,"<="&DATE(score!$B$1,Y3,Y4)),"") -> 0 | Y47: =IFERROR(SUMIFS(data!$M$3:$M$1000,data!$B$3:$B$1000,score!$B$47,data!$A$3:$A$1000,">="&DATE(score!$B$1,Y3,Y4),data!$A$3:$A$1000,"<="&DATE(score!$B$1,Z3,Z4)),"") -> 0 | Z47: =IFERROR(SUMIFS(data!$M$3:$M$1000,data!$B$3:$B$1000,score!$B$47,data!$A$3:$A$1000,">="&DATE(score!$B$1,Z3,Z4),data!$A$3:$A$1000,"<="&DATE(score!$B$1,AA3,AA4)),"") -> 0 | AA47: =IFERROR(SUMIFS(data!$M$3:$M$1000,data!$B$3:$B$1000,score!$B$47,data!$A$3:$A$1000,">="&DATE(score!$B$1,AA3,AA4),data!$A$3:$A$1000,"<="&DATE(score!$B$1,AB3,AB4)),"") -> 0 | AB47: =IFERROR(SUMIFS(data!$M$3:$M$1000,data!$B$3:$B$1000,score!$B$47,data!$A$3:$A$1000,">="&DATE(score!$B$1,AB3,AB4),data!$A$3:$A$1000,"<="&DATE(score!$B$1,AC3,AC4)),"") -> 0 | AC47: =IFERROR(SUMIFS(data!$M$3:$M$1000,data!$B$3:$B$1000,score!$B$47,data!$A$3:$A$1000,">="&DATE(score!$B$1,AC3,AC4),data!$A$3:$A$1000,"<="&DATE(score!$B$1,AD3,AD4)),"") -> 0 | AD47: =IFERROR(SUMIFS(data!$M$3:$M$1000,data!$B$3:$B$1000,score!$B$47,data!$A$3:$A$1000,">="&DATE(score!$B$1,AD3,AD4),data!$A$3:$A$1000,"<="&DATE(score!$B$1,AE3,AE4)),"") -> 0 | AE47: =IFERROR(SUMIFS(data!$M$3:$M$1000,data!$B$3:$B$1000,score!$B$47,data!$A$3:$A$1000,">="&DATE(score!$B$1,AE3,AE4),data!$A$3:$A$1000,"<="&DATE(score!$B$1,AF3,AF4)),"") -> 0 | AF47: =IFERROR(SUMIFS(data!$M$3:$M$1000,data!$B$3:$B$1000,score!$B$47,data!$A$3:$A$1000,">="&DATE(score!$B$1,AF3,AF4),data!$A$3:$A$1000,"<="&DATE(score!$B$1,AG3,AG4)),"") -> 0 | AG47: =IFERROR(SUMIFS(data!$M$3:$M$1000,data!$B$3:$B$1000,score!$B$47,data!$A$3:$A$1000,">="&DATE(score!$B$1,AG3,AG4),data!$A$3:$A$1000,"<="&DATE(score!$B$1,AH3,AH4)),"") -> 0 | AH47: =IFERROR(SUMIFS(data!$M$3:$M$1000,data!$B$3:$B$1000,score!$B$47,data!$A$3:$A$1000,">="&DATE(score!$B$1,AH3,AH4),data!$A$3:$A$1000,"<="&DATE(score!$B$1,AI3,AI4)),"") -> 0 | AI47: =IFERROR(SUMIFS(data!$M$3:$M$1000,data!$B$3:$B$1000,score!$B$47,data!$A$3:$A$1000,">="&DATE(score!$B$1,AI3,AI4),data!$A$3:$A$1000,"<="&DATE(score!$B$1,AJ3,AJ4)),"") -> 0 | AJ47: =IFERROR(SUMIFS(data!$M$3:$M$1000,data!$B$3:$B$1000,score!$B$47,data!$A$3:$A$1000,">="&DATE(score!$B$1,AJ3,AJ4),data!$A$3:$A$1000,"<="&DATE(score!$B$1,AK3,AK4)),"") -> 0 | AK47: =IFERROR(SUMIFS(data!$M$3:$M$1000,data!$B$3:$B$1000,score!$B$47,data!$A$3:$A$1000,">="&DATE(score!$B$1,AK3,AK4),data!$A$3:$A$1000,"<="&DATE(score!$B$1,AL3,AL4)),"") -> 0 | AL47: =IFERROR(SUMIFS(data!$M$3:$M$1000,data!$B$3:$B$1000,score!$B$47,data!$A$3:$A$1000,">="&DATE(score!$B$1,AL3,AL4),data!$A$3:$A$1000,"<="&DATE(score!$B$1,AM3,AM4)),"") -> 0 | AM47: =IFERROR(SUMIFS(data!$M$3:$M$1000,data!$B$3:$B$1000,score!$B$47,data!$A$3:$A$1000,">="&DATE(score!$B$1,AM3,AM4),data!$A$3:$A$1000,"<="&DATE(score!$B$1,AN3,AN4)),"") -> 0 | AN47: =IFERROR(SUMIFS(data!$M$3:$M$1000,data!$B$3:$B$1000,score!$B$47,data!$A$3:$A$1000,">="&DATE(score!$B$1,AN3,AN4),data!$A$3:$A$1000,"<="&DATE(score!$B$1,AO3,AO4)),"") -> 0 | AO47: =IFERROR(SUMIFS(data!$M$3:$M$1000,data!$B$3:$B$1000,score!$B$47,data!$A$3:$A$1000,">="&DATE(score!$B$1,AO3,AO4),data!$A$3:$A$1000,"<="&DATE(score!$B$1,AP3,AP4)),"") -> 0 | AP47: =IFERROR(SUMIFS(data!$M$3:$M$1000,data!$B$3:$B$1000,score!$B$47,data!$A$3:$A$1000,">="&DATE(score!$B$1,AP3,AP4),data!$A$3:$A$1000,"<="&DATE(score!$B$1,AQ3,AQ4)),"") -> 0 | AQ47: =IFERROR(SUMIFS(data!$M$3:$M$1000,data!$B$3:$B$1000,score!$B$47,data!$A$3:$A$1000,">="&DATE(score!$B$1,AQ3,AQ4),data!$A$3:$A$1000,"<="&DATE(score!$B$1,AR3,AR4)),"") -> 0 | AR47: =IFERROR(SUMIFS(data!$M$3:$M$1000,data!$B$3:$B$1000,score!$B$47,data!$A$3:$A$1000,">="&DATE(score!$B$1,AR3,AR4),data!$A$3:$A$1000,"<="&DATE(score!$B$1,AS3,AS4)),"") -> 0 | AS47: =IFERROR(SUMIFS(data!$M$3:$M$1000,data!$B$3:$B$1000,score!$B$47,data!$A$3:$A$1000,">="&DATE(score!$B$1,AS3,AS4),data!$A$3:$A$1000,"<="&DATE(score!$B$1,AT3,AT4)),"") -> 0 | AT47: =IFERROR(SUMIFS(data!$M$3:$M$1000,data!$B$3:$B$1000,score!$B$47,data!$A$3:$A$1000,">="&DATE(score!$B$1,AT3,AT4),data!$A$3:$A$1000,"<="&DATE(score!$B$1,AU3,AU4)),"") -> 0 | AU47: =IFERROR(SUMIFS(data!$M$3:$M$1000,data!$B$3:$B$1000,score!$B$47,data!$A$3:$A$1000,">="&DATE(score!$B$1,AU3,AU4),data!$A$3:$A$1000,"<="&DATE(score!$B$1,AV3,AV4)),"") -> 0 | AV47: =IFERROR(SUMIFS(data!$M$3:$M$1000,data!$B$3:$B$1000,score!$B$47,data!$A$3:$A$1000,">="&DATE(score!$B$1,AV3,AV4),data!$A$3:$A$1000,"<="&DATE(score!$B$1,AW3,AW4)),"") -> 0 | AW47: =IFERROR(SUMIFS(data!$M$3:$M$1000,data!$B$3:$B$1000,score!$B$47,data!$A$3:$A$1000,">="&DATE(score!$B$1,AW3,AW4),data!$A$3:$A$1000,"<="&DATE(score!$B$1,AX3,AX4)),"") -> 0 | AX47: =IFERROR(SUMIFS(data!$M$3:$M$1000,data!$B$3:$B$1000,score!$B$47,data!$A$3:$A$1000,">="&DATE(score!$B$1,AX3,AX4),data!$A$3:$A$1000,"<="&DATE(score!$B$1,AY3,AY4)),"") -> 0 | AY47: =IFERROR(SUMIFS(data!$M$3:$M$1000,data!$B$3:$B$1000,score!$B$47,data!$A$3:$A$1000,">="&DATE(score!$B$1,AY3,AY4),data!$A$3:$A$1000,"<="&DATE(score!$B$1,AZ3,AZ4)),"") -> 0 | AZ47: =IFERROR(SUMIFS(data!$M$3:$M$1000,data!$B$3:$B$1000,score!$B$47,data!$A$3:$A$1000,">="&DATE(score!$B$1,AZ3,AZ4),data!$A$3:$A$1000,"<="&DATE(score!$B$1,BA3,BA4)),"") -> 0 | BA47: =IFERROR(SUMIFS(data!$M$3:$M$1000,data!$B$3:$B$1000,score!$B$47,data!$A$3:$A$1000,">="&DATE(score!$B$1,BA3,BA4),data!$A$3:$A$1000,"<="&DATE(score!$B$1,BB3,BB4)),"") -> 0 | BB47: =IFERROR(SUMIFS(data!$M$3:$M$1000,data!$B$3:$B$1000,score!$B$47,data!$A$3:$A$1000,">="&DATE(score!$B$1,BB3,BB4),data!$A$3:$A$1000,"<="&DATE(score!$B$1,BC3,BC4)),"") -> 0
C48: =IFERROR(SUMIFS(data!$M$3:$M$1000,data!$B$3:$B$1000,score!$B$48,data!$A$3:$A$1000,">="&DATE(score!$B$1,C3,C4),data!$A$3:$A$1000,"<="&DATE(score!$B$1,D3,D4)),"") -> 0 | D48: =IFERROR(SUMIFS(data!$M$3:$M$1000,data!$B$3:$B$1000,score!$B$48,data!$A$3:$A$1000,">="&DATE(score!$B$1,D3,D4),data!$A$3:$A$1000,"<="&DATE(score!$B$1,E3,E4)),"") -> 0 | E48: =IFERROR(SUMIFS(data!$M$3:$M$1000,data!$B$3:$B$1000,score!$B$48,data!$A$3:$A$1000,">="&DATE(score!$B$1,E3,E4),data!$A$3:$A$1000,"<="&DATE(score!$B$1,F3,F4)),"") -> 0 | F48: =IFERROR(SUMIFS(data!$M$3:$M$1000,data!$B$3:$B$1000,score!$B$48,data!$A$3:$A$1000,">="&DATE(score!$B$1,F3,F4),data!$A$3:$A$1000,"<="&DATE(score!$B$1,G3,G4)),"") -> 0 | G48: =IFERROR(SUMIFS(data!$M$3:$M$1000,data!$B$3:$B$1000,score!$B$48,data!$A$3:$A$1000,">="&DATE(score!$B$1,G3,G4),data!$A$3:$A$1000,"<="&DATE(score!$B$1,H3,H4)),"") -> 0 | H48: =IFERROR(SUMIFS(data!$M$3:$M$1000,data!$B$3:$B$1000,score!$B$48,data!$A$3:$A$1000,">="&DATE(score!$B$1,H3,H4),data!$A$3:$A$1000,"<="&DATE(score!$B$1,I3,I4)),"") -> 0 | I48: =IFERROR(SUMIFS(data!$M$3:$M$1000,data!$B$3:$B$1000,score!$B$48,data!$A$3:$A$1000,">="&DATE(score!$B$1,I3,I4),data!$A$3:$A$1000,"<="&DATE(score!$B$1,J3,J4)),"") -> 0 | J48: =IFERROR(SUMIFS(data!$M$3:$M$1000,data!$B$3:$B$1000,score!$B$48,data!$A$3:$A$1000,">="&DATE(score!$B$1,J3,J4),data!$A$3:$A$1000,"<="&DATE(score!$B$1,K3,K4)),"") -> 0 | K48: =IFERROR(SUMIFS(data!$M$3:$M$1000,data!$B$3:$B$1000,score!$B$48,data!$A$3:$A$1000,">="&DATE(score!$B$1,K3,K4),data!$A$3:$A$1000,"<="&DATE(score!$B$1,L3,L4)),"") -> 0 | L48: =IFERROR(SUMIFS(data!$M$3:$M$1000,data!$B$3:$B$1000,score!$B$48,data!$A$3:$A$1000,">="&DATE(score!$B$1,L3,L4),data!$A$3:$A$1000,"<="&DATE(score!$B$1,M3,M4)),"") -> 0 | M48: =IFERROR(SUMIFS(data!$M$3:$M$1000,data!$B$3:$B$1000,score!$B$48,data!$A$3:$A$1000,">="&DATE(score!$B$1,M3,M4),data!$A$3:$A$1000,"<="&DATE(score!$B$1,N3,N4)),"") -> 0 | N48: =IFERROR(SUMIFS(data!$M$3:$M$1000,data!$B$3:$B$1000,score!$B$48,data!$A$3:$A$1000,">="&DATE(score!$B$1,N3,N4),data!$A$3:$A$1000,"<="&DATE(score!$B$1,O3,O4)),"") -> 0 | O48: =IFERROR(SUMIFS(data!$M$3:$M$1000,data!$B$3:$B$1000,score!$B$48,data!$A$3:$A$1000,">="&DATE(score!$B$1,O3,O4),data!$A$3:$A$1000,"<="&DATE(score!$B$1,P3,P4)),"") -> 0 | P48: =IFERROR(SUMIFS(data!$M$3:$M$1000,data!$B$3:$B$1000,score!$B$48,data!$A$3:$A$1000,">="&DATE(score!$B$1,P3,P4),data!$A$3:$A$1000,"<="&DATE(score!$B$1,Q3,Q4)),"") -> 0 | Q48: =IFERROR(SUMIFS(data!$M$3:$M$1000,data!$B$3:$B$1000,score!$B$48,data!$A$3:$A$1000,">="&DATE(score!$B$1,Q3,Q4),data!$A$3:$A$1000,"<="&DATE(score!$B$1,R3,R4)),"") -> 0 | R48: =IFERROR(SUMIFS(data!$M$3:$M$1000,data!$B$3:$B$1000,score!$B$48,data!$A$3:$A$1000,">="&DATE(score!$B$1,R3,R4),data!$A$3:$A$1000,"<="&DATE(score!$B$1,S3,S4)),"") -> 0 | S48: =IFERROR(SUMIFS(data!$M$3:$M$1000,data!$B$3:$B$1000,score!$B$48,data!$A$3:$A$1000,">="&DATE(score!$B$1,S3,S4),data!$A$3:$A$1000,"<="&DATE(score!$B$1,T3,T4)),"") -> 0 | T48: =IFERROR(SUMIFS(data!$M$3:$M$1000,data!$B$3:$B$1000,score!$B$48,data!$A$3:$A$1000,">="&DATE(score!$B$1,T3,T4),data!$A$3:$A$1000,"<="&DATE(score!$B$1,U3,U4)),"") -> 0 | U48: =IFERROR(SUMIFS(data!$M$3:$M$1000,data!$B$3:$B$1000,score!$B$48,data!$A$3:$A$1000,">="&DATE(score!$B$1,U3,U4),data!$A$3:$A$1000,"<="&DATE(score!$B$1,V3,V4)),"") -> 0 | V48: =IFERROR(SUMIFS(data!$M$3:$M$1000,data!$B$3:$B$1000,score!$B$48,data!$A$3:$A$1000,">="&DATE(score!$B$1,V3,V4),data!$A$3:$A$1000,"<="&DATE(score!$B$1,W3,W4)),"") -> 0 | W48: =IFERROR(SUMIFS(data!$M$3:$M$1000,data!$B$3:$B$1000,score!$B$48,data!$A$3:$A$1000,">="&DATE(score!$B$1,W3,W4),data!$A$3:$A$1000,"<="&DATE(score!$B$1,X3,X4)),"") -> 0 | X48: =IFERROR(SUMIFS(data!$M$3:$M$1000,data!$B$3:$B$1000,score!$B$48,data!$A$3:$A$1000,">="&DATE(score!$B$1,X3,X4),data!$A$3:$A$1000,"<="&DATE(score!$B$1,Y3,Y4)),"") -> 0 | Y48: =IFERROR(SUMIFS(data!$M$3:$M$1000,data!$B$3:$B$1000,score!$B$48,data!$A$3:$A$1000,">="&DATE(score!$B$1,Y3,Y4),data!$A$3:$A$1000,"<="&DATE(score!$B$1,Z3,Z4)),"") -> 0 | Z48: =IFERROR(SUMIFS(data!$M$3:$M$1000,data!$B$3:$B$1000,score!$B$48,data!$A$3:$A$1000,">="&DATE(score!$B$1,Z3,Z4),data!$A$3:$A$1000,"<="&DATE(score!$B$1,AA3,AA4)),"") -> 0 | AA48: =IFERROR(SUMIFS(data!$M$3:$M$1000,data!$B$3:$B$1000,score!$B$48,data!$A$3:$A$1000,">="&DATE(score!$B$1,AA3,AA4),data!$A$3:$A$1000,"<="&DATE(score!$B$1,AB3,AB4)),"") -> 0 | AB48: =IFERROR(SUMIFS(data!$M$3:$M$1000,data!$B$3:$B$1000,score!$B$48,data!$A$3:$A$1000,">="&DATE(score!$B$1,AB3,AB4),data!$A$3:$A$1000,"<="&DATE(score!$B$1,AC3,AC4)),"") -> 0 | AC48: =IFERROR(SUMIFS(data!$M$3:$M$1000,data!$B$3:$B$1000,score!$B$48,data!$A$3:$A$1000,">="&DATE(score!$B$1,AC3,AC4),data!$A$3:$A$1000,"<="&DATE(score!$B$1,AD3,AD4)),"") -> 0 | AD48: =IFERROR(SUMIFS(data!$M$3:$M$1000,data!$B$3:$B$1000,score!$B$48,data!$A$3:$A$1000,">="&DATE(score!$B$1,AD3,AD4),data!$A$3:$A$1000,"<="&DATE(score!$B$1,AE3,AE4)),"") -> 0 | AE48: =IFERROR(SUMIFS(data!$M$3:$M$1000,data!$B$3:$B$1000,score!$B$48,data!$A$3:$A$1000,">="&DATE(score!$B$1,AE3,AE4),data!$A$3:$A$1000,"<="&DATE(score!$B$1,AF3,AF4)),"") -> 0 | AF48: =IFERROR(SUMIFS(data!$M$3:$M$1000,data!$B$3:$B$1000,score!$B$48,data!$A$3:$A$1000,">="&DATE(score!$B$1,AF3,AF4),data!$A$3:$A$1000,"<="&DATE(score!$B$1,AG3,AG4)),"") -> 0 | AG48: =IFERROR(SUMIFS(data!$M$3:$M$1000,data!$B$3:$B$1000,score!$B$48,data!$A$3:$A$1000,">="&DATE(score!$B$1,AG3,AG4),data!$A$3:$A$1000,"<="&DATE(score!$B$1,AH3,AH4)),"") -> 0 | AH48: =IFERROR(SUMIFS(data!$M$3:$M$1000,data!$B$3:$B$1000,score!$B$48,data!$A$3:$A$1000,">="&DATE(score!$B$1,AH3,AH4),data!$A$3:$A$1000,"<="&DATE(score!$B$1,AI3,AI4)),"") -> 0 | AI48: =IFERROR(SUMIFS(data!$M$3:$M$1000,data!$B$3:$B$1000,score!$B$48,data!$A$3:$A$1000,">="&DATE(score!$B$1,AI3,AI4),data!$A$3:$A$1000,"<="&DATE(score!$B$1,AJ3,AJ4)),"") -> 0 | AJ48: =IFERROR(SUMIFS(data!$M$3:$M$1000,data!$B$3:$B$1000,score!$B$48,data!$A$3:$A$1000,">="&DATE(score!$B$1,AJ3,AJ4),data!$A$3:$A$1000,"<="&DATE(score!$B$1,AK3,AK4)),"") -> 0 | AK48: =IFERROR(SUMIFS(data!$M$3:$M$1000,data!$B$3:$B$1000,score!$B$48,data!$A$3:$A$1000,">="&DATE(score!$B$1,AK3,AK4),data!$A$3:$A$1000,"<="&DATE(score!$B$1,AL3,AL4)),"") -> 0 | AL48: =IFERROR(SUMIFS(data!$M$3:$M$1000,data!$B$3:$B$1000,score!$B$48,data!$A$3:$A$1000,">="&DATE(score!$B$1,AL3,AL4),data!$A$3:$A$1000,"<="&DATE(score!$B$1,AM3,AM4)),"") -> 0 | AM48: =IFERROR(SUMIFS(data!$M$3:$M$1000,data!$B$3:$B$1000,score!$B$48,data!$A$3:$A$1000,">="&DATE(score!$B$1,AM3,AM4),data!$A$3:$A$1000,"<="&DATE(score!$B$1,AN3,AN4)),"") -> 0 | AN48: =IFERROR(SUMIFS(data!$M$3:$M$1000,data!$B$3:$B$1000,score!$B$48,data!$A$3:$A$1000,">="&DATE(score!$B$1,AN3,AN4),data!$A$3:$A$1000,"<="&DATE(score!$B$1,AO3,AO4)),"") -> 0 | AO48: =IFERROR(SUMIFS(data!$M$3:$M$1000,data!$B$3:$B$1000,score!$B$48,data!$A$3:$A$1000,">="&DATE(score!$B$1,AO3,AO4),data!$A$3:$A$1000,"<="&DATE(score!$B$1,AP3,AP4)),"") -> 0 | AP48: =IFERROR(SUMIFS(data!$M$3:$M$1000,data!$B$3:$B$1000,score!$B$48,data!$A$3:$A$1000,">="&DATE(score!$B$1,AP3,AP4),data!$A$3:$A$1000,"<="&DATE(score!$B$1,AQ3,AQ4)),"") -> 0 | AQ48: =IFERROR(SUMIFS(data!$M$3:$M$1000,data!$B$3:$B$1000,score!$B$48,data!$A$3:$A$1000,">="&DATE(score!$B$1,AQ3,AQ4),data!$A$3:$A$1000,"<="&DATE(score!$B$1,AR3,AR4)),"") -> 0 | AR48: =IFERROR(SUMIFS(data!$M$3:$M$1000,data!$B$3:$B$1000,score!$B$48,data!$A$3:$A$1000,">="&DATE(score!$B$1,AR3,AR4),data!$A$3:$A$1000,"<="&DATE(score!$B$1,AS3,AS4)),"") -> 0 | AS48: =IFERROR(SUMIFS(data!$M$3:$M$1000,data!$B$3:$B$1000,score!$B$48,data!$A$3:$A$1000,">="&DATE(score!$B$1,AS3,AS4),data!$A$3:$A$1000,"<="&DATE(score!$B$1,AT3,AT4)),"") -> 0 | AT48: =IFERROR(SUMIFS(data!$M$3:$M$1000,data!$B$3:$B$1000,score!$B$48,data!$A$3:$A$1000,">="&DATE(score!$B$1,AT3,AT4),data!$A$3:$A$1000,"<="&DATE(score!$B$1,AU3,AU4)),"") -> 0 | AU48: =IFERROR(SUMIFS(data!$M$3:$M$1000,data!$B$3:$B$1000,score!$B$48,data!$A$3:$A$1000,">="&DATE(score!$B$1,AU3,AU4),data!$A$3:$A$1000,"<="&DATE(score!$B$1,AV3,AV4)),"") -> 0 | AV48: =IFERROR(SUMIFS(data!$M$3:$M$1000,data!$B$3:$B$1000,score!$B$48,data!$A$3:$A$1000,">="&DATE(score!$B$1,AV3,AV4),data!$A$3:$A$1000,"<="&DATE(score!$B$1,AW3,AW4)),"") -> 0 | AW48: =IFERROR(SUMIFS(data!$M$3:$M$1000,data!$B$3:$B$1000,score!$B$48,data!$A$3:$A$1000,">="&DATE(score!$B$1,AW3,AW4),data!$A$3:$A$1000,"<="&DATE(score!$B$1,AX3,AX4)),"") -> 0 | AX48: =IFERROR(SUMIFS(data!$M$3:$M$1000,data!$B$3:$B$1000,score!$B$48,data!$A$3:$A$1000,">="&DATE(score!$B$1,AX3,AX4),data!$A$3:$A$1000,"<="&DATE(score!$B$1,AY3,AY4)),"") -> 0 | AY48: =IFERROR(SUMIFS(data!$M$3:$M$1000,data!$B$3:$B$1000,score!$B$48,data!$A$3:$A$1000,">="&DATE(score!$B$1,AY3,AY4),data!$A$3:$A$1000,"<="&DATE(score!$B$1,AZ3,AZ4)),"") -> 0 | AZ48: =IFERROR(SUMIFS(data!$M$3:$M$1000,data!$B$3:$B$1000,score!$B$48,data!$A$3:$A$1000,">="&DATE(score!$B$1,AZ3,AZ4),data!$A$3:$A$1000,"<="&DATE(score!$B$1,BA3,BA4)),"") -> 0 | BA48: =IFERROR(SUMIFS(data!$M$3:$M$1000,data!$B$3:$B$1000,score!$B$48,data!$A$3:$A$1000,">="&DATE(score!$B$1,BA3,BA4),data!$A$3:$A$1000,"<="&DATE(score!$B$1,BB3,BB4)),"") -> 0 | BB48: =IFERROR(SUMIFS(data!$M$3:$M$1000,data!$B$3:$B$1000,score!$B$48,data!$A$3:$A$1000,">="&DATE(score!$B$1,BB3,BB4),data!$A$3:$A$1000,"<="&DATE(score!$B$1,BC3,BC4)),"") -> 0
C49: =IFERROR(SUMIFS(data!$M$3:$M$1000,data!$B$3:$B$1000,score!$B$49,data!$A$3:$A$1000,">="&DATE(score!$B$1,C3,C4),data!$A$3:$A$1000,"<="&DATE(score!$B$1,D3,D4)),"") -> 0 | D49: =IFERROR(SUMIFS(data!$M$3:$M$1000,data!$B$3:$B$1000,score!$B$49,data!$A$3:$A$1000,">="&DATE(score!$B$1,D3,D4),data!$A$3:$A$1000,"<="&DATE(score!$B$1,E3,E4)),"") -> 0 | E49: =IFERROR(SUMIFS(data!$M$3:$M$1000,data!$B$3:$B$1000,score!$B$49,data!$A$3:$A$1000,">="&DATE(score!$B$1,E3,E4),data!$A$3:$A$1000,"<="&DATE(score!$B$1,F3,F4)),"") -> 0 | F49: =IFERROR(SUMIFS(data!$M$3:$M$1000,data!$B$3:$B$1000,score!$B$49,data!$A$3:$A$1000,">="&DATE(score!$B$1,F3,F4),data!$A$3:$A$1000,"<="&DATE(score!$B$1,G3,G4)),"") -> 0 | G49: =IFERROR(SUMIFS(data!$M$3:$M$1000,data!$B$3:$B$1000,score!$B$49,data!$A$3:$A$1000,">="&DATE(score!$B$1,G3,G4),data!$A$3:$A$1000,"<="&DATE(score!$B$1,H3,H4)),"") -> 0 | H49: =IFERROR(SUMIFS(data!$M$3:$M$1000,data!$B$3:$B$1000,score!$B$49,data!$A$3:$A$1000,">="&DATE(score!$B$1,H3,H4),data!$A$3:$A$1000,"<="&DATE(score!$B$1,I3,I4)),"") -> 0 | I49: =IFERROR(SUMIFS(data!$M$3:$M$1000,data!$B$3:$B$1000,score!$B$49,data!$A$3:$A$1000,">="&DATE(score!$B$1,I3,I4),data!$A$3:$A$1000,"<="&DATE(score!$B$1,J3,J4)),"") -> 0 | J49: =IFERROR(SUMIFS(data!$M$3:$M$1000,data!$B$3:$B$1000,score!$B$49,data!$A$3:$A$1000,">="&DATE(score!$B$1,J3,J4),data!$A$3:$A$1000,"<="&DATE(score!$B$1,K3,K4)),"") -> 0 | K49: =IFERROR(SUMIFS(data!$M$3:$M$1000,data!$B$3:$B$1000,score!$B$49,data!$A$3:$A$1000,">="&DATE(score!$B$1,K3,K4),data!$A$3:$A$1000,"<="&DATE(score!$B$1,L3,L4)),"") -> 0 | L49: =IFERROR(SUMIFS(data!$M$3:$M$1000,data!$B$3:$B$1000,score!$B$49,data!$A$3:$A$1000,">="&DATE(score!$B$1,L3,L4),data!$A$3:$A$1000,"<="&DATE(score!$B$1,M3,M4)),"") -> 0 | M49: =IFERROR(SUMIFS(data!$M$3:$M$1000,data!$B$3:$B$1000,score!$B$49,data!$A$3:$A$1000,">="&DATE(score!$B$1,M3,M4),data!$A$3:$A$1000,"<="&DATE(score!$B$1,N3,N4)),"") -> 0 | N49: =IFERROR(SUMIFS(data!$M$3:$M$1000,data!$B$3:$B$1000,score!$B$49,data!$A$3:$A$1000,">="&DATE(score!$B$1,N3,N4),data!$A$3:$A$1000,"<="&DATE(score!$B$1,O3,O4)),"") -> 0 | O49: =IFERROR(SUMIFS(data!$M$3:$M$1000,data!$B$3:$B$1000,score!$B$49,data!$A$3:$A$1000,">="&DATE(score!$B$1,O3,O4),data!$A$3:$A$1000,"<="&DATE(score!$B$1,P3,P4)),"") -> 0 | P49: =IFERROR(SUMIFS(data!$M$3:$M$1000,data!$B$3:$B$1000,score!$B$49,data!$A$3:$A$1000,">="&DATE(score!$B$1,P3,P4),data!$A$3:$A$1000,"<="&DATE(score!$B$1,Q3,Q4)),"") -> 0 | Q49: =IFERROR(SUMIFS(data!$M$3:$M$1000,data!$B$3:$B$1000,score!$B$49,data!$A$3:$A$1000,">="&DATE(score!$B$1,Q3,Q4),data!$A$3:$A$1000,"<="&DATE(score!$B$1,R3,R4)),"") -> 0 | R49: =IFERROR(SUMIFS(data!$M$3:$M$1000,data!$B$3:$B$1000,score!$B$49,data!$A$3:$A$1000,">="&DATE(score!$B$1,R3,R4),data!$A$3:$A$1000,"<="&DATE(score!$B$1,S3,S4)),"") -> 0 | S49: =IFERROR(SUMIFS(data!$M$3:$M$1000,data!$B$3:$B$1000,score!$B$49,data!$A$3:$A$1000,">="&DATE(score!$B$1,S3,S4),data!$A$3:$A$1000,"<="&DATE(score!$B$1,T3,T4)),"") -> 0 | T49: =IFERROR(SUMIFS(data!$M$3:$M$1000,data!$B$3:$B$1000,score!$B$49,data!$A$3:$A$1000,">="&DATE(score!$B$1,T3,T4),data!$A$3:$A$1000,"<="&DATE(score!$B$1,U3,U4)),"") -> 0 | U49: =IFERROR(SUMIFS(data!$M$3:$M$1000,data!$B$3:$B$1000,score!$B$49,data!$A$3:$A$1000,">="&DATE(score!$B$1,U3,U4),data!$A$3:$A$1000,"<="&DATE(score!$B$1,V3,V4)),"") -> 0 | V49: =IFERROR(SUMIFS(data!$M$3:$M$1000,data!$B$3:$B$1000,score!$B$49,data!$A$3:$A$1000,">="&DATE(score!$B$1,V3,V4),data!$A$3:$A$1000,"<="&DATE(score!$B$1,W3,W4)),"") -> 0 | W49: =IFERROR(SUMIFS(data!$M$3:$M$1000,data!$B$3:$B$1000,score!$B$49,data!$A$3:$A$1000,">="&DATE(score!$B$1,W3,W4),data!$A$3:$A$1000,"<="&DATE(score!$B$1,X3,X4)),"") -> 0 | X49: =IFERROR(SUMIFS(data!$M$3:$M$1000,data!$B$3:$B$1000,score!$B$49,data!$A$3:$A$1000,">="&DATE(score!$B$1,X3,X4),data!$A$3:$A$1000,"<="&DATE(score!$B$1,Y3,Y4)),"") -> 0 | Y49: =IFERROR(SUMIFS(data!$M$3:$M$1000,data!$B$3:$B$1000,score!$B$49,data!$A$3:$A$1000,">="&DATE(score!$B$1,Y3,Y4),data!$A$3:$A$1000,"<="&DATE(score!$B$1,Z3,Z4)),"") -> 0 | Z49: =IFERROR(SUMIFS(data!$M$3:$M$1000,data!$B$3:$B$1000,score!$B$49,data!$A$3:$A$1000,">="&DATE(score!$B$1,Z3,Z4),data!$A$3:$A$1000,"<="&DATE(score!$B$1,AA3,AA4)),"") -> 0 | AA49: =IFERROR(SUMIFS(data!$M$3:$M$1000,data!$B$3:$B$1000,score!$B$49,data!$A$3:$A$1000,">="&DATE(score!$B$1,AA3,AA4),data!$A$3:$A$1000,"<="&DATE(score!$B$1,AB3,AB4)),"") -> 0 | AB49: =IFERROR(SUMIFS(data!$M$3:$M$1000,data!$B$3:$B$1000,score!$B$49,data!$A$3:$A$1000,">="&DATE(score!$B$1,AB3,AB4),data!$A$3:$A$1000,"<="&DATE(score!$B$1,AC3,AC4)),"") -> 0 | AC49: =IFERROR(SUMIFS(data!$M$3:$M$1000,data!$B$3:$B$1000,score!$B$49,data!$A$3:$A$1000,">="&DATE(score!$B$1,AC3,AC4),data!$A$3:$A$1000,"<="&DATE(score!$B$1,AD3,AD4)),"") -> 0 | AD49: =IFERROR(SUMIFS(data!$M$3:$M$1000,data!$B$3:$B$1000,score!$B$49,data!$A$3:$A$1000,">="&DATE(score!$B$1,AD3,AD4),data!$A$3:$A$1000,"<="&DATE(score!$B$1,AE3,AE4)),"") -> 0 | AE49: =IFERROR(SUMIFS(data!$M$3:$M$1000,data!$B$3:$B$1000,score!$B$49,data!$A$3:$A$1000,">="&DATE(score!$B$1,AE3,AE4),data!$A$3:$A$1000,"<="&DATE(score!$B$1,AF3,AF4)),"") -> 0 | AF49: =IFERROR(SUMIFS(data!$M$3:$M$1000,data!$B$3:$B$1000,score!$B$49,data!$A$3:$A$1000,">="&DATE(score!$B$1,AF3,AF4),data!$A$3:$A$1000,"<="&DATE(score!$B$1,AG3,AG4)),"") -> 0 | AG49: =IFERROR(SUMIFS(data!$M$3:$M$1000,data!$B$3:$B$1000,score!$B$49,data!$A$3:$A$1000,">="&DATE(score!$B$1,AG3,AG4),data!$A$3:$A$1000,"<="&DATE(score!$B$1,AH3,AH4)),"") -> 0 | AH49: =IFERROR(SUMIFS(data!$M$3:$M$1000,data!$B$3:$B$1000,score!$B$49,data!$A$3:$A$1000,">="&DATE(score!$B$1,AH3,AH4),data!$A$3:$A$1000,"<="&DATE(score!$B$1,AI3,AI4)),"") -> 0 | AI49: =IFERROR(SUMIFS(data!$M$3:$M$1000,data!$B$3:$B$1000,score!$B$49,data!$A$3:$A$1000,">="&DATE(score!$B$1,AI3,AI4),data!$A$3:$A$1000,"<="&DATE(score!$B$1,AJ3,AJ4)),"") -> 0 | AJ49: =IFERROR(SUMIFS(data!$M$3:$M$1000,data!$B$3:$B$1000,score!$B$49,data!$A$3:$A$1000,">="&DATE(score!$B$1,AJ3,AJ4),data!$A$3:$A$1000,"<="&DATE(score!$B$1,AK3,AK4)),"") -> 0 | AK49: =IFERROR(SUMIFS(data!$M$3:$M$1000,data!$B$3:$B$1000,score!$B$49,data!$A$3:$A$1000,">="&DATE(score!$B$1,AK3,AK4),data!$A$3:$A$1000,"<="&DATE(score!$B$1,AL3,AL4)),"") -> 0 | AL49: =IFERROR(SUMIFS(data!$M$3:$M$1000,data!$B$3:$B$1000,score!$B$49,data!$A$3:$A$1000,">="&DATE(score!$B$1,AL3,AL4),data!$A$3:$A$1000,"<="&DATE(score!$B$1,AM3,AM4)),"") -> 0 | AM49: =IFERROR(SUMIFS(data!$M$3:$M$1000,data!$B$3:$B$1000,score!$B$49,data!$A$3:$A$1000,">="&DATE(score!$B$1,AM3,AM4),data!$A$3:$A$1000,"<="&DATE(score!$B$1,AN3,AN4)),"") -> 0 | AN49: =IFERROR(SUMIFS(data!$M$3:$M$1000,data!$B$3:$B$1000,score!$B$49,data!$A$3:$A$1000,">="&DATE(score!$B$1,AN3,AN4),data!$A$3:$A$1000,"<="&DATE(score!$B$1,AO3,AO4)),"") -> 0 | AO49: =IFERROR(SUMIFS(data!$M$3:$M$1000,data!$B$3:$B$1000,score!$B$49,data!$A$3:$A$1000,">="&DATE(score!$B$1,AO3,AO4),data!$A$3:$A$1000,"<="&DATE(score!$B$1,AP3,AP4)),"") -> 0 | AP49: =IFERROR(SUMIFS(data!$M$3:$M$1000,data!$B$3:$B$1000,score!$B$49,data!$A$3:$A$1000,">="&DATE(score!$B$1,AP3,AP4),data!$A$3:$A$1000,"<="&DATE(score!$B$1,AQ3,AQ4)),"") -> 0 | AQ49: =IFERROR(SUMIFS(data!$M$3:$M$1000,data!$B$3:$B$1000,score!$B$49,data!$A$3:$A$1000,">="&DATE(score!$B$1,AQ3,AQ4),data!$A$3:$A$1000,"<="&DATE(score!$B$1,AR3,AR4)),"") -> 0 | AR49: =IFERROR(SUMIFS(data!$M$3:$M$1000,data!$B$3:$B$1000,score!$B$49,data!$A$3:$A$1000,">="&DATE(score!$B$1,AR3,AR4),data!$A$3:$A$1000,"<="&DATE(score!$B$1,AS3,AS4)),"") -> 0 | AS49: =IFERROR(SUMIFS(data!$M$3:$M$1000,data!$B$3:$B$1000,score!$B$49,data!$A$3:$A$1000,">="&DATE(score!$B$1,AS3,AS4),data!$A$3:$A$1000,"<="&DATE(score!$B$1,AT3,AT4)),"") -> 0 | AT49: =IFERROR(SUMIFS(data!$M$3:$M$1000,data!$B$3:$B$1000,score!$B$49,data!$A$3:$A$1000,">="&DATE(score!$B$1,AT3,AT4),data!$A$3:$A$1000,"<="&DATE(score!$B$1,AU3,AU4)),"") -> 0 | AU49: =IFERROR(SUMIFS(data!$M$3:$M$1000,data!$B$3:$B$1000,score!$B$49,data!$A$3:$A$1000,">="&DATE(score!$B$1,AU3,AU4),data!$A$3:$A$1000,"<="&DATE(score!$B$1,AV3,AV4)),"") -> 0 | AV49: =IFERROR(SUMIFS(data!$M$3:$M$1000,data!$B$3:$B$1000,score!$B$49,data!$A$3:$A$1000,">="&DATE(score!$B$1,AV3,AV4),data!$A$3:$A$1000,"<="&DATE(score!$B$1,AW3,AW4)),"") -> 0 | AW49: =IFERROR(SUMIFS(data!$M$3:$M$1000,data!$B$3:$B$1000,score!$B$49,data!$A$3:$A$1000,">="&DATE(score!$B$1,AW3,AW4),data!$A$3:$A$1000,"<="&DATE(score!$B$1,AX3,AX4)),"") -> 0 | AX49: =IFERROR(SUMIFS(data!$M$3:$M$1000,data!$B$3:$B$1000,score!$B$49,data!$A$3:$A$1000,">="&DATE(score!$B$1,AX3,AX4),data!$A$3:$A$1000,"<="&DATE(score!$B$1,AY3,AY4)),"") -> 0 | AY49: =IFERROR(SUMIFS(data!$M$3:$M$1000,data!$B$3:$B$1000,score!$B$49,data!$A$3:$A$1000,">="&DATE(score!$B$1,AY3,AY4),data!$A$3:$A$1000,"<="&DATE(score!$B$1,AZ3,AZ4)),"") -> 0 | AZ49: =IFERROR(SUMIFS(data!$M$3:$M$1000,data!$B$3:$B$1000,score!$B$49,data!$A$3:$A$1000,">="&DATE(score!$B$1,AZ3,AZ4),data!$A$3:$A$1000,"<="&DATE(score!$B$1,BA3,BA4)),"") -> 0 | BA49: =IFERROR(SUMIFS(data!$M$3:$M$1000,data!$B$3:$B$1000,score!$B$49,data!$A$3:$A$1000,">="&DATE(score!$B$1,BA3,BA4),data!$A$3:$A$1000,"<="&DATE(score!$B$1,BB3,BB4)),"") -> 0 | BB49: =IFERROR(SUMIFS(data!$M$3:$M$1000,data!$B$3:$B$1000,score!$B$49,data!$A$3:$A$1000,">="&DATE(score!$B$1,BB3,BB4),data!$A$3:$A$1000,"<="&DATE(score!$B$1,BC3,BC4)),"") -> 0
C50: =IFERROR(SUMIFS(data!$M$3:$M$1000,data!$B$3:$B$1000,score!$B$50,data!$A$3:$A$1000,">="&DATE(score!$B$1,C3,C4),data!$A$3:$A$1000,"<="&DATE(score!$B$1,D3,D4)),"") -> 0 | D50: =IFERROR(SUMIFS(data!$M$3:$M$1000,data!$B$3:$B$1000,score!$B$50,data!$A$3:$A$1000,">="&DATE(score!$B$1,D3,D4),data!$A$3:$A$1000,"<="&DATE(score!$B$1,E3,E4)),"") -> 0 | E50: =IFERROR(SUMIFS(data!$M$3:$M$1000,data!$B$3:$B$1000,score!$B$50,data!$A$3:$A$1000,">="&DATE(score!$B$1,E3,E4),data!$A$3:$A$1000,"<="&DATE(score!$B$1,F3,F4)),"") -> 0 | F50: =IFERROR(SUMIFS(data!$M$3:$M$1000,data!$B$3:$B$1000,score!$B$50,data!$A$3:$A$1000,">="&DATE(score!$B$1,F3,F4),data!$A$3:$A$1000,"<="&DATE(score!$B$1,G3,G4)),"") -> 0 | G50: =IFERROR(SUMIFS(data!$M$3:$M$1000,data!$B$3:$B$1000,score!$B$50,data!$A$3:$A$1000,">="&DATE(score!$B$1,G3,G4),data!$A$3:$A$1000,"<="&DATE(score!$B$1,H3,H4)),"") -> 0 | H50: =IFERROR(SUMIFS(data!$M$3:$M$1000,data!$B$3:$B$1000,score!$B$50,data!$A$3:$A$1000,">="&DATE(score!$B$1,H3,H4),data!$A$3:$A$1000,"<="&DATE(score!$B$1,I3,I4)),"") -> 0 | I50: =IFERROR(SUMIFS(data!$M$3:$M$1000,data!$B$3:$B$1000,score!$B$50,data!$A$3:$A$1000,">="&DATE(score!$B$1,I3,I4),data!$A$3:$A$1000,"<="&DATE(score!$B$1,J3,J4)),"") -> 0 | J50: =IFERROR(SUMIFS(data!$M$3:$M$1000,data!$B$3:$B$1000,score!$B$50,data!$A$3:$A$1000,">="&DATE(score!$B$1,J3,J4),data!$A$3:$A$1000,"<="&DATE(score!$B$1,K3,K4)),"") -> 0 | K50: =IFERROR(SUMIFS(data!$M$3:$M$1000,data!$B$3:$B$1000,score!$B$50,data!$A$3:$A$1000,">="&DATE(score!$B$1,K3,K4),data!$A$3:$A$1000,"<="&DATE(score!$B$1,L3,L4)),"") -> 0 | L50: =IFERROR(SUMIFS(data!$M$3:$M$1000,data!$B$3:$B$1000,score!$B$50,data!$A$3:$A$1000,">="&DATE(score!$B$1,L3,L4),data!$A$3:$A$1000,"<="&DATE(score!$B$1,M3,M4)),"") -> 0 | M50: =IFERROR(SUMIFS(data!$M$3:$M$1000,data!$B$3:$B$1000,score!$B$50,data!$A$3:$A$1000,">="&DATE(score!$B$1,M3,M4),data!$A$3:$A$1000,"<="&DATE(score!$B$1,N3,N4)),"") -> 0 | N50: =IFERROR(SUMIFS(data!$M$3:$M$1000,data!$B$3:$B$1000,score!$B$50,data!$A$3:$A$1000,">="&DATE(score!$B$1,N3,N4),data!$A$3:$A$1000,"<="&DATE(score!$B$1,O3,O4)),"") -> 0 | O50: =IFERROR(SUMIFS(data!$M$3:$M$1000,data!$B$3:$B$1000,score!$B$50,data!$A$3:$A$1000,">="&DATE(score!$B$1,O3,O4),data!$A$3:$A$1000,"<="&DATE(score!$B$1,P3,P4)),"") -> 0 | P50: =IFERROR(SUMIFS(data!$M$3:$M$1000,data!$B$3:$B$1000,score!$B$50,data!$A$3:$A$1000,">="&DATE(score!$B$1,P3,P4),data!$A$3:$A$1000,"<="&DATE(score!$B$1,Q3,Q4)),"") -> 0 | Q50: =IFERROR(SUMIFS(data!$M$3:$M$1000,data!$B$3:$B$1000,score!$B$50,data!$A$3:$A$1000,">="&DATE(score!$B$1,Q3,Q4),data!$A$3:$A$1000,"<="&DATE(score!$B$1,R3,R4)),"") -> 0 | R50: =IFERROR(SUMIFS(data!$M$3:$M$1000,data!$B$3:$B$1000,score!$B$50,data!$A$3:$A$1000,">="&DATE(score!$B$1,R3,R4),data!$A$3:$A$1000,"<="&DATE(score!$B$1,S3,S4)),"") -> 0 | S50: =IFERROR(SUMIFS(data!$M$3:$M$1000,data!$B$3:$B$1000,score!$B$50,data!$A$3:$A$1000,">="&DATE(score!$B$1,S3,S4),data!$A$3:$A$1000,"<="&DATE(score!$B$1,T3,T4)),"") -> 0 | T50: =IFERROR(SUMIFS(data!$M$3:$M$1000,data!$B$3:$B$1000,score!$B$50,data!$A$3:$A$1000,">="&DATE(score!$B$1,T3,T4),data!$A$3:$A$1000,"<="&DATE(score!$B$1,U3,U4)),"") -> 0 | U50: =IFERROR(SUMIFS(data!$M$3:$M$1000,data!$B$3:$B$1000,score!$B$50,data!$A$3:$A$1000,">="&DATE(score!$B$1,U3,U4),data!$A$3:$A$1000,"<="&DATE(score!$B$1,V3,V4)),"") -> 0 | V50: =IFERROR(SUMIFS(data!$M$3:$M$1000,data!$B$3:$B$1000,score!$B$50,data!$A$3:$A$1000,">="&DATE(score!$B$1,V3,V4),data!$A$3:$A$1000,"<="&DATE(score!$B$1,W3,W4)),"") -> 0 | W50: =IFERROR(SUMIFS(data!$M$3:$M$1000,data!$B$3:$B$1000,score!$B$50,data!$A$3:$A$1000,">="&DATE(score!$B$1,W3,W4),data!$A$3:$A$1000,"<="&DATE(score!$B$1,X3,X4)),"") -> 0 | X50: =IFERROR(SUMIFS(data!$M$3:$M$1000,data!$B$3:$B$1000,score!$B$50,data!$A$3:$A$1000,">="&DATE(score!$B$1,X3,X4),data!$A$3:$A$1000,"<="&DATE(score!$B$1,Y3,Y4)),"") -> 0 | Y50: =IFERROR(SUMIFS(data!$M$3:$M$1000,data!$B$3:$B$1000,score!$B$50,data!$A$3:$A$1000,">="&DATE(score!$B$1,Y3,Y4),data!$A$3:$A$1000,"<="&DATE(score!$B$1,Z3,Z4)),"") -> 0 | Z50: =IFERROR(SUMIFS(data!$M$3:$M$1000,data!$B$3:$B$1000,score!$B$50,data!$A$3:$A$1000,">="&DATE(score!$B$1,Z3,Z4),data!$A$3:$A$1000,"<="&DATE(score!$B$1,AA3,AA4)),"") -> 0 | AA50: =IFERROR(SUMIFS(data!$M$3:$M$1000,data!$B$3:$B$1000,score!$B$50,data!$A$3:$A$1000,">="&DATE(score!$B$1,AA3,AA4),data!$A$3:$A$1000,"<="&DATE(score!$B$1,AB3,AB4)),"") -> 0 | AB50: =IFERROR(SUMIFS(data!$M$3:$M$1000,data!$B$3:$B$1000,score!$B$50,data!$A$3:$A$1000,">="&DATE(score!$B$1,AB3,AB4),data!$A$3:$A$1000,"<="&DATE(score!$B$1,AC3,AC4)),"") -> 0 | AC50: =IFERROR(SUMIFS(data!$M$3:$M$1000,data!$B$3:$B$1000,score!$B$50,data!$A$3:$A$1000,">="&DATE(score!$B$1,AC3,AC4),data!$A$3:$A$1000,"<="&DATE(score!$B$1,AD3,AD4)),"") -> 0 | AD50: =IFERROR(SUMIFS(data!$M$3:$M$1000,data!$B$3:$B$1000,score!$B$50,data!$A$3:$A$1000,">="&DATE(score!$B$1,AD3,AD4),data!$A$3:$A$1000,"<="&DATE(score!$B$1,AE3,AE4)),"") -> 0 | AE50: =IFERROR(SUMIFS(data!$M$3:$M$1000,data!$B$3:$B$1000,score!$B$50,data!$A$3:$A$1000,">="&DATE(score!$B$1,AE3,AE4),data!$A$3:$A$1000,"<="&DATE(score!$B$1,AF3,AF4)),"") -> 0 | AF50: =IFERROR(SUMIFS(data!$M$3:$M$1000,data!$B$3:$B$1000,score!$B$50,data!$A$3:$A$1000,">="&DATE(score!$B$1,AF3,AF4),data!$A$3:$A$1000,"<="&DATE(score!$B$1,AG3,AG4)),"") -> 0 | AG50: =IFERROR(SUMIFS(data!$M$3:$M$1000,data!$B$3:$B$1000,score!$B$50,data!$A$3:$A$1000,">="&DATE(score!$B$1,AG3,AG4),data!$A$3:$A$1000,"<="&DATE(score!$B$1,AH3,AH4)),"") -> 0 | AH50: =IFERROR(SUMIFS(data!$M$3:$M$1000,data!$B$3:$B$1000,score!$B$50,data!$A$3:$A$1000,">="&DATE(score!$B$1,AH3,AH4),data!$A$3:$A$1000,"<="&DATE(score!$B$1,AI3,AI4)),"") -> 0 | AI50: =IFERROR(SUMIFS(data!$M$3:$M$1000,data!$B$3:$B$1000,score!$B$50,data!$A$3:$A$1000,">="&DATE(score!$B$1,AI3,AI4),data!$A$3:$A$1000,"<="&DATE(score!$B$1,AJ3,AJ4)),"") -> 0 | AJ50: =IFERROR(SUMIFS(data!$M$3:$M$1000,data!$B$3:$B$1000,score!$B$50,data!$A$3:$A$1000,">="&DATE(score!$B$1,AJ3,AJ4),data!$A$3:$A$1000,"<="&DATE(score!$B$1,AK3,AK4)),"") -> 0 | AK50: =IFERROR(SUMIFS(data!$M$3:$M$1000,data!$B$3:$B$1000,score!$B$50,data!$A$3:$A$1000,">="&DATE(score!$B$1,AK3,AK4),data!$A$3:$A$1000,"<="&DATE(score!$B$1,AL3,AL4)),"") -> 0 | AL50: =IFERROR(SUMIFS(data!$M$3:$M$1000,data!$B$3:$B$1000,score!$B$50,data!$A$3:$A$1000,">="&DATE(score!$B$1,AL3,AL4),data!$A$3:$A$1000,"<="&DATE(score!$B$1,AM3,AM4)),"") -> 0 | AM50: =IFERROR(SUMIFS(data!$M$3:$M$1000,data!$B$3:$B$1000,score!$B$50,data!$A$3:$A$1000,">="&DATE(score!$B$1,AM3,AM4),data!$A$3:$A$1000,"<="&DATE(score!$B$1,AN3,AN4)),"") -> 0 | AN50: =IFERROR(SUMIFS(data!$M$3:$M$1000,data!$B$3:$B$1000,score!$B$50,data!$A$3:$A$1000,">="&DATE(score!$B$1,AN3,AN4),data!$A$3:$A$1000,"<="&DATE(score!$B$1,AO3,AO4)),"") -> 0 | AO50: =IFERROR(SUMIFS(data!$M$3:$M$1000,data!$B$3:$B$1000,score!$B$50,data!$A$3:$A$1000,">="&DATE(score!$B$1,AO3,AO4),data!$A$3:$A$1000,"<="&DATE(score!$B$1,AP3,AP4)),"") -> 0 | AP50: =IFERROR(SUMIFS(data!$M$3:$M$1000,data!$B$3:$B$1000,score!$B$50,data!$A$3:$A$1000,">="&DATE(score!$B$1,AP3,AP4),data!$A$3:$A$1000,"<="&DATE(score!$B$1,AQ3,AQ4)),"") -> 0 | AQ50: =IFERROR(SUMIFS(data!$M$3:$M$1000,data!$B$3:$B$1000,score!$B$50,data!$A$3:$A$1000,">="&DATE(score!$B$1,AQ3,AQ4),data!$A$3:$A$1000,"<="&DATE(score!$B$1,AR3,AR4)),"") -> 0 | AR50: =IFERROR(SUMIFS(data!$M$3:$M$1000,data!$B$3:$B$1000,score!$B$50,data!$A$3:$A$1000,">="&DATE(score!$B$1,AR3,AR4),data!$A$3:$A$1000,"<="&DATE(score!$B$1,AS3,AS4)),"") -> 0 | AS50: =IFERROR(SUMIFS(data!$M$3:$M$1000,data!$B$3:$B$1000,score!$B$50,data!$A$3:$A$1000,">="&DATE(score!$B$1,AS3,AS4),data!$A$3:$A$1000,"<="&DATE(score!$B$1,AT3,AT4)),"") -> 0 | AT50: =IFERROR(SUMIFS(data!$M$3:$M$1000,data!$B$3:$B$1000,score!$B$50,data!$A$3:$A$1000,">="&DATE(score!$B$1,AT3,AT4),data!$A$3:$A$1000,"<="&DATE(score!$B$1,AU3,AU4)),"") -> 0 | AU50: =IFERROR(SUMIFS(data!$M$3:$M$1000,data!$B$3:$B$1000,score!$B$50,data!$A$3:$A$1000,">="&DATE(score!$B$1,AU3,AU4),data!$A$3:$A$1000,"<="&DATE(score!$B$1,AV3,AV4)),"") -> 0 | AV50: =IFERROR(SUMIFS(data!$M$3:$M$1000,data!$B$3:$B$1000,score!$B$50,data!$A$3:$A$1000,">="&DATE(score!$B$1,AV3,AV4),data!$A$3:$A$1000,"<="&DATE(score!$B$1,AW3,AW4)),"") -> 0 | AW50: =IFERROR(SUMIFS(data!$M$3:$M$1000,data!$B$3:$B$1000,score!$B$50,data!$A$3:$A$1000,">="&DATE(score!$B$1,AW3,AW4),data!$A$3:$A$1000,"<="&DATE(score!$B$1,AX3,AX4)),"") -> 0 | AX50: =IFERROR(SUMIFS(data!$M$3:$M$1000,data!$B$3:$B$1000,score!$B$50,data!$A$3:$A$1000,">="&DATE(score!$B$1,AX3,AX4),data!$A$3:$A$1000,"<="&DATE(score!$B$1,AY3,AY4)),"") -> 0 | AY50: =IFERROR(SUMIFS(data!$M$3:$M$1000,data!$B$3:$B$1000,score!$B$50,data!$A$3:$A$1000,">="&DATE(score!$B$1,AY3,AY4),data!$A$3:$A$1000,"<="&DATE(score!$B$1,AZ3,AZ4)),"") -> 0 | AZ50: =IFERROR(SUMIFS(data!$M$3:$M$1000,data!$B$3:$B$1000,score!$B$50,data!$A$3:$A$1000,">="&DATE(score!$B$1,AZ3,AZ4),data!$A$3:$A$1000,"<="&DATE(score!$B$1,BA3,BA4)),"") -> 0 | BA50: =IFERROR(SUMIFS(data!$M$3:$M$1000,data!$B$3:$B$1000,score!$B$50,data!$A$3:$A$1000,">="&DATE(score!$B$1,BA3,BA4),data!$A$3:$A$1000,"<="&DATE(score!$B$1,BB3,BB4)),"") -> 0 | BB50: =IFERROR(SUMIFS(data!$M$3:$M$1000,data!$B$3:$B$1000,score!$B$50,data!$A$3:$A$1000,">="&DATE(score!$B$1,BB3,BB4),data!$A$3:$A$1000,"<="&DATE(score!$B$1,BC3,BC4)),"") -> 0
